Workbook

Sheet 01-04-2017
A1: Date | B1: Vehicle Number | C1: Filling Station | D1: Mileage | E1: Type | F1: Quantity | G1: Amount per Litre | H1: TRACKING REPORT LITRE | I1: Variance | J1: RATE | K1: PURCHASE POINT | L1: CONTRACT | M1: NAME | N1: PHONE NO | O1: COMMENT | P1: VEHICLE MAKE

Sheet 02-04-2017
A1: Date | B1: Vehicle Number | C1: Filling Station | D1: Mileage | E1: Type | F1: Quantity | G1: Amount per Litre | H1: TRACKING REPORT LITRE | I1: Variance | J1: RATE | K1: PURCHASE POINT | L1: CONTRACT | M1: NAME | N1: PHONE NO | O1: COMMENT | P1: VEHICLE MAKE

Sheet 03-04-2017
F2: HUAWEI FUEL RETIREMENT FOR 3/4/2017 BY IKECHUKWU ROBERT E.
A3: Date | B3: Vehicle Number | C3: Filling Station | D3: Mileage | E3: Type | F3: Quantity | G3: Amount per Litre | H3: TRACKING REPORT LITRE | I3: Variance | J3: RATE | K3: PURCHASE POINT | L3: CONTRACT | M3: NAME | N3: PHONE NO | O3: COMMENT | P3: VEHICLE MAKE
A4: 31/3/2017 | B4: XB 415 JRT | C4: HUMMER FILLING STATION | D4: 207089 | E4: PETROL | F4: 28 | G4: 145 | H4: NOT REPORTING | I4: . | J4: 4,000:00 | K4: UMUAHIA | L4: HUAWEI | M4: KENNETH ONOS OTOIBHILI | N4: 8180134519 | O4: SUPPORT NO: 824 | P4: TOYOTA HILUX P/UP
A5: 2017-01-04 | B5: KRD 539 XF | C5: FORTE OIL | D5: 217427 | E5: PETROL | F5: 48 | G5: 145 | H5: 32 | I5: 16 | J5: 7,000:00 | K5: UMUAHIA | L5: HUAWEI | M5: SANI WILLIAM | N5: 08093909028 & 08166130744 | O5: SUPPORT NO: 825 | P5: MITS.L200 P/UP
A6: 2017-01-04 | B6: XB 415 JRT | C6: HUMMER FILLING STATION | D6: 207211 | E6: PETROL | F6: 28 | G6: 145 | H6: NOT REPORTING | I6: . | J6: 4,000:00 | K6: UMUAHIA | L6: HUAWEI | M6: KENNETH ONOS OTOIBHILI | N6: 8180134519 | O6: SUPPORT NO: 824 | P6: TOYOTA HILUX P/UP
I9: TOTAL | J9: 15,000:00

Sheet 04-04-2017
F1: HUAWEI FUEL RETIREMENT FOR 05-4-2017 BY IKECHUKWU ROBERT E.
A2: Date | B2: Vehicle Number | C2: Filling Station | D2: Mileage | E2: Type | F2: Quantity | G2: Amount per Litre | H2: TRACKING REPORT LITRE | I2: Variance | J2: RATE | K2: PURCHASE POINT | L2: CONTRACT | M2: NAME | O2: COMMENT | P2: VEHICLE MAKE

Sheet 05-04-2017
F1: HUAWEI FUEL RETIREMENT FOR 05-4-2017 BY IKECHUKWU ROBERT E.
A2: Date | B2: Vehicle Number | C2: Filling Station | D2: Mileage | E2: Type | F2: Quantity | G2: Amount per Litre | H2: TRACKING REPORT LITRE | I2: Variance | J2: RATE | K2: PURCHASE POINT | L2: CONTRACT | M2: NAME | N2: PHONE NO | O2: COMMENT | P2: VEHICLE MAKE
A3: 03/04/2017 | B3: XB 415 JRT | C3: FORTE OIL | D3: 207390 | E3: PETROL | F3: 28 | G3: 145 | H3: NOT REPORTING | I3: . | J3: 4,000:00 | K3: UMUAHIA | L3: HUAWEI | M3: KENNETH ONOS OTOIBHILI | N3: 8180134519 | O3: Support Ticket Opened [#826] | P3: TOYOTA HILUX P/UP
A4: 03/04/2017 | B4: KMC 44 XA | C4: TONIMAS | D4: 197381 | E4: PETROL | F4: 14 | G4: 145 | H4: 11 | I4: 3 | J4: 2,000:00 | K4: ABA | L4: HUAWEI | M4: REUBAN EGBEWHO | N4: 8035417621 | P4: TOYOTA HILUX P/UP
A5: 03/04/2017 | B5: KMC 39 XA | C5: AVINS | D5: 256347 | E5: PETROL | F5: 28 | G5: 145 | H5: NOT REPORTING | I5: . | J5: 4,000:00 | K5: ABA | L5: HUAWEI | M5: ERIC OWHONDA | N5: 8035417621 | O5: Support Ticket Opened [#826] | P5: TOYOTA HILUX P/UP
A6: 04/04/2017 | B6: XB 415 JRT | C6: HUMMER | D6: 207498 | E6: PETROL | F6: 28 | G6: 145 | H6: NOT REPORTING | I6: . | J6: 4,000:00 | K6: UMUAHIA | L6: HUAWEI | M6: KENNETH ONOS OTOIBHILI | N6: 8180134519 | O6: Support Ticket Opened [#826] | P6: TOYOTA HILUX P/UP
A7: 04/04/2017 | B7: KMC 44 XA | C7: OANDO | D7: 197488 | E7: PETROL | F7: 21 | G7: 145 | H7: 21 | I7: 0 | J7: 3,000:00 | K7: ABA | L7: HUAWEI | M7: NDIANA ANTHONY ROBSON | N7: 8068817568 | O7: Relieve driver | P7: TOYOTA HILUX P/UP
A8: 05/04/2017 | B8: KMC 44 XA | C8: NUA | D8: 197670 | E8: PETROL | F8: 28 | G8: 145 | H8: 23 | I8: 5 | J8: 4,000:00 | K8: ABA | L8: HUAWEI | M8: NDIANA ANTHONY ROBSON | N8: 8068817568 | O8: Relieve driver | P8: TOYOTA HILUX P/UP
A9: 05/04/2017 | B9: KMC 39 XA | C9: NUA | D9: 256589 | E9: PETROL | F9: 21 | G9: 145 | H9: NOT REPORTING | I9: . | J9: 3,000:00 | K9: ABA | L9: HUAWEI | M9: ERIC OWHONDA | N9: 8035417621 | O9: Support Ticket Opened [#826] | P9: TOYOTA HILUX P/UP
I12: TOTAL | J12: 24,000:00

Sheet 06-04-2017
F2: HUAWEI FUEL RETIREMENT FOR 06-04-2017 BY IKECHUKWU ROBERT E.
A3: Date | B3: Vehicle Number | C3: Filling Station | D3: Mileage | E3: Type | F3: Quantity | G3: Amount per Litre | H3: TRACKING REPORT LITRE | I3: Variance | J3: RATE | K3: PURCHASE POINT | L3: CONTRACT | M3: NAME | N3: PHONE NO | O3: COMMENT | P3: VEHICLE MAKE
A4: 05/04/2017 | B4: KRD 539 XF | C4: FORTE OIL | D4: 218196 | E4: PETROL | F4: 41 | G4: 145 | H4: 40 | I4: 1 | J4: 6,000:00 | K4: UMUAHIA | L4: HUAWEI | M4: SANI WILLIAM | N4: 08093909028 & 08166130744 | P4: MITS.L200 P/UP
A5: 06/04/2017 | B5: XB 415 JRT | C5: FORTE OIL | D5: 207787 | E5: PETROL | F5: 28 | G5: 145 | H5: NOT REPORTING | I5: . | J5: 4,000:00 | K5: UMUAHIA | L5: HUAWEI | M5: KENNETH ONOS OTOIBHILI | N5: 8180134519 | O5: Support Ticket Opened [#826] | P5: TOYOTA HILUX P/UP
I7: TOTAL | J7: 10,000:00

Sheet 07-04-2017
F2: HUAWEI FUEL RETIREMENT FOR 07-04-2017 BY IKECHUKWU ROBERT E.
A3: Date | B3: Vehicle Number | C3: Filling Station | D3: Mileage | E3: Type | F3: Quantity | G3: Amount per Litre | H3: TRACKING REPORT LITRE | I3: Variance | J3: RATE | K3: PURCHASE POINT | L3: CONTRACT | M3: NAME | N3: PHONE NO | O3: COMMENT | P3: VEHICLE MAKE
A4: 07/04/2017 | B4: XB 415 JRT | C4: FORTE OIL | D4: 207938 | E4: PETROL | F4: 28 | G4: 145 | H4: NOT REPORTING | I4: . | J4: 4,000:00 | K4: UMUAHIA | L4: HUAWEI | M4: KENNETH ONOS OTOIBHILI | N4: 8180134519 | O4: Support Ticket Opened [#826] | P4: TOYOTA HILUX P/UP
I6: TOTAL | J6: 4,000:00

Sheet 08-04-2017
A1: Date | B1: Vehicle Number | C1: Filling Station | D1: Mileage | E1: Type | F1: Quantity | G1: Amount per Litre | H1: TRACKING REPORT LITRE | I1: Variance | J1: RATE | K1: PURCHASE POINT | L1: CONTRACT | M1: NAME | N1: PHONE NO | O1: COMMENT | P1: VEHICLE MAKE

Sheet 09-04-2017
A1: Date | B1: Vehicle Number | C1: Filling Station | D1: Mileage | E1: Type | F1: Quantity | G1: Amount per Litre | H1: TRACKING REPORT LITRE | I1: Variance | J1: RATE | K1: PURCHASE POINT | L1: CONTRACT | M1: NAME | N1: PHONE NO | O1: COMMENT | P1: VEHICLE MAKE

Sheet 10-04-2017
A1: Date | B1: Vehicle Number | C1: Filling Station | D1: Mileage | E1: Type | F1: Quantity | G1: Amount per Litre | H1: TRACKING REPORT LITRE | I1: Variance | J1: RATE | K1: PURCHASE POINT | L1: CONTRACT | M1: NAME | N1: PHONE NO | O1: COMMENT | P1: VEHICLE MAKE

Sheet 11-04-2017
K1: HUAWEI FUEL RETIREMENT FOR 11-04-2017 BY IKECHUKWU ROBERT E.
A2: Date | B2: Vehicle Number | C2: Filling Station | D2: Mileage | E2: Type | F2: Quantity | G2: Amount per Litre | H2: TRACKING REPORT LITRE | I2: Variance | J2: RATE | K2: PURCHASE POINT | L2: CONTRACT | M2: NAME | N2: PHONE NO | O2: COMMENT | P2: VEHICLE MAKE
A3: 11/04/2017 | B3: KRD 539 XF | C3: FORTE OIL | D3: 219479 | E3: PETROL | F3: 34.5 | G3: 145 | H3: 28 | I3: 6.5 | J3: 5,000:00 | K3: UMUAHIA | L3: HUAWEI | M3: SANI WILLIAM | N3: 08093909028 & 08166130744 | O3: Support Ticket Opened [#830] | P3: MITS.L200 P/UP
I6: TOTAL | J6: 5,000:00

Sheet 12-04-2017
A1: Date | B1: Vehicle Number | C1: Filling Station | D1: Mileage | E1: Type | F1: Quantity | G1: Amount per Litre | H1: TRACKING REPORT LITRE | I1: Variance | J1: RATE | K1: PURCHASE POINT | L1: CONTRACT | M1: NAME | N1: PHONE NO | O1: COMMENT | P1: VEHICLE MAKE

Sheet 13-04-2017
A1: Date | B1: Vehicle Number | C1: Filling Station | D1: Mileage | E1: Type | F1: Quantity | G1: Amount per Litre | H1: TRACKING REPORT LITRE | I1: Variance | J1: RATE | K1: PURCHASE POINT | L1: CONTRACT | M1: NAME | N1: PHONE NO | O1: COMMENT | P1: VEHICLE MAKE

Sheet 14-04-2017
A1: Date | B1: Vehicle Number | C1: Filling Station | D1: Mileage | E1: Type | F1: Quantity | G1: Amount per Litre | H1: TRACKING REPORT LITRE | I1: Variance | J1: RATE | K1: PURCHASE POINT | L1: CONTRACT | M1: NAME | N1: PHONE NO | O1: COMMENT | P1: VEHICLE MAKE

Sheet 15-04-2017
A1: Date | B1: Vehicle Number | C1: Filling Station | D1: Mileage | E1: Type | F1: Quantity | G1: Amount per Litre | H1: TRACKING REPORT LITRE | I1: Variance | J1: RATE | K1: PURCHASE POINT | L1: CONTRACT | M1: NAME | N1: PHONE NO | O1: COMMENT | P1: VEHICLE MAKE

Sheet 16-04-2017
A1: Date | B1: Vehicle Number | C1: Filling Station | D1: Mileage | E1: Type | F1: Quantity | G1: Amount per Litre | H1: TRACKING REPORT LITRE | I1: Variance | J1: RATE | K1: PURCHASE POINT | L1: CONTRACT | M1: NAME | N1: PHONE NO | O1: COMMENT | P1: VEHICLE MAKE

Sheet 17-04-2017
A1: Date | B1: Vehicle Number | C1: Filling Station | D1: Mileage | E1: Type | F1: Quantity | G1: Amount per Litre | H1: TRACKING REPORT LITRE | I1: Variance | J1: RATE | K1: PURCHASE POINT | L1: CONTRACT | M1: NAME | N1: PHONE NO | O1: COMMENT | P1: VEHICLE MAKE

Sheet 18-04-2017
G2: HUAWEI FUEL RETIREMENT FOR 18-04-2017 BY IKECHUKWU ROBERT E.
A3: Date | B3: Vehicle Number | C3: Filling Station | D3: Mileage | E3: Type | F3: Quantity | G3: Amount per Litre | H3: TRACKING REPORT LITRE | I3: Variance | J3: RATE | K3: PURCHASE POINT | L3: CONTRACT | M3: NAME | N3: PHONE NO | O3: COMMENT | P3: VEHICLE MAKE
A4: 17/04/2017 | B4: YA 174 MUS | C4: NUA | D4: 226524 | E4: PETROL | F4: 14 | G4: 145 | H4: 9 | I4: 5 | J4: 2,000:00 | K4: ABA | L4: HUAWEI | M4: NDIANA ANTHONY ROBSON | N4: 8068817568 | O4: RELIEVE DRIVER | P4: TOYOTA HILUX P/UP
A5: 17/04/2017 | B5: KMC 39 XA | C5: TONIMAS | D5: 257589 | E5: PETROL | F5: 14 | G5: 145 | H5: NOT REPORTING | I5: . | J5: 2,000:00 | K5: ABA | L5: HUAWEI | M5: ERIC OWHONDA | N5: 8035417621 | O5: Support Ticket Opened [#835] | P5: TOYOTA HILUX P/UP
A6: 18/04/2017 | B6: YA 174 MUS | C6: NUA | D6: 226606 | E6: PETROL | F6: 21 | G6: 145 | H6: 14 | I6: 7 | J6: 3,000:00 | K6: ABA | L6: HUAWEI | M6: EGBEWHO REUBEN | N6: 8060047928 | P6: TOYOTA HILUX P/UP
A7: 18/04/2017 | B7: KMC 39 XA | C7: TONIMAS | D7: 257664 | E7: PETROL | F7: 21 | G7: 145 | H7: NOT REPORTING | I7: . | J7: 3,000:00 | K7: ABA | L7: HUAWEI | M7: ERIC OWHONDA | N7: 8035417621 | O7: Support Ticket Opened [#835] | P7: TOYOTA HILUX P/UP
I10: TOTAL | J10: 10,000:00

Sheet 19-04-2017
G2: HUAWEI FUEL RETIREMENT FOR 19-04-2017 BY IKECHUKWU ROBERT E.
A3: Date | B3: Vehicle Number | C3: Filling Station | D3: Mileage | E3: Type | F3: Quantity | G3: Amount per Litre | H3: TRACKING REPORT LITRE | I3: Variance | J3: RATE | K3: PURCHASE POINT | L3: CONTRACT | M3: NAME | N3: PHONE NO | O3: COMMENT | P3: VEHICLE MAKE
A4: 18/04/2017 | B4: YA 174 MUS | C4: VICKVANS | D4: 226686 | E4: PETROL | F4: 21 | G4: 145 | H4: 11 | I4: 10 | J4: 3,000:00 | K4: ABA | L4: HUAWEI | M4: EGBEWHO REUBEN | N4: 8060047928 | P4: TOYOTA HILUX P/UP
A5: 19/04/2017 | B5: XB 415 JRT | C5: FORTE OIL | D5: 209091 | E5: PETROL | F5: 28 | G5: 145 | H5: NOT REPORTING | I5: . | J5: 4,000:00 | K5: ABA | L5: HUAWEI | M5: ERIC OWHONDA | N5: 8035417621 | O5: Support Ticket Opened [#835] | P5: TOYOTA HILUX P/UP
I8: TOTAL | J8: 7,000:00

Sheet 20-04-2017
A1: Date | B1: Vehicle Number | C1: Filling Station | D1: Mileage | E1: Type | F1: Quantity | G1: Amount per Litre | H1: TRACKING REPORT LITRE | I1: Variance | J1: RATE | K1: PURCHASE POINT | L1: CONTRACT | M1: NAME | N1: PHONE NO | O1: COMMENT | P1: VEHICLE MAKE

Sheet 21-04-2017
A1: Date | B1: Vehicle Number | C1: Filling Station | D1: Mileage | E1: Type | F1: Quantity | G1: Amount per Litre | H1: TRACKING REPORT LITRE | I1: Variance | J1: RATE | K1: PURCHASE POINT | L1: CONTRACT | M1: NAME | N1: PHONE NO | O1: COMMENT | P1: VEHICLE MAKE

Sheet 22-04-2017
A1: Date | B1: Vehicle Number | C1: Filling Station | D1: Mileage | E1: Type | F1: Quantity | G1: Amount per Litre | H1: TRACKING REPORT LITRE | I1: Variance | J1: RATE | K1: PURCHASE POINT | L1: CONTRACT | M1: NAME | N1: PHONE NO | O1: COMMENT | P1: VEHICLE MAKE

Sheet 24-04-2017
F2: HUAWEI FUEL RETIREMENT FOR 24-04-2017 BY IKECHUKWU ROBERT E.
A3: Date | B3: Vehicle Number | C3: Filling Station | D3: Mileage | E3: Type | F3: Quantity | G3: Amount per Litre | H3: TRACKING REPORT LITRE | I3: Variance | J3: RATE | K3: PURCHASE POINT | L3: CONTRACT | M3: NAME | N3: PHONE NO | O3: COMMENT | P3: VEHICLE MAKE
A4: 22/04/2017 | B4: KRD 539 XF | C4: CHUCKS D PET | D4: 221218 | E4: PETROL | F4: 34.5 | G4: 145 | H4: 33 | I4: 1.5 | J4: 5,000:00 | K4: UMUAHIA | L4: HUAWEI | M4: SANI WILLIAM | N4: 08093909028 & 08166130744 | P4: MITS.L200 P/UP
A5: 23/04/2017 | B5: KRD 539 XF | C5: FORTE OIL | D5: 221459 | E5: PETROL | F5: 34.5 | G5: 145 | H5: 22 | I5: 12.5 | J5: 5,000:00 | K5: UMUAHIA | L5: HUAWEI | M5: SANI WILLIAM | N5: 08093909028 & 08166130744 | P5: MITS.L200 P/UP
I7: TOTAL | J7: 10,000:00

Sheet 23-04-2017
A1: Date | B1: Vehicle Number | C1: Filling Station | D1: Mileage | E1: Type | F1: Quantity | G1: Amount per Litre | H1: TRACKING REPORT LITRE | I1: Variance | J1: RATE | K1: PURCHASE POINT | L1: CONTRACT | M1: NAME | N1: PHONE NO | O1: COMMENT | P1: VEHICLE MAKE

Sheet 25-04-2017
F2: HUAWEI FUEL RETIREMENT FOR 25-04-2017 BY IKECHUKWU ROBERT E.
A3: Date | B3: Vehicle Number | C3: Filling Station | D3: Mileage | E3: Type | F3: Quantity | G3: Amount per Litre | H3: TRACKING REPORT LITRE | I3: Variance | J3: RATE | K3: PURCHASE POINT | L3: CONTRACT | M3: NAME | N3: PHONE NO | O3: COMMENT | P3: VEHICLE MAKE
A4: 24/04/2017 | B4: KRD 539 XF | C4: HUMMER | D4: 221711 | E4: PETROL | F4: 34.5 | G4: 145 | H4: 13 | I4: 21.5 | J4: 5,000:00 | K4: UMUAHIA | L4: HUAWEI | M4: SANI WILLIAM | N4: 08093909028 & 08166130744 | O4: Support Ticket Opened [#843] | P4: MITS.L200 P/UP
A5: 25/04/2017 | B5: XB 415 JRT | C5: NGOZI | D5: 209784 | E5: PETROL | F5: 28 | G5: 145 | H5: NOT REPORTING | I5: - | J5: 4,000:00 | K5: UMUAHIA | L5: HUAWEI | M5: KENNETH OTOIBHILI | N5: 8180134519 | O5: Support Ticket Opened [#843] | P5: MITS.L200 P/UP
I7: TOTAL | J7: 9,000:00

Sheet 26-04-2017
F2: HUAWEI FUEL RETIREMENT FOR 25-04-2017 BY IKECHUKWU ROBERT E. (B)
A3: Date | B3: Vehicle Number | C3: Filling Station | D3: Mileage | E3: Type | F3: Quantity | G3: Amount per Litre | H3: TRACKING REPORT LITRE | I3: Variance | J3: RATE | K3: PURCHASE POINT | L3: CONTRACT | M3: NAME | N3: PHONE NO | O3: COMMENT | P3: VEHICLE MAKE
A4: 25/04/2017 | B4: KRD 539 XF | C4: NGOZI PET | D4: 222010 | E4: PETROL | F4: 41 | G4: 145 | H4: 17 | I4: 24 | J4: 6,000:00 | K4: UMUAHIA | L4: HUAWEI | M4: SANI WILLIAM | N4: 08093909028 & 08166130744 | O4: Support Ticket Opened [#843] | P4: MITS.L200 P/UP
I7: TOTAL | J7: 6,000:00

Sheet 27-04-2017
F3: HUAWEI FUEL RETIREMENT FOR 26-04-2017 BY IKECHUKWU ROBERT E. (B)
A4: Date | B4: Vehicle Number | C4: Filling Station | D4: Mileage | E4: Type | F4: Quantity | G4: Amount per Litre | H4: TRACKING REPORT LITRE | I4: Variance | J4: RATE | K4: PURCHASE POINT | L4: CONTRACT | M4: NAME | N4: PHONE NO | O4: COMMENT | P4: VEHICLE MAKE
A5: 26/04/2017 | B5: KRD 539 XF | C5: NGOZI PET | D5: 222311 | E5: PETROL | F5: 41 | G5: 145 | H5: 27 | I5: 14 | J5: 6,000:00 | K5: UMUAHIA | L5: HUAWEI | M5: SANI WILLIAM | N5: 08093909028 & 08166130744 | O5: Support Ticket Opened [#843] | P5: MITS.L200 P/UP
I8: TOTAL | J8: 6,000:00

Sheet 28-04-2017
A1: Date | B1: Vehicle Number | C1: Filling Station | D1: Mileage | E1: Type | F1: Quantity | G1: Amount per Litre | H1: TRACKING REPORT LITRE | I1: Variance | J1: RATE | K1: PURCHASE POINT | L1: CONTRACT | M1: NAME | N1: PHONE NO | O1: COMMENT | P1: VEHICLE MAKE

Sheet 29-04-2017
A1: Date | B1: Vehicle Number | C1: Filling Station | D1: Mileage | E1: Type | F1: Quantity | G1: Amount per Litre | H1: TRACKING REPORT LITRE | I1: Variance | J1: RATE | K1: PURCHASE POINT | L1: CONTRACT | M1: NAME | N1: PHONE NO | O1: COMMENT | P1: VEHICLE MAKE

Sheet 30-04-2017
A1: Date | B1: Vehicle Number | C1: Filling Station | D1: Mileage | E1: Type | F1: Quantity | G1: Amount per Litre | H1: TRACKING REPORT LITRE | I1: Variance | J1: RATE | K1: PURCHASE POINT | L1: CONTRACT | M1: NAME | N1: PHONE NO | O1: COMMENT | P1: VEHICLE MAKE

Sheet 31-03-2017
A1: Date | B1: Vehicle Number | C1: Filling Station | D1: Mileage | E1: Type | F1: Quantity | G1: Amount per Litre | H1: TRACKING REPORT LITRE | I1: Variance | J1: RATE | K1: PURCHASE POINT | L1: CONTRACT | M1: NAME | N1: PHONE NO | O1: COMMENT | P1: VEHICLE MAKE

Sheet Sheet4
A1: 01/04/2017 | B1: 3rd Party | C1: DIESEL
A2: 02/04/2017 | B2: AAA 118 XT | C2: Petrol
A3: 03/04/2017 | B3: AAA 119 XT
A4: 04/04/2017 | B4: AAA 120 XT
A5: 05/04/2017 | B5: AAA 121 XT
A6: 06/04/2017 | B6: AAA 122 XT
A7: 07/04/2017 | B7: AAA 123 XT
A8: 08/04/2017 | B8: AAA 147 CD
A9: 09/04/2017 | B9: AAA 153 CW
A10: 10/04/2017 | B10: AAA 179 BQ
A11: 11/04/2017 | B11: AAA 181 BQ
A12: 12/04/2017 | B12: AAA 187 XL
A13: 13/04/2017 | B13: AAA 188 XL
A14: 14/04/2017 | B14: AAA 189 XL
A15: 15/04/2017 | B15: AAA 190 DV
A16: 16/04/2017 | B16: AAA 190 XL
A17: 17/04/2017 | B17: AAA 191 XL
A18: 18/04/2017 | B18: AAA 193 XL
A19: 19/04/2017 | B19: AAA 194 XL
A20: 20/04/2017 | B20: AAA 197 XL
A21: 21/04/2017 | B21: AAA 198 XL
A22: 22/04/2017 | B22: AAA 199 XL
A23: 23/04/2017 | B23: AAA 200 XL
A24: 24/04/2017 | B24: AAA 201 XL
A25: 25/04/2017 | B25: AAA 202 XL
A26: 26/04/2017 | B26: AAA 203 XL
A27: 27/04/2017 | B27: AAA 204 XL
A28: 28/04/2017 | B28: AAA 206 XL
A29: 29/04/2017 | B29: AAA 207 XL
A30: 30/04/2017 | B30: AAA 208 XL
A31: 31/03/2017 | B31: AAA 228 XC
A32: 30/03/2017 | B32: AAA 231 XC
A33: 29/03/2017 | B33: AAA 233 XC
A34: 28/03/2017 | B34: AAA 234 XC
A35: 27/03/2017 | B35: AAA 235 XC
A36: 26/03/2017 | B36: AAA 236 XC
B37: AAA 237 XC
B38: AAA 238 XC
B39: AAA 239 XC
B40: AAA 241 XC
B41: AAA 254 XQ
B42: AAA 255 XQ
B43: AAA 256 XQ
B44: AAA 257 XQ
B45: AAA 258 XQ
B46: AAA 261 XQ
B47: AAA 262 XQ
B48: AAA 263 XQ
B49: AAA 264 XQ
B50: AAA 340 CQ
B51: AAA 341 CQ
B52: AAA 342 CQ
B53: AAA 343 CQ
B54: AAA 344 CQ
B55: AAA 346 XC
B56: AAA 415 DY
B57: AAA 421 CB
B58: AAA 438 BT
B59: AAA 440 BT
B60: AAA 49 DJ
B61: AAA 51 CZ
B62: AAA 516 XR
B63: AAA 517 CW
B64: AAA 517 XR
B65: AAA 518 XR
B66: AAA 519 XR
B67: AAA 520 XR
B68: AAA 521 XR
B69: AAA 522 XR
B70: AAA 523 XR
B71: AAA 524 XR
B72: AAA 525 XR
B73: AAA 526 XR
B74: AAA 527 XR
B75: AAA 528 XQ
B76: AAA 528 XR
B77: AAA 529 CW
B78: AAA 529 XR
B79: AAA 530 XR
B80: AAA 531 XR
B81: AAA 532 XR
B82: AAA 533 XR
B83: AAA 534 XR
B84: AAA 535 XR
B85: AAA 536 XR
B86: AAA 537 XR
B87: AAA 538 XR
B88: AAA 539 XR
B89: AAA 54 XM
B90: AAA 540 XR
B91: AAA 541 XR
B92: AAA 542 XR
B93: AAA 543 XR
B94: AAA 544 XR
B95: AAA 545 XR
B96: AAA 546 XR
B97: AAA 547 XR
B98: AAA 548 XR
B99: AAA 549 XR
B100: AAA 55 XM
B101: AAA 550 XR
B102: AAA 551 XR
B103: AAA 552 XR
B104: AAA 553 XR
B105: AAA 554 XR
B106: AAA 555 XR
B107: AAA 556 XR
B108: AAA 557 XR
B109: AAA 558 XR
B110: AAA 559 XR
B111: AAA 560 XR
B112: AAA 561 XR
B113: AAA 562 XR
B114: AAA 563 XR
B115: AAA 564 XR
B116: AAA 565 XR
B117: AAA 630 XK
B118: AAA 631 XK
B119: AAA 631 XM
B120: AAA 632 XK
B121: AAA 632 XM
B122: AAA 633 XK
B123: AAA 633 XM
B124: AAA 634 XK
B125: AAA 634 XM
B126: AAA 635 XK
B127: AAA 635 XM
B128: AAA 636 XK
B129: AAA 636 XM
B130: AAA 637 XK
B131: AAA 637 XM
B132: AAA 638 XK
B133: AAA 638 XM
B134: AAA 639 XK
B135: AAA 639 XM
B136: AAA 640 XK
B137: AAA 640 XM
B138: AAA 641 XM
B139: AAA 642 XK
B140: AAA 642 XM
B141: AAA 643 XK
B142: AAA 643 XM
B143: AAA 644 XM
B144: AAA 645 XM
B145: AAA 646 XM
B146: AAA 647 XK
B147: AAA 647 XM
B148: AAA 648 XM
B149: AAA 649 XM
B150: AAA 657 XM
B151: AAA 658 XM
B152: AAA 66 XL
B153: AAA 661 BZ
B154: AAA 663 BZ
B155: AAA 665 BZ
B156: AAA 67 XL
B157: AAA 68 XL
B158: AAA 810 AT
B159: AAA 811 AT
B160: AAA 849 CK
B161: AAA 891 EG
B162: AAA 945 CH
B163: AAA 948 DC
B164: AAA 960 DH
B165: AAA 962 CU
B166: AAA 982 XD
B167: AAA 983XD
B168: AE 419 AYT
B169: AE 890 KLT
B170: AE 951 GSW
B171: AGL 156 AP
B172: AGL 169 XS
B173: AGL 17 XL
B174: AGL 173 XS
B175: AGL 253 XK
B176: AGL 254 XK
B177: AGL 258 XK
B178: AGL 323 AL
B179: AGL 343 DX
B180: AGL 436 BH
B181: AGL 437 BH
B182: AGL 451 DP
B183: AGL 459 XD
B184: AGL 460 XD
B185: AGL 461 XD
B186: AGL 533 XL
B187: AGL 534 XL
B188: AGL 657 XE
B189: AGL 659 DF
B190: AGL 660 DF
B191: AGL 661 DF
B192: AGL 662 DF
B193: AGL 663 DF
B194: AGL 664 DF
B195: AGL 665 CY
B196: AGL 665 DF
B197: AGL 666 DF
B198: AGL 667 DF
B199: AGL 668 DF
B200: AGL 685 DX
... 1262 more rows

Sheet 04-05-2017
G2: HUAWEI FUEL RETIREMENT FOR 04-05-2017 BY IKECHUKWU ROBERT E.
A3: Date | B3: Vehicle Number | C3: Filling Station | D3: Mileage | E3: Type | F3: Quantity | G3: Amount per Litre | H3: TRACKING REPORT LITRE | I3: Variance | J3: RATE | K3: PURCHASE POINT | L3: CONTRACT | M3: NAME | N3: PHONE NO | O3: COMMENT | P3: VEHICLE MAKE
A4: 03/05/2017 | B4: YA 174 MUS | C4: NUA | D4: 229178 | E4: PETROL | F4: 14 | G4: 145 | H4: 8 | I4: 6 | J4: 2,000:00 | K4: ABA | L4: HUAWEI | M4: EGBEWHO REUBEN | N4: 8060047928 | P4: TOYOTA HILUX P/UP
A5: 04/05/2017 | B5: YA 174 MUS | C5: TONIMAS | D5: 229206 | E5: PETROL | F5: 14 | G5: 145 | H5: 14 | I5: 0 | J5: 2,000:00 | K5: ABA | L5: HUAWEI | M5: EGBEWHO REUBEN | N5: 8060047928 | P5: TOYOTA HILUX P/UP
A6: 04/05/2017 | B6: XB 415 JRT | C6: CITY BASE | D6: 210700 | E6: PETROL | F6: 24 | G6: 145 | H6: NOT REPORTING | I6: - | J6: 3,500:00 | K6: UMUAHIA | L6: HUAWEI | M6: KENNETH OTOIBHILI | N6: 8180134519 | O6: Support Ticket Opened [#843] | P6: TOYOTA HILUX P/UP
I8: TOTAL | J8: 7,500:00

Sheet 08-05-2017
G3: HUAWEI FUEL RETIREMENT FOR 06-05-2017 BY IKECHUKWU ROBERT E.
A4: Date | B4: Vehicle Number | C4: Filling Station | D4: Mileage | E4: Type | F4: Quantity | G4: Amount per Litre | H4: TRACKING REPORT LITRE | I4: Variance | J4: RATE | K4: PURCHASE POINT | L4: CONTRACT | M4: NAME | N4: PHONE NO | O4: COMMENT | P4: VEHICLE MAKE
A5: 04/05/2017 | B5: YA 174 MUS | C5: OANDO | D5: 229829 | E5: PETROL | F5: 21 | G5: 145 | H5: 21 | I5: 0 | J5: 3,000:00 | K5: ABA | L5: HUAWEI | M5: EGBEWHO REUBEN | N5: 8060047928 | P5: TOYOTA HILUX P/UP
A6: 05/05/2017 | B6: XB 415 JRT | C6: CITY BASE | D6: 210925 | E6: PETROL | F6: 21 | G6: 145 | H6: 14 | I6: 7 | J6: 3,000:00 | K6: UMUAHIA | L6: HUAWEI | M6: KENNETH OTOIBHILI | N6: 8180134519 | P6: TOYOTA HILUX P/UP
A7: 05/05/2017 | B7: KMC 39 XA | C7: TONIMAS | D7: 259091 | E7: PETROL | F7: 21 | G7: 145 | H7: NOT REPORTING | I7: - | J7: 3,000:00 | K7: ABA | L7: HUAWEI | M7: ERIC OWHONDA | N7: 8035417621 | O7: Support Ticket Opened [#849] | P7: TOYOTA HILUX P/UP
A8: 05/05/2017 | B8: KRD 539 XF | C8: OANDO | D8: 223950 | E8: PETROL | F8: 41 | G8: 145 | H8: 19.5 | I8: 21.5 | J8: 6,000:00 | K8: UMUAHIA | L8: HUAWEI | M8: SANNI WILLIAMS | N8: 8166130744 | O8: Support Ticket Opened [#849] | P8: MITS.L200
A9: 05/05/2017 | B9: YA 174 MUS | C9: TONIMAS | D9: 229829 | E9: PETROL | F9: 14 | G9: 145 | H9: 9 | I9: 5 | J9: 2,000:00 | K9: ABA | L9: HUAWEI | M9: EGBEWHO REUBEN | N9: 8060047928 | P9: TOYOTA HILUX P/UP
I11: TOTAL | J11: 17,000:00

Sheet 15-05-2017
G5: HUAWEI FUEL RETIREMENT FOR 15-05-2017 BY IKECHUKWU ROBERT E.
A6: Date | B6: Vehicle Number | C6: Filling Station | D6: Mileage | E6: Type | F6: Quantity | G6: Amount per Litre | H6: TRACKING REPORT LITRE | I6: Variance | J6: RATE | K6: PURCHASE POINT | L6: CONTRACT | M6: NAME | N6: PHONE NO | O6: COMMENT | P6: VEHICLE MAKE
A7: 12/05/2017 | B7: JJJ 723 XC | C7: BENNEE PET | D7: 309843 | E7: PETROL | F7: 14 | G7: 145 | H7: 21 | I7: 7 | J7: 2,000:00 | K7: BORI | L7: HUAWEI | M7: AMAECHI OKECHUKWU | N7: 9076500356 | P7: MITS.L200 P/UP
A8: 13/05/2017 | B8: JJJ 723 XC | C8: TOTAL | D8: 310046 | E8: PETROL | F8: 64 | G8: 145 | H8: 64 | I8: 0 | J8: 9,300:00 | K8: PHC | L8: HUAWEI | M8: AMAECHI OKECHUKWU | N8: 9076500356 | O8: FAULTY TOTAL CARD | P8: MITS.L200 P/UP
I13: TOTAL | J13: 11,300:00

Sheet 16-05-2017
G4: HUAWEI FUEL RETIREMENT FOR 16-05-2017 BY IKECHUKWU ROBERT E.
A5: Date | B5: Vehicle Number | C5: Filling Station | D5: Mileage | E5: Type | F5: Quantity | G5: Amount per Litre | H5: TRACKING REPORT LITRE | I5: Variance | J5: RATE | K5: PURCHASE POINT | L5: CONTRACT | M5: NAME | N5: PHONE NO | O5: COMMENT | P5: VEHICLE MAKE
A6: 15/05/2017 | B6: KRD 539 XF | C6: OANDO | D6: 225935 | E6: PETROL | F6: 41 | G6: 145 | H6: 25 | I6: 21.5 | J6: 6,000:00 | K6: UMUAHIA | L6: HUAWEI | M6: SANNI WILLIAMS | N6: 8166130744 | O6: Support Ticket Opened [#849] | P6: MITS.L200
A7: 15/05/2017 | B7: JJJ 723 XC | C7: SOSO | D7: 310142 | E7: PETROL | F7: 28 | G7: 145 | H7: 19.5 | I7: 0 | J7: 4,000:00 | K7: PHC | L7: HUAWEI | M7: AMAECHI OKECHUKWU | N7: 9076500356 | P7: MITS.L200 P/UP
A8: 16/5/2017 | B8: XB 415 JRT | C8: HUMMER | D8: 212324 | E8: PETROL | F8: 21 | G8: 145 | H8: NOT REPORTING | I8: . | J8: 3,000:00 | K8: UMUAHIA | L8: HUAWEI | M8: KENNETH OTOIBHILI | N8: 8180134519 | O8: Support Ticket Opened [#843] | P8: TOYOTA HILUX P/UP (Paid into Huawei's engineer's account, Driver has issues with his ATM)
I10: TOTAL | J10: 13,000:00

Sheet 17-05-2017
G3: HUAWEI FUEL RETIREMENT FOR 17-05-2017 BY IKECHUKWU ROBERT E.
A4: Date | B4: Vehicle Number | C4: Filling Station | D4: Mileage | E4: Type | F4: Quantity | G4: Amount per Litre | H4: TRACKING REPORT LITRE | I4: Variance | J4: RATE | K4: PURCHASE POINT | L4: CONTRACT | M4: NAME | N4: PHONE NO | O4: COMMENT | P4: VEHICLE MAKE
A5: 16/05/2017 | B5: JJJ 723 XC | C5: SOSO | D5: 310212 | E5: PETROL | F5: 28 | G5: 145 | H5: 26 | I5: 2 | J5: 4,000:00 | K5: PHC | L5: HUAWEI | M5: AMAECHI OKECHUKWU | N5: 9076500356 | P5: MITS.L200 P/UP
A6: 16/05/2017 | B6: KMC 44 XA | C6: NUA | D6: 200659 | E6: PETROL | F6: 14 | G6: 145 | H6: 13 | I6: 1 | J6: 2,000:00 | K6: ABA | L6: HUAWEI | M6: EGEBEWHO REUBEN | N6: 8060047928 | P6: TOYOTA HILUX P/UP
A7: 17/05/2017 | B7: KRD 539 XF | C7: FORTE | D7: 226242 | E7: PETROL | F7: 48 | G7: 145 | H7: 30 | I7: 18 | J7: 7,000:00 | K7: UMUAHIA | L7: HUAWEI | M7: SANNI WILLIAMS | N7: 8166130744 | O7: Support Ticket Opened [#849] | P7: MITS.L200
A8: 17/05/2017 | B8: KMC 44 XA | C8: NUA | D8: 200780 | E8: PETROL | F8: 21 | G8: 145 | H8: 21 | I8: 0 | J8: 3,000:00 | K8: ABA | L8: HUAWEI | M8: EGEBEWHO REUBEN | N8: 8060047928 | P8: TOYOTA HILUX P/UP
A9: 17/05/2017 | B9: JJJ 723 XC | C9: MOBIL | D9: 310428 | E9: PETROL | F9: 41 | G9: 145 | H9: 41 | I9: 4 | J9: 6,000:00 | K9: PHC | L9: HUAWEI | M9: AMAECHI OKECHUKWU | N9: 9076500356 | P9: MITS.L200 P/UP
A10: 18/05/2017 | B10: JJJ 723 XC | C10: OANDO | D10: 310589 | E10: PETROL | F10: 21 | G10: 145 | H10: 21 | I10: 4 | J10: 3,000:00 | K10: ONNE | L10: HUAWEI | M10: AMAECHI OKECHUKWU | N10: 9076500356 | P10: MITS.L200 P/UP
I11: TOTAL | J11: 25,000:00

Sheet 22-05-2017
G4: HUAWEI FUEL RETIREMENT FOR 22-05-2017 BY IKECHUKWU ROBERT E.
A5: Date | B5: Vehicle Number | C5: Filling Station | D5: Mileage | E5: Type | F5: Quantity | G5: Amount per Litre | H5: TRACKING REPORT LITRE | I5: Variance | J5: RATE | K5: PURCHASE POINT | L5: CONTRACT | M5: NAME | N5: PHONE NO | O5: COMMENT | P5: VEHICLE MAKE
A6: 19/05/2017 | B6: JJJ 723 XC | C6: PROPEL | D6: 310698 | E6: PETROL | F6: 41 | G6: 145 | H6: 44 | I6: 3 | J6: 6,000:00 | K6: PHC | L6: HUAWEI | M6: AMAECHI OKECHUKWU | N6: 9076500356 | P6: MITS.L200 P/UP
A7: 20/05/2017 | B7: JJJ 723 XC | C7: CHELSEA | D7: 310851 | E7: PETROL | F7: 34.5 | G7: 145 | H7: 31 | I7: 3.5 | J7: 5,000:00 | K7: PHC | L7: HUAWEI | M7: AMAECHI OKECHUKWU | N7: 9076500356 | P7: MITS.L200 P/UP
A8: 22/05/2017 | B8: JJJ 723 XC | C8: ETERNA | D8: 311008 | E8: PETROL | F8: 34.5 | G8: 145 | H8: 41 | I8: 6.5 | J8: 5,000:00 | K8: PHC | L8: HUAWEI | M8: AMAECHI OKECHUKWU | N8: 9076500356 | P8: MITS.L200 P/UP
I12: TOTAL | J12: 16,000:00

Sheet 24-05-2017
G3: HUAWEI FUEL RETIREMENT FOR 24-05-2017 BY IKECHUKWU ROBERT E.
A4: Date | B4: Vehicle Number | C4: Filling Station | D4: Mileage | E4: Type | F4: Quantity | G4: Amount per Litre | H4: TRACKING REPORT LITRE | I4: Variance | J4: RATE | K4: PURCHASE POINT | L4: CONTRACT | M4: NAME | N4: PHONE NO | O4: COMMENT | P4: VEHICLE MAKE
A5: 23/05/2017 | B5: JJJ 723 XC | C5: PROPEL | D5: 311197 | E5: PETROL | F5: 34.5 | G5: 145 | H5: 40 | I5: 5.5 | J5: 5,000:00 | K5: PHC | L5: HUAWEI | M5: AMAECHI OKECHUKWU | N5: 9076500356 | P5: MITS.L200 P/UP
A6: 24/5/2017 | B6: XB 415 JRT | C6: HUMMER | D6: 213311 | E6: PETROL | F6: 24 | G6: 145 | H6: NOT REPORTING | I6: . | J6: 3,500:00 | K6: UMUAHIA | L6: HUAWEI | M6: KENNETH OTOIBHILI | N6: 8180134519 | O6: Support Ticket Opened [#855] | P6: T/HILUX
I8: TOTAL | J8: 8,500:00

Sheet 25-05-2017
G5: HUAWEI FUEL RETIREMENT FOR 24-05-2017 BY IKECHUKWU ROBERT E. (2)
A6: Date | B6: Vehicle Number | C6: Filling Station | D6: Mileage | E6: Type | F6: Quantity | G6: Amount per Litre | H6: TRACKING REPORT LITRE | I6: Variance | J6: RATE | K6: PURCHASE POINT | L6: CONTRACT | M6: NAME | N6: PHONE NO | O6: COMMENT | P6: VEHICLE MAKE
A7: 24/05/2017 | B7: JJJ 723 XC | C7: OANDO | D7: 311356 | E7: PETROL | F7: 34.5 | G7: 145 | H7: 25 | I7: 9.5 | J7: 5,000:00 | K7: PHC | L7: HUAWEI | M7: AMAECHI OKECHUKWU | N7: 9076500356 | P7: MITS.L200 P/UP
I10: TOTAL | J10: 5,000:00

Sheet 28-05-2017
G4: HUAWEI FUEL RETIREMENT FOR 29-05-2017 BY IKECHUKWU ROBERT E.
A5: Date | B5: Vehicle Number | C5: Filling Station | D5: Mileage | E5: Type | F5: Quantity | G5: Amount per Litre | H5: TRACKING REPORT LITRE | I5: Variance | J5: RATE | K5: PURCHASE POINT | L5: CONTRACT | M5: NAME | N5: PHONE NO | O5: COMMENT | P5: VEHICLE MAKE
A6: 28/05/2017 | B6: KRD 539 XF | C6: FORTE | D6: 228057 | E6: PETROL | F6: 34 | G6: 145 | H6: 27 | I6: 7 | J6: 5,000:00 | K6: UMUAHIA | L6: HUAWEI | M6: SANNI WILLIAMS | N6: 8166130744 | P6: MITS.L200

Sheet 06-06-2017
H4: HUAWEI FUEL RETIREMENT FOR 06-06-2017 BY IKECHUKWU ROBERT E.
B5: Date | C5: Vehicle Number | D5: Filling Station | E5: Mileage | F5: Type | G5: Quantity | H5: Amount per Litre | I5: TRACKING REPORT LITRE | J5: Variance | K5: RATE | L5: PURCHASE POINT | M5: CONTRACT | N5: NAME | O5: PHONE NO | P5: COMMENT | Q5: VEHICLE MAKE
B6: 2017-05-06 | C6: YA 174 MUS | D6: GREEN PAC | E6: 230923 | F6: PETROL | G6: 21 | H6: 145 | I6: 14.5 | J6: 6.5 | K6: 3000 | L6: ABA | M6: HUAWEI | N6: EGEBEWHO REUBEN | O6: 8060047928 | Q6: TOYOTA HILUX
B7: 2017-06-06 | C7: YA 174 MUS | D7: NUA | E7: 231009 | F7: PETROL | G7: 21 | H7: 145 | I7: 14 | J7: 7 | K7: 3000 | L7: ABA | M7: HUAWEI | N7: EGEBEWHO REUBEN | O7: 8060047928 | Q7: TOYOTA HILUX
K9: 6000

Sheet 14-06-2017
G4: HUAWEI FUEL RETIREMENT FOR 14-06-2017 BY IKECHUKWU ROBERT E.
A5: Date | B5: Vehicle Number | C5: Filling Station | D5: Mileage | E5: Type | F5: Quantity | G5: Amount per Litre | H5: TRACKING REPORT LITRE | I5: Variance | J5: RATE | K5: PURCHASE POINT | L5: CONTRACT | M5: NAME | N5: PHONE NO | O5: COMMENT | P5: VEHICLE MAKE
A6: 14/06/2017 | B6: XB 415 JRT | C6: FORTE | D6: 215290 | E6: PETROL | F6: 41 | G6: 145 | H6: 29 | I6: 12 | J6: 6,000:00 | K6: UMUAHIA | L6: HUAWEI | M6: SANNI WILLIAMS | N6: 8166130744 | O6: Kindly deduct ₦1,740. from the driver | P6: T/HILUX

Sheet 20-06-2017
G6: HUAWEI FUEL RETIREMENT FOR 20-JUNE-2017 BY IKECHUKWU ROBERT E.
A7: Date | B7: Vehicle Number | C7: Filling Station | D7: Mileage | E7: Type | F7: Quantity | G7: Amount per Litre | H7: TRACKING REPORT LITRE | I7: Variance | J7: RATE | K7: PURCHASE POINT | L7: CONTRACT | M7: NAME | N7: PHONE NO | O7: COMMENT | P7: VEHICLE MAKE
A8: 20/6/2017 | B8: YA 174 MUS | C8: NUA | D8: 232544 | E8: PETROL | F8: 21 | G8: 145 | H8: 12 | I8: 9 | J8: 3000 | K8: ABA | L8: HUAWEI | M8: EGEBEWHO REUBEN | N8: 8060047928 | O8: Deduct ₦1,305.00 from the driver | P8: TOYOTA HILUX

Sheet 05-07-2017
H4: HUAWEI FUEL RETIREMENT FOR 05-07-2017 BY IKECHUKWU ROBERT E.
B5: Date | C5: Vehicle Number | D5: Filling Station | E5: Mileage | F5: Type | G5: Quantity | H5: Amount per Litre | I5: TRACKING REPORT LITRE | J5: Variance | K5: RATE | L5: PURCHASE POINT | M5: CONTRACT | N5: NAME | O5: PHONE NO | P5: COMMENT | Q5: VEHICLE MAKE
B6: 27/06/2017 | C6: XB 415 JRT | D6: FORTE | E6: 217791 | F6: PETROL | G6: 14 | H6: 145 | I6: 17 | J6: 3 | K6: 2,000:00 | L6: UMUAHIA | M6: HUAWEI | N6: SANNI WILLIAMS | O6: 8166130744 | Q6: T/HILUX
B7: 28/6/2017 | C7: XB 415 JRT | D7: FORTE | E7: 217862 | F7: PETROL | G7: 28 | H7: 145 | I7: 28 | J7: 0 | K7: 4,000:00 | L7: UMUAHIA | M7: HUAWEI | N7: SANNI WILLIAMS | O7: 8166130744 | Q7: T/HILUX
B8: 2017-05-07 | C8: KMC 44 XA | D8: NUA | E8: 205333 | F8: PETROL | G8: 28 | H8: 145 | I8: 18.5 | J8: 9.5 | K8: 4,000:00 | L8: ABA | M8: HUAWEI | N8: ERIC OWHONDA | O8: 8035417621 | P8: Deduct ₦1.377.50 from driver | Q8: TOYOTA HILUX P/UP
J9: TOTAL | K9: 10,000:00

Sheet 07-07-2017
H4: HUAWEI FUEL RETIREMENT FOR 07-07-2017 BY IKECHUKWU ROBERT E.
B5: Date | C5: Vehicle Number | D5: Filling Station | E5: Mileage | F5: Type | G5: Quantity | H5: Amount per Litre | I5: TRACKING REPORT LITRE | J5: Variance | K5: RATE | L5: PURCHASE POINT | M5: CONTRACT | N5: NAME | O5: PHONE NO | P5: COMMENT | Q5: VEHICLE MAKE
B6: 2017-07-07 | C6: KRD 539 XF | D6: HUMMER | E6: 231257 | F6: PETROL | G6: 14 | H6: 145 | I6: 13 | J6: 1 | K6: 2,000:00 | L6: UMUAHIA | M6: HUAWEI | N6: SANNI WILLIAMS | O6: 8166130744 | Q6: T/HILUX
B7: 2017-07-07 | C7: KRD 539 XF | D7: FORTE | E7: 231289 | F7: PETROL | G7: 28 | H7: 145 | I7: 16 | J7: 12 | K7: 4,000:00 | L7: UMUAHIA | M7: HUAWEI | N7: SANNI WILLIAMS | O7: 8166130744 | P7: Kindly deduct ₦1,740. from the driver | Q7: T/HILUX
J9: TOTAL | K9: 6,000:00

Sheet 10-07-2017
G4: HUAWEI FUEL RETIREMENT FOR 10-07-2017 BY IKECHUKWU ROBERT E.
A5: Date | B5: Vehicle Number | C5: Filling Station | D5: Mileage | E5: Type | F5: Quantity | G5: Amount per Litre | H5: TRACKING REPORT LITRE | I5: Variance | J5: RATE | K5: PURCHASE POINT | L5: CONTRACT | M5: NAME | N5: PHONE NO | O5: COMMENT | P5: VEHICLE MAKE
A6: 2017-08-07 | B6: KRD 539 XF | C6: FORTE | D6: 231477 | E6: PETROL | F6: 40 | G6: 145 | H6: 20 | I6: 20 | J6: 6000 | K6: UMUAHIA | L6: HUAWEI | M6: SANNI WILLIAMS | N6: 8166130744 | O6: Kindly deduct ₦2,900. from the driver | P6: MITS.L200 PICK/UP
A7: 2017-10-07 | B7: KRD 539 XF | C7: HUMMER | D7: 231704 | E7: PETROL | F7: 34 | G7: 145 | H7: 9 | I7: 25 | J7: 5000 | K7: UMUAHIA | L7: HUAWEI | M7: SANNI WILLIAMS | N7: 8166130744 | O7: Kindly deduct ₦3,625. from the driver | P7: MITS.L200 PICK/UP
A8: 2017-10-07 | B8: YA 171 MUS | C8: MASTER ENERGY | D8: 205265 | E8: PETROL | F8: 24 | G8: 145 | H8: 20 | I8: 8 | J8: 4000 | K8: UMUAHIA | L8: HUAWEI | M8: KENNETH OTOIBHILI | N8: 8180134519 | O8: Kindly deduct ₦1,160. from the driver | P8: T/HILUX
I10: TOTAL | J10: 15000

Sheet 12-07-2017
H4: HUAWEI FUEL RETIREMENT FOR 12-07-2017 BY IKECHUKWU ROBERT E.
B5: Date | C5: Vehicle Number | D5: Filling Station | E5: Mileage | F5: Type | G5: Quantity | H5: Amount per Litre | I5: TRACKING REPORT LITRE | J5: Variance | K5: RATE | L5: PURCHASE POINT | M5: CONTRACT | N5: NAME | O5: PHONE NO | P5: COMMENT | Q5: VEHICLE MAKE
B6: 2017-11-07 | C6: KRD 539 XF | D6: HUMMER | E6: 231925 | F6: PETROL | G6: 28 | H6: 145 | I6: NOT REPORTING | J6: 0 | K6: 4000 | L6: UMUAHIA | M6: HUAWEI | N6: SANNI WILLIAMS | O6: 8166130744 | P6: Support Ticket Opened [#868] (TRACKER DEVICE NEEDS UPGRADE, AWAITING VEHICLE FOR DEVICE UPGRADE) | Q6: MITS.L200 PICK/UP
B7: 2017-12-07 | C7: YA 171 MUS | D7: MASTER ENERGY | E7: 205360 | F7: PETROL | G7: 21 | H7: 145 | I7: 17 | J7: 4 | K7: 3000 | L7: UMUAHIA | M7: HUAWEI | N7: KENNETH OTOIBHILI | O7: 8180134519 | Q7: T/HILUX
J9: TOTAL | K9: 7000

Sheet 26-07-2017
G5: HUAWEI FUEL RETIREMENT FOR 26-07-2017 BY IKECHUKWU ROBERT E.
A6: Date | B6: Vehicle Number | C6: Filling Station | D6: Mileage | E6: Type | F6: Quantity | G6: Amount per Litre | H6: TRACKING REPORT LITRE | I6: Variance | J6: RATE | K6: PURCHASE POINT | L6: CONTRACT | M6: NAME | N6: PHONE NO | O6: COMMENT | P6: VEHICLE MAKE
A7: 26/7/2017 | B7: KRD 539 XF | C7: FORTE OIL | D7: 235024 | E7: PETROL | F7: 41 | G7: 145 | H7: 38 | I7: 2 | J7: 6000 | K7: UMUAHIA | L7: HUAWEI | M7: SANNI WILLIAMS | N7: 8166130744 | P7: MITS.L200 PICK/UP
I10: TOTAL | J10: 6000

Sheet 01-08-2017
H5: HUAWEI FUEL RETIREMENT FOR 01-08-2017 BY IKECHUKWU ROBERT E.
B6: Date | C6: Vehicle Number | D6: Filling Station | E6: Mileage | F6: Type | G6: Quantity | H6: Amount per Litre | I6: TRACKING REPORT LITRE | J6: Variance | K6: RATE | L6: PURCHASE POINT | M6: CONTRACT | N6: NAME | O6: PHONE NO | P6: COMMENT | Q6: VEHICLE MAKE
B7: 2017-01-08 | C7: YA 171 MUS | D7: MASTER ENERGY | E7: 208231 | F7: PETROL | G7: 28 | H7: 145 | I7: 27 | J7: 1 | K7: 4000 | L7: UMUAHIA | M7: HUAWEI | N7: KENNETH OTOIBHILI | O7: 8180134519 | Q7: T/HILUX
J10: TOTAL | K10: 4000

Sheet 07-08-2017
G6: HUAWEI FUEL RETIREMENT FOR 07-08-2017 BY IKECHUKWU ROBERT E.
A7: Date | B7: Vehicle Number | C7: Filling Station | D7: Mileage | E7: Type | F7: Quantity | G7: Amount per Litre | H7: TRACKING REPORT LITRE | I7: Variance | J7: RATE | K7: PURCHASE POINT | L7: CONTRACT | M7: NAME | N7: PHONE NO | O7: COMMENT | P7: VEHICLE MAKE
A8: 2017-06-08 | B8: KRD 539 XF | C8: FORTE OIL | D8: 237156 | E8: PETROL | F8: 41 | G8: 145 | H8: 45 | I8: 4 | J8: 6000 | K8: UMUAHIA | L8: HUAWEI | M8: SANNI WILLIAMS | N8: 8166130744 | P8: MITS.L200 PICK/UP
A9: 2017-07-08 | B9: KRD 539 XF | C9: MOBIL | D9: 237457 | E9: PETROL | F9: 34 | G9: 145 | H9: 28 | I9: 6 | J9: 5000 | K9: UMUAHIA | L9: HUAWEI | M9: SANNI WILLIAMS | N9: 8166130744 | P9: MITS.L200 PICK/UP
I11: TOTAL | J11: 11000

Sheet 08-08-2017
G7: HUAWEI FUEL RETIREMENT FOR 08-08-2017 BY IKECHUKWU ROBERT E.
A8: Date | B8: Vehicle Number | C8: Filling Station | D8: Mileage | E8: Type | F8: Quantity | G8: Amount per Litre | H8: TRACKING REPORT LITRE | I8: Variance | J8: RATE | K8: PURCHASE POINT | L8: CONTRACT | M8: NAME | N8: PHONE NO | O8: COMMENT | P8: VEHICLE MAKE
A9: 2017-08-08 | B9: KRD 539 XF | C9: FORTE OIL | D9: 237687 | E9: PETROL | F9: 41 | G9: 145 | H9: 36.5 | I9: 4.5 | J9: 6000 | K9: UMUAHIA | L9: HUAWEI | M9: SANNI WILLIAMS | N9: 8166130744 | P9: MITS.L200 PICK/UP
I11: TOTAL | J11: 6000

Sheet 09-08-2017
H8: HUAWEI FUEL RETIREMENT FOR 09-08-2017 BY IKECHUKWU ROBERT E.
B9: Date | C9: Vehicle Number | D9: Filling Station | E9: Mileage | F9: Type | G9: Quantity | H9: Amount per Litre | I9: TRACKING REPORT LITRE | J9: Variance | K9: RATE | L9: PURCHASE POINT | M9: CONTRACT | N9: NAME | O9: PHONE NO | P9: COMMENT | Q9: VEHICLE MAKE
B10: 2017-09-08 | C10: KRD 539 XF | D10: MOBIL | E10: 237898 | F10: PETROL | G10: 41 | H10: 145 | I10: 38 | J10: 3 | K10: 6000 | L10: UMUAHIA | M10: HUAWEI | N10: SANNI WILLIAMS | O10: 8166130744 | Q10: MITS.L200 PICK/UP
J12: TOTAL | K12: 6000

Sheet 18-08-2017
H4: HUAWEI FUEL RETIREMENT FOR 18-08-2017 BY IKECHUKWU ROBERT E.
B5: Date | C5: Vehicle Number | D5: Filling Station | E5: Mileage | F5: Type | G5: Quantity | H5: Amount per Litre | I5: TRACKING REPORT LITRE | J5: Variance | K5: RATE | L5: PURCHASE POINT | M5: CONTRACT | N5: NAME | O5: PHONE NO | P5: COMMENT | Q5: VEHICLE MAKE
B6: 2017-09-08 | C6: YA 171 MUS | D6: HUMMER | E6: 209495 | F6: PETROL | G6: 28 | H6: 145 | I6: 26 | J6: 2 | K6: 4000 | L6: UMUAHIA | M6: HUAWEI | N6: KENNETH ONOS | O6: 8180134519 | Q6: TOYOTA HILUX
B7: 15/7/2017 | C7: KRD 539 XF | D7: FORTE OIL | E7: 239192 | F7: PETROL | G7: 41 | H7: 145 | I7: 37.5 | J7: 3.5 | K7: 6000 | L7: UMUAHIA | M7: HUAWEI | N7: SANNI WILLIAMS | O7: 8166130744 | Q7: MITS.L200 PICK/UP
B8: 17/7/2017 | C8: KRD 539 XF | D8: MOBIL | E8: 239605 | F8: PETROL | G8: 41 | H8: 145 | I8: 32 | J8: 9 | K8: 6000 | L8: UMUAHIA | M8: HUAWEI | N8: SANNI WILLIAMS | O8: 8166130744 | P8: Deduct ₦1305 from driver | Q8: MITS.L200 PICK/UP
J9: TOTAL | K9: 16000

Sheet 21-08-2017
G5: HUAWEI FUEL RETIREMENT FOR 21-08-2017 BY IKECHUKWU ROBERT E.
A6: Date | B6: Vehicle Number | C6: Filling Station | D6: Mileage | E6: Type | F6: Quantity | G6: Amount per Litre | H6: TRACKING REPORT LITRE | I6: Variance | J6: RATE | K6: PURCHASE POINT | L6: CONTRACT | M6: NAME | N6: PHONE NO | O6: COMMENT | P6: VEHICLE MAKE
A7: 21/8/2017 | B7: KRD 539 XF | C7: FORTE OIL | D7: 240519 | E7: PETROL | F7: 41 | G7: 145 | H7: 44 | I7: 3 | J7: 6000 | K7: UMUAHIA | L7: HUAWEI | M7: SANNI WILLIAMS | N7: 8166130744 | P7: MITS.L200 PICK/UP
I8: TOTAL | J8: 6000

Sheet 23-08-2017
H5: HUAWEI FUEL RETIREMENT FOR 23-08-2017 BY IKECHUKWU ROBERT E.
B6: Date | C6: Vehicle Number | D6: Filling Station | E6: Mileage | F6: Type | G6: Quantity | H6: Amount per Litre | I6: TRACKING REPORT LITRE | J6: Variance | K6: RATE | L6: PURCHASE POINT | M6: CONTRACT | N6: NAME | O6: PHONE NO | P6: COMMENT | Q6: VEHICLE MAKE
B7: 23/8/2017 | C7: KRD 539 XF | D7: FORTE OIL | E7: 240799 | F7: PETROL | G7: 41 | H7: 145 | I7: 34.5 | J7: 7 | K7: 6000 | L7: UMUAHIA | M7: HUAWEI | N7: SANNI WILLIAMS | O7: 8166130744 | Q7: MITS.L200 PICK/UP
J8: TOTAL | K8: 6000

Sheet 29-08-2017
H5: HUAWEI FUEL RETIREMENT FOR 29-08-2017 BY IKECHUKWU ROBERT E.
B6: Date | C6: Vehicle Number | D6: Filling Station | E6: Mileage | F6: Type | G6: Quantity | H6: Amount per Litre | I6: TRACKING REPORT LITRE | J6: Variance | K6: RATE | L6: PURCHASE POINT | M6: CONTRACT | N6: NAME | O6: PHONE NO | P6: COMMENT | Q6: VEHICLE MAKE
B7: 29/8/2017 | C7: KRD 539 XF | D7: FORTE OIL | E7: 241644 | F7: PETROL | G7: 41 | H7: 145 | I7: 38 | J7: 3 | K7: 6000 | L7: UMUAHIA | M7: HUAWEI | N7: SANNI WILLIAMS | O7: 8166130744 | Q7: MITS.L200 PICK/UP
B8: 29/8/2017 | C8: YA 171 MUS | D8: NGOZI PET | E8: 211130 | F8: PETROL | G8: 28 | H8: 145 | I8: 27 | J8: 1 | K8: 4000 | L8: UMUAHIA | M8: HUAWEI | N8: KENNETH ONOS | O8: 8180134519 | Q8: TOYOTA HILUX
J10: TOTAL | K10: 10000

Sheet 11-09-2017
I5: HUAWEI FUEL RETIREMENT FOR 11-09-2017 BY IKECHUKWU ROBERT E.
C6: Date | D6: Vehicle Number | E6: Filling Station | F6: Mileage | G6: Type | H6: Quantity | I6: Amount per Litre | J6: TRACKING REPORT LITRE | K6: Variance | L6: RATE | M6: PURCHASE POINT | N6: CONTRACT | O6: NAME | P6: PHONE NO | Q6: COMMENT | R6: VEHICLE MAKE
C7: 2017-11-09 | D7: KRD 539 XF | E7: FORTE OIL | F7: 243659 | G7: PETROL | H7: 41 | I7: 145 | J7: 37 | K7: 4 | L7: 6000 | M7: UMUAHIA | N7: HUAWEI | O7: SANNI WILLIAMS | P7: 8166130744 | R7: MITS.L200 PICK/UP
K10: TOTAL | L10: 6000

Sheet 13-09-2017
H5: HUAWEI FUEL RETIREMENT FOR 13-09-2017 BY IKECHUKWU ROBERT E.
B6: Date | C6: Vehicle Number | D6: Filling Station | E6: Mileage | F6: Type | G6: Quantity | H6: Amount per Litre | I6: TRACKING REPORT LITRE | J6: Variance | K6: RATE | L6: PURCHASE POINT | M6: CONTRACT | N6: NAME | O6: PHONE NO | P6: COMMENT | Q6: VEHICLE MAKE
B7: 13/9/2017 | C7: KRD 539 XF | D7: FORTE OIL | E7: 244102 | F7: PETROL | G7: 41 | H7: 145 | I7: 36 | J7: 5 | K7: 6000 | L7: UMUAHIA | M7: HUAWEI | N7: SANNI WILLIAMS | O7: 8166130744 | Q7: MITS.L200 PICK/UP
J10: TOTAL | K10: 6000

Sheet 22-09-2017
I6: HUAWEI FUEL RETIREMENT FOR 22-09-2017 BY IKECHUKWU ROBERT E.
C7: Date | D7: Vehicle Number | E7: Filling Station | F7: Mileage | G7: Type | H7: Quantity | I7: Amount per Litre | J7: TRACKING REPORT LITRE | K7: Variance | L7: RATE | M7: PURCHASE POINT | N7: CONTRACT | O7: NAME | P7: PHONE NO | Q7: COMMENT | R7: VEHICLE MAKE
C8: 21/9/2017 | D8: KMC 44 XA | E8: NUA | F8: 209046 | G8: PETROL | H8: 14 | I8: 145 | J8: 14 | K8: 0 | L8: 2000 | M8: ABA | N8: HUAWEI | O8: ERIC OWHONDA | P8: 8035417621 | R8: TOYOTA HILUX P/UP
C9: 22/9/2017 | D9: KMC 44 XA | E9: NUA | F9: 209457 | G9: PETROL | H9: 21 | I9: 145 | J9: 20 | K9: 1 | L9: 3000 | M9: ABA | N9: HUAWEI | O9: ERIC OWHONDA | P9: 8035417621 | R9: TOYOTA HILUX P/UP
K11: TOTAL | L11: 5000

Sheet 26-09-2017
G5: 30
H6: HUAWEI FUEL RETIREMENT FOR 27-09-2017 BY IKECHUKWU ROBERT E.
B7: Date | C7: Vehicle Number | D7: Filling Station | E7: Mileage | F7: Type | G7: Quantity | H7: Amount per Litre | I7: TRACKING REPORT LITRE | J7: Variance | K7: RATE | L7: PURCHASE POINT | M7: CONTRACT | N7: NAME | O7: PHONE NO | P7: COMMENT | Q7: VEHICLE MAKE
B8: 25/9/2017 | C8: KMC 44 XA | D8: NUA | E8: 209513 | F8: PETROL | G8: 28 | H8: 145 | I8: 0 | J8: 28 | K8: 4000 | L8: ABA | M8: HUAWEI | N8: ERIC OWHONDA | O8: 8035417621 | P8: Kindly deduct 4,000. from driver. | Q8: TOYOTA HILUX P/UP
B9: 26/9/2017 | C9: KMC 44 XA | D9: NUA | E9: 209660 | F9: PETROL | G9: 20 | H9: 145 | I9: 14 | J9: 6 | K9: 3000 | L9: ABA | M9: HUAWEI | N9: ERIC OWHONDA | O9: 8035417621 | Q9: TOYOTA HILUX P/UP
B10: 27/9/2017 | C10: YA 171 MUS | D10: HUMMER PET | E10: 213600 | F10: PETROL | G10: 20 | H10: 145 | I10: 22 | J10: -2 | K10: 3000 | L10: UMUAHIA | M10: HUAWEI | N10: KENNETH ONOS | O10: 8180134519 | Q10: TOYOTA HILUX
B11: 27/9/2017 | C11: KMC 44 XA | D11: TONIMAS | E11: 209689 | F11: PETROL | G11: 20 | H11: 145 | I11: 16 | J11: 4 | K11: 3000 | L11: ABA | M11: HUAWEI | N11: ERIC OWHONDA | O11: 8035417621 | Q11: TOYOTA HILUX P/UP
J12: TOTAL | K12: 13000
AU22: HUAWEI

Sheet 04-10-2017
H6: HUAWEI FUEL RETIREMENT FOR 04-10-2017 BY IKECHUKWU ROBERT E.
B7: Date | C7: Vehicle Number | D7: Filling Station | E7: Mileage | F7: Type | G7: Quantity | H7: Amount per Litre | I7: TRACKING REPORT LITRE | J7: Variance | K7: RATE | L7: PURCHASE POINT | M7: CONTRACT | N7: NAME | O7: PHONE NO | P7: COMMENT | Q7: VEHICLE MAKE
B8: 2017-03-10 | C8: YA 171 MUS | D8: NGOZI PET | E8: 214436 | F8: PETROL | G8: 21 | H8: 145 | I8: 21 | J8: 0 | K8: 3000 | L8: UMUAHIA | M8: HUAWEI | N8: KENNETH ONOS | O8: 8180134519 | Q8: TOYOTA HILUX
B9: 2017-04-10 | C9: YA 171 MUS | D9: NGOZI PET | E9: 214669 | F9: PETROL | G9: 28 | H9: 145 | I9: 22 | J9: 6 | K9: 4000 | L9: UMUAHIA | M9: HUAWEI | N9: KENNETH ONOS | O9: 8180134519 | Q9: TOYOTA HILUX
J11: TOTAL | K11: 7000

Sheet 03-10-2017
H7: HUAWEI FUEL RETIREMENT FOR 03-10-2017 BY IKECHUKWU ROBERT E.
B8: Date | C8: Vehicle Number | D8: Filling Station | E8: HUAWEI RETURNED (MARKED FOR SALE) | F8: Type | G8: Quantity | H8: Amount per Litre | I8: TRACKING REPORT LITRE | J8: Variance | K8: RATE | L8: PURCHASE POINT | M8: CONTRACT | N8: NAME | O8: PHONE NO | P8: COMMENT | Q8: VEHICLE MAKE
B9: 30/9/2017 | C9: KMC 44 XA | D9: NUA | E9: 209869 | F9: PETROL | G9: 34 | H9: 145 | I9: 13 | J9: 21 | K9: 5000 | L9: ABA | M9: HUAWEI | N9: ERIC OWHONDA | O9: 8035417621 | P9: Kindly deduct N3,045. from driver. | Q9: TOYOTA HILUX P/UP
B10: 2017-03-10 | C10: KMC 44 XA | D10: TONIMAS | E10: 209952 | F10: PETROL | G10: 28 | H10: 145 | I10: 13 | J10: 15 | K10: 4000 | L10: ABA | M10: HUAWEI | N10: ERIC OWHONDA | O10: 8035417621 | P10: Kindly deduct N2,175. from driver. | Q10: TOYOTA HILUX P/UP
J11: TOTAL | K11: 9000

Sheet 05-10-2017
H6: HUAWEI FUEL RETIREMENT FOR 03-10-2017 BY IKECHUKWU ROBERT E.
B7: Date | C7: Vehicle Number | D7: Filling Station | E7: HUAWEI RETURNED (MARKED FOR SALE) | F7: Type | G7: Quantity | H7: Amount per Litre | I7: TRACKING REPORT LITRE | J7: Variance | K7: RATE | L7: PURCHASE POINT | M7: CONTRACT | N7: NAME | O7: PHONE NO | P7: COMMENT | Q7: VEHICLE MAKE
B8: 2017-05-10 | C8: KMC 44 XA | D8: TONIMAS | E8: 210087 | F8: PETROL | G8: 20 | H8: 145 | I8: 9 | J8: 11 | K8: 3000 | L8: ABA | M8: HUAWEI | N8: ERIC OWHONDA | O8: 8035417621 | P8: Kindly deduct N2,175. from driver. | Q8: TOYOTA HILUX P/UP
J9: TOTAL | K9: 3000

Sheet 13-10-2017
H5: HUAWEI FUEL RETIREMENT FOR 13-10-2017 BY IKECHUKWU ROBERT E.
B6: Date | C6: Vehicle Number | D6: Filling Station | E6: Mileage | F6: Type | G6: Quantity | H6: Amount per Litre | I6: TRACKING REPORT LITRE | J6: Variance | K6: RATE | L6: PURCHASE POINT | M6: CONTRACT | N6: NAME | O6: PHONE NO | P6: COMMENT | Q6: VEHICLE MAKE
B7: 13/10/2017 | C7: KRD 539 XF | D7: FORTE OIL | E7: 247349 | F7: PETROL | G7: 34 | H7: 145 | I7: 31.5 | J7: 2.5 | K7: 5000 | L7: UMUAHIA | M7: HUAWEI | N7: SANNI WILLIAMS | O7: 8166130744 | Q7: MITS.L200 PICK/UP
J10: TOTAL | K10: 5000

Sheet 16-10-2017
H6: HUAWEI FUEL RETIREMENT FOR 16-10-2017 BY IKECHUKWU ROBERT E.
B7: Date | C7: Vehicle Number | D7: Filling Station | E7: Mileage | F7: Type | G7: Quantity | H7: Amount per Litre | I7: TRACKING REPORT LITRE | J7: Variance | K7: RATE | L7: PURCHASE POINT | M7: CONTRACT | N7: NAME | O7: PHONE NO | P7: COMMENT | Q7: VEHICLE MAKE
B8: 14/10/2017 | C8: KRD 539 XF | D8: FORTE OIL | E8: 247579 | F8: PETROL | G8: 34 | H8: 145 | I8: 29 | J8: 5 | K8: 5000 | L8: UMUAHIA | M8: HUAWEI | N8: SANNI WILLIAMS | O8: 8166130744 | Q8: MITS.L200 PICK/UP
B9: 16/10/2017 | C9: KRD 539 XF | D9: FORTE OIL | E9: 247853 | F9: PETROL | G9: 34 | H9: 145 | I9: 36 | J9: 2 | K9: 5000 | L9: UMUAHIA | M9: HUAWEI | N9: SANNI WILLIAMS | O9: 8166130744 | Q9: MITS.L200 PICK/UP
J11: TOTAL | K11: 10000

Sheet 17-10-2017
H6: HUAWEI FUEL RETIREMENT FOR 19-10-2017 BY IKECHUKWU ROBERT E.
B7: Date | C7: Vehicle Number | D7: Filling Station | E7: Mileage | F7: Type | G7: Quantity | H7: Amount per Litre | I7: TRACKING REPORT LITRE | J7: Variance | K7: RATE | L7: PURCHASE POINT | M7: CONTRACT | N7: NAME | O7: PHONE NO | P7: COMMENT | Q7: VEHICLE MAKE
B8: 19/10/2017 | C8: KRD 539 XF | D8: FORTE OIL | E8: 248644 | F8: PETROL | G8: 20 | H8: 145 | I8: 15 | J8: 5 | K8: 3000 | L8: UMUAHIA | M8: HUAWEI | N8: SANNI WILLIAMS | O8: 8166130744 | Q8: MITS.L200 PICK/UP
B9: 19/10/2017 | C9: KRD 539 XF | D9: FORTE OIL | E9: 248651 | F9: PETROL | G9: 12 | H9: 145 | I9: 12 | J9: 1 | K9: 2000 | L9: UMUAHIA | M9: HUAWEI | N9: SANNI WILLIAMS | O9: 8166130745 | Q9: MITS.L200 PICK/UP
J11: TOTAL | K11: 5000

Sheet 20-10-2017
H5: HUAWEI FUEL RETIREMENT FOR 19-10-2017 BY IKECHUKWU ROBERT E.
B6: Date | C6: Vehicle Number | D6: Filling Station | E6: Mileage | F6: Type | G6: Quantity | H6: Amount per Litre | I6: TRACKING REPORT LITRE | J6: Variance | K6: RATE | L6: PURCHASE POINT | M6: CONTRACT | N6: NAME | O6: PHONE NO | P6: COMMENT | Q6: VEHICLE MAKE
B7: 19/10/2017 | C7: KRD 539 XF | D7: FORTE OIL | E7: 248644 | F7: PETROL | G7: 20 | H7: 145 | I7: 15 | J7: 5 | K7: 3000 | L7: UMUAHIA | M7: HUAWEI | N7: SANNI WILLIAMS | O7: 8166130744 | Q7: MITS.L200 PICK/UP
B8: 19/10/2017 | C8: KRD 539 XF | D8: FORTE OIL | E8: 248651 | F8: PETROL | G8: 12 | H8: 145 | I8: 12 | J8: 1 | K8: 2000 | L8: UMUAHIA | M8: HUAWEI | N8: SANNI WILLIAMS | O8: 8166130745 | Q8: MITS.L200 PICK/UP
J10: TOTAL | K10: 5000

Sheet 23-10-2017
H4: HUAWEI FUEL RETIREMENT FOR 23-10-2017 BY IKECHUKWU ROBERT E.
B5: Date | C5: Vehicle Number | D5: Filling Station | E5: Mileage | F5: Type | G5: Quantity | H5: Amount per Litre | I5: TRACKING REPORT LITRE | J5: Variance | K5: RATE | L5: PURCHASE POINT | M5: CONTRACT | N5: NAME | O5: PHONE NO | P5: COMMENT | Q5: VEHICLE MAKE
B6: 23/10/2017 | C6: YA 174 MUS | D6: NUA FILLING STATION | E6: 238968 | F6: PETROL | G6: 28 | H6: 145 | I6: 22 | J6: 6 | K6: 4000 | L6: ABA | M6: HUAWEI | N6: ORJI SOLOMON | O6: 8084005292 | Q6: TOYOTA HILUX PICK/UP
K8: 4000

Sheet 25-10-2017
H4: HUAWEI FUEL RETIREMENT FOR 25-10-2017 BY IKECHUKWU ROBERT E.
B5: Date | C5: Vehicle Number | D5: Filling Station | E5: Mileage | F5: Type | G5: Quantity | H5: Amount per Litre | I5: TRACKING REPORT LITRE | J5: Variance | K5: RATE | L5: PURCHASE POINT | M5: CONTRACT | N5: NAME | O5: PHONE NO | P5: COMMENT | Q5: VEHICLE MAKE
B6: 24/10/2017 | C6: YA 174 MUS | D6: NUA FILLING STATION | E6: 239118 | F6: PETROL | G6: 20 | H6: 145 | I6: 17 | J6: 3 | K6: 3000 | L6: ABA | M6: HUAWEI | N6: ORJI SOLOMON | O6: 8084005292 | Q6: TOYOTA HILUX PICK/UP
B7: 25/10/2017 | C7: YA 174 MUS | D7: NUA FILLING STATION | E7: 239239 | F7: PETROL | G7: 7 | H7: 145 | I7: 6 | J7: 1 | K7: 1000 | L7: ABA | M7: HUAWEI | N7: ORJI SOLOMON | O7: 8084005292 | Q7: TOYOTA HILUX PICK/UP
K8: 4000

Sheet 30-10-2017
A1: 3
H4: HUAWEI FUEL RETIREMENT FOR 30-10-2017 BY IKECHUKWU ROBERT E.
B5: Date | C5: Vehicle Number | D5: Filling Station | E5: Mileage | F5: Type | G5: Quantity | H5: Amount per Litre | I5: TRACKING REPORT LITRE | J5: Variance | K5: RATE | L5: PURCHASE POINT | M5: CONTRACT | N5: NAME | O5: PHONE NO | P5: COMMENT | Q5: VEHICLE MAKE
B6: 29/10/2017 | C6: KRD 539 XF | D6: FORTE OIL | E6: 249756 | F6: PETROL | G6: 34 | H6: 145 | I6: 31 | J6: 3 | K6: 5000 | L6: UMUAHIA | M6: HUAWEI | N6: SANNI WILLIAMS | O6: 8166130744 | Q6: MITS.L200 PICK/UP
B7: 30/10/2017 | C7: KRD 539 XF | D7: FORTE OIL | E7: 249993 | F7: PETROL | G7: 34 | H7: 145 | I7: 32.5 | J7: 1.5 | K7: 5000 | L7: UMUAHIA | M7: HUAWEI | N7: SANNI WILLIAMS | O7: 8166130745 | Q7: MITS.L200 PICK/UP
J9: TOTAL | K9: 10000

Sheet 31-10-2017
H5: HUAWEI FUEL RETIREMENT FOR 31-10-2017 BY IKECHUKWU ROBERT E.
B6: Date | C6: Vehicle Number | D6: Filling Station | E6: Mileage | F6: Type | G6: Quantity | H6: Amount per Litre | I6: TRACKING REPORT LITRE | J6: Variance | K6: RATE | L6: PURCHASE POINT | M6: CONTRACT | N6: NAME | O6: PHONE NO | P6: COMMENT | Q6: VEHICLE MAKE
B7: 31/10/2017 | C7: KRD 539 XF | D7: FORTE OIL | E7: 250234 | F7: PETROL | G7: 34 | H7: 145 | I7: 30 | J7: 4 | K7: 5000 | L7: UMUAHIA | M7: HUAWEI | N7: SANNI WILLIAMS | O7: 8166130744 | Q7: MITS.L200 PICK/UP
J10: TOTAL | K10: 5000

Sheet 08-11-2017
H6: HUAWEI FUEL RETIREMENT FOR 08-11-2017 BY IKECHUKWU ROBERT E.
B7: Date | C7: Vehicle Number | D7: Filling Station | E7: Mileage | F7: Type | G7: Quantity | H7: Amount per Litre | I7: TRACKING REPORT LITRE | J7: Variance | K7: RATE | L7: PURCHASE POINT | M7: CONTRACT | N7: NAME | O7: PHONE NO | P7: COMMENT | Q7: VEHICLE MAKE
B8: 2017-08-11 | C8: KRD 539 XF | D8: FORTE OIL | E8: 251633 | F8: PETROL | G8: 34 | H8: 145 | I8: 34 | J8: 0 | K8: 5000 | L8: UMUAHIA | M8: HUAWEI | N8: SANNI WILLIAMS | O8: 8166130744 | Q8: MITS.L200 PICK/UP
J11: TOTAL | K11: 5000

Sheet 13-11-2017
H5: HUAWEI FUEL RETIREMENT FOR 13-11-2017 BY IKECHUKWU ROBERT E.
B6: Date | C6: Vehicle Number | D6: Filling Station | E6: Mileage | F6: Type | G6: Quantity | H6: Amount per Litre | I6: TRACKING REPORT LITRE | J6: Variance | K6: RATE | L6: PURCHASE POINT | M6: CONTRACT | N6: NAME | O6: PHONE NO | P6: COMMENT | Q6: VEHICLE MAKE
B7: 2017-09-11 | C7: KRD 539 XF | D7: FORTE OIL | E7: 251852 | F7: PETROL | G7: 34 | H7: 145 | I7: 31 | J7: 3 | K7: 5000 | L7: UMUAHIA | M7: HUAWEI | N7: SANNI WILLIAMS | O7: 8166130744 | Q7: MITS.L200 PICK/UP
B8: 2017-10-11 | C8: KRD 539 XF | D8: FORTE OIL | E8: 252063 | F8: PETROL | G8: 34 | H8: 145 | I8: 32 | J8: 2 | K8: 5000 | L8: UMUAHIA | M8: HUAWEI | N8: SANNI WILLIAMS | O8: 8166130745 | Q8: MITS.L200 PICK/UP
B9: 13/11/2017 | C9: KRD 539 XF | D9: FORTE OIL | E9: 252305 | F9: PETROL | G9: 34 | H9: 145 | I9: 35 | J9: 1 | K9: 5000 | L9: UMUAHIA | M9: HUAWEI | N9: SANNI WILLIAMS | O9: 8166130746 | Q9: MITS.L200 PICK/UP
B10: 2017-10-11 | C10: YA 171 MUS | D10: NUA | E10: 217118 | F10: PETROL | G10: 14 | H10: 145 | I10: 11 | J10: 3 | K10: 2000 | L10: ABA | M10: HUAWEI | N10: KENNETH ONOS O. | O10: 7038064191 | Q10: MITS.L200 PICK/UP
B11: 2017-11-11 | C11: YA 171 MUS | D11: NUA | E11: 217197 | F11: PETROL | G11: 14 | H11: 145 | I11: 15 | J11: 1 | K11: 2000 | L11: ABA | M11: HUAWEI | N11: KENNETH ONOS O. | O11: 7038064192 | Q11: MITS.L200 PICK/UP
B12: 13/11/2017 | C12: YA 171 MUS | D12: NUA | E12: 217348 | F12: PETROL | G12: 34 | H12: 145 | I12: 33 | J12: 1 | K12: 5000 | L12: ABA | M12: HUAWEI | N12: KENNETH ONOS O. | O12: 7038064193 | Q12: MITS.L200 PICK/UP
J13: TOTAL | K13: 24000

Sheet 15-11-2017
H5: HUAWEI FUEL RETIREMENT FOR 14-11-2017 BY IKECHUKWU ROBERT E.
B6: Date | C6: Vehicle Number | D6: Filling Station | E6: Mileage | F6: Type | G6: Quantity | H6: Amount per Litre | I6: TRACKING REPORT LITRE | J6: Variance | K6: RATE | L6: PURCHASE POINT | M6: CONTRACT | N6: NAME | O6: PHONE NO | P6: COMMENT | Q6: VEHICLE MAKE
B7: 14/11/2017 | C7: KRD 539 XF | D7: MOBIL | E7: 252540 | F7: PETROL | G7: 34 | H7: 145 | I7: 32 | J7: 2 | K7: 5000 | L7: UMUAHIA | M7: HUAWEI | N7: SANNI WILLIAMS | O7: 8166130746 | Q7: MITS.L200 PICK/UP
B8: 14/11/2017 | C8: YA 171 MUS | D8: NUA | E8: 217413 | F8: PETROL | G8: 28 | H8: 145 | I8: 21 | J8: 7 | K8: 4000 | L8: ABA | M8: HUAWEI | N8: KENNETH ONOS O. | O8: 7038064193 | Q8: MITS.L200 PICK/UP
J9: TOTAL | K9: 9000

Sheet 16-11-2017
H4: HUAWEI FUEL RETIREMENT FOR 16-11-2017 BY IKECHUKWU ROBERT E.
B5: Date | C5: Vehicle Number | D5: Filling Station | E5: Mileage | F5: Type | G5: Quantity | H5: Amount per Litre | I5: TRACKING REPORT LITRE | J5: Variance | K5: RATE | L5: PURCHASE POINT | M5: CONTRACT | N5: NAME | O5: PHONE NO | P5: COMMENT | Q5: VEHICLE MAKE
B6: 15/11/2017 | C6: YA 174 MUS | D6: NUA FILLING STATION | E6: 241402 | F6: PETROL | G6: 28 | H6: 145 | I6: 9.5 | J6: 18.5 | K6: 4000 | L6: ABA | M6: HUAWEI | N6: ORJI SOLOMON | O6: 8084005292 | P6: Kindly deduct N2,682.50 from the driver | Q6: TOYOTA HILUX PICK/UP
B7: 16/11/2017 | C7: KRD 539 XF | D7: NUA FILLING STATION | E7: 252782 | F7: PETROL | G7: 34 | H7: 145 | I7: 34 | J7: 0 | K7: 5000 | L7: UMUAHIA | M7: HUAWEI | N7: SANNI WILLIAMS | O7: 8166130746 | Q7: MITS.L200 PICK/UP
K8: 9000

Sheet 18-11-2017
I5: HUAWEI FUEL RETIREMENT FOR 18-11-2017 BY IKECHUKWU ROBERT E.
C6: Date | D6: Vehicle Number | E6: Filling Station | F6: Mileage | G6: Type | H6: Quantity | I6: Amount per Litre | J6: TRACKING REPORT LITRE | K6: Variance | L6: RATE | M6: PURCHASE POINT | N6: CONTRACT | O6: NAME | P6: PHONE NO | Q6: COMMENT | R6: VEHICLE MAKE
C7: 18/11/2017 | D7: KRD 539 XF | E7: HUMMER FILLING STATION | F7: 253247 | G7: PETROL | H7: 34 | I7: 145 | J7: 29 | K7: 5 | L7: 5000 | M7: UMUAHIA | N7: HUAWEI | O7: SANNI WILLIAMS | P7: 8166130744 | R7: MITS.L200 PICK/UP
K10: TOTAL | L10: 5000

Sheet 22-11-2017
I6: HUAWEI FUEL RETIREMENT FOR 22-11-2017 BY IKECHUKWU ROBERT E.
C7: Date | D7: Vehicle Number | E7: Filling Station | F7: Mileage | G7: Type | H7: Quantity | I7: Amount per Litre | J7: TRACKING REPORT LITRE | K7: Variance | L7: RATE | M7: PURCHASE POINT | N7: CONTRACT | O7: NAME | P7: PHONE NO | Q7: COMMENT | R7: VEHICLE MAKE
C8: 21/11/2017 | D8: KMC 39 XA | E8: NUA FILLING | F8: 263054 | G8: PETROL | H8: 20 | I8: 145 | J8: NOT CAPTURED | K8: NOT CAPTURED | L8: 3000 | M8: ABA | N8: HUAWEI | O8: ERIC OWHONDA | P8: 8035417621 | Q8: Support Ticket Opened [#899] | R8: T/HILUX PICK/UP
C9: 22/11/2017 | D9: KMC 39 XA | E9: NUA FILLING | F9: 263162 | G9: PETROL | H9: 20 | I9: 145 | J9: NOT CAPTURED | K9: NOT CAPTURED | L9: 3000 | M9: ABA | N9: HUAWEI | O9: ERIC OWHONDA | P9: 8035417621 | Q9: Support Ticket Opened [#899] | R9: T/HILUX PICK/UP
K11: TOTAL | L11: 6000

Sheet 24-11-2017
H5: HUAWEI FUEL RETIREMENT FOR 24-11-2017 BY IKECHUKWU ROBERT E.
B6: Date | C6: Vehicle Number | D6: Filling Station | E6: Mileage | F6: Type | G6: Quantity | H6: Amount per Litre | I6: TRACKING REPORT LITRE | J6: Variance | K6: RATE | L6: PURCHASE POINT | M6: CONTRACT | N6: NAME | O6: PHONE NO | P6: COMMENT | Q6: VEHICLE MAKE
B7: 24/11/2017 | C7: KRD 539 XF | D7: HUMMER FILLING STATION | E7: 254409 | F7: PETROL | G7: 34 | H7: 145 | I7: 30 | J7: 4 | K7: 5000 | L7: UMUAHIA | M7: HUAWEI | N7: SANNI WILLIAMS | O7: 8166130744 | Q7: MITS.L200 PICK/UP
J10: TOTAL | K10: 5000

Sheet 28-11-2017
H6: HUAWEI FUEL RETIREMENT FOR 28-1-2017 BY IKECHUKWU ROBERT E.
B7: Date | C7: Vehicle Number | D7: Filling Station | E7: Mileage | F7: Type | G7: Quantity | H7: Amount per Litre | I7: TRACKING REPORT LITRE | J7: Variance | K7: RATE | L7: PURCHASE POINT | M7: CONTRACT | N7: NAME | O7: PHONE NO | P7: COMMENT | Q7: VEHICLE MAKE
B8: 26/11/2017 | C8: KRD 539 XF | D8: HUMMER FILLING STATION | E8: 254665 | F8: PETROL | G8: 34 | H8: 145 | I8: 30 | J8: 4 | K8: 5000 | L8: UMUAHIA | M8: HUAWEI | N8: SANNI WILLIAMS | O8: 8166130744 | Q8: MITS.L200 PICK/UP
B9: 26/11/2017 | C9: KRD 539 XF | D9: HUMMER FILLING STATION | E9: 254995 | F9: PETROL | G9: 34 | H9: 145 | I9: 35 | J9: 1 | K9: 5000 | L9: UMUAHIA | M9: HUAWEI | N9: SANNI WILLIAMS | O9: 8166130745 | Q9: MITS.L200 PICK/UP
B10: 28/11/2017 | C10: YA 174 MUS | D10: NUA FILLING STATION | E10: 243060 | F10: PETROL | G10: 14 | H10: 145 | I10: 12 | J10: 2 | K10: 3000 | L10: ABA | M10: HUAWEI | N10: ORJI SOLOMON | O10: 8084005292 | Q10: TOYOTA HILUX PICK/UP
J11: TOTAL | K11: 13000

Sheet 04-12-2017
I6: HUAWEI FUEL RETIREMENT FOR 04-12-2017 BY IKECHUKWU ROBERT E.
C7: Date | D7: Vehicle Number | E7: Filling Station | F7: Mileage | G7: Type | H7: Quantity | I7: Amount per Litre | J7: TRACKING REPORT LITRE | K7: Variance | L7: RATE | M7: PURCHASE POINT | N7: CONTRACT | O7: NAME | P7: PHONE NO | Q7: COMMENT | R7: VEHICLE MAKE
C8: 29/11/2017 | D8: YA 174 MUS | E8: NUA FILLING STATION | F8: 243217 | G8: PETROL | H8: 14 | I8: 145 | J8: 12 | K8: 2 | L8: 3000 | M8: ABA | N8: HUAWEI | O8: ORJI SOLOMON | P8: 8084005292 | R8: TOYOTA HILUX PICK/UP
C9: 2017-03-12 | D9: KRD 539 XF | E9: HUMMER FILLING STATION | F9: 256278 | G9: PETROL | H9: 34 | I9: 145 | J9: 31 | K9: 4 | L9: 5000 | M9: UMUAHIA | N9: HUAWEI | O9: SANNI WILLIAMS | P9: 8166130745 | R9: MITS.L200 PICK/UP
K11: TOTAL | L11: 8000

Sheet 05-12-2017
H6: HUAWEI FUEL RETIREMENT FOR 05-12-2017 BY IKECHUKWU ROBERT E.
B7: Date | C7: Vehicle Number | D7: Filling Station | E7: Mileage | F7: Type | G7: Quantity | H7: Amount per Litre | I7: TRACKING REPORT LITRE | J7: Variance | K7: RATE | L7: PURCHASE POINT | M7: CONTRACT | N7: NAME | O7: PHONE NO | P7: COMMENT | Q7: VEHICLE MAKE
B8: 2017-04-12 | C8: KRD 539 XF | D8: HUMMER FILLING STATION | E8: 256499 | F8: PETROL | G8: 34 | H8: 145 | I8: 34 | J8: 0 | K8: 5000 | L8: UMUAHIA | M8: HUAWEI | N8: SANNI WILLIAMS | O8: 8166130744 | Q8: MITS.L200 PICK/UP
B9: 2017-05-12 | C9: KRD 539 XF | D9: FORTE OIL | E9: 256809 | F9: PETROL | G9: 34 | H9: 145 | I9: 31 | J9: 3 | K9: 5000 | L9: UMUAHIA | M9: HUAWEI | N9: SANNI WILLIAMS | O9: 8166130745 | Q9: MITS.L200 PICK/UP
J10: TOTAL | K10: 10000

Sheet 7-12-2017
H6: HUAWEI FUEL RETIREMENT FOR 07-12-2017 BY IKECHUKWU ROBERT E.
B7: Date | C7: Vehicle Number | D7: Filling Station | E7: Mileage | F7: Type | G7: Quantity | H7: Amount per Litre | I7: TRACKING REPORT LITRE | J7: Variance | K7: RATE | L7: PURCHASE POINT | M7: CONTRACT | N7: NAME | O7: PHONE NO | P7: COMMENT | Q7: VEHICLE MAKE
B8: 2017-07-12 | C8: KRD 539 XF | D8: FORTE OIL | E8: 256998 | F8: PETROL | G8: 34 | H8: 145 | I8: 30.5 | J8: 3.5 | K8: 5000 | L8: UMUAHIA | M8: HUAWEI | N8: SANNI WILLIAMS | O8: 8166130745 | Q8: MITS.L200 PICK/UP
J9: TOTAL | K9: 5000

Sheet 23-12-2017
H6: HUAWEI FUEL RETIREMENT FOR 23-12-2017 BY IKECHUKWU ROBERT E.
B7: Date | C7: Vehicle Number | D7: Filling Station | E7: Mileage | F7: Type | G7: Quantity | H7: Amount per Litre | I7: TRACKING REPORT LITRE | J7: Variance | K7: RATE | L7: PURCHASE POINT | M7: CONTRACT | N7: NAME | O7: PHONE NO | P7: COMMENT | Q7: VEHICLE MAKE
B8: 13/12/2017 | C8: KRD 539 XF | D8: FORTE OIL | E8: 258529 | F8: PETROL | G8: 34 | H8: 145 | I8: 36 | J8: 4 | K8: 5000 | L8: UMUAHIA | M8: HUAWEI | N8: SANNI WILLIAMS | O8: 8166130745 | Q8: MITS.L200 PICK/UP
B9: 23/12/2017 | C9: KRD 539 XF | D9: FORTE OIL | E9: 259351 | F9: PETROL | G9: 17 | H9: 145 | I9: 16 | J9: 1 | K9: 2500 | L9: UMUAHIA | M9: HUAWEI | N9: SANNI WILLIAMS | O9: 8166130746 | Q9: MITS.L200 PICK/UP
B10: 23/12/2017 | C10: KRD 539 XF | D10: FORTE OIL | E10: 259426 | F10: PETROL | G10: 17 | H10: 145 | I10: 15 | J10: 2 | K10: 2500 | L10: UMUAHIA | M10: HUAWEI | N10: SANNI WILLIAMS | O10: 8166130747 | Q10: MITS.L200 PICK/UP
J11: TOTAL | K11: 10000

Sheet 25-12-2017
H5: HUAWEI FUEL RETIREMENT FOR 25-12-2017 BY IKECHUKWU ROBERT E.
B6: Date | C6: Vehicle Number | D6: Filling Station | E6: Mileage | F6: Type | G6: Quantity | H6: Amount per Litre | I6: TRACKING REPORT LITRE | J6: Variance | K6: RATE | L6: PURCHASE POINT | M6: CONTRACT | N6: NAME | O6: PHONE NO | P6: COMMENT | Q6: VEHICLE MAKE
B7: 25/12/2017 | C7: KRD 539 XF | D7: FORTE OIL | E7: 259501 | F7: PETROL | G7: 17 | H7: 145 | I7: 19 | J7: 2 | K7: 2500 | L7: UMUAHIA | M7: HUAWEI | N7: SANNI WILLIAMS | O7: 8166130746 | Q7: MITS.L200 PICK/UP
B8: 25/12/2017 | C8: KRD 539 XF | D8: FORTE OIL | E8: 259596 | F8: PETROL | G8: 17 | H8: 145 | I8: 19 | J8: 2 | K8: 2500 | L8: UMUAHIA | M8: HUAWEI | N8: SANNI WILLIAMS | O8: 8166130747 | Q8: MITS.L200 PICK/UP
J9: TOTAL | K9: 5000

Sheet 05-01-2018
H5: HUAWEI FUEL RETIREMENT FOR 05-01-2018 BY IKECHUKWU ROBERT E.
B6: Date | C6: Vehicle Number | D6: Filling Station | E6: Mileage | F6: Type | G6: Quantity | H6: Amount per Litre | I6: TRACKING REPORT LITRE | J6: Variance | K6: RATE | L6: PURCHASE POINT | M6: CONTRACT | N6: NAME | O6: PHONE NO | P6: COMMENT | Q6: VEHICLE MAKE
B7: 2018-05-01 | C7: KRD 539 XF | D7: NGOZI PETROLUEM | E7: 261560 | F7: PETROL | G7: 34 | H7: 250 | I7: 37 | J7: 3 | K7: 8500 | L7: UMUAHIA | M7: HUAWEI | N7: SANNI WILLIAMS | O7: 8166130746 | P7: Fuel pirchased above official pump price | Q7: MITS.L200 PICK/UP
J9: TOTAL | K9: 8500

Sheet 07-01-2018
H5: HUAWEI FUEL RETIREMENT FOR 07-01-2018 BY IKECHUKWU ROBERT E.
B6: Date | C6: Vehicle Number | D6: Filling Station | E6: Mileage | F6: Type | G6: Quantity | H6: Amount per Litre | I6: TRACKING REPORT LITRE | J6: Variance | K6: RATE | L6: PURCHASE POINT | M6: CONTRACT | N6: NAME | O6: PHONE NO | P6: COMMENT | Q6: VEHICLE MAKE
B7: 2018-07-01 | C7: KRD 539 XF | D7: NGOZI PETROLUEM | E7: 261876 | F7: PETROL | G7: 39 | H7: 230 | I7: 41 | J7: 2 | K7: 9000 | L7: UMUAHIA | M7: HUAWEI | N7: SANNI WILLIAMS | O7: 8166130746 | P7: Fuel pirchased above official pump price | Q7: MITS.L200 PICK/UP
J9: TOTAL | K9: 9000

Sheet 9-01-2018
H5: HUAWEI FUEL RETIREMENT FOR 09-01-2018 BY IKECHUKWU ROBERT E.
B6: Date | C6: Vehicle Number | D6: Filling Station | E6: Mileage | F6: Type | G6: Quantity | H6: Amount per Litre | I6: TRACKING REPORT LITRE | J6: Variance | K6: RATE | L6: PURCHASE POINT | M6: CONTRACT | N6: NAME | O6: PHONE NO | P6: COMMENT | Q6: VEHICLE MAKE
B7: 2018-09-01 | C7: KRD 539 XF | D7: NGOZI PETROLUEM | E7: 263324 | F7: PETROL | G7: 32 | H7: 220 | I7: 40 | J7: 8 | K7: 7000 | L7: UMUAHIA | M7: HUAWEI | N7: SANNI WILLIAMS | O7: 8166130746 | P7: Fuel pirchased above official pump price | Q7: MITS.L200 PICK/UP
J9: TOTAL | K9: 7000

Sheet 11-01-2018
H4: HUAWEI FUEL RETIREMENT FOR 11-01-2018 BY IKECHUKWU ROBERT E.
B5: Date | C5: Vehicle Number | D5: Filling Station | E5: Mileage | F5: Type | G5: Quantity | H5: Amount per Litre | I5: TRACKING REPORT LITRE | J5: Variance | K5: RATE | L5: PURCHASE POINT | M5: CONTRACT | N5: NAME | O5: PHONE NO | P5: COMMENT | Q5: VEHICLE MAKE
B6: 2018-11-01 | C6: KMC 44 XA | D6: TONIMAS | E6: 214709 | F6: PETROL | G6: 26 | H6: 230 | I6: 17.5 | J6: 8.5 | K6: 6000 | L6: ABA | M6: HUAWEI | N6: ERIC OWHONDA | O6: 8035417621 | P6: Fuel pirchased above official pump price | Q6: TOYOTA HILUX
J8: TOTAL | K8: 6000

Sheet 17-01-2018
H4: HUAWEI FUEL RETIREMENT FOR 17-01-2018 BY IKECHUKWU ROBERT E.
B5: Date | C5: Vehicle Number | D5: Filling Station | E5: Mileage | F5: Type | G5: Quantity | H5: Amount per Litre | I5: TRACKING REPORT LITRE | J5: Variance | K5: RATE | L5: PURCHASE POINT | M5: CONTRACT | N5: NAME | O5: PHONE NO | P5: COMMENT | Q5: VEHICLE MAKE
B6: 17/1/2018 | C6: KRD 539 XF | D6: NGOZI PETROLUEM | E6: 263433 | F6: PETROL | G6: 20 | H6: 210 | I6: 18.4 | J6: 1.6 | K6: 4200 | L6: UMUAHIA | M6: HUAWEI | N6: SANNI WILLIAMS | O6: 8166130746 | P6: Fuel pirchased above official pump price | Q6: MITS.L200 PICK/UP
B7: 17/1/2018 | C7: KRD 539 XF | D7: NGOZI PETROLUEM | E7: 263436 | F7: PETROL | G7: 22 | H7: 210 | I7: 24.4 | J7: 2.4 | K7: 4800 | L7: UMUAHIA | M7: HUAWEI | N7: SANNI WILLIAMS | O7: 8166130747 | P7: Fuel pirchased above official pump price | Q7: MITS.L200 PICK/UP
J8: TOTAL | K8: 9000

Sheet 18-01-2018
H4: HUAWEI FUEL RETIREMENT FOR 18-01-2018 BY IKECHUKWU ROBERT E.
B5: Date | C5: Vehicle Number | D5: Filling Station | E5: Mileage | F5: Type | G5: Quantity | H5: Amount per Litre | I5: TRACKING REPORT LITRE | J5: Variance | K5: RATE | L5: PURCHASE POINT | M5: CONTRACT | N5: NAME | O5: PHONE NO | P5: COMMENT | Q5: VEHICLE MAKE
B6: 18/1/2018 | C6: KRD 539 XF | D6: NGOZI PETROLUEM | E6: 263734 | F6: PETROL | G6: 38 | H6: 210 | I6: 47 | J6: 9 | K6: 8000 | L6: UMUAHIA | M6: HUAWEI | N6: SANNI WILLIAMS | O6: 8166130747 | P6: Fuel pirchased above official pump price | Q6: MITS.L200 PICK/UP
J7: TOTAL | K7: 8000

Sheet 

Sheet 19-01-2018
H5: HUAWEI FUEL RETIREMENT FOR 19-01-2018 BY IKECHUKWU ROBERT E.
B6: Date | C6: Vehicle Number | D6: Filling Station | E6: Mileage | F6: Type | G6: Quantity | H6: Amount per Litre | I6: TRACKING REPORT LITRE | J6: Variance | K6: RATE | L6: PURCHASE POINT | M6: CONTRACT | N6: NAME | O6: PHONE NO | P6: COMMENT | Q6: VEHICLE MAKE
B7: 19/1/2018 | C7: KRD 539 XF | D7: NGOZI PETROLUEM | E7: 264015 | F7: PETROL | G7: 38 | H7: 210 | I7: 36 | J7: 2 | K7: 8000 | L7: UMUAHIA | M7: HUAWEI | N7: SANNI WILLIAMS | O7: 8166130747 | P7: Fuel pirchased above official pump price | Q7: MITS.L200 PICK/UP
J8: TOTAL | K8: 8000

Sheet 21-01-2018
H4: HUAWEI FUEL RETIREMENT FOR 21-01-2018 BY IKECHUKWU ROBERT E.
B5: Date | C5: Vehicle Number | D5: Filling Station | E5: Mileage | F5: Type | G5: Quantity | H5: Amount per Litre | I5: TRACKING REPORT LITRE | J5: Variance | K5: RATE | L5: PURCHASE POINT | M5: CONTRACT | N5: NAME | O5: PHONE NO | P5: COMMENT | Q5: VEHICLE MAKE
B6: 21/1/2018 | C6: KRD 539 XF | D6: NGOZI PETROLUEM | E6: 264297 | F6: PETROL | G6: 28.5 | H6: 210 | I6: 30 | J6: 1.5 | K6: 6000 | L6: UMUAHIA | M6: HUAWEI | N6: SANNI WILLIAMS | O6: 8166130747 | P6: Fuel pirchased above official pump price | Q6: MITS.L200 PICK/UP
J7: TOTAL | K7: 6000

Sheet 23-01-2018
H5: HUAWEI FUEL RETIREMENT FOR 23-01-2018 BY IKECHUKWU ROBERT E.
B6: Date | C6: Vehicle Number | D6: Filling Station | E6: Mileage | F6: Type | G6: Quantity | H6: Amount per Litre | I6: TRACKING REPORT LITRE | J6: Variance | K6: RATE | L6: PURCHASE POINT | M6: CONTRACT | N6: NAME | O6: PHONE NO | P6: COMMENT | Q6: VEHICLE MAKE
B7: 23/1/2018 | C7: KRD 539 XF | D7: NGOZI PETROLUEM | E7: 264512 | F7: PETROL | G7: 40 | H7: 200 | I7: 39 | J7: 1 | K7: 8000 | L7: UMUAHIA | M7: HUAWEI | N7: SANNI WILLIAMS | O7: 8166130747 | P7: Fuel pirchased above official pump price | Q7: MITS.L200 PICK/UP
J8: TOTAL | K8: 8000

Sheet 24-01-2018
H5: HUAWEI FUEL RETIREMENT FOR 23-01-2018 BY IKECHUKWU ROBERT E.
B6: Date | C6: Vehicle Number | D6: Filling Station | E6: Mileage | F6: Type | G6: Quantity | H6: Amount per Litre | I6: TRACKING REPORT LITRE | J6: Variance | K6: RATE | L6: PURCHASE POINT | M6: CONTRACT | N6: NAME | O6: PHONE NO | P6: COMMENT | Q6: VEHICLE MAKE
B7: 24/1/2018 | C7: KRD 539 XF | D7: NGOZI PETROLUEM | E7: 264761 | F7: PETROL | G7: 40 | H7: 200 | I7: 43 | J7: 3 | K7: 8000 | L7: UMUAHIA | M7: HUAWEI | N7: SANNI WILLIAMS | O7: 8166130747 | P7: Fuel pirchased above official pump price | Q7: MITS.L200 PICK/UP
J8: TOTAL | K8: 8000

Sheet 26-01-2018
H5: HUAWEI FUEL RETIREMENT FOR 26-01-2018 BY IKECHUKWU ROBERT E.
B6: Date | C6: Vehicle Number | D6: Filling Station | E6: Mileage | F6: Type | G6: Quantity | H6: Amount per Litre | I6: TRACKING REPORT LITRE | J6: Variance | K6: RATE | L6: PURCHASE POINT | M6: CONTRACT | N6: NAME | O6: PHONE NO | P6: COMMENT | Q6: VEHICLE MAKE
B7: 26/1/2018 | C7: KRD 539 XF | D7: NGOZI PET | E7: 265030 | F7: PETROL | G7: 40 | H7: 200 | I7: 41 | J7: 1 | K7: 8000 | L7: UMUAHIA | M7: HUAWEI | N7: SANNI WILLIAMS | O7: 8166130747 | P7: Fuel pirchased above official pump price | Q7: MITS.L200 PICK/UP
J8: TOTAL | K8: 8000

Sheet 28-01-2018
H4: HUAWEI FUEL RETIREMENT FOR 28-01-2018 BY IKECHUKWU ROBERT E.
B5: Date | C5: Vehicle Number | D5: Filling Station | E5: Mileage | F5: Type | G5: Quantity | H5: Amount per Litre | I5: TRACKING REPORT LITRE | J5: Variance | K5: RATE | L5: PURCHASE POINT | M5: CONTRACT | N5: NAME | O5: PHONE NO | P5: COMMENT | Q5: VEHICLE MAKE
B6: 27/1/2018 | C6: KMC 44 XA | D6: NUA | E6: 215744 | F6: PETROL | G6: 30 | H6: 200 | I6: 25 | J6: 5 | K6: 6000 | L6: ABA | M6: HUAWEI | N6: KENNETH ONOS O. | O6: 7038064191 | P6: Fuel pirchased above official pump price | Q6: MITS.L200 PICK/UP
B7: 27/1/2020 | C7: YA 171 MUS | D7: HEN PET | E7: 221970 | F7: PETROL | G7: 30 | H7: 200 | I7: Not Captured | J7: 0 | K7: 6000 | L7: ABA | M7: HUAWEI | N7: ERIC OWHONDA | O7: 8035417621 | P7: Fuel pirchased above official pump price | Q7: MITS.L200 PICK/UP
B8: 27/1/2019 | C8: YA 174 MUS | D8: TONIMAS | E8: 249088 | F8: PETROL | G8: 20 | H8: 200 | I8: 21 | J8: 1 | K8: 5000 | L8: ABA | M8: HUAWEI | N8: ORJI SOLOMON | O8: 8084005292 | P8: Fuel pirchased above official pump price | Q8: MITS.L200 PICK/UP
B9: 28/1/2018 | C9: YA 174 MUS | D9: TONIMAS | E9: 249198 | F9: PETROL | G9: 10 | H9: 200 | I9: 8 | J9: 2 | K9: 1000 | L9: ABA | M9: HUAWEI | N9: ORJI SOLOMON | O9: 8084005292 | P9: Fuel pirchased above official pump price | Q9: MITS.L200 PICK/UP
B10: 28/1/2018 | C10: KRD 539 XF | D10: NGOZI PET | E10: 265325 | F10: PETROL | G10: 50 | H10: 200 | I10: 51 | J10: 1 | K10: 10000 | L10: UMUAHIA | M10: HUAWEI | N10: SANNI WILLIAMS | O10: 8166130747 | P10: Fuel pirchased above official pump price | Q10: MITS.L200 PICK/UP
J11: TOTAL | K11: 28000

Sheet 30-01-2018
H5: HUAWEI FUEL RETIREMENT FOR 30-01-2018 BY IKECHUKWU ROBERT E.
B6: Date | C6: Vehicle Number | D6: Filling Station | E6: Mileage | F6: Type | G6: Quantity | H6: Amount per Litre | I6: TRACKING REPORT LITRE | J6: Variance | K6: RATE | L6: PURCHASE POINT | M6: CONTRACT | N6: NAME | O6: PHONE NO | P6: COMMENT | Q6: VEHICLE MAKE
B7: 30/1/2018 | C7: KRD 539 XF | D7: TONIMAS | E7: 265673 | F7: PETROL | G7: 54 | H7: 185 | I7: 60.5 | J7: 5.5 | K7: 10000 | L7: UMUAHIA | M7: HUAWEI | N7: SANNI WILLIAMS | O7: 8166130747 | P7: Fuel pirchased above official pump price | Q7: MITS.L200 PICK/UP
J8: TOTAL | K8: 10000

Sheet 02-02-2018
H4: HUAWEI FUEL RETIREMENT FOR 02-02-2018 BY IKECHUKWU ROBERT E.
B5: Date | C5: Vehicle Number | D5: Filling Station | E5: Mileage | F5: Type | G5: Quantity | H5: Amount per Litre | I5: TRACKING REPORT LITRE | J5: Variance | K5: RATE | L5: PURCHASE POINT | M5: CONTRACT | N5: NAME | O5: PHONE NO | P5: COMMENT | Q5: VEHICLE MAKE
B6: 2018-02-02 | C6: KRD 539 XF | D6: TONIMAS | E6: 266126 | F6: PETROL | G6: 54 | H6: 185 | I6: 58 | J6: 4 | K6: 10000 | L6: UMUAHIA | M6: HUAWEI | N6: SANNI WILLIAMS | O6: 8166130747 | P6: Fuel pirchased above official pump price | Q6: MITS.L200 PICK/UP
J7: TOTAL | K7: 10000

Sheet 04-02-2018
H4: HUAWEI FUEL RETIREMENT FOR 05-02-2018 BY IKECHUKWU ROBERT E.
B5: Date | C5: Vehicle Number | D5: Filling Station | E5: Mileage | F5: Type | G5: Quantity | H5: Amount per Litre | I5: TRACKING REPORT LITRE | J5: Variance | K5: RATE | L5: PURCHASE POINT | M5: CONTRACT | N5: NAME | O5: PHONE NO | P5: COMMENT | Q5: VEHICLE MAKE
B6: 2018-04-02 | C6: KRD 539 XF | D6: TONIMAS | E6: 266465 | F6: PETROL | G6: 54 | H6: 185 | I6: 52 | J6: 2 | K6: 10000 | L6: UMUAHIA | M6: HUAWEI | N6: SANNI WILLIAMS | O6: 8166130747 | P6: Fuel pirchased above official pump price | Q6: MITS.L200 PICK/UP
J7: TOTAL | K7: 10000

Sheet 06-02-2018
H5: HUAWEI FUEL RETIREMENT FOR 06-02-2018 BY IKECHUKWU ROBERT E.
B6: Date | C6: Vehicle Number | D6: Filling Station | E6: Mileage | F6: Type | G6: Quantity | H6: Amount per Litre | I6: TRACKING REPORT LITRE | J6: Variance | K6: RATE | L6: PURCHASE POINT | M6: CONTRACT | N6: NAME | O6: PHONE NO | P6: COMMENT | Q6: VEHICLE MAKE
B7: 2018-06-02 | C7: KMC 44 XA | D7: NUA | E7: 215954 | F7: PETROL | G7: 28 | H7: 180 | I7: 22 | J7: 6 | K7: 5000 | L7: ABA | M7: HUAWEI | N7: KENNETH ONOS O. | O7: 7038064191 | P7: Fuel pirchased above official pump price | Q7: MITS.L200 PICK/UP
B8: 2018-06-02 | C8: YA 171 MUS | D8: HEN PET | E8: 222779 | F8: PETROL | G8: 28 | H8: 180 | I8: NOT CAPTURED | J8: 0 | K8: 5000 | L8: ABA | M8: HUAWEI | N8: ERIC OWHONDA | O8: 8035417621 | P8: Fuel pirchased above official pump price | Q8: MITS.L200 PICK/UP | R8: Support Ticket Opened [#910]
B9: 2018-06-02 | C9: YA 174 MUS | D9: TONIMAS | E9: 250054 | F9: PETROL | G9: 28 | H9: 180 | I9: 14.5 | J9: 13.5 | K9: 5000 | L9: ABA | M9: HUAWEI | N9: ORJI SOLOMON | O9: 8084005292 | P9: Fuel pirchased above official pump price | Q9: MITS.L200 PICK/UP | R9: Deduct N2430. FROM THE DRIVER.
J12: TOTAL | K12: 15000

Sheet 08-02-2018
H4: HUAWEI FUEL RETIREMENT FOR 08-02-2018 BY IKECHUKWU ROBERT E.
B5: Date | C5: Vehicle Number | D5: Filling Station | E5: Mileage | F5: Type | G5: Quantity | H5: Amount per Litre | I5: TRACKING REPORT LITRE | J5: Variance | K5: RATE | L5: PURCHASE POINT | M5: CONTRACT | N5: NAME | O5: PHONE NO | P5: COMMENT | Q5: VEHICLE MAKE
B6: 2018-07-02 | C6: KRD 539 XF | D6: NGOZI PET | E6: 266838 | F6: PETROL | G6: 55 | H6: 185 | I6: 53 | J6: 2 | K6: 10000 | L6: UMUAHIA | M6: HUAWEI | N6: SANNI WILLIAMS | O6: 8166130747 | P6: Fuel pirchased above official pump price | Q6: MITS.L200 PICK/UP
B7: 2018-08-02 | C7: YA 171 MUS | D7: TONIMAS | E7: 222857 | F7: PETROL | G7: 26 | H7: 190 | I7: NOT CAPTURED | J7: 0 | K7: 5000 | L7: ABA | M7: HUAWEI | N7: KENNETH ONOS O. | O7: 7038064191 | P7: Fuel pirchased above official pump price | Q7: MITS.L200 PICK/UP | R7: Support Ticket Opened [#912]
B8: 2018-08-02 | C8: YA 174 MUS | D8: TONIMAS | E8: 250212 | F8: PETROL | G8: 26 | H8: 190 | I8: 10 | J8: 16 | K8: 5000 | L8: ABA | M8: HUAWEI | N8: ORJI SOLOMON | O8: 8084005292 | P8: Fuel pirchased above official pump price | Q8: MITS.L200 PICK/UP | R8: Deduct N3040. FROM THE DRIVER.
J11: TOTAL | K11: 20000

Sheet 12-02-2018
H4: HUAWEI FUEL RETIREMENT FOR 12-02-2018 BY IKECHUKWU ROBERT E.
B5: Date | C5: Vehicle Number | D5: Filling Station | E5: Mileage | F5: Type | G5: Quantity | H5: Amount per Litre | I5: TRACKING REPORT LITRE | J5: Variance | K5: RATE | L5: PURCHASE POINT | M5: CONTRACT | N5: NAME | O5: PHONE NO | P5: COMMENT | Q5: VEHICLE MAKE
B6: 2018-10-02 | C6: KMC 44 XA | D6: NUA | E6: 216144 | F6: PETROL | G6: 26 | H6: 190 | I6: 24.5 | J6: 1.5 | K6: 5000 | L6: ABA | M6: HUAWEI | N6: ERIC OWHONDA | O6: 8035417621 | P6: Fuel pirchased above official pump price | Q6: MITS.L200 PICK/UP
B7: 2018-10-02 | C7: YA 171 MUS | D7: TONIMAS | E7: 222908 | F7: PETROL | G7: 26 | H7: 190 | I7: NOT CAPTURED | J7: 0 | K7: 5000 | L7: ABA | M7: HUAWEI | N7: KENNETH ONOS O. | O7: 7038064191 | P7: Fuel pirchased above official pump price | Q7: MITS.L200 PICK/UP | R7: Support Ticket Opened [#913]
B8: 2018-10-02 | C8: YA 174 MUS | D8: TONIMAS | E8: 250675 | F8: PETROL | G8: 26 | H8: 190 | I8: 14 | J8: 12 | K8: 5000 | L8: ABA | M8: HUAWEI | N8: ORJI SOLOMON | O8: 8084005292 | P8: Fuel pirchased above official pump price | Q8: MITS.L200 PICK/UP | R8: Deduct N2,280. FROM THE DRIVER.
J11: TOTAL | K11: 15000

Sheet 13-02-2018
H5: HUAWEI FUEL RETIREMENT FOR 13-02-2018 BY IKECHUKWU ROBERT E. (B) VEHICLES RELEASED FROM HUAWEI CONTRACT)
B6: Date | C6: Vehicle Number | D6: Filling Station | E6: Mileage | F6: Type | G6: Quantity | H6: Amount per Litre | I6: TRACKING REPORT LITRE | J6: Variance | K6: RATE | L6: PURCHASE POINT | M6: CONTRACT | N6: NAME | O6: PHONE NO | P6: COMMENT | Q6: VEHICLE MAKE
B7: 2018-12-02 | C7: KMC 44 XA | D7: NUA | E7: 216380 | F7: PETROL | G7: 13 | H7: 190 | I7: 10 | J7: 2 | K7: 2500 | L7: ABA | M7: HUAWEI | N7: ERIC OWHONDA | O7: 8035417621 | P7: Fuel pirchased above official pump price | Q7: MITS.L200 PICK/UP
B8: 2018-12-02 | C8: YA 171 MUS | D8: TONIMAS | E8: 223100 | F8: PETROL | G8: 13 | H8: 190 | I8: NOT CAPTURED | J8: 0 | K8: 2500 | L8: ABA | M8: HUAWEI | N8: KENNETH ONOS O. | O8: 7038064191 | P8: Fuel pirchased above official pump price | Q8: MITS.L200 PICK/UP | R8: Support Ticket Opened [#914] (Vehicle to be attended to today by Citracks.
B9: 2018-12-02 | C9: YA 174 MUS | D9: TONIMAS | E9: 250679 | F9: PETROL | G9: 13 | H9: 190 | I9: 8 | J9: 5 | K9: 2500 | L9: ABA | M9: HUAWEI | N9: ORJI SOLOMON | O9: 8084005292 | P9: Fuel pirchased above official pump price | Q9: MITS.L200 PICK/UP
J12: TOTAL | K12: 7500

Sheet 16-02-2018
H5: HUAWEI FUEL RETIREMENT FOR 16-02-2018 BY IKECHUKWU ROBERT E.
B6: Date | C6: Vehicle Number | D6: Filling Station | E6: Mileage | F6: Type | G6: Quantity | H6: Amount per Litre | I6: TRACKING REPORT LITRE | J6: Variance | K6: RATE | L6: PURCHASE POINT | M6: CONTRACT | N6: NAME | O6: PHONE NO | P6: COMMENT | Q6: VEHICLE MAKE
B7: 14/2/2018 | C7: KRD 539 XF | D7: TONIMAS | E7: 268360 | F7: PETROL | G7: 54 | H7: 185 | I7: 58 | J7: 4 | K7: 10000 | L7: UMUAHIA | M7: HUAWEI | N7: SANNI WILLIAMS | O7: 8166130747 | P7: Fuel pirchased above official pump price | Q7: MITS.L200 PICK/UP
B8: 16/2/2018 | C8: KRD 539 XF | D8: TONIMAS | E8: 268635 | F8: PETROL | G8: 55.5 | H8: 180 | I8: 50 | J8: 5.5 | K8: 10000 | L8: UMUAHIA | M8: HUAWEI | N8: SANNI WILLIAMS | O8: 8166130748 | P8: Fuel pirchased above official pump price | Q8: MITS.L200 PICK/UP
J9: TOTAL | K9: 20000

Sheet 19-02-2018
I6: HUAWEI FUEL RETIREMENT FOR 19-02-2018 BY IKECHUKWU ROBERT E.
C7: Date | D7: Vehicle Number | E7: Filling Station | F7: Mileage | G7: Type | H7: Quantity | I7: Amount per Litre | J7: TRACKING REPORT LITRE | K7: Variance | L7: RATE | M7: PURCHASE POINT | N7: CONTRACT | O7: NAME | P7: PHONE NO | Q7: COMMENT | R7: VEHICLE MAKE
C8: 18/2/2018 | D8: KRD 539 XF | E8: TONIMAS | F8: 269035 | G8: PETROL | H8: 55.5 | I8: 180 | J8: 54 | K8: 1.5 | L8: 10000 | M8: UMUAHIA | N8: HUAWEI | O8: SANNI WILLIAMS | P8: 8166130748 | Q8: KINDLY DEDUCT N2,790. FROM THE DRIVER. | R8: MITS.L200 PICK/UP
K9: TOTAL | L9: 10000

Sheet 20-02-2018
H3: HUAWEI FUEL RETIREMENT FOR 20-02-2018 BY IKECHUKWU ROBERT E.
B4: Date | C4: Vehicle Number | D4: Filling Station | E4: Mileage | F4: Type | G4: Quantity | H4: Amount per Litre | I4: TRACKING REPORT LITRE | J4: Variance | K4: RATE | L4: PURCHASE POINT | M4: CONTRACT | N4: NAME | O4: PHONE NO | P4: COMMENT | Q4: VEHICLE MAKE
B5: 20/2/2018 | C5: KRD 539 XF | D5: TONIMAS | E5: 269405 | F5: PETROL | G5: 55.5 | H5: 180 | I5: 40 | J5: 15.5 | K5: 10000 | L5: UMUAHIA | M5: HUAWEI | N5: SANNI WILLIAMS | O5: 8166130748 | P5: KINDLY DEDUCT N2,790. FROM THE DRIVER. | Q5: MITS.L200 PICK/UP
J6: TOTAL | K6: 10000

Sheet 22-02-2018
H5: HUAWEI FUEL RETIREMENT FOR 22-02-2018 BY IKECHUKWU ROBERT E.
B6: Date | C6: Vehicle Number | D6: Filling Station | E6: Mileage | F6: Type | G6: Quantity | H6: Amount per Litre | I6: TRACKING REPORT LITRE | J6: Variance | K6: RATE | L6: PURCHASE POINT | M6: CONTRACT | N6: NAME | O6: PHONE NO | P6: COMMENT | Q6: VEHICLE MAKE
B7: 22/2/2018 | C7: KRD 539 XF | D7: TONIMAS | E7: 269815 | F7: PETROL | G7: 55.5 | H7: 180 | I7: 56 | J7: 0.5 | K7: 10000 | L7: UMUAHIA | M7: HUAWEI | N7: SANNI WILLIAMS | O7: 8166130748 | Q7: MITS.L200 PICK/UP
J8: TOTAL | K8: 10000

Sheet 28-02-2018
H5: HUAWEI FUEL RETIREMENT FOR 28-02-2018 BY IKECHUKWU ROBERT E.
B6: Date | C6: Vehicle Number | D6: Filling Station | E6: Mileage | F6: Type | G6: Quantity | H6: Amount per Litre | I6: TRACKING REPORT LITRE | J6: Variance | K6: RATE | L6: PURCHASE POINT | M6: CONTRACT | N6: NAME | O6: PHONE NO | P6: COMMENT | Q6: VEHICLE MAKE
B7: 28/2/2018 | C7: KRD 539 XF | D7: TONIMAS | E7: 270148 | F7: PETROL | G7: 55.5 | H7: 180 | I7: 51 | J7: 4.5 | K7: 10000 | L7: UMUAHIA | M7: HUAWEI | N7: SANNI WILLIAMS | O7: 8166130748 | Q7: MITS.L200 PICK/UP
J8: TOTAL | K8: 10000

Sheet 06-03-2018
H4: HUAWEI FUEL RETIREMENT FOR 06-03-2018 BY IKECHUKWU ROBERT E.
B5: Date | C5: Vehicle Number | D5: Filling Station | E5: Mileage | F5: Type | G5: Quantity | H5: Amount per Litre | I5: TRACKING REPORT LITRE | J5: Variance | K5: RATE | L5: PURCHASE POINT | M5: CONTRACT | N5: NAME | O5: PHONE NO | P5: COMMENT | Q5: VEHICLE MAKE
B6: 2018-06-03 | C6: KRD 539 XF | D6: TONIMAS | E6: 271365 | F6: PETROL | G6: 57 | H6: 180 | I6: 51 | J6: 6 | K6: 10000 | L6: UMUAHIA | M6: HUAWEI | N6: SANNI WILLIAMS | O6: 8166130748 | Q6: MITS.L200 PICK/UP
J7: TOTAL | K7: 10000

Sheet 08-03-2018
H5: HUAWEI FUEL RETIREMENT FOR 08-03-2018 BY IKECHUKWU ROBERT E.
B6: Date | C6: Vehicle Number | D6: Filling Station | E6: Mileage | F6: Type | G6: Quantity | H6: Amount per Litre | I6: TRACKING REPORT LITRE | J6: Variance | K6: RATE | L6: PURCHASE POINT | M6: CONTRACT | N6: NAME | O6: PHONE NO | P6: COMMENT | Q6: VEHICLE MAKE
B7: 2018-08-03 | C7: KRD 539 XF | D7: TONIMAS | E7: 271708 | F7: PETROL | G7: 57 | H7: 175 | I7: 49 | J7: 8 | K7: 10000 | L7: UMUAHIA | M7: HUAWEI | N7: SANNI WILLIAMS | O7: 8166130748 | P7: KINDLY DEDUCT N1,425. FROM THE DRIVER. | Q7: MITS.L200 PICK/UP
J8: TOTAL | K8: 10000

Sheet 12-03-2018
H5: HUAWEI FUEL RETIREMENT FOR 12-03-2018 BY IKECHUKWU ROBERT E.
B6: Date | C6: Vehicle Number | D6: Filling Station | E6: Mileage | F6: Type | G6: Quantity | H6: Amount per Litre | I6: TRACKING REPORT LITRE | J6: Variance | K6: RATE | L6: PURCHASE POINT | M6: CONTRACT | N6: NAME | O6: PHONE NO | P6: COMMENT | Q6: VEHICLE MAKE
B7: 2018-10-03 | C7: KRD 539 XF | D7: TONIMAS | E7: 272396 | F7: PETROL | G7: 58 | H7: 170 | I7: 49 | J7: 9 | K7: 10000 | L7: UMUAHIA | M7: HUAWEI | N7: SANNI WILLIAMS | O7: 8166130748 | P7: KINDLY DEDUCT N1,530. FROM THE DRIVER. | Q7: MITS.L200 PICK/UP
J8: TOTAL | K8: 10000

Sheet 13-03-2018
H5: HUAWEI FUEL RETIREMENT FOR 13-03-2018 BY IKECHUKWU ROBERT E.
B6: Date | C6: Vehicle Number | D6: Filling Station | E6: Mileage | F6: Type | G6: Quantity | H6: Amount per Litre | I6: TRACKING REPORT LITRE | J6: Variance | K6: RATE | L6: PURCHASE POINT | M6: CONTRACT | N6: NAME | O6: PHONE NO | P6: COMMENT | Q6: VEHICLE MAKE
B7: 2018-12-03 | C7: KRD 539 XF | D7: NGOZI PET | E7: 272587 | F7: PETROL | G7: 58 | H7: 170 | I7: 52 | J7: 6 | K7: 10000 | L7: UMUAHIA | M7: HUAWEI | N7: SANNI WILLIAMS | O7: 8166130748 | Q7: MITS.L200 PICK/UP
J8: TOTAL | K8: 10000

Sheet 20-03-2018
H4: HUAWEI FUEL RETIREMENT FOR 20-03-2018 BY IKECHUKWU ROBERT E.
B5: Date | C5: Vehicle Number | D5: Filling Station | E5: Mileage | F5: Type | G5: Quantity | H5: Amount per Litre | I5: TRACKING REPORT LITRE | J5: Variance | K5: RATE | L5: PURCHASE POINT | M5: CONTRACT | N5: NAME | O5: PHONE NO | P5: COMMENT | Q5: VEHICLE MAKE
B6: 20/3/2018 | C6: KRD 539 XF | D6: NGOZI PET | E6: 273667 | F6: PETROL | G6: 58 | H6: 170 | I6: 61 | J6: 4 | K6: 10000 | L6: UMUAHIA | M6: HUAWEI | N6: SANNI WILLIAMS | O6: 8166130748 | Q6: MITS.L200 PICK/UP
J7: TOTAL | K7: 10000

Sheet 04-04-2018
H4: HUAWEI FUEL RETIREMENT FOR 04-04-2018 BY IKECHUKWU ROBERT E.
B6: Date | C6: Vehicle Number | D6: Filling Station | E6: Mileage | F6: Type | G6: Quantity | H6: Amount per Litre | I6: TRACKING REPORT LITRE | J6: Variance | K6: RATE | L6: PURCHASE POINT | M6: CONTRACT | N6: NAME | O6: PHONE NO | P6: COMMENT | Q6: VEHICLE MAKE
B7: 2018-02-04 | C7: AAA 258 XQ | D7: FORTE OIL | E7: 164416 | F7: PETROL | G7: 28 | H7: 145 | I7: 28 | J7: 0 | K7: 4000 | L7: PHC | M7: HUAWEI | N7: CHRISTIAN IROEGBULAM | O7: 7064593147 | Q7: MITS.L200 PICK/UP
B8: 2018-02-04 | C8: KRD 539 XF | D8: NGOZI PET | E8: 275666 | F8: PETROL | G8: 34 | H8: 145 | I8: 22 | J8: 12 | K8: 5000 | L8: UMUAHIA | M8: HUAWEI | N8: SANNI WILLIAMS | O8: 8166130748 | P8: KINDLY DEDUCT N1,740. FROM THE DRIVER. | Q8: MITS.L200 PICK/UP
B9: 2018-03-04 | C9: LND 565 XM | D9: FORTE OIL | E9: 160385 | F9: PETROL | G9: 28 | H9: 145 | I9: 21 | J9: 7 | K9: 4000 | L9: PHC | M9: HUAWEI | N9: SUUNDAY OGUNNIAKE | O9: 8035263691 | Q9: MITS.L200 PICK/UP
J10: TOTAL | K10: 13000

Sheet 06-04-2018
H3: HUAWEI FUEL RETIREMENT FOR 06-04-2018 BY IKECHUKWU ROBERT E.
B5: Date | C5: Vehicle Number | D5: Filling Station | E5: Mileage | F5: Type | G5: Quantity | H5: Amount per Litre | I5: TRACKING REPORT LITRE | J5: Variance | K5: RATE | L5: PURCHASE POINT | M5: CONTRACT | N5: NAME | O5: PHONE NO | P5: COMMENT | Q5: VEHICLE MAKE
B6: 2018-04-04 | C6: KRD 539 XF | D6: NGOZI PET | E6: 275876 | F6: PETROL | G6: 34 | H6: 145 | I6: 32 | J6: 2 | K6: 5000 | L6: UMUAHIA | M6: HUAWEI | N6: SANNI WILLIAMS | O6: 8166130748 | Q6: MITS.L200 PICK/UP
B7: 2018-04-04 | C7: LND 565 XM | D7: FORTE OIL | E7: 160501 | F7: PETROL | G7: 7 | H7: 145 | I7: 8 | J7: 0 | K7: 1000 | L7: PHC | M7: HUAWEI | N7: SUUNDAY OGUNNIAKE | O7: 8035263691 | Q7: MITS.L200 PICK/UP
B8: 2018-04-04 | C8: LND 565 XM | D8: FORTE OIL | E8: 160554 | F8: PETROL | G8: 13 | H8: 145 | I8: 8 | J8: 5 | K8: 2000 | L8: PHC | M8: HUAWEI | N8: SUUNDAY OGUNNIAKE | O8: 8035263691 | Q8: MITS.L200 PICK/UP
B9: 2018-05-04 | C9: LND 565 XM | D9: FORTE OIL | E9: 160603 | F9: PETROL | G9: 20 | H9: 145 | I9: 7 | J9: 13 | K9: 3000 | L9: PHC | M9: HUAWEI | N9: SUUNDAY OGUNNIAKE | O9: 8035263691 | P9: KINDLY DEDUCT N1,885.00 from the driver | Q9: MITS.L200 PICK/UP
B10: 2018-05-04 | C10: KRD 539 XF | D10: NGOZI PET | E10: 276123 | F10: PETROL | G10: 34 | H10: 145 | I10: 40 | J10: 6 | K10: 5000 | L10: UMUAHIA | M10: HUAWEI | N10: SANNI WILLIAMS | O10: 8166130748 | Q10: MITS.L200 PICK/UP
B11: 2018-06-04 | C11: LND 565 XM | D11: MBT PETROL | E11: 160694 | F11: PETROL | G11: 28 | H11: 145 | I11: 12 | J11: 16 | K11: 4000 | L11: PHC | M11: HUAWEI | N11: SUUNDAY OGUNNIAKE | O11: 8035263691 | P11: KINDLY DEDUCT N2,320.00 from the driver | Q11: MITS.L200 PICK/UP
B12: 2018-06-04 | C12: AAA 258 XQ | D12: TOTAL | E12: 162432 | F12: PETROL | G12: 28 | H12: 145 | I12: NOT CAPTURED | J12: 0 | K12: 4000 | L12: PHC | M12: HUAWEI | N12: CHRISTIAN IROEGBULAM | O12: 7064593147 | P12: Support Ticket Opened [#917] | Q12: MITS.L200 PICK/UP | R12: Support Ticket Opened [#917]
J13: TOTAL | K13: 24000
E35: IMO-STATE

Sheet 08-04
H4: HUAWEI FUEL RETIREMENT FOR 08-04-2018 BY IKECHUKWU ROBERT E.
B6: Date | C6: Vehicle Number | D6: Filling Station | E6: Mileage | F6: Type | G6: Quantity | H6: Amount per Litre | I6: TRACKING REPORT LITRE | J6: Variance | K6: RATE | L6: PURCHASE POINT | M6: CONTRACT | N6: NAME | O6: PHONE NO | P6: COMMENT | Q6: VEHICLE MAKE
B7: 2018-06-04 | C7: KRD 539 XF | D7: NGOZI PET | E7: 276506 | F7: PETROL | G7: 34 | H7: 145 | I7: 28 | J7: 6 | K7: 5000 | L7: UMUAHIA | M7: HUAWEI | N7: SANNI WILLIAMS | O7: 8166130748 | Q7: MITS.L200 PICK/UP
B8: 2018-07-04 | C8: AAA 258 XQ | D8: PICO | E8: 162785 | F8: PETROL | G8: 28 | H8: 145 | I8: 14 | J8: 14 | K8: 4000 | L8: OWERRI | M8: HUAWEI | N8: CHRISTIAN IROEGBULAM | O8: 7064593147 | P8: Support Ticket Opened [#919] | Q8: MITS.L200 PICK/UP
B9: 2018-07-04 | C9: KRD 539 XF | D9: FORTE OIL | E9: 276721 | F9: PETROL | G9: 28 | H9: 145 | I9: 28.5 | J9: 5.5 | K9: 5000 | L9: UMUAHIA | M9: HUAWEI | N9: SANNI WILLIAMS | O9: 8166130748 | Q9: MITS.L200 PICK/UP
B10: 2018-08-04 | C10: LND 565 XM | D10: MBT PETROL | E10: 160812 | F10: PETROL | G10: 34 | H10: 145 | I10: NOT CAPTURED | J10: 0 | K10: 5000 | L10: OWERRI | M10: HUAWEI | N10: SUUNDAY OGUNNIAKE | O10: 8035263691 | P10: Support Ticket Opened [#918] | Q10: MITS.L200 PICK/UP
B11: 2018-08-04 | C11: AAA 258 XQ | D11: PICO | E11: 162880 | F11: PETROL | G11: 14 | H11: 145 | I11: 10 | J11: 4 | K11: 2000 | L11: OWERRI | M11: HUAWEI | N11: CHRISTIAN IROEGBULAM | O11: 7064593147 | Q11: MITS.L200 PICK/UP
B12: 2018-08-04 | C12: AAA 258 XQ | D12: COCEAN | E12: 162896 | F12: PETROL | G12: 14 | H12: 145 | I12: 9 | J12: 5 | K12: 2000 | L12: OWERRI | M12: HUAWEI | N12: CHRISTIAN IROEGBULAM | O12: 7064593148 | Q12: MITS.L200 PICK/UP
B13: 2018-08-04 | C13: KRD 539 XF | D13: FORTE OIL | E13: 276931 | F13: PETROL | G13: 34 | H13: 145 | I13: 28.5 | J13: 5.5 | K13: 5000 | L13: UMUAHIA | M13: HUAWEI | N13: SANNI WILLIAMS | O13: 8166130748 | Q13: MITS.L200 PICK/UP
J16: TOTAL | K16: 28000

Sheet 16-04-2018
H6: HUAWEI FUEL RETIREMENT FOR 16-04-2018 BY IKECHUKWU ROBERT E.
B8: Date | C8: Vehicle Number | D8: Filling Station | E8: Mileage | F8: Type | G8: Quantity | H8: Amount per Litre | I8: TRACKING REPORT LITRE | J8: Variance | K8: RATE | L8: PURCHASE POINT | M8: CONTRACT | N8: NAME | O8: PHONE NO | P8: COMMENT | Q8: VEHICLE MAKE
B9: 16/4/2018 | C9: KRD 539 XF | D9: FORTE OIL | E9: 277891 | F9: PETROL | G9: 7 | H9: 145 | I9: 9 | J9: 2 | K9: 1000 | L9: UMUAHIA | M9: HUAWEI | N9: SANNI WILLIAMS | O9: 8166130748 | Q9: MITS.L200 PICK/UP
B10: 16/4/2018 | C10: KRD 539 XF | D10: NGOZI PET | E10: 277921 | F10: PETROL | G10: 28 | H10: 145 | I10: 27 | J10: 1 | K10: 4000 | L10: UMUAHIA | M10: HUAWEI | N10: SANNI WILLIAMS | O10: 8166130748 | Q10: MITS.L200 PICK/UP
J12: TOTAL | K12: 5000

Sheet 23-04-2018
I5: HUAWEI FUEL RETIREMENT FOR 25-04-2018 BY IKECHUKWU ROBERT E.
C7: Date | D7: Vehicle Number | E7: Filling Station | F7: Mileage | G7: Type | H7: Quantity | I7: Amount per Litre | J7: TRACKING REPORT LITRE | K7: Variance | L7: RATE | M7: PURCHASE POINT | N7: CONTRACT | O7: NAME | P7: PHONE NO | Q7: COMMENT | R7: VEHICLE MAKE
C8: 23/4/2018 | D8: AAA 258 XQ | E8: PICO | F8: 164306 | G8: PETROL | H8: 21 | I8: 145 | J8: 20 | K8: 1 | L8: 3000 | M8: OWERRI | N8: HUAWEI | O8: CHRISTIAN IROEGBULAM | P8: 7064593147 | R8: MITS.L200 PICK/UP
C9: 24/4/2018 | D9: AAA 258 XQ | E9: ANSLEM PET | F9: 164404 | G9: PETROL | H9: 21 | I9: 145 | J9: 19 | K9: 2 | L9: 3000 | M9: OWERRI | N9: HUAWEI | O9: CHRISTIAN IROEGBULAM | P9: 7064593148 | R9: MITS.L200 PICK/UP
C10: 25/4/2019 | D10: AAA 258 XQ | E10: PICO | F10: 164668 | G10: PETROL | H10: 34 | I10: 145 | J10: 27 | K10: 7 | L10: 5000 | M10: OWERRI | N10: HUAWEI | O10: CHRISTIAN IROEGBULAM | P10: 7064593149 | R10: MITS.L200 PICK/UP
L11: 11000

Sheet 25-04-2018
I4: HUAWEI FUEL RETIREMENT FOR 25-04-2018 BY IKECHUKWU ROBERT E.
C6: Date | D6: Vehicle Number | E6: Filling Station | F6: Mileage | G6: Type | H6: Quantity | I6: Amount per Litre | J6: TRACKING REPORT LITRE | K6: Variance | L6: RATE | M6: PURCHASE POINT | N6: CONTRACT | O6: NAME | P6: PHONE NO | Q6: COMMENT | R6: VEHICLE MAKE
C7: 25/4/2019 | D7: AAA 258 XQ | E7: PICO | F7: 164668 | G7: PETROL | H7: 34 | I7: 145 | J7: 27 | K7: 7 | L7: 5000 | M7: OWERRI | N7: HUAWEI | O7: CHRISTIAN IROEGBULAM | P7: 7064593149 | R7: MITS.L200 PICK/UP
L8: 5000

Sheet 26-04-2018
H4: HUAWEI FUEL RETIREMENT FOR 26-04-2018 BY IKECHUKWU ROBERT E.
B6: Date | C6: Vehicle Number | D6: Filling Station | E6: Mileage | F6: Type | G6: Quantity | H6: Amount per Litre | I6: TRACKING REPORT LITRE | J6: Variance | K6: RATE | L6: PURCHASE POINT | M6: CONTRACT | N6: NAME | O6: PHONE NO | P6: COMMENT | Q6: VEHICLE MAKE
B7: 26/4/2019 | C7: AAA 258 XQ | D7: EBERE PET | E7: 164899 | F7: PETROL | G7: 34 | H7: 145 | I7: 21 | J7: 13 | K7: 5000 | L7: OWERRI | M7: HUAWEI | N7: CHRISTIAN IROEGBULAM | O7: 7064593149 | P7: Kindly deduct N1,885.00 | Q7: MITS.L200 PICK/UP
K8: 5000

Sheet 30-04-2018
H4: HUAWEI FUEL RETIREMENT FOR 30-04-2018 BY IKECHUKWU ROBERT E.
B6: Date | C6: Vehicle Number | D6: Filling Station | E6: Mileage | F6: Type | G6: Quantity | H6: Amount per Litre | I6: TRACKING REPORT LITRE | J6: Variance | K6: RATE | L6: PURCHASE POINT | M6: CONTRACT | N6: NAME | O6: PHONE NO | P6: COMMENT | Q6: VEHICLE MAKE
B7: 28/4/2019 | C7: AAA 258 XQ | D7: EBERE PET | E7: 165134 | F7: PETROL | G7: 28 | H7: 145 | I7: 27 | J7: 1 | K7: 4000 | L7: OWERRI | M7: HUAWEI | N7: CHRISTIAN IROEGBULAM | O7: 7064593149 | Q7: MITS.L200 PICK/UP
B8: 29/4/2020 | C8: AAA 258 XQ | D8: CHI-PET | E8: 165246 | F8: PETROL | G8: 7 | H8: 145 | I8: 8.5 | J8: 1.5 | K8: 1000 | L8: OWERRI | M8: HUAWEI | N8: CHRISTIAN IROEGBULAM | O8: 7064593150 | Q8: MITS.L200 PICK/UP
B9: 30/4/2021 | C9: AAA 258 XQ | D9: ANSELEM PET | E9: 165410 | F9: PETROL | G9: 34 | H9: 145 | I9: 20.5 | J9: 13 | K9: 5000 | L9: OWERRI | M9: HUAWEI | N9: CHRISTIAN IROEGBULAM | O9: 7064593151 | P9: Kindly deduct N1,885.00 from the driver. | Q9: MITS.L200 PICK/UP
K10: 10000

Sheet 07-05-2018
I5: HUAWEI FUEL RETIREMENT FOR 30-04-2018 BY IKECHUKWU ROBERT E.
C7: Date | D7: Vehicle Number | E7: Filling Station | F7: Mileage | G7: Type | H7: Quantity | I7: Amount per Litre | J7: TRACKING REPORT LITRE | K7: Variance | L7: RATE | M7: PURCHASE POINT | N7: CONTRACT | O7: NAME | P7: PHONE NO | Q7: COMMENT | R7: VEHICLE MAKE
C8: 2018-03-05 | D8: KRD 539 XF | E8: NGOZI PET | F8: 280001 | G8: PETROL | H8: 34 | I8: 145 | J8: 20 | K8: 13 | L8: 5000 | M8: UMUAHIA | N8: HUAWEI | O8: SANNI WILLIAMS | P8: 8166130748 | R8: MITS.L200 PICK/UP
C9: 2018-04-05 | D9: AAA 188 XL | E9: ONWA PET | F9: 235138 | G9: PETROL | H9: 28 | I9: 145 | J9: 9 | K9: 19 | L9: 4000 | M9: OWERRI | N9: HUAWEI | O9: CHRISTIAN IROEGBULAM | P9: 7064593150 | Q9: Kindly deduct N2,755. from driver | R9: MITS.L200 PICK/UP
L10: 9000

Sheet 08-05-2018
I6: HUAWEI FUEL RETIREMENT FOR 08-05-2018 BY IKECHUKWU ROBERT E.
C8: Date | D8: Vehicle Number | E8: Filling Station | F8: Mileage | G8: Type | H8: Quantity | I8: Amount per Litre | J8: TRACKING REPORT LITRE | K8: Variance | L8: RATE | M8: PURCHASE POINT | N8: CONTRACT | O8: NAME | P8: PHONE NO | Q8: COMMENT | R8: VEHICLE MAKE
C9: 2018-08-05 | D9: AAA 188 XL | E9: ONWA PET | F9: 235459 | G9: PETROL | H9: 34 | I9: 145 | J9: 17 | K9: 17 | L9: 5000 | M9: OWERRI | N9: HUAWEI | O9: CHRISTIAN IROEGBULAM | P9: 7064593150 | Q9: Kindly deduct N2,465. from driver | R9: MITS.L200 PICK/UP
L10: 5000

Sheet 09-05-2018
H6: HUAWEI FUEL RETIREMENT FOR 09-05-2018 BY IKECHUKWU ROBERT E.
B8: Date | C8: Vehicle Number | D8: Filling Station | E8: Mileage | F8: Type | G8: Quantity | H8: Amount per Litre | I8: TRACKING REPORT LITRE | J8: Variance | K8: RATE | L8: PURCHASE POINT | M8: CONTRACT | N8: NAME | O8: PHONE NO | P8: COMMENT | Q8: VEHICLE MAKE
B9: 2018-08-05 | C9: AAA 258 XQ | D9: PICO | E9: 166183 | F9: PETROL | G9: 28 | H9: 145 | I9: 21 | J9: 7 | K9: 4000 | L9: OWERRI | M9: HUAWEI | N9: CHRISTIAN IROEGBULAM | O9: 7064593150 | Q9: MITS.L200 PICK/UP
K10: 4000

Sheet 10-05-2018
I5: HUAWEI FUEL RETIREMENT FOR 10-05-2018 BY IKECHUKWU ROBERT E.
C7: Date | D7: Vehicle Number | E7: Filling Station | F7: Mileage | G7: Type | H7: Quantity | I7: Amount per Litre | J7: TRACKING REPORT LITRE | K7: Variance | L7: RATE | M7: PURCHASE POINT | N7: CONTRACT | O7: NAME | P7: PHONE NO | Q7: COMMENT | R7: VEHICLE MAKE
C8: 2018-10-05 | D8: AAA 188 XL | E8: PREDEN PET | F8: 235731 | G8: PETROL | H8: 28 | I8: 145 | J8: 11 | K8: 17 | L8: 4000 | M8: OWERRI | N8: HUAWEI | O8: AHUNONU CHIGOZIE LEONARD | P8: 8033255989 | Q8: TRACKER DEVICE WEAK | R8: MITS.L200 PICK/UP
L9: 4000

Sheet 13-05-2018
H5: HUAWEI FUEL RETIREMENT FOR 13-05-2018 BY IKECHUKWU ROBERT E.
B7: Date | C7: Vehicle Number | D7: Filling Station | E7: Mileage | F7: Type | G7: Quantity | H7: Amount per Litre | I7: TRACKING REPORT LITRE | J7: Variance | K7: RATE | L7: PURCHASE POINT | M7: CONTRACT | N7: NAME | O7: PHONE NO | P7: COMMENT | Q7: VEHICLE MAKE
B8: 13/5/2018 | C8: AAA 188 XL | D8: TOCEAN OIL | E8: 235946 | F8: PETROL | G8: 28 | H8: 145 | I8: NOT CAPTURED | J8: 0 | K8: 4000 | L8: OWERRI | M8: HUAWEI | N8: AHUNONU CHIGOZIE LEONARD | O8: 8033255989 | P8: TRACKER DEVICE WEAK (OLD) | Q8: MITS.L200 PICK/UP
K9: 4000

Sheet 15-05-2018
H5: HUAWEI FUEL RETIREMENT FOR 15-05-2018 BY IKECHUKWU ROBERT E.
B7: Date | C7: Vehicle Number | D7: Filling Station | E7: Mileage | F7: Type | G7: Quantity | H7: Amount per Litre | I7: TRACKING REPORT LITRE | J7: Variance | K7: RATE | L7: PURCHASE POINT | M7: CONTRACT | N7: NAME | O7: PHONE NO | P7: COMMENT | Q7: VEHICLE MAKE
B8: 14/5/2018 | C8: AAA 188 XL | D8: TOCEAN OIL | E8: 236110 | F8: PETROL | G8: 28 | H8: 145 | I8: 9 | J8: 19 | K8: 4000 | L8: ORLU | M8: HUAWEI | N8: AHUNONU CHIGOZIE LEONARD | O8: 8033255989 | P8: TRACKER DEVICE WEAK (OLD) | Q8: MITS.L200 PICK/UP | R8: DRIVERS ATM CARD NOT READY, MONEY PAID INTO FME'S ACCOUNT (ISAAC IKYOKOR)
B9: 14/5/2018 | C9: KRD 539 XF | D9: NGOZI PET | E9: 281869 | F9: PETROL | G9: 34 | H9: 145 | I9: 12 | J9: 8 | K9: 5000 | L9: UMUAHIA | M9: HUAWEI | N9: SANNI WILLIAMS | O9: 8166130748 | P9: Deduct N1,160.00 From driver. | Q9: MITS.L200 PICK/UP
B10: 14/5/2018 | C10: LND 565 XM | D10: PICO | E10: 165601 | F10: PETROL | G10: 14 | H10: 145 | I10: 9 | J10: 6 | K10: 3000 | L10: OWERRI | M10: HUAWEI | N10: SUUNDAY OGUNNIAKE | O10: 8035263691 | Q10: MITS.L200 PICK/UP
B11: 15/5/2018 | C11: AAA 188 XL | D11: KORAMA | E11: 236224 | F11: PETROL | G11: 28 | H11: 145 | I11: NOT CAPTURED | J11: 0 | K11: 4000 | L11: ORLU | M11: HUAWEI | N11: AHUNONU CHIGOZIE LEONARD | O11: 8033255989 | P11: TRACKER DEVICE WEAK (OLD) | Q11: MITS.L200 PICK/UP | R11: DRIVERS ATM CARD NOT READY, MONEY PAID INTO FME'S ACCOUNT
B12: 15/5/2018 | C12: KRD 539 XF | D12: NGOZI PET | E12: 282090 | F12: PETROL | G12: 41 | H12: 145 | I12: 41 | J12: 0 | K12: 6000 | L12: UMUAHIA | M12: HUAWEI | N12: SANNI WILLIAMS | O12: 8166130748 | Q12: MITS.L200 PICK/UP
B13: 15/5/2018 | C13: LND 565 XM | D13: ANSELEM PET | E13: 165723 | F13: PETROL | G13: 14 | H13: 145 | I13: 9 | J13: 6 | K13: 2000 | L13: OWERRI | M13: HUAWEI | N13: SUUNDAY OGUNNIAKE | O13: 8035263692 | Q13: MITS.L200 PICK/UP
K17: 24000

Sheet 16-05-2018
H6: HUAWEI FUEL RETIREMENT FOR 16-05-2018 BY IKECHUKWU ROBERT E.
B8: Date | C8: Vehicle Number | D8: Filling Station | E8: Mileage | F8: Type | G8: Quantity | H8: Amount per Litre | I8: TRACKING REPORT LITRE | J8: Variance | K8: RATE | L8: PURCHASE POINT | M8: CONTRACT | N8: NAME | O8: PHONE NO | P8: COMMENT | Q8: VEHICLE MAKE
B9: 15/5/2018 | C9: AAA 258 XQ | D9: PICO | E9: 166835 | F9: PETROL | G9: 28 | H9: 145 | I9: NOT CAPTURED | J9: 0 | K9: 4000 | L9: OWERRI | M9: HUAWEI | N9: CHRISTIAN IROEGBULAM | O9: 7064593150 | Q9: MITS.L200 PICK/UP
K10: 4000

Sheet 17-05-2018

Sheet 18-05-2018
H6: HUAWEI FUEL RETIREMENT FOR 18-05-2018 BY IKECHUKWU ROBERT E.
B8: Date | C8: Vehicle Number | D8: Filling Station | E8: Mileage | F8: Type | G8: Quantity | H8: Amount per Litre | I8: TRACKING REPORT LITRE | J8: Variance | K8: RATE | L8: PURCHASE POINT | M8: CONTRACT | N8: NAME | O8: PHONE NO | P8: COMMENT | Q8: VEHICLE MAKE
B9: 16/5/2018 | C9: AAA 188 XL | D9: TOCEAN OIL | E9: 236429 | F9: PETROL | G9: 20 | H9: 145 | I9: 10 | J9: 10 | K9: 3000 | L9: OWERRI | M9: HUAWEI | N9: AHUNONU CHIGOZIE LEONARD | O9: 8033255989 | P9: TRACKER DEVICE WEAK (OLD) | Q9: MITS.L200 PICK/UP | R9: DRIVERS ATM CARD NOT READY, MONEY PAID INTO FME'S ACCOUNT (ISAAC IKYOKOR)
B10: 17/5/2019 | C10: AAA 188 XL | D10: TOCEAN OIL | E10: 236492 | F10: PETROL | G10: 14 | H10: 145 | I10: NOT CAPTURED | J10: 0 | K10: 2000 | L10: OWERRI | M10: HUAWEI | N10: AHUNONU CHIGOZIE LEONARD | O10: 8033255990 | P10: TRACKER DEVICE WEAK (OLD) | Q10: MITS.L200 PICK/UP
B11: 18/5/2020 | C11: AAA 188 XL | D11: TOCEAN OIL | E11: 236612 | F11: PETROL | G11: 20 | H11: 145 | I11: 11 | J11: 9 | K11: 3000 | L11: OWERRI | M11: HUAWEI | N11: AHUNONU CHIGOZIE LEONARD | O11: 8033255991 | P11: TRACKER DEVICE WEAK (OLD) | Q11: MITS.L200 PICK/UP | R11: DRIVERS ATM CARD NOT READY, MONEY PAID INTO FME'S ACCOUNT (ISAAC IKYOKOR)
B12: 18/5/2021 | C12: AAA 188 XL | D12: TOCEAN OIL | E12: 236696 | F12: PETROL | G12: 14 | H12: 145 | I12: 11 | J12: 3 | K12: 2000 | L12: OWERRI | M12: HUAWEI | N12: AHUNONU CHIGOZIE LEONARD | O12: 8033255992 | P12: TRACKER DEVICE WEAK (OLD) | Q12: MITS.L200 PICK/UP
K13: 10000

Sheet 21-05-2018
H5: HUAWEI FUEL RETIREMENT FOR 21-05-2018 BY IKECHUKWU ROBERT E.
B7: Date | C7: Vehicle Number | D7: Filling Station | E7: Mileage | F7: Type | G7: Quantity | H7: Amount per Litre | I7: TRACKING REPORT LITRE | J7: Variance | K7: RATE | L7: PURCHASE POINT | M7: CONTRACT | N7: NAME | O7: PHONE NO | P7: COMMENT | Q7: VEHICLE MAKE
B8: 20/5/2019 | C8: AAA 188 XL | D8: FORTE OIL | E8: 236903 | F8: PETROL | G8: 14 | H8: 145 | I8: 14.5 | J8: 0.5 | K8: 2000 | L8: PHC | M8: HUAWEI | N8: AHUNONU CHIGOZIE LEONARD | O8: 8033255990 | Q8: MITS.L200 PICK/UP
B9: 20/5/2020 | C9: AAA 188 XL | D9: EARTHWELL | E9: 237080 | F9: PETROL | G9: 14 | H9: 145 | I9: 20 | J9: 6 | K9: 2000 | L9: OYIGBO | M9: HUAWEI | N9: AHUNONU CHIGOZIE LEONARD | O9: 8033255991 | Q9: MITS.L200 PICK/UP
B10: 20/5/2021 | C10: AAA 188 XL | D10: FORTE OIL | E10: 237088 | F10: PETROL | G10: 14 | H10: 145 | I10: 19 | J10: 5 | K10: 2000 | L10: OYIGBO | M10: HUAWEI | N10: AHUNONU CHIGOZIE LEONARD | O10: 8033255992 | Q10: MITS.L200 PICK/UP
K11: 6000

Sheet 22-05-2018
H6: HUAWEI FUEL RETIREMENT FOR 22-05-2018 BY IKECHUKWU ROBERT E.
B8: Date | C8: Vehicle Number | D8: Filling Station | E8: Mileage | F8: Type | G8: Quantity | H8: Amount per Litre | I8: TRACKING REPORT LITRE | J8: Variance | K8: RATE | L8: PURCHASE POINT | M8: CONTRACT | N8: NAME | O8: PHONE NO | P8: COMMENT | Q8: VEHICLE MAKE
B9: 21/5/2019 | C9: AAA 188 XL | D9: FORTE OIL | E9: 237259 | F9: PETROL | G9: 28 | H9: 145 | I9: NOT CAPTURED | J9: 28 | K9: 4000 | L9: ORLU | M9: HUAWEI | N9: AHUNONU CHIGOZIE LEONARD | O9: 8033255990 | P9: NEW DEVICE UPDATING | Q9: MITS.L200 PICK/UP
B10: 22/5/2020 | C10: LND 565 XM | D10: ANSELEM PET | E10: 166890 | F10: PETROL | G10: 28 | H10: 145 | I10: 10 | J10: 18 | K10: 4000 | L10: OWERRI | M10: HUAWEI | N10: SUUNDAY OGUNNIAKE | O10: 8035263692 | Q10: MITS.L200 PICK/UP
B11: 22/5/2018 | C11: AAA 188 XL | D11: TOCEAN OIL | E11: 237559 | F11: PETROL | G11: 28 | H11: 145 | I11: 25 | J11: 3 | K11: 4000 | L11: ORLU | M11: HUAWEI | N11: AHUNONU CHIGOZIE LEONARD | O11: 8033255990 | Q11: MITS.L200 PICK/UP
K12: 12000

Sheet 24-05-2018
H5: HUAWEI FUEL RETIREMENT FOR 24-05-2018 BY IKECHUKWU ROBERT E.
B7: Date | C7: Vehicle Number | D7: Filling Station | E7: Mileage | F7: Type | G7: Quantity | H7: Amount per Litre | I7: TRACKING REPORT LITRE | J7: Variance | K7: RATE | L7: PURCHASE POINT | M7: CONTRACT | N7: NAME | O7: PHONE NO | P7: COMMENT | Q7: VEHICLE MAKE
B8: 23/5/2019 | C8: AAA 188 XL | D8: FORTE OIL | E8: 237654 | F8: PETROL | G8: 28 | H8: 145 | I8: 21 | J8: 7 | K8: 4000 | L8: ORLU | M8: HUAWEI | N8: AHUNONU CHIGOZIE LEONARD | O8: 8033255990 | Q8: MITS.L200 PICK/UP
B9: 24/5/2020 | C9: AAA 188 XL | D9: FORTE OIL | E9: 237869 | F9: PETROL | G9: 28 | H9: 145 | I9: 30 | J9: 2 | K9: 4000 | L9: ORLU | M9: HUAWEI | N9: AHUNONU CHIGOZIE LEONARD | O9: 8033255991 | Q9: MITS.L200 PICK/UP
K11: 8000

Sheet 27-05-2018
H5: HUAWEI FUEL RETIREMENT FOR 27-05-2018 BY IKECHUKWU ROBERT E.
B7: Date | C7: Vehicle Number | D7: Filling Station | E7: Mileage | F7: Type | G7: Quantity | H7: Amount per Litre | I7: TRACKING REPORT LITRE | J7: Variance | K7: RATE | L7: PURCHASE POINT | M7: CONTRACT | N7: NAME | O7: PHONE NO | P7: COMMENT | Q7: VEHICLE MAKE
B8: 26/5/2019 | C8: AAA 188 XL | D8: PEVAEN | E8: 237923 | F8: PETROL | G8: 28 | H8: 145 | I8: 17 | J8: 11 | K8: 4000 | L8: ORLU | M8: HUAWEI | N8: AHUNONU CHIGOZIE LEONARD | O8: 8033255990 | P8: Deduct N1,595.00 From driver. | Q8: MITS.L200 PICK/UP
K10: 4000

Sheet 30-05-2018
H5: HUAWEI FUEL RETIREMENT FOR 30-05-2018 BY IKECHUKWU ROBERT E.
B7: Date | C7: Vehicle Number | D7: Filling Station | E7: Mileage | F7: Type | G7: Quantity | H7: Amount per Litre | I7: TRACKING REPORT LITRE | J7: Variance | K7: RATE | L7: PURCHASE POINT | M7: CONTRACT | N7: NAME | O7: PHONE NO | P7: COMMENT | Q7: VEHICLE MAKE
B8: 28/5/2019 | C8: AAA 188 XL | D8: PEVAEN | E8: 237978 | F8: PETROL | G8: 28 | H8: 145 | I8: 24.5 | J8: 3.5 | K8: 4000 | L8: ORLU | M8: HUAWEI | N8: AHUNONU CHIGOZIE LEONARD | O8: 8033255990 | Q8: MITS.L200 PICK/UP
B9: 29/5/2019 | C9: LND 565 XM | D9: FORTE OIL | E9: 168011 | F9: PETROL | G9: 28 | H9: 145 | I9: NOT CAPTURED | J9: 28 | K9: 4000 | L9: PHC | M9: HUAWEI | N9: SUUNDAY OGUNNIAKE | O9: 8035263691 | Q9: MITS.L200 PICK/UP
B10: 30/5/2019 | C10: AAA 188 XL | D10: PEVAEN | E10: 238111 | F10: PETROL | G10: 28 | H10: 145 | I10: 16 | J10: 12 | K10: 4000 | L10: ORLU | M10: HUAWEI | N10: AHUNONU CHIGOZIE LEONARD | O10: 8033255990 | P10: Deduct N1,740.00 From driver. | Q10: MITS.L200 PICK/UP
B11: 30/5/2019 | C11: LND 565 XM | D11: FORTE OIL | E11: 168289 | F11: PETROL | G11: 28 | H11: 145 | I11: NOT CAPTURED | J11: 28 | K11: 4000 | L11: PHC | M11: HUAWEI | N11: SUUNDAY OGUNNIAKE | O11: 8035263691 | Q11: MITS.L200 PICK/UP
K12: 16000

Sheet 01-06-2018
I6: HUAWEI FUEL RETIREMENT FOR 01-06-2018 BY IKECHUKWU ROBERT E.
C8: Date | D8: Vehicle Number | E8: Filling Station | F8: Mileage | G8: Type | H8: Quantity | I8: Amount per Litre | J8: TRACKING REPORT LITRE | K8: Variance | L8: RATE | M8: PURCHASE POINT | N8: CONTRACT | O8: NAME | P8: PHONE NO | Q8: COMMENT | R8: VEHICLE MAKE
C9: 31/5/2018 | D9: AAA 188 XL | E9: PEVAEN | F9: 238298 | G9: PETROL | H9: 28 | I9: 145 | J9: 24 | K9: 4 | L9: 4000 | M9: ORLU | N9: HUAWEI | O9: AHUNONU CHIGOZIE LEONARD | P9: 8033255990 | R9: MITS.L200 PICK/UP
C10: 31/5/2018 | D10: LND 565 XM | E10: FORTE OIL | F10: 168409 | G10: PETROL | H10: 28 | I10: 145 | J10: NOT CAPTURED | K10: 0 | L10: 4000 | M10: PHC | N10: HUAWEI | O10: SUUNDAY OGUNNIAKE | P10: 8035263691 | R10: MITS.L200 PICK/UP
C11: 31/5/2018 | D11: AAA 258 XQ | E11: PICO | F11: 186956 | G11: PETROL | H11: 28 | I11: 145 | J11: NOT CAPTURED | K11: 0 | L11: 4000 | M11: OWERRI | N11: HUAWEI | O11: CHRISTIAN IROEGBULAM | P11: 7064593150 | R11: MITS.L200 PICK/UP
C12: 2018-01-06 | D12: AAA 188 XL | E12: PEVAEN | F12: 238459 | G12: PETROL | H12: 28 | I12: 145 | J12: 24 | K12: 4 | L12: 4000 | M12: ORLU | N12: HUAWEI | O12: AHUNONU CHIGOZIE LEONARD | P12: 8033255990 | R12: MITS.L200 PICK/UP
L13: 16000

Sheet 04-06-2018
H5: HUAWEI FUEL RETIREMENT FOR 04-06-2018 BY IKECHUKWU ROBERT E.
B7: Date | C7: Vehicle Number | D7: Filling Station | E7: Mileage | F7: Type | G7: Quantity | H7: Amount per Litre | I7: TRACKING REPORT LITRE | J7: Variance | K7: RATE | L7: PURCHASE POINT | M7: CONTRACT | N7: NAME | O7: PHONE NO | P7: COMMENT | Q7: VEHICLE MAKE
B8: 2018-02-06 | C8: AAA 188 XL | D8: C.C. CHUKWU | E8: 238599 | F8: PETROL | G8: 28 | H8: 145 | I8: 22.5 | J8: 5.5 | K8: 4000 | L8: ORLU | M8: HUAWEI | N8: AHUNONU CHIGOZIE LEONARD | O8: 8033255990 | Q8: MITS.L200 PICK/UP
B9: 2018-04-06 | C9: AAA 188 XL | D9: PEVAEN | E9: 238744 | F9: PETROL | G9: 28 | H9: 145 | I9: 24 | J9: 4 | K9: 4000 | L9: ORLU | M9: HUAWEI | N9: AHUNONU CHIGOZIE LEONARD | O9: 8033255990 | Q9: MITS.L200 PICK/UP
B10: 2018-04-06 | C10: LND 565 XM | D10: FORTE OIL | E10: 169121 | F10: PETROL | G10: 28 | H10: 145 | I10: 12 | J10: 16 | K10: 4000 | L10: PHC | M10: HUAWEI | N10: SUUNDAY OGUNNIAKE | O10: 8035263691 | Q10: MITS.L200 PICK/UP
K11: 12000

Sheet 05-06-2018
H3: HUAWEI FUEL RETIREMENT FOR 05-06-2018 BY IKECHUKWU ROBERT E.
B5: Date | C5: Vehicle Number | D5: Filling Station | E5: Mileage | F5: Type | G5: Quantity | H5: Amount per Litre | I5: TRACKING REPORT LITRE | J5: Variance | K5: RATE | L5: PURCHASE POINT | M5: CONTRACT | N5: NAME | O5: PHONE NO | P5: COMMENT | Q5: VEHICLE MAKE
B6: 2018-05-06 | C6: KMC 44 XA | D6: NGOZI PET | E6: 217908 | F6: PETROL | G6: 14 | H6: 145 | I6: 13.5 | J6: 0.5 | K6: 2000 | L6: UMUAHIA | M6: HUAWEI | N6: SANNI WILLIAMS | O6: 8166130748 | Q6: MITS.L200 PICK/UP
B7: 2018-05-06 | C7: KMC 44 XA | D7: FORTE OIL | E7: 218106 | F7: PETROL | G7: 20 | H7: 145 | I7: 14 | J7: 6 | K7: 3000 | L7: UMUAHIA | M7: HUAWEI | N7: SANNI WILLIAMS | O7: 8166130748 | Q7: MITS.L200 PICK/UP
B8: 2018-05-06 | C8: AAA 258 XQ | D8: ANSELEM PET | E8: 169512 | F8: PETROL | G8: 28 | H8: 145 | I8: 12 | J8: 16 | K8: 4000 | L8: OWERRI | M8: HUAWEI | N8: CHRISTIAN IROEGBULAM | O8: 7064593150 | Q8: MITS.L200 PICK/UP
K9: 9000

Sheet 06-06-2018
H4: HUAWEI FUEL RETIREMENT FOR 06-06-2018 BY IKECHUKWU ROBERT E.
B6: Date | C6: Vehicle Number | D6: Filling Station | E6: Mileage | F6: Type | G6: Quantity | H6: Amount per Litre | I6: TRACKING REPORT LITRE | J6: Variance | K6: RATE | L6: PURCHASE POINT | M6: CONTRACT | N6: NAME | O6: PHONE NO | P6: COMMENT | Q6: VEHICLE MAKE
B7: 2018-06-06 | C7: AAA 188 XL | D7: DIKE CHRISTO PET | E7: 238856 | F7: PETROL | G7: 28 | H7: 145 | I7: 16 | J7: 12 | K7: 4000 | L7: ORLU | M7: HUAWEI | N7: AHUNONU CHIGOZIE LEONARD | O7: 8033255990 | P7: Deduct N1,740.00 From driver. | Q7: MITS.L200 PICK/UP
K8: 4000

Sheet 08-06-2018
H5: HUAWEI FUEL RETIREMENT FOR 08-06-2018 BY IKECHUKWU ROBERT E.
B7: Date | C7: Vehicle Number | D7: Filling Station | E7: Mileage | F7: Type | G7: Quantity | H7: Amount per Litre | I7: TRACKING REPORT LITRE | J7: Variance | K7: RATE | L7: PURCHASE POINT | M7: CONTRACT | N7: NAME | O7: PHONE NO | P7: COMMENT | Q7: VEHICLE MAKE
B8: 2018-06-06 | C8: KMC 44 XA | D8: FORTE OIL | E8: 218136 | F8: PETROL | G8: 34 | H8: 145 | I8: 27 | J8: 7 | K8: 5000 | L8: UMUAHIA | M8: HUAWEI | N8: SANNI WILLIAMS | O8: 8166130748 | Q8: TOYOTA HILUX
B9: 2018-08-06 | C9: AAA 188 XL | D9: DIKE CHRISTO PET | E9: 239015 | F9: PETROL | G9: 34 | H9: 145 | I9: 18 | J9: 16 | K9: 5000 | L9: ORLU | M9: HUAWEI | N9: AHUNONU CHIGOZIE LEONARD | O9: 8033255990 | P9: Deduct N2,320.00 From driver. | Q9: MITS.L200 PICK/UP
K10: 10000

Sheet 11-06-2018
H5: HUAWEI FUEL RETIREMENT FOR 11-06-2018 BY IKECHUKWU ROBERT E.
B7: Date | C7: Vehicle Number | D7: Filling Station | E7: Mileage | F7: Type | G7: Quantity | H7: Amount per Litre | I7: TRACKING REPORT LITRE | J7: Variance | K7: RATE | L7: PURCHASE POINT | M7: CONTRACT | N7: NAME | O7: PHONE NO | P7: COMMENT | Q7: VEHICLE MAKE
B8: 2018-10-06 | C8: AAA 258 XQ | D8: ANSELEM PET | E8: 170362 | F8: PETROL | G8: 14 | H8: 145 | I8: 8 | J8: 6 | K8: 2000 | L8: OWERRI | M8: HUAWEI | N8: CHRISTIAN IROEGBULAM | O8: 7064593150 | Q8: MITS.L200 PICK/UP
B9: 2018-10-06 | C9: AAA 258 XQ | D9: ANSELEM PET | E9: 170488 | F9: PETROL | G9: 14 | H9: 145 | I9: 14 | J9: 0 | K9: 2000 | L9: OWERRI | M9: HUAWEI | N9: CHRISTIAN IROEGBULAM | O9: 7064593151 | Q9: MITS.L200 PICK/UP
B10: 2018-10-06 | C10: LND 565 XM | D10: FORTE OIL | E10: 169854 | F10: PETROL | G10: 28 | H10: 145 | I10: 19.5 | J10: 8.5 | K10: 4000 | L10: PHC | M10: HUAWEI | N10: SUUNDAY OGUNNIAKE | O10: 8035263691 | Q10: MITS.L200 PICK/UP
B11: 2018-11-06 | C11: AAA 188 XL | D11: DIKE CHRISTO PET | E11: 239217 | F11: PETROL | G11: 28 | H11: 145 | I11: 23 | J11: 5 | K11: 4000 | L11: ORLU | M11: HUAWEI | N11: AHUNONU CHIGOZIE LEONARD | O11: 8033255990 | Q11: MITS.L200 PICK/UP
K12: 12000

Sheet 12-06-2018
I4: HUAWEI FUEL RETIREMENT FOR 12-06-2018 BY IKECHUKWU ROBERT E.
C6: Date | D6: Vehicle Number | E6: Filling Station | F6: Mileage | G6: Type | H6: Quantity | I6: Amount per Litre | J6: TRACKING REPORT LITRE | K6: Variance | L6: RATE | M6: PURCHASE POINT | N6: CONTRACT | O6: NAME | P6: PHONE NO | Q6: COMMENT | R6: VEHICLE MAKE
C7: 2018-11-06 | D7: KMC 44 XA | E7: FORTE OIL | F7: 219176 | G7: PETROL | H7: 34 | I7: 145 | J7: 23 | K7: 11 | L7: 5000 | M7: UMUAHIA | N7: HUAWEI | O7: SANNI WILLIAMS | P7: 8166130748 | Q7: Deduct N1,595.00 From driver. | R7: TOYOTA HILUX
C8: 2018-12-06 | D8: AAA 258 XQ | E8: EBERERICH | F8: 170639 | G8: PETROL | H8: 28 | I8: 145 | J8: 12 | K8: 14 | L8: 4000 | M8: OWERRI | N8: HUAWEI | O8: CHRISTIAN IROEGBULAM | P8: 7064593151 | Q8: Deduct N2,030.00 From driver. | R8: MITS.L200 PICK/UP
C9: 2018-12-06 | D9: AAA 188 XL | E9: PREDEV | F9: 239303 | G9: PETROL | H9: 14 | I9: 145 | J9: 19 | K9: 5 | L9: 2000 | M9: ORLU | N9: HUAWEI | O9: AHUNONU CHIGOZIE LEONARD | P9: 8033255990 | R9: MITS.L200 PICK/UP
C10: 2018-12-06 | D10: AAA 188 XL | E10: PREDEV | F10: 239316 | G10: PETROL | H10: 14 | I10: 145 | J10: 13 | K10: 1 | L10: 2000 | M10: ORLU | N10: HUAWEI | O10: AHUNONU CHIGOZIE LEONARD | P10: 8033255990 | R10: MITS.L200 PICK/UP
C11: 2018-12-06 | D11: KMC 44 XA | E11: FORTE OIL | F11: 219391 | G11: PETROL | H11: 28 | I11: 145 | J11: 26 | K11: 2 | L11: 4000 | M11: UMUAHIA | N11: HUAWEI | O11: SANNI WILLIAMS | P11: 8166130748 | R11: TOYOTA HILUX
L12: 17000

Sheet 15-06-2018
H5: HUAWEI FUEL RETIREMENT FOR 15-06-2018 BY IKECHUKWU ROBERT E.
B7: Date | C7: Vehicle Number | D7: Filling Station | E7: Mileage | F7: Type | G7: Quantity | H7: Amount per Litre | I7: TRACKING REPORT LITRE | J7: Variance | K7: RATE | L7: PURCHASE POINT | M7: CONTRACT | N7: NAME | O7: PHONE NO | P7: COMMENT | Q7: VEHICLE MAKE
B8: 2018-12-06 | C8: LND 565 XM | D8: FORTE OIL | E8: 170078 | F8: PETROL | G8: 28 | H8: 145 | I8: 8 | J8: 20 | K8: 4000 | L8: PHC | M8: HUAWEI | N8: SUUNDAY OGUNNIAKE | O8: 8035263691 | P8: FAULTY TRACKER DEVICE WILL BE RECTIFIED BY CHARLES ON 17-6-2018 | Q8: MITS.L200 PICK/UP
B9: 13/6/2018 | C9: AAA 188 XL | D9: PREDEV | E9: 239377 | F9: PETROL | G9: 28 | H9: 145 | I9: 17 | J9: 11 | K9: 4000 | L9: ORLU | M9: HUAWEI | N9: AHUNONU CHIGOZIE LEONARD | O9: 8033255990 | Q9: MITS.L200 PICK/UP
B10: 14/6/2018 | C10: AAA 188 XL | D10: PREDEV | E10: 239520 | F10: PETROL | G10: 28 | H10: 145 | I10: 15 | J10: 13 | K10: 4000 | L10: ORLU | M10: HUAWEI | N10: AHUNONU CHIGOZIE LEONARD | O10: 8033255991 | Q10: MITS.L200 PICK/UP
K11: 12000

Sheet 19-06-2018
I5: HUAWEI FUEL RETIREMENT FOR 19-06-2018 BY IKECHUKWU ROBERT E.
C7: Date | D7: Vehicle Number | E7: Filling Station | F7: Mileage | G7: Type | H7: Quantity | I7: Amount per Litre | J7: TRACKING REPORT LITRE | K7: Variance | L7: RATE | M7: PURCHASE POINT | N7: CONTRACT | O7: NAME | P7: PHONE NO | Q7: COMMENT | R7: VEHICLE MAKE
C8: 16/6/2018 | D8: AAA 188 XL | E8: PREDEV | F8: 239631 | G8: PETROL | H8: 20 | I8: 145 | J8: 20 | K8: 0 | L8: 3000 | M8: ORLU | N8: HUAWEI | O8: AHUNONU CHIGOZIE LEONARD | P8: 8033255990 | R8: MITS.L200 PICK/UP
C9: 17/6/2018 | D9: AAA 188 XL | E9: PREDEV | F9: 239667 | G9: PETROL | H9: 7 | I9: 145 | J9: 10 | K9: 3 | L9: 1000 | M9: ORLU | N9: HUAWEI | O9: AHUNONU CHIGOZIE LEONARD | P9: 8033255991 | R9: MITS.L200 PICK/UP
C10: 19/6/2018 | D10: LND 565 XM | E10: FORTE OIL | F10: 170932 | G10: PETROL | H10: 28 | I10: 145 | L10: 4000 | M10: PHC | N10: HUAWEI | O10: SUUNDAY OGUNNIAKE | P10: 8035263691 | Q10: FAULTY TRACKER DEVICE WILL BE RECTIFIED BY CHARLES ON 17-6-2018 | R10: MITS.L200 PICK/UP
C11: 2018-11-06 | D11: KMC 44 XA | E11: FORTE OIL | F11: 220841 | G11: PETROL | H11: 34 | I11: 145 | J11: 40 | K11: 6 | L11: 5000 | M11: UMUAHIA | N11: HUAWEI | O11: SANNI WILLIAMS | P11: 8166130748 | R11: TOYOTA HILUX
C12: 2018-12-06 | D12: AAA 258 XQ | E12: SUNNY PET | F12: 171685 | G12: PETROL | H12: 28 | I12: 145 | L12: 4000 | M12: OWERRI | N12: HUAWEI | O12: CHRISTIAN IROEGBULAM | P12: 7064593151 | Q12: Deduct N2,030.00 From driver. | R12: MITS.L200 PICK/UP
L13: 17000

Sheet 20-06-2018
H7: HUAWEI FUEL RETIREMENT FOR 20-06-2018 BY IKECHUKWU ROBERT E.
B9: Date | C9: Vehicle Number | D9: Filling Station | E9: Mileage | F9: Type | G9: Quantity | H9: Amount per Litre | I9: TRACKING REPORT LITRE | J9: Variance | K9: RATE | L9: PURCHASE POINT | M9: CONTRACT | N9: NAME | O9: PHONE NO | P9: COMMENT | Q9: VEHICLE MAKE
B10: 19/6/2018 | C10: AAA 188 XL | D10: PREDEV | E10: 239671 | F10: PETROL | G10: 14 | H10: 145 | I10: 15 | J10: 1 | K10: 2000 | L10: ORLU | M10: HUAWEI | N10: AHUNONU CHIGOZIE LEONARD | O10: 8033255990 | Q10: MITS.L200 PICK/UP
B11: 20/6/2019 | C11: AAA 188 XL | D11: PREDEV | E11: 239672 | F11: PETROL | G11: 14 | H11: 145 | I11: 8 | J11: 6 | K11: 2000 | L11: ORLU | M11: HUAWEI | N11: AHUNONU CHIGOZIE LEONARD | O11: 8033255991 | Q11: MITS.L200 PICK/UP
B12: 20/6/2018 | C12: LND 565 XM | D12: FORTE OIL | E12: 171090 | F12: PETROL | G12: 28 | H12: 145 | I12: NOT CAPTURED | J12: 0 | K12: 4000 | L12: PHC | M12: HUAWEI | N12: SUUNDAY OGUNNIAKE | O12: 8035263691 | P12: FAULTY TRACKER DEVICE WILL BE RECTIFIED BY CHARLES ON 17-6-2018 | Q12: MITS.L200 PICK/UP
B13: 20/6/2018 | C13: KMC 44 XA | D13: NGOZI PET | E13: 221051 | F13: PETROL | G13: 34 | H13: 145 | I13: 29.5 | J13: 4.5 | K13: 5000 | L13: UMUAHIA | M13: HUAWEI | N13: SANNI WILLIAMS | O13: 8166130748 | Q13: TOYOTA HILUX
B14: 20/6/2018 | C14: AAA 258 XQ | D14: SUNNY PET | E14: 171785 | F14: PETROL | G14: 14 | H14: 145 | I14: 8 | J14: 6 | K14: 2000 | L14: OWERRI | M14: HUAWEI | N14: CHRISTIAN IROEGBULAM | O14: 7064593151 | Q14: MITS.L200 PICK/UP
B15: 20/6/2018 | C15: AAA 258 XQ | D15: SUNNY PET | E15: 171796 | F15: PETROL | G15: 14 | H15: 145 | I15: 14 | J15: 0 | K15: 2000 | L15: OWERRI | M15: HUAWEI | N15: CHRISTIAN IROEGBULAM | O15: 7064593152 | Q15: MITS.L200 PICK/UP
K16: 17000

Sheet 21-06-2018
H6: HUAWEI FUEL RETIREMENT FOR 21-06-2018 BY IKECHUKWU ROBERT E.
B8: Date | C8: Vehicle Number | D8: Filling Station | E8: Mileage | F8: Type | G8: Quantity | H8: Amount per Litre | I8: TRACKING REPORT LITRE | J8: Variance | K8: RATE | L8: PURCHASE POINT | M8: CONTRACT | N8: NAME | O8: PHONE NO | P8: COMMENT | Q8: VEHICLE MAKE
B9: 21/6/2018 | C9: AAA 188 XL | D9: PREDEV | E9: 239753 | F9: PETROL | G9: 14 | H9: 145 | I9: 3 | J9: 11 | K9: 2000 | L9: ORLU | M9: HUAWEI | N9: AHUNONU CHIGOZIE LEONARD | O9: 8033255990 | P9: Deduct N1,595.00.00 From driver. | Q9: MITS.L200 PICK/UP
B10: 21/6/2018 | C10: AAA 188 XL | D10: PREDEV | E10: 239802 | F10: PETROL | G10: 14 | H10: 145 | I10: 11 | J10: 3 | K10: 2000 | L10: ORLU | M10: HUAWEI | N10: AHUNONU CHIGOZIE LEONARD | O10: 8033255991 | Q10: MITS.L200 PICK/UP
K11: 4000

Sheet 22-06-2018
H5: HUAWEI FUEL RETIREMENT FOR 22-06-2018 BY IKECHUKWU ROBERT E.
B7: Date | C7: Vehicle Number | D7: Filling Station | E7: Mileage | F7: Type | G7: Quantity | H7: Amount per Litre | I7: TRACKING REPORT LITRE | J7: Variance | K7: RATE | L7: PURCHASE POINT | M7: CONTRACT | N7: NAME | O7: PHONE NO | P7: COMMENT | Q7: VEHICLE MAKE
B8: 21/6/2018 | C8: AAA 258 XQ | D8: SUNNY PET | E8: 171864 | F8: PETROL | G8: 14 | H8: 145 | I8: 11 | J8: 3 | K8: 2000 | L8: OWERRI | M8: HUAWEI | N8: CHRISTIAN IROEGBULAM | O8: 7064593151 | Q8: MITS.L200 PICK/UP
B9: 22/6/2018 | C9: AAA 188 XL | D9: PREDEV | E9: 239809 | F9: PETROL | G9: 28 | H9: 145 | I9: 21.5 | J9: 3 | K9: 4000 | L9: ORLU | M9: HUAWEI | N9: AHUNONU CHIGOZIE LEONARD | O9: 8033255991 | Q9: MITS.L200 PICK/UP
K11: 6000

Sheet 26-06-2018
H6: HUAWEI FUEL RETIREMENT FOR 26-06-2018 BY IKECHUKWU ROBERT E.
B8: Date | C8: Vehicle Number | D8: Filling Station | E8: Mileage | F8: Type | G8: Quantity | H8: Amount per Litre | I8: TRACKING REPORT LITRE | J8: Variance | K8: RATE | L8: PURCHASE POINT | M8: CONTRACT | N8: NAME | O8: PHONE NO | P8: COMMENT | Q8: VEHICLE MAKE
B9: 25/6/2018 | C9: AAA 188 XL | D9: PREDEV | E9: 239982 | F9: PETROL | G9: 14 | H9: 145 | I9: 13 | J9: 1 | K9: 2000 | L9: ORLU | M9: HUAWEI | N9: AHUNONU CHIGOZIE LEONARD | O9: 8033255991 | Q9: MITS.L200 PICK/UP
B10: 26/6/2018 | C10: AAA 188 XL | D10: PREDEV | E10: 240063 | F10: PETROL | G10: 14 | H10: 145 | I10: 9 | J10: 5 | K10: 2000 | L10: ORLU | M10: HUAWEI | N10: AHUNONU CHIGOZIE LEONARD | O10: 8033255992 | Q10: MITS.L200 PICK/UP
K11: 4000

Sheet 27-06-2018
I5: HUAWEI FUEL RETIREMENT FOR 27-06-2018 BY IKECHUKWU ROBERT E.
C7: Date | D7: Vehicle Number | E7: Filling Station | F7: Mileage | G7: Type | H7: Quantity | I7: Amount per Litre | J7: TRACKING REPORT LITRE | K7: Variance | L7: RATE | M7: PURCHASE POINT | N7: CONTRACT | O7: NAME | P7: PHONE NO | Q7: COMMENT | R7: VEHICLE MAKE
C8: 26/6/2018 | D8: AAA 188 XL | E8: PREDEV | F8: 240108 | G8: PETROL | H8: 14 | I8: 145 | J8: 11 | K8: 3 | L8: 2000 | M8: ORLU | N8: HUAWEI | O8: AHUNONU CHIGOZIE LEONARD | P8: 8033255991 | R8: MITS.L200 PICK/UP
C9: 27/6/2018 | D9: AAA 188 XL | E9: PREDEV | F9: 240147 | G9: PETROL | H9: 14 | I9: 145 | J9: 16 | K9: 2 | L9: 2000 | M9: ORLU | N9: HUAWEI | O9: AHUNONU CHIGOZIE LEONARD | P9: 8033255992 | R9: MITS.L200 PICK/UP
L10: 4000

Sheet 29-06-2018
H5: HUAWEI FUEL RETIREMENT FOR 29-06-2018 BY IKECHUKWU ROBERT E.
B7: Date | C7: Vehicle Number | D7: Filling Station | E7: Mileage | F7: Type | G7: Quantity | H7: Amount per Litre | I7: TRACKING REPORT LITRE | J7: Variance | K7: RATE | L7: PURCHASE POINT | M7: CONTRACT | N7: NAME | O7: PHONE NO | P7: COMMENT | Q7: VEHICLE MAKE
B8: 28/6/2018 | C8: AAA 188 XL | D8: G-TORIA | E8: 240296 | F8: PETROL | G8: 28 | H8: 145 | I8: 16 | J8: 12 | K8: 4000 | L8: ORLU | M8: HUAWEI | N8: AHUNONU CHIGOZIE LEONARD | O8: 8033255991 | Q8: MITS.L200 PICK/UP
B9: 29/6/2018 | C9: AAA 188 XL | D9: PREDEV | E9: 240403 | F9: PETROL | G9: 34 | H9: 145 | I9: 10 | J9: 24 | K9: 5000 | L9: ORLU | M9: HUAWEI | N9: AHUNONU CHIGOZIE LEONARD | O9: 8033255992 | P9: Deduct N3,480.00.00 From driver. | Q9: MITS.L200 PICK/UP
K10: 9000

Sheet 02-07-2018
H5: HUAWEI FUEL RETIREMENT FOR 02-07-2018 BY IKECHUKWU ROBERT E.
B7: Date | C7: Vehicle Number | D7: Filling Station | E7: Mileage | F7: Type | G7: Quantity | H7: Amount per Litre | I7: TRACKING REPORT LITRE | J7: Variance | K7: RATE | L7: PURCHASE POINT | M7: CONTRACT | N7: NAME | O7: PHONE NO | P7: COMMENT | Q7: VEHICLE MAKE
B8: 2018-02-07 | C8: AAA 188 XL | D8: RADIJOE | E8: 240516 | F8: PETROL | G8: 28 | H8: 145 | I8: 16 | J8: 11 | K8: 4000 | L8: ORLU | M8: HUAWEI | N8: AHUNONU CHIGOZIE LEONARD | O8: 8033255991 | Q8: MITS.L200 PICK/UP
K10: 4000

Sheet 03-07-2018
H6: HUAWEI FUEL RETIREMENT FOR 03-07-2018 BY IKECHUKWU ROBERT E.
B8: Date | C8: Vehicle Number | D8: Filling Station | E8: Mileage | F8: Type | G8: Quantity | H8: Amount per Litre | I8: TRACKING REPORT LITRE | J8: Variance | K8: RATE | L8: PURCHASE POINT | M8: CONTRACT | N8: NAME | O8: PHONE NO | P8: COMMENT | Q8: VEHICLE MAKE
B9: 2018-02-07 | C9: LND 565 XM | D9: FORTE OIL | E9: 172536 | F9: PETROL | G9: 20 | H9: 145 | I9: 0 | J9: 20 | K9: 3000 | L9: PHC | M9: HUAWEI | N9: SUUNDAY OGUNNIAKE | O9: 8035263691 | P9: NOT CAPTURED | Q9: MITS.L200 PICK/UP
B10: 2018-03-07 | C10: LND 565 XM | D10: FORTE OIL | E10: 172746 | F10: PETROL | G10: 28 | H10: 145 | I10: 0 | J10: 28 | K10: 4000 | L10: PHC | M10: HUAWEI | N10: SUUNDAY OGUNNIAKE | O10: 8035263691 | P10: NOT CAPTURED | Q10: MITS.L200 PICK/UP
B11: 2018-03-07 | C11: AAA 188 XL | D11: RADIJOE | E11: 240630 | F11: PETROL | G11: 34 | H11: 145 | I11: 16 | J11: 11 | K11: 5000 | L11: ORLU | M11: HUAWEI | N11: AHUNONU CHIGOZIE LEONARD | O11: 8033255991 | Q11: MITS.L200 PICK/UP
K13: 12000

Sheet 05-07-2018
H5: HUAWEI FUEL RETIREMENT FOR 05-07-2018 BY IKECHUKWU ROBERT E.
B7: Date | C7: Vehicle Number | D7: Filling Station | E7: Mileage | F7: Type | G7: Quantity | H7: Amount per Litre | I7: TRACKING REPORT LITRE | J7: Variance | K7: RATE | L7: PURCHASE POINT | M7: CONTRACT | N7: NAME | O7: PHONE NO | P7: COMMENT | Q7: VEHICLE MAKE
B8: 2018-04-07 | C8: KMC 44 XA | D8: NGOZI PET | E8: 222682 | F8: PETROL | G8: 34 | H8: 145 | I8: 28 | J8: 6 | K8: 5000 | L8: PHC | M8: HUAWEI | N8: SUUNDAY OGUNNIAKE | O8: 8035263691 | Q8: MITS.L200 PICK/UP
B9: 2018-05-07 | C9: AAA 188 XL | D9: CHIEMEZIE OIL & GAS | E9: 240718 | F9: PETROL | G9: 20 | H9: 145 | I9: 18 | J9: 2 | K9: 3000 | L9: ORLU | M9: HUAWEI | N9: AHUNONU CHIGOZIE LEONARD | O9: 8033255991 | Q9: MITS.L200 PICK/UP
K11: 8000

Sheet 06-07-2018
H4: HUAWEI FUEL RETIREMENT FOR 06-07-2018 BY IKECHUKWU ROBERT E.
B6: Date | C6: Vehicle Number | D6: Filling Station | E6: Mileage | F6: Type | G6: Quantity | H6: Amount per Litre | I6: TRACKING REPORT LITRE | J6: Variance | K6: RATE | L6: PURCHASE POINT | M6: CONTRACT | N6: NAME | O6: PHONE NO | P6: COMMENT | Q6: VEHICLE MAKE
B7: 2018-06-07 | C7: AAA 188 XL | D7: CHIEMEZIE OIL & GAS | E7: 240857 | F7: PETROL | G7: 34 | H7: 145 | I7: 18 | J7: 16 | K7: 5000 | L7: ORLU | M7: HUAWEI | N7: AHUNONU CHIGOZIE LEONARD | O7: 8033255991 | P7: Kindly deduct N2,320.00 From the driver. | Q7: MITS.L200 PICK/UP
K9: 5000

Sheet 09-07-2018
H5: HUAWEI FUEL RETIREMENT FOR 09-07-2018 BY IKECHUKWU ROBERT E.
B7: Date | C7: Vehicle Number | D7: Filling Station | E7: Mileage | F7: Type | G7: Quantity | H7: Amount per Litre | I7: TRACKING REPORT LITRE | J7: Variance | K7: RATE | L7: PURCHASE POINT | M7: CONTRACT | N7: NAME | O7: PHONE NO | P7: COMMENT | Q7: VEHICLE MAKE
B8: 2018-08-07 | C8: AAA 188 XL | D8: CHIEMEZIE OIL & GAS | E8: 240963 | F8: PETROL | G8: 10 | H8: 145 | I8: 9 | J8: 1 | K8: 1500 | L8: ORLU | M8: HUAWEI | N8: AHUNONU CHIGOZIE LEONARD | O8: 8033255991 | Q8: MITS.L200 PICK/UP
B9: 2018-08-07 | C9: AAA 188 XL | D9: RADIJOE | E9: 241083 | F9: PETROL | G9: 14 | H9: 145 | I9: 17 | J9: 3 | K9: 2000 | L9: ORLU | M9: HUAWEI | N9: AHUNONU CHIGOZIE LEONARD | O9: 8033255992 | Q9: MITS.L200 PICK/UP
B10: 2018-09-07 | C10: AAA 188 XL | D10: RADIJOE | E10: 2 41236 | F10: PETROL | G10: 28 | H10: 145 | I10: 11 | J10: 16 | K10: 4000 | L10: ORLU | M10: HUAWEI | N10: AHUNONU CHIGOZIE LEONARD | O10: 8033255993 | Q10: MITS.L200 PICK/UP
K12: 7500

Sheet 11-07-2018
H5: HUAWEI FUEL RETIREMENT FOR 11-07-2018 BY IKECHUKWU ROBERT E.
B7: Date | C7: Vehicle Number | D7: Filling Station | E7: Mileage | F7: Type | G7: Quantity | H7: Amount per Litre | I7: TRACKING REPORT LITRE | J7: Variance | K7: RATE | L7: PURCHASE POINT | M7: CONTRACT | N7: NAME | O7: PHONE NO | P7: COMMENT | Q7: VEHICLE MAKE
B8: 2018-09-07 | C8: KMC 44 XA | D8: NGOZI PET | E8: 223946 | F8: PETROL | G8: 34 | H8: 145 | I8: 25 | J8: 9 | K8: 5000 | L8: UMUAHIA | M8: HUAWEI | N8: SANNI WILLIAMS | O8: 8166130748 | Q8: TOYOTA HILUX
B9: 2018-10-07 | C9: KMC 44 XA | D9: NGOZI PET | E9: 224201 | F9: PETROL | G9: 34 | H9: 145 | I9: 30 | J9: 4 | K9: 5000 | L9: UMUAHIA | M9: HUAWEI | N9: SANNI WILLIAMS | O9: 8166130748 | Q9: TOYOTA HILUX
B10: 2018-10-07 | C10: AAA 258 XQ | D10: FORTE OIL | E10: 173994 | F10: PETROL | G10: 24 | H10: 145 | I10: 22 | J10: 2 | K10: 3500 | L10: OWERRI | M10: HUAWEI | N10: IDOWU ADENAYA | O10: 8038730049 | Q10: MITS.L200 PICK/UP
B11: 2018-11-07 | C11: AAA 188 XL | D11: RADIJOE | E11: 2 41334 | F11: PETROL | G11: 20 | H11: 145 | I11: 17 | J11: 3 | K11: 3000 | L11: ORLU | M11: HUAWEI | N11: AHUNONU CHIGOZIE LEONARD | O11: 8033255993 | Q11: MITS.L200 PICK/UP
K12: 16500

Sheet 12-07-2018
H5: HUAWEI FUEL RETIREMENT FOR 12-07-2018 BY IKECHUKWU ROBERT E.
B7: Date | C7: Vehicle Number | D7: Filling Station | E7: Mileage | F7: Type | G7: Quantity | H7: Amount per Litre | I7: TRACKING REPORT LITRE | J7: Variance | K7: RATE | L7: PURCHASE POINT | M7: CONTRACT | N7: NAME | O7: PHONE NO | P7: COMMENT | Q7: VEHICLE MAKE
B8: 2018-11-07 | C8: KMC 44 XA | D8: NGOZI PET | E8: 224422 | F8: PETROL | G8: 34 | H8: 145 | I8: 32 | J8: 2 | K8: 5000 | L8: UMUAHIA | M8: HUAWEI | N8: SANNI WILLIAMS | O8: 8166130748 | Q8: TOYOTA HILUX
B9: 2018-12-07 | C9: AAA 188 XL | D9: RADIJOE | E9: 2 41508 | F9: PETROL | G9: 55 | H9: 145 | I9: 53 | J9: 2 | K9: 8000 | L9: PHC | M9: HUAWEI | N9: OGAGA TAIRE 09037793331 | O9: 8033255993 | Q9: MITS.L200 PICK/UP
K10: 13000

Sheet 18-07-2018
H5: HUAWEI FUEL RETIREMENT FOR 18-07-2018 BY IKECHUKWU ROBERT E.
B7: Date | C7: Vehicle Number | D7: Filling Station | E7: Mileage | F7: Type | G7: Quantity | H7: Amount per Litre | I7: TRACKING REPORT LITRE | J7: Variance | K7: RATE | L7: PURCHASE POINT | M7: CONTRACT | N7: NAME | O7: PHONE NO | P7: COMMENT | Q7: VEHICLE MAKE
B8: 17/7/2018 | C8: KMC 44 XA | D8: FORTE OIL | E8: 225890 | F8: PETROL | G8: 34 | H8: 145 | I8: 27 | J8: 7 | K8: 5000 | L8: UMUAHIA | M8: HUAWEI | N8: SANNI WILLIAMS | O8: 8166130748 | P8: Kindly surcharge N1,015.00 from drivers account. | Q8: TOYOTA HILUX
B9: 17/7/2018 | C9: KMC 44 XA | D9: FORTE OIL | E9: 226106 | F9: PETROL | G9: 34 | H9: 145 | I9: 33 | J9: 2 | K9: 5000 | L9: UMUAHIA | M9: HUAWEI | N9: SANNI WILLIAMS | O9: 8166130748 | Q9: TOYOTA HILUX
B10: 18/7/2018 | C10: AAA 258 XQ | D10: PREDEV | E10: 174626 | F10: PETROL | G10: 14 | H10: 145 | I10: 9 | J10: 5 | K10: 2000 | L10: OWERRI | M10: HUAWEI | N10: IDOWU ADENAYA | O10: 8038730049 | Q10: MITS.L200 PICK/UP
B11: 18/7/2018 | C11: AAA 258 XQ | D11: PREDEV | E11: 174685 | F11: PETROL | G11: 14 | H11: 145 | I11: 13 | J11: 1 | K11: 2000 | L11: OWERRI | M11: HUAWEI | N11: IDOWU ADENAYA | O11: 8038730050 | Q11: MITS.L200 PICK/UP
K13: 14000

Sheet 30-07-2018
I5: HUAWEI FUEL RETIREMENT FOR 30-07-2018 BY IKECHUKWU ROBERT E.
C7: Date | D7: Vehicle Number | E7: Filling Station | F7: Mileage | G7: Type | H7: Quantity | I7: Amount per Litre | J7: TRACKING REPORT LITRE | K7: Variance | L7: RATE | M7: PURCHASE POINT | N7: CONTRACT | O7: NAME | P7: PHONE NO | Q7: COMMENT | R7: VEHICLE MAKE
C8: 29/7/2018 | D8: KMC 44 XA | E8: FORTE OIL | F8: 227630 | G8: PETROL | H8: 14 | I8: 145 | J8: 12 | K8: 2 | L8: 2000 | M8: UMUAHIA | N8: HUAWEI | O8: SANNI WILLIAMS | P8: 8166130748 | R8: TOYOTA HILUX
C9: 29/7/2018 | D9: KMC 44 XA | E9: NGOZI PET | F9: 227732 | G9: PETROL | H9: 20 | I9: 145 | J9: 14.5 | K9: 5.5 | L9: 3000 | M9: UMUAHIA | N9: HUAWEI | O9: SANNI WILLIAMS | P9: 8166130748 | R9: TOYOTA HILUX
C10: 30/7/2018 | D10: KMC 44 XA | E10: NGOZI PET | F10: 227895 | G10: PETROL | H10: 34 | I10: 145 | J10: 25 | K10: 9 | L10: 5000 | M10: UMUAHIA | N10: HUAWEI | O10: SANNI WILLIAMS | P10: 8166130748 | R10: TOYOTA HILUX
L12: 10000

Sheet 01-08-2018
H4: HUAWEI FUEL RETIREMENT FOR 01-08-2018 BY IKECHUKWU ROBERT E.
B6: Date | C6: Vehicle Number | D6: Filling Station | E6: Mileage | F6: Type | G6: Quantity | H6: Amount per Litre | I6: TRACKING REPORT LITRE | J6: Variance | K6: RATE | L6: PURCHASE POINT | M6: CONTRACT | N6: NAME | O6: PHONE NO | P6: COMMENT | Q6: VEHICLE MAKE
B7: 2018-01-08 | C7: KMC 44 XA | D7: NGOZI PET | E7: 228153 | F7: PETROL | G7: 34 | H7: 145 | I7: 27 | J7: 7 | K7: 5000 | L7: UMUAHIA | M7: HUAWEI | N7: SANNI WILLIAMS | O7: 8166130748 | Q7: TOYOTA HILUX
K9: 5000

Sheet 08-08-2018
H4: HUAWEI FUEL RETIREMENT FOR 08-08-2018 BY IKECHUKWU ROBERT E.
B6: Date | C6: Vehicle Number | D6: Filling Station | E6: Mileage | F6: Type | G6: Quantity | H6: Amount per Litre | I6: TRACKING REPORT LITRE | J6: Variance | K6: RATE | L6: PURCHASE POINT | M6: CONTRACT | N6: NAME | O6: PHONE NO | P6: COMMENT | Q6: VEHICLE MAKE
B7: 2018-08-08 | C7: KMC 44 XA | D7: NGOZI PET | E7: 229418 | F7: PETROL | G7: 34 | H7: 145 | I7: 28 | J7: 6 | K7: 5000 | L7: UMUAHIA | M7: HUAWEI | N7: SANNI WILLIAMS | O7: 8166130748 | Q7: TOYOTA HILUX
K9: 5000

Sheet 11-08-2018
H4: HUAWEI FUEL RETIREMENT FOR 11-08-2018 BY IKECHUKWU ROBERT E.
B6: Date | C6: Vehicle Number | D6: Filling Station | E6: Mileage | F6: Type | G6: Quantity | H6: Amount per Litre | I6: TRACKING REPORT LITRE | J6: Variance | K6: RATE | L6: PURCHASE POINT | M6: CONTRACT | N6: NAME | O6: PHONE NO | P6: COMMENT | Q6: VEHICLE MAKE
B7: 2018-10-08 | C7: KMC 44 XA | D7: NGOZI PET | E7: 230007 | F7: PETROL | G7: 20 | H7: 145 | I7: 20 | J7: 0 | K7: 3000 | L7: UMUAHIA | M7: HUAWEI | N7: SANNI WILLIAMS | O7: 8166130748 | Q7: TOYOTA HILUX
B8: 2018-10-08 | C8: KMC 44 XA | D8: NGOZI PET | E8: 230026 | F8: PETROL | G8: 14 | H8: 145 | I8: 11 | J8: 3 | K8: 2000 | L8: UMUAHIA | M8: HUAWEI | N8: SANNI WILLIAMS | O8: 8166130749 | Q8: TOYOTA HILUX
B9: 2018-11-08 | C9: KMC 44 XA | D9: NGOZI PET | E9: 230299 | F9: PETROL | G9: 28 | H9: 145 | I9: 30 | J9: 2 | K9: 4000 | L9: UMUAHIA | M9: HUAWEI | N9: SANNI WILLIAMS | O9: 8166130750 | Q9: TOYOTA HILUX
K10: 9000

Sheet 20-09-2018
H6: HUAWEI FUEL RETIREMENT FOR 21-09-2018 BY IKECHUKWU ROBERT E.
B8: Date | C8: Vehicle Number | D8: Filling Station | E8: Mileage | F8: Type | G8: Quantity | H8: Amount per Litre | I8: TRACKING REPORT LITRE | J8: Variance | K8: RATE | L8: PURCHASE POINT | M8: CONTRACT | N8: NAME | O8: PHONE NO | P8: COMMENT | Q8: VEHICLE MAKE
B9: 19/9/2018 | C9: AAA 258 XQ | D9: NUA FILLING STATION | E9: 177856 | F9: PETROL | G9: 7 | H9: 145 | I9: 0 | J9: 7 | K9: 1000 | L9: ABA | M9: HUAWEI | N9: DENNIS OKEREKE ONEN | O9: 09062959262 & 07030256828 | P9: NOT CAPTURED | Q9: MITS.L200
B10: 20/9/2018 | C10: AAA 258 XQ | D10: FORTE OIL | E10: 177937 | F10: PETROL | G10: 28 | H10: 145 | I10: 27 | J10: 1 | K10: 4000 | L10: ABA | M10: HUAWEI | N10: DENNIS OKEREKE ONEN | O10: 09062959262 & 07030256828 | Q10: MITS.L200
K12: 5000

Sheet 26-09-2018
H5: HUAWEI FUEL RETIREMENT FOR 27-09-2018 BY IKECHUKWU ROBERT E.
B7: Date | C7: Vehicle Number | D7: Filling Station | E7: Mileage | F7: Type | G7: Quantity | H7: Amount per Litre | I7: TRACKING REPORT LITRE | J7: Variance | K7: RATE | L7: PURCHASE POINT | M7: CONTRACT | N7: NAME | O7: PHONE NO | P7: COMMENT | Q7: VEHICLE MAKE
B8: 26/9/2018 | C8: KMC 44 XA | D8: NGOZI PET | E8: 234004 | F8: PETROL | G8: 34 | H8: 145 | I8: 30.5 | K8: 5000 | L8: UMUAHIA | M8: HUAWEI | N8: SANNI WILLIAMS | O8: 8166130749 | Q8: TOYOTA HILUX
K9: 5000

Sheet 6-10-2018
H4: HUAWEI FUEL RETIREMENT FOR 06-10-2018 BY IKECHUKWU ROBERT E.
B6: Date | C6: Vehicle Number | D6: Filling Station | E6: Mileage | F6: Type | G6: Quantity | H6: Amount per Litre | I6: TRACKING REPORT LITRE | J6: Variance | K6: RATE | L6: PURCHASE POINT | M6: CONTRACT | N6: NAME | O6: PHONE NO | P6: COMMENT | Q6: VEHICLE MAKE
B7: 2018-07-10 | C7: KMC 44 XA | D7: NGOZI PET | E7: 235912 | F7: PETROL | G7: 34 | H7: 145 | I7: 26 | J7: 8 | K7: 5000 | L7: UMUAHIA | M7: HUAWEI | N7: SANNI WILLIAMS | O7: 8166130749 | Q7: TOYOTA HILUX
B8: 2018-09-10 | C8: AAA 257 XQ | D8: NUA FILLING STATION | E8: 199554 | F8: PETROL | G8: 34 | H8: 145 | I8: 27.5 | J8: 6.5 | K8: 5000 | L8: ABA | M8: HUAWEI | N8: OKEREKE DENNIS | O8: 9062959262 | Q8: MITS.L200
K9: 10000

Sheet 11-10-2018
H4: HUAWEI FUEL RETIREMENT FOR 11-10-2018 BY IKECHUKWU ROBERT E.
B6: Date | C6: Vehicle Number | D6: Filling Station | E6: Mileage | F6: Type | G6: Quantity | H6: Amount per Litre | I6: TRACKING REPORT LITRE | J6: Variance | K6: RATE | L6: PURCHASE POINT | M6: CONTRACT | N6: NAME | O6: PHONE NO | P6: COMMENT | Q6: VEHICLE MAKE
B7: 2018-11-10 | C7: AAA 257 XQ | D7: NUA FILLING STATION | E7: 199554 | F7: PETROL | G7: 34 | H7: 145 | I7: NOT CAPTURED | J7: 0 | K7: 5000 | L7: ABA | M7: HUAWEI | N7: OKEREKE DENNIS | O7: 9062959262 | Q7: MITS.L200
K8: 5000

Sheet 22-10-2018
H5: HUAWEI FUEL RETIREMENT FOR 22-10-2018 BY IKECHUKWU ROBERT E.
B7: Date | C7: Vehicle Number | D7: Filling Station | E7: Mileage | F7: Type | G7: Quantity | H7: Amount per Litre | I7: TRACKING REPORT LITRE | J7: Variance | K7: RATE | L7: PURCHASE POINT | M7: CONTRACT | N7: NAME | O7: PHONE NO | P7: COMMENT | Q7: VEHICLE MAKE
B8: 21/10/2019 | C8: KRD 539 XF | D8: NGOZI PET | E8: 289432 | F8: PETROL | G8: 34 | H8: 145 | I8: 17 | J8: 17 | K8: 5000 | L8: UMUAHIA | M8: HUAWEI | N8: SANNI WILLIAMS | O8: 8166130750 | P8: Kindly deduct 2,465.00 | Q8: MITS.L200
B9: 22/10/2018 | C9: KRD 539 XF | D9: NGOZI PET | E9: 289607 | F9: PETROL | G9: 34 | H9: 145 | I9: 37 | J9: 3 | K9: 5000 | L9: UMUAHIA | M9: HUAWEI | N9: SANNI WILLIAMS | O9: 8166130749 | Q9: MITS.L200
K10: 10000

Sheet 24-10-2018
H5: HUAWEI FUEL RETIREMENT FOR 24-10-2018 BY IKECHUKWU ROBERT E.
B7: Date | C7: Vehicle Number | D7: Filling Station | E7: Mileage | F7: Type | G7: Quantity | H7: Amount per Litre | I7: TRACKING REPORT LITRE | J7: Variance | K7: RATE | L7: PURCHASE POINT | M7: CONTRACT | N7: NAME | O7: PHONE NO | P7: COMMENT | Q7: VEHICLE MAKE
B8: 23/10/2018 | C8: KRD 539 XF | D8: NGOZI PET | E8: 289817 | F8: PETROL | G8: 34 | H8: 145 | I8: 31 | J8: 3 | K8: 5000 | L8: UMUAHIA | M8: HUAWEI | N8: SANNI WILLIAMS | O8: 8166130749 | Q8: MITS.L200
B9: 24/10/2018 | C9: KRD 539 XF | D9: NGOZI PET | E9: 289987 | F9: PETROL | G9: 34 | H9: 145 | I9: 29 | J9: 5 | K9: 5000 | L9: UMUAHIA | M9: HUAWEI | N9: SANNI WILLIAMS | O9: 8166130750 | Q9: MITS.L201
K10: 10000

Sheet 2-11-2018
H6: HUAWEI FUEL RETIREMENT FOR 2-11-2018 BY IKECHUKWU ROBERT E.
B8: Date | C8: Vehicle Number | D8: Filling Station | E8: Mileage | F8: Type | G8: Quantity | H8: Amount per Litre | I8: TRACKING REPORT LITRE | J8: Variance | K8: RATE | L8: PURCHASE POINT | M8: CONTRACT | N8: NAME | O8: PHONE NO | P8: COMMENT | Q8: VEHICLE MAKE
B9: 2018-02-11 | C9: KRD 539 XF | D9: NGOZI PET | E9: 291078 | F9: PETROL | G9: 34 | H9: 145 | I9: 31 | J9: 3 | K9: 5000 | L9: UMUAHIA | M9: HUAWEI | N9: SANNI WILLIAMS | O9: 8166130750 | Q9: MITS.L201
K10: 5000

Sheet 3-11-2018
H6: HUAWEI FUEL RETIREMENT FOR 3-11-2018 BY IKECHUKWU ROBERT E.
B8: Date | C8: Vehicle Number | D8: Filling Station | E8: Mileage | F8: Type | G8: Quantity | H8: Amount per Litre | I8: TRACKING REPORT LITRE | J8: Variance | K8: RATE | L8: PURCHASE POINT | M8: CONTRACT | N8: NAME | O8: PHONE NO | P8: COMMENT | Q8: VEHICLE MAKE
B9: 2018-03-11 | C9: KRD 539 XF | D9: NGOZI PET | E9: 291289 | F9: PETROL | G9: 34 | H9: 145 | I9: 29 | J9: 5 | K9: 5000 | L9: UMUAHIA | M9: HUAWEI | N9: SANNI WILLIAMS | O9: 8166130750 | Q9: MITS.L201
K10: 5000

Sheet 06-11-2018
H5: HUAWEI FUEL RETIREMENT FOR 06-11-2018 BY IKECHUKWU ROBERT E.
B7: Date | C7: Vehicle Number | D7: Filling Station | E7: Mileage | F7: Type | G7: Quantity | H7: Amount per Litre | I7: TRACKING REPORT LITRE | J7: Variance | K7: RATE | L7: PURCHASE POINT | M7: CONTRACT | N7: NAME | O7: PHONE NO | P7: COMMENT | Q7: VEHICLE MAKE
B8: 2018-06-11 | C8: XC 288 YRE | D8: NUA FILLING STATION | E8: 226271 | F8: PETROL | G8: 34 | H8: 145 | I8: 0 | J8: 34 | K8: 5000 | L8: ABA | M8: HUAWEI | N8: JULIAN ADADU | O8: 9062224682 | P8: NOT CAPTURED | Q8: MITS.L200
B9: 2018-06-11 | C9: AAA 258 XQ | D9: FORTE OIL | E9: 183978 | F9: PETROL | G9: 34 | H9: 145 | I9: 27.5 | J9: 6.5 | K9: 5000 | L9: ABA | M9: HUAWEI | N9: DENNIS OKEREKE ONEN | O9: 09062959262 & 07030256828 | Q9: MITS.L200
K11: 10000

Sheet 09-11-2018
H6: HUAWEI FUEL RETIREMENT FOR 09-11-2018 BY IKECHUKWU ROBERT E.
B8: Date | C8: Vehicle Number | D8: Filling Station | E8: Mileage | F8: Type | G8: Quantity | H8: Amount per Litre | I8: TRACKING REPORT LITRE | J8: Variance | K8: RATE | L8: PURCHASE POINT | M8: CONTRACT | N8: NAME | O8: PHONE NO | P8: COMMENT | Q8: VEHICLE MAKE
B9: 2018-08-11 | C9: AAA 258 XQ | D9: GN PETROL | E9: 184121 | F9: PETROL | G9: 7 | H9: 145 | I9: 8 | J9: 1 | K9: 1000 | L9: ABA | M9: HUAWEI | N9: DENNIS OKEREKE ONEN | O9: 09062959262 & 07030256828 | Q9: MITS.L200
B10: 2018-09-11 | C10: AAA 258 XQ | D10: FORTE OIL | E10: 184130 | F10: PETROL | G10: 24 | H10: 145 | I10: 26 | J10: 2 | K10: 4000 | L10: ABA | M10: HUAWEI | N10: DENNIS OKEREKE ONEN | O10: 09062959262 & 07030256828 | Q10: MITS.L200
B11: 2018-09-11 | C11: LSR 993 XL | D11: BEST ONE | E11: 131343 | F11: PETROL | G11: 24 | H11: 145 | I11: 22 | J11: 2 | K11: 4000 | L11: ENUGU | M11: HUAWEI | N11: ADOYE DENNIS | O11: 7068565836 | P11: PAID INTO FME'S ACCOUNT (DRIVER FORGOT HIS ATM CARD) | Q11: TOYOTA HILUX
B12: 2018-09-11 | C12: LSR 993 XL | D12: BEST ONE | E12: 131561 | F12: PETROL | G12: 7 | H12: 145 | I12: 8 | J12: 1 | K12: 1000 | L12: OYGBO | M12: HUAWEI | N12: ADOYE DENNIS | O12: 7068565837 | Q12: TOYOTA HILUX
K13: 10000

Sheet 10-11-2018
H7: HUAWEI FUEL RETIREMENT FOR 10-11-2018 BY IKECHUKWU ROBERT E.
B9: Date | C9: Vehicle Number | D9: Filling Station | E9: Mileage | F9: Type | G9: Quantity | H9: Amount per Litre | I9: TRACKING REPORT LITRE | J9: Variance | K9: RATE | L9: PURCHASE POINT | M9: CONTRACT | N9: NAME | O9: PHONE NO | P9: COMMENT | Q9: VEHICLE MAKE
B10: 2018-10-11 | C10: LSR 993 XL | D10: BEST ONE | E10: 131734 | F10: PETROL | G10: 34 | H10: 145 | I10: 22 | J10: 12 | K10: 5000 | L10: OMOKU AHOADA | M10: HUAWEI | N10: ADOYE DENNIS | O10: 7068565837 | P10: PAID INTO FME'S ACCOUNT (DRIVER FORGOT HIS ATM CARD) | Q10: TOYOTA HILUX
K11: 5000

Sheet 12-11-2018
H6: HUAWEI FUEL RETIREMENT FOR 12-11-2018 BY IKECHUKWU ROBERT E.
B8: Date | C8: Vehicle Number | D8: Filling Station | E8: Mileage | F8: Type | G8: Quantity | H8: Amount per Litre | I8: TRACKING REPORT LITRE | J8: Variance | K8: RATE | L8: PURCHASE POINT | M8: CONTRACT | N8: NAME | O8: PHONE NO | P8: COMMENT | Q8: VEHICLE MAKE
B9: 2018-12-11 | C9: LSR 993 XL | D9: ELO P NIG LTD | E9: 131892 | F9: PETROL | G9: 21 | H9: 145 | I9: 21.5 | J9: 0.5 | K9: 3000 | L9: OMOKU AHOADA | M9: HUAWEI | N9: ADOYE DENNIS | O9: 7068565837 | P9: PAID INTO FME'S ACCOUNT (DRIVER FORGOT HIS ATM CARD) | Q9: TOYOTA HILUX
K10: 3000

Sheet 21-11-2018
H5: HUAWEI FUEL RETIREMENT FOR 21-11-2018 BY IKECHUKWU ROBERT E.
B7: Date | C7: Vehicle Number | D7: Filling Station | E7: Mileage | F7: Type | G7: Quantity | H7: Amount per Litre | I7: TRACKING REPORT LITRE | J7: Variance | K7: RATE | L7: PURCHASE POINT | M7: CONTRACT | N7: NAME | O7: PHONE NO | P7: COMMENT | Q7: VEHICLE MAKE
B8: 20/11/2018 | C8: LSR 993 XL | D8: FORTE OIL | E8: 133629 | F8: PETROL | G8: 34 | H8: 145 | I8: 27 | J8: 7 | K8: 5000 | L8: PHC | M8: HUAWEI | N8: ADOYE DENNIS | O8: 7068565837 | P8: PAID INTO FME'S ACCOUNT (DRIVER FORGOT HIS ATM CARD) | Q8: TOYOTA HILUX
B9: 21/11/2018 | C9: LSR 993 XL | D9: OANDO | E9: 133891 | F9: PETROL | G9: 41 | H9: 145 | I9: 44 | J9: 3 | K9: 6000 | L9: PHC | M9: HUAWEI | N9: ADOYE DENNIS | O9: 7068565837 | P9: PAID INTO FME'S ACCOUNT (DRIVER FORGOT HIS ATM CARD) | Q9: TOYOTA HILUX
K10: 11000

Sheet 22-11-2018
H6: HUAWEI FUEL RETIREMENT FOR 22-11-2018 BY IKECHUKWU ROBERT E.
B8: Date | C8: Vehicle Number | D8: Filling Station | E8: Mileage | F8: Type | G8: Quantity | H8: Amount per Litre | I8: TRACKING REPORT LITRE | J8: Variance | K8: RATE | L8: PURCHASE POINT | M8: CONTRACT | N8: NAME | O8: PHONE NO | P8: COMMENT | Q8: VEHICLE MAKE
B9: 22/11/2018 | C9: LSR 993 XL | D9: FORTE OIL | E9: 134125 | F9: PETROL | G9: 34 | H9: 145 | I9: 35 | J9: 1 | K9: 5000 | L9: PHC | M9: HUAWEI | N9: ADOYE DENNIS | O9: 7068565837 | P9: PAID INTO FME'S ACCOUNT (DRIVER FORGOT HIS ATM CARD) | Q9: TOYOTA HILUX
K11: 5000

Sheet 23-11-2018
H4: HUAWEI FUEL RETIREMENT FOR 23-11-2018 BY IKECHUKWU ROBERT E.
B6: Date | C6: Vehicle Number | D6: Filling Station | E6: Mileage | F6: Type | G6: Quantity | H6: Amount per Litre | I6: TRACKING REPORT LITRE | J6: Variance | K6: RATE | L6: PURCHASE POINT | M6: CONTRACT | N6: NAME | O6: PHONE NO | P6: COMMENT | Q6: VEHICLE MAKE
B7: 23/11/2018 | C7: LSR 993 XL | D7: FORTE OIL | E7: 134125 | F7: PETROL | G7: 55 | H7: 145 | I7: 63.5 | J7: 8 | K7: 8000 | L7: PHC | M7: HUAWEI | N7: ADOYE DENNIS | O7: 7068565837 | P7: PAID INTO FME'S ACCOUNT (DRIVER FORGOT HIS ATM CARD) | Q7: TOYOTA HILUX
K9: 8000

Sheet 26-11-2018
H5: HUAWEI FUEL RETIREMENT FOR 26-11-2018 BY IKECHUKWU ROBERT E.
B7: Date | C7: Vehicle Number | D7: Filling Station | E7: Mileage | F7: Type | G7: Quantity | H7: Amount per Litre | I7: TRACKING REPORT LITRE | J7: Variance | K7: RATE | L7: PURCHASE POINT | M7: CONTRACT | N7: NAME | O7: PHONE NO | P7: COMMENT | Q7: VEHICLE MAKE
B8: 25/11/2018 | C8: LSR 993 XL | D8: PALFLOX | E8: 134671 | F8: PETROL | G8: 41 | H8: 145 | I8: 42 | J8: 1 | K8: 6000 | L8: PHC | M8: HUAWEI | N8: ADOYE DENNIS | O8: 7068565837 | P8: PAID INTO FME'S ACCOUNT (DRIVER FORGOT HIS ATM CARD) | Q8: TOYOTA HILUX
B9: 26/11/2018 | C9: LSR 993 XL | D9: MOBIL | E9: 134910 | F9: PETROL | G9: 48 | H9: 145 | I9: 52 | J9: 4 | K9: 7000 | L9: PHC | M9: HUAWEI | N9: ADOYE DENNIS | O9: 7068565837 | P9: PAID INTO FME'S ACCOUNT (DRIVER FORGOT HIS ATM CARD) | Q9: TOYOTA HILUX
K10: 13000

Sheet 27-11-2018
H5: HUAWEI FUEL RETIREMENT FOR 27-11-2018 BY IKECHUKWU ROBERT E.
B7: Date | C7: Vehicle Number | D7: Filling Station | E7: Mileage | F7: Type | G7: Quantity | H7: Amount per Litre | I7: TRACKING REPORT LITRE | J7: Variance | K7: RATE | L7: PURCHASE POINT | M7: CONTRACT | N7: NAME | O7: PHONE NO | P7: COMMENT | Q7: VEHICLE MAKE
B8: 27/11/2018 | C8: LSR 993 XL | D8: MOBIL | E8: 135149 | F8: PETROL | G8: 41 | H8: 145 | I8: 30 | J8: 11 | K8: 6000 | L8: PHC | M8: HUAWEI | N8: ADOYE DENNIS | O8: 7068565837 | P8: PAID INTO FME'S ACCOUNT (DRIVER FORGOT HIS ATM CARD) | Q8: TOYOTA HILUX
K9: 6000

Sheet 28-11-2018
H6: HUAWEI FUEL RETIREMENT FOR 28-11-2018 BY IKECHUKWU ROBERT E.
B8: Date | C8: Vehicle Number | D8: Filling Station | E8: Mileage | F8: Type | G8: Quantity | H8: Amount per Litre | I8: TRACKING REPORT LITRE | J8: Variance | K8: RATE | L8: PURCHASE POINT | M8: CONTRACT | N8: NAME | O8: PHONE NO | P8: COMMENT | Q8: VEHICLE MAKE
B9: 28/11/2018 | C9: LSR 993 XL | D9: MOBIL | E9: 135424 | F9: PETROL | G9: 34 | H9: 145 | I9: 38 | J9: 4 | K9: 5000 | L9: PHC | M9: HUAWEI | N9: ADOYE DENNIS | O9: 7068565837 | P9: PAID INTO FME'S ACCOUNT (DRIVER FORGOT HIS ATM CARD) | Q9: TOYOTA HILUX
K10: 5000

Sheet 30-11-2018
H6: HUAWEI FUEL RETIREMENT FOR 30-11-2018 BY IKECHUKWU ROBERT E.
B8: Date | C8: Vehicle Number | D8: Filling Station | E8: Mileage | F8: Type | G8: Quantity | H8: Amount per Litre | I8: TRACKING REPORT LITRE | J8: Variance | K8: RATE | L8: PURCHASE POINT | M8: CONTRACT | N8: NAME | O8: PHONE NO | P8: COMMENT | Q8: VEHICLE MAKE
B9: 30/11/2018 | C9: LSR 993 XL | D9: MOBIL | E9: 135565 | F9: PETROL | G9: 55 | H9: 145 | I9: 57 | J9: 2 | K9: 8000 | L9: PHC | M9: HUAWEI | N9: ADOYE DENNIS | O9: 7068565837 | P9: PAID INTO FME'S ACCOUNT (DRIVER FORGOT HIS ATM CARD) | Q9: TOYOTA HILUX
K10: 8000

Sheet 03-12-2018
H6: HUAWEI FUEL RETIREMENT FOR 03-12-2018 BY IKECHUKWU ROBERT E.
B8: Date | C8: Vehicle Number | D8: Filling Station | E8: Mileage | F8: Type | G8: Quantity | H8: Amount per Litre | I8: TRACKING REPORT LITRE | J8: Variance | K8: RATE | L8: PURCHASE POINT | M8: CONTRACT | N8: NAME | O8: PHONE NO | P8: COMMENT | Q8: VEHICLE MAKE
B9: 2018-01-12 | C9: LSR 993 XL | D9: PALFLOX | E9: 135827 | F9: PETROL | G9: 41 | H9: 145 | I9: 42 | J9: 1 | K9: 6000 | L9: PHC | M9: HUAWEI | N9: ADOYE DENNIS | O9: 7068565837 | P9: PAID INTO FME'S ACCOUNT (DRIVER FORGOT HIS ATM CARD) | Q9: TOYOTA HILUX
K11: 6000

Sheet 04-12-2018
H4: HUAWEI FUEL RETIREMENT FOR 04-12-2018 BY IKECHUKWU ROBERT E.
B6: Date | C6: Vehicle Number | D6: Filling Station | E6: Mileage | F6: Type | G6: Quantity | H6: Amount per Litre | I6: TRACKING REPORT LITRE | J6: Variance | K6: RATE | L6: PURCHASE POINT | M6: CONTRACT | N6: NAME | O6: PHONE NO | P6: COMMENT | Q6: VEHICLE MAKE
B7: 2018-02-12 | C7: LSR 993 XL | D7: FORTE OIL | E7: 136135 | F7: PETROL | G7: 34 | H7: 145 | I7: 35 | J7: 1 | K7: 5000 | L7: EMUOHA | M7: HUAWEI | N7: ADOYE DENNIS | O7: 7068565837 | P7: PAID INTO FME'S ACCOUNT (DRIVER FORGOT HIS ATM CARD) | Q7: TOYOTA HILUX
B8: 2018-03-12 | C8: LSR 993 XL | D8: MOBIL | E8: 136294 | F8: PETROL | G8: 41 | H8: 145 | I8: 46 | J8: 3 | K8: 6000 | L8: AHOADA | M8: HUAWEI | N8: ADOYE DENNIS | O8: 7068565838 | P8: PAID INTO FME'S ACCOUNT (DRIVER FORGOT HIS ATM CARD) | Q8: TOYOTA HILUX
K9: 11000

Sheet 06-12-2018
H5: HUAWEI FUEL RETIREMENT FOR 06-12-2018 BY IKECHUKWU ROBERT E.
B7: Date | C7: Vehicle Number | D7: Filling Station | E7: Mileage | F7: Type | G7: Quantity | H7: Amount per Litre | I7: TRACKING REPORT LITRE | J7: Variance | K7: RATE | L7: PURCHASE POINT | M7: CONTRACT | N7: NAME | O7: PHONE NO | P7: COMMENT | Q7: VEHICLE MAKE
B8: 2018-05-12 | C8: LSR 993 XL | D8: FORTE OIL | E8: 136643 | F8: PETROL | G8: 34 | H8: 145 | I8: 35 | J8: 1 | K8: 5000 | L8: PHC | M8: HUAWEI | N8: ADOYE DENNIS | O8: 7068565837 | P8: PAID INTO FME'S ACCOUNT (DRIVER FORGOT HIS ATM CARD) | Q8: TOYOTA HILUX
B9: 2018-06-12 | C9: LND 565 XM | D9: NUA FILLING STATION | E9: 177552 | F9: PETROL | G9: 34 | H9: 145 | I9: 18 | J9: 16 | K9: 5000 | L9: ABA | M9: HUAWEI | N9: JULIAN ADADU | O9: 9062224682 | P9: Kindly deduct N2,320.00 FROM DRIVER | Q9: MITS.L200
K10: 10000

Sheet 07-12-2018
H5: HUAWEI FUEL RETIREMENT FOR 07-12-2018 BY IKECHUKWU ROBERT E.
B7: Date | C7: Vehicle Number | D7: Filling Station | E7: Mileage | F7: Type | G7: Quantity | H7: Amount per Litre | I7: TRACKING REPORT LITRE | J7: Variance | K7: RATE | L7: PURCHASE POINT | M7: CONTRACT | N7: NAME | O7: PHONE NO | P7: COMMENT | Q7: VEHICLE MAKE
B8: 2018-06-12 | C8: LSR 993 XL | D8: FORTE OIL | E8: 136713 | F8: PETROL | G8: 34 | H8: 145 | I8: 34 | J8: 0 | K8: 5000 | L8: PHC | M8: HUAWEI | N8: ADOYE DENNIS | O8: 7068565837 | P8: PAID INTO FME'S ACCOUNT (DRIVER FORGOT HIS ATM CARD) | Q8: TOYOTA HILUX
B9: 2018-07-12 | C9: LND 565 XM | D9: TONIMAS FILLING STATION | E9: 177784 | F9: PETROL | G9: 34 | H9: 145 | I9: 21 | J9: 13 | K9: 5000 | L9: ABA | M9: HUAWEI | N9: JULIAN ADADU | O9: 9062224682 | P9: Kindly deduct N1,885.00 FROM DRIVER | Q9: MITS.L200
B10: 2018-07-12 | C10: LSR 993 XL | D10: EMARITZ | E10: 136803 | F10: PETROL | G10: 34 | H10: 145 | I10: 34 | J10: 0 | K10: 5000 | L10: PHC | M10: HUAWEI | N10: ADOYE DENNIS | O10: 7068565837 | P10: PAID INTO FME'S ACCOUNT (DRIVER FORGOT HIS ATM CARD) | Q10: TOYOTA HILUX
K11: 15000

Sheet 10-12-2018
H5: HUAWEI FUEL RETIREMENT FOR 10-12-2018 BY IKECHUKWU ROBERT E.
B7: Date | C7: Vehicle Number | D7: Filling Station | E7: Mileage | F7: Type | G7: Quantity | H7: Amount per Litre | I7: TRACKING REPORT LITRE | J7: Variance | K7: RATE | L7: PURCHASE POINT | M7: CONTRACT | N7: NAME | O7: PHONE NO | P7: COMMENT | Q7: VEHICLE MAKE
B8: 2018-09-12 | C8: LND 565 XM | D8: TONIMAS FILLING STATION | E8: 177949 | F8: PETROL | G8: 34 | H8: 145 | I8: 17 | J8: 17 | K8: 5000 | L8: ABA | M8: HUAWEI | N8: JULIAN ADADU | O8: 9062224682 | P8: Kindly deduct N2,465.00 FROM DRIVER | Q8: MITS.L200
B9: 2018-10-12 | C9: LSR 993 XL | D9: OANDO | E9: 137098 | F9: PETROL | G9: 41 | H9: 145 | I9: 35 | J9: 6 | K9: 6000 | L9: PHC | M9: HUAWEI | N9: ADOYE DENNIS | O9: 7068565837 | P9: PAID INTO FME'S ACCOUNT (DRIVER FORGOT HIS ATM CARD) | Q9: TOYOTA HILUX
K10: 11000

Sheet 11-12-2018
H5: HUAWEI FUEL RETIREMENT FOR 11-12-2018 BY IKECHUKWU ROBERT E.
B7: Date | C7: Vehicle Number | D7: Filling Station | E7: Mileage | F7: Type | G7: Quantity | H7: Amount per Litre | I7: TRACKING REPORT LITRE | J7: Variance | K7: RATE | L7: PURCHASE POINT | M7: CONTRACT | N7: NAME | O7: PHONE NO | P7: COMMENT | Q7: VEHICLE MAKE
B8: 2018-10-12 | C8: LND 565 XM | D8: TONIMAS FILLING STATION | E8: 178097 | F8: PETROL | G8: 34 | H8: 145 | I8: 23 | J8: 11 | K8: 5000 | L8: ABA | M8: HUAWEI | N8: JULIAN ADADU | O8: 9062224682 | Q8: MITS.L200
B9: 2018-11-12 | C9: LSR 993 XL | D9: MOBIL | E9: 137160 | F9: PETROL | G9: 34 | H9: 145 | I9: 36 | J9: 2 | K9: 5000 | L9: PHC | M9: HUAWEI | N9: ADOYE DENNIS | O9: 7068565837 | P9: PAID INTO FME'S ACCOUNT (DRIVER FORGOT HIS ATM CARD) | Q9: TOYOTA HILUX
K10: 10000

Sheet 12-12-2018
H6: HUAWEI FUEL RETIREMENT FOR 12-12-2018 BY IKECHUKWU ROBERT E.
B8: Date | C8: Vehicle Number | D8: Filling Station | E8: Mileage | F8: Type | G8: Quantity | H8: Amount per Litre | I8: TRACKING REPORT LITRE | J8: Variance | K8: RATE | L8: PURCHASE POINT | M8: CONTRACT | N8: NAME | O8: PHONE NO | P8: COMMENT | Q8: VEHICLE MAKE
B9: 2018-12-12 | C9: LSR 993 XL | D9: MOBIL | E9: 137369 | F9: PETROL | G9: 41 | H9: 145 | I9: 50 | J9: 9 | K9: 6000 | L9: PHC | M9: HUAWEI | N9: ADOYE DENNIS | O9: 7068565837 | P9: PAID INTO FME'S ACCOUNT (DRIVER FORGOT HIS ATM CARD) | Q9: TOYOTA HILUX
K10: 6000

Sheet 13-12-2018
H6: HUAWEI FUEL RETIREMENT FOR 13-12-2018 BY IKECHUKWU ROBERT E.
B8: Date | C8: Vehicle Number | D8: Filling Station | E8: Mileage | F8: Type | G8: Quantity | H8: Amount per Litre | I8: TRACKING REPORT LITRE | J8: Variance | K8: RATE | L8: PURCHASE POINT | M8: CONTRACT | N8: NAME | O8: PHONE NO | P8: COMMENT | Q8: VEHICLE MAKE
B9: 13/12/2018 | C9: LSR 993 XL | D9: MOBIL | E9: 137615 | F9: PETROL | G9: 34 | H9: 145 | I9: 37 | J9: 3 | K9: 5000 | L9: PHC | M9: HUAWEI | N9: ADOYE DENNIS | O9: 7068565837 | P9: PAID INTO FME'S ACCOUNT (DRIVER FORGOT HIS ATM CARD) | Q9: TOYOTA HILUX
K10: 5000

Sheet 21-12-2018
H6: HUAWEI FUEL RETIREMENT FOR 21-12-2018 BY IKECHUKWU ROBERT E.
B8: Date | C8: Vehicle Number | D8: Filling Station | E8: Mileage | F8: Type | G8: Quantity | H8: Amount per Litre | I8: TRACKING REPORT LITRE | J8: Variance | K8: RATE | L8: PURCHASE POINT | M8: CONTRACT | N8: NAME | O8: PHONE NO | P8: COMMENT | Q8: VEHICLE MAKE
B9: 21/12/2018 | C9: LSR 993 XL | D9: MOBIL | E9: 139130 | F9: PETROL | G9: 48 | H9: 145 | I9: 39.5 | J9: 8.5 | K9: 7000 | L9: PHC | M9: HUAWEI | N9: ADOYE DENNIS | O9: 7068565837 | P9: PAID INTO FME'S ACCOUNT (DRIVER FORGOT HIS ATM CARD) | Q9: TOYOTA HILUX
K10: 7000

Sheet 23-12-2018
H4: HUAWEI FUEL RETIREMENT FOR 22-12-2018 BY IKECHUKWU ROBERT E.
B6: Date | C6: Vehicle Number | D6: Filling Station | E6: Mileage | F6: Type | G6: Quantity | H6: Amount per Litre | I6: TRACKING REPORT LITRE | J6: Variance | K6: RATE | L6: PURCHASE POINT | M6: CONTRACT | N6: NAME | O6: PHONE NO | P6: COMMENT | Q6: VEHICLE MAKE
B7: 22/12/2018 | C7: LSR 993 XL | D7: SOBAZ | E7: 139362 | F7: PETROL | G7: 55 | H7: 145 | I7: 60 | J7: 5 | K7: 8000 | L7: PHC | M7: HUAWEI | N7: ADOYE DENNIS | O7: 7068565837 | P7: PAID INTO FME'S ACCOUNT (DRIVER FORGOT HIS ATM CARD) | Q7: TOYOTA HILUX
K8: 8000

Sheet 27-12-2018
H5: HUAWEI FUEL RETIREMENT FOR 27-12-2018 BY IKECHUKWU ROBERT E.
B7: Date | C7: Vehicle Number | D7: Filling Station | E7: Mileage | F7: Type | G7: Quantity | H7: Amount per Litre | I7: TRACKING REPORT LITRE | J7: Variance | K7: RATE | L7: PURCHASE POINT | M7: CONTRACT | N7: NAME | O7: PHONE NO | P7: COMMENT | Q7: VEHICLE MAKE
B8: 25/12/2018 | C8: LND 565 XM | D8: TONIMAS FILLING STATION | E8: 180113 | F8: PETROL | G8: 28 | H8: 145 | I8: 21 | J8: 12 | K8: 4000 | L8: ABA | M8: HUAWEI | N8: JULIAN ADADU | O8: 9062224682 | Q8: MITS.L200
B9: 26/12/2018 | C9: LSR 993 XL | D9: SOSO | E9: 139621 | F9: PETROL | G9: 48 | H9: 145 | I9: 37 | J9: 11 | K9: 7000 | L9: PHC | M9: HUAWEI | N9: ADOYE DENNIS | O9: 7068565837 | P9: PAID INTO FME'S ACCOUNT (DRIVER FORGOT HIS ATM CARD) | Q9: TOYOTA HILUX
B10: 26/12/2019 | C10: AAA 258 XQ | D10: SOBAZ | E10: 190891 | F10: PETROL | G10: 34 | H10: 145 | I10: 30 | J10: 5 | K10: 5000 | L10: ABA | M10: HUAWEI | N10: DENNIS ONEN | O10: 9062959262 | Q10: MITS.L200
B11: 27/12/2018 | C11: LND 565 XM | D11: NUA FILLING STATION | E11: 180214 | F11: PETROL | G11: 34 | H11: 145 | I11: 24 | J11: 10 | K11: 5000 | L11: ABA | M11: HUAWEI | N11: JULIAN ADADU | O11: 9062224682 | Q11: MITS.L200
K12: 21000

Sheet 28-12-2018
H6: HUAWEI FUEL RETIREMENT FOR 28-12-2018 BY IKECHUKWU ROBERT E.
B8: Date | C8: Vehicle Number | D8: Filling Station | E8: Mileage | F8: Type | G8: Quantity | H8: Amount per Litre | I8: TRACKING REPORT LITRE | J8: Variance | K8: RATE | L8: PURCHASE POINT | M8: CONTRACT | N8: NAME | O8: PHONE NO | P8: COMMENT | Q8: VEHICLE MAKE
B9: 28/12/2018 | C9: LSR 993 XL | D9: MOBIL | E9: 139740 | F9: PETROL | G9: 34 | H9: 145 | I9: 37 | J9: 3 | K9: 5000 | L9: PHC | M9: HUAWEI | N9: ADOYE DENNIS | O9: 7068565837 | P9: PAID INTO FME'S ACCOUNT (DRIVER FORGOT HIS ATM CARD) | Q9: TOYOTA HILUX
B10: 28/12/2018 | C10: KRD 539 XF | D10: NGOZI PET | E10: 297159 | F10: PETROL | G10: 34 | H10: 145 | I10: 33 | J10: 1 | K10: 5000 | L10: UMUAHIA | M10: HUAWEI | N10: SANNI WILLIAMS | O10: 8166130748 | Q10: MITS.L200
B11: 28/12/2019 | C11: AAA 258 XQ | D11: NUA FILLING STATION | E11: 191059 | F11: PETROL | G11: 28 | H11: 145 | I11: 21 | J11: 7 | K11: 4000 | L11: ABA | M11: HUAWEI | N11: DENNIS ONEN | O11: 9062959262 | Q11: MITS.L200
K12: 14000

Sheet 09-01-2019
H6: HUAWEI FUEL RETIREMENT FOR 09-01-2019 BY IKECHUKWU ROBERT E.
B8: Date | C8: Vehicle Number | D8: Filling Station | E8: Mileage | F8: Type | G8: Quantity | H8: Amount per Litre | I8: TRACKING REPORT LITRE | J8: Variance | K8: RATE | L8: PURCHASE POINT | M8: CONTRACT | N8: NAME | O8: PHONE NO | P8: COMMENT | Q8: VEHICLE MAKE
B9: 2019-09-01 | C9: AAA 258 XQ | D9: NUA FILLING STATION | E9: 193075 | F9: PETROL | G9: 28 | H9: 145 | I9: NOT CAPTURED | J9: 0 | K9: 4000 | L9: ABA | M9: HUAWEI | N9: DENNIS ONEN | O9: 9062959262 | Q9: MITS.L200
K10: 4000

Sheet 12-01-2019
H6: HUAWEI FUEL RETIREMENT FOR 12-01-2019 BY IKECHUKWU ROBERT E.
B8: Date | C8: Vehicle Number | D8: Filling Station | E8: Mileage | F8: Type | G8: Quantity | H8: Amount per Litre | I8: TRACKING REPORT LITRE | J8: Variance | K8: RATE | L8: PURCHASE POINT | M8: CONTRACT | N8: NAME | O8: PHONE NO | P8: COMMENT | Q8: VEHICLE MAKE
B9: 2019-10-01 | C9: AAA 258 XQ | D9: NUA FILLING STATION | E9: 193075 | F9: PETROL | G9: 28 | H9: 145 | I9: 19.5 | J9: 8.5 | K9: 4000 | L9: ABA | M9: HUAWEI | N9: DENNIS ONEN | O9: 9062959262 | Q9: MITS.L200
B10: 2019-11-01 | C10: LSD 460 XM | D10: ETERNAL | E10: 107601 | F10: PETROL | G10: 17 | H10: 145 | I10: NOT CAPTURED | J10: 0 | K10: 2500 | L10: PHC | M10: HUAWEI | N10: SUNDAY OGUNAIKE | O10: 8035263691 | Q10: TOYOTA HILUX
B11: 2019-12-01 | C11: KRD 89 XM | D11: ETERNAL | E11: 193289 | F11: PETROL | G11: 31 | H11: 145 | I11: 29.5 | J11: 1.5 | K11: 4500 | L11: PHC | M11: HUAWEI | N11: SUNDAY OGUNAIKE | O11: 8035263691 | Q11: TOYOTA HILUX
B12: 2019-12-01 | C12: AAA 258 XQ | D12: NUA FILLING STATION | E12: 193628 | F12: PETROL | G12: 21 | H12: 145 | I12: 19 | J12: 3 | K12: 3000 | L12: ABA | M12: HUAWEI | N12: DENNIS ONEN | O12: 9062959265 | Q12: MITS.L200
K13: 14000

Sheet 16-01-2019
H6: HUAWEI FUEL RETIREMENT FOR 16-01-2019 BY IKECHUKWU ROBERT E.
B8: Date | C8: Vehicle Number | D8: Filling Station | E8: Mileage | F8: Type | G8: Quantity | H8: Amount per Litre | I8: TRACKING REPORT LITRE | J8: Variance | K8: RATE | L8: PURCHASE POINT | M8: CONTRACT | N8: NAME | O8: PHONE NO | P8: COMMENT | Q8: VEHICLE MAKE
B9: 2019-08-01 | C9: KRD 539 XF | D9: NGOZI PET | E9: 298983 | F9: PETROL | G9: 34 | H9: 145 | I9: 25 | J9: 9 | K9: 5000 | L9: UMUAHIA | M9: HUAWEI | N9: SANNI WILLIAMS | O9: 8166130748 | Q9: MITS.L200
B10: 14/1/2019 | C10: AAA 258 XQ | D10: NUA FILLING STATION | E10: 193788 | F10: PETROL | G10: 28 | H10: 145 | I10: 30 | J10: 0 | K10: 4000 | L10: ABA | M10: HUAWEI | N10: DENNIS ONEN | O10: 9062959265 | Q10: MITS.L200
B11: 14/1/2019 | C11: KRD 89 XM | D11: ETERNAL | E11: 84952 | F11: PETROL | G11: 31 | H11: 145 | I11: 29 | J11: 2 | K11: 4000 | L11: PHC | M11: HUAWEI | N11: SUNDAY OGUNAIKE | O11: 8035263691 | Q11: TOYOTA HILUX
B12: 14/1/2019 | C12: AAA 634 XM | D12: SOSO | E12: 128639 | F12: PETROL | G12: 13 | H12: 145 | I12: 13 | J12: 0 | K12: 2000 | L12: PHC | M12: HUAWEI | N12: CHIGOZIE AHANONU | O12: 8033255989 | Q12: TOYOTA HILUX
B13: 15/1/2019 | C13: AAA 258 XQ | D13: NUA FILLING STATION | E13: 193933 | F13: PETROL | G13: 13 | H13: 145 | I13: 18 | J13: 5 | K13: 2000 | L13: ABA | M13: HUAWEI | N13: DENNIS ONEN | O13: 9062959265 | Q13: MITS.L200
B14: 15/1/2019 | C14: KRD 89 XM | D14: ETERNAL | E14: 85134 | F14: PETROL | G14: 31 | H14: 145 | I14: 21 | J14: 10 | K14: 4500 | L14: PHC | M14: HUAWEI | N14: SUNDAY OGUNAIKE | O14: 8035263691 | Q14: TOYOTA HILUX
B15: 15/1/2019 | C15: AAA 634 XM | D15: SOSO | E15: 128706 | F15: PETROL | G15: 20 | H15: 145 | I15: 15 | J15: 5 | K15: 3000 | L15: PHC | M15: HUAWEI | N15: CHIGOZIE AHANONU | O15: 8033255989 | Q15: TOYOTA HILUX
B16: 15/1/2019 | C16: LSR 993 XL | D16: NNPC | E16: 141542 | F16: PETROL | G16: 62 | H16: 145 | I16: 51 | J16: 11 | K16: 9000 | L16: BENIN | M16: HUAWEI | N16: ADOYE DENIS | O16: 7034261584 | Q16: TOYOTA HILUX
B17: 16/1/2019 | C17: LSR 993 XL | D17: CONOIL | E17: 141920 | F17: PETROL | G17: 62 | H17: 145 | I17: 56 | J17: 6 | K17: 9000 | L17: BENIN | M17: HUAWEI | N17: ADOYE DENIS | O17: 7034261584 | Q17: TOYOTA HILUX
K18: 42500

Sheet 17-01-2019
H6: HUAWEI FUEL RETIREMENT FOR 17-01-2019 BY IKECHUKWU ROBERT E.
B8: Date | C8: Vehicle Number | D8: Filling Station | E8: Mileage | F8: Type | G8: Quantity | H8: Amount per Litre | I8: TRACKING REPORT LITRE | J8: Variance | K8: RATE | L8: PURCHASE POINT | M8: CONTRACT | N8: NAME | O8: PHONE NO | P8: COMMENT | Q8: VEHICLE MAKE
B9: 16/1/2019 | C9: KRD 89 XM | D9: ETERNAL | E9: 85256 | F9: PETROL | G9: 34 | H9: 145 | I9: 34 | J9: 0 | K9: 5000 | L9: OWERRI | M9: HUAWEI | N9: SUNDAY OGUNAIKE | O9: 8035263691 | Q9: TOYOTA HILUX
B10: 16/1/2019 | C10: AAA 634 XM | D10: SOSO | E10: 128816 | F10: PETROL | G10: 10 | H10: 145 | I10: 8 | J10: 2 | K10: 1500 | L10: PHC | M10: HUAWEI | N10: CHIGOZIE AHANONU | O10: 8033255989 | Q10: TOYOTA HILUX
B11: 16/1/2019 | C11: AAA 634 XM | D11: MOBIL | E11: 128821 | F11: PETROL | G11: 24 | H11: 145 | I11: 25 | J11: 1 | K11: 3500 | L11: PHC | M11: HUAWEI | N11: CHIGOZIE AHANONU | O11: 8033255990 | Q11: TOYOTA HILUX
B12: 17/1/2019 | C12: AAA 258 XQ | D12: NUA FILLING STATION | E12: 194032 | F12: PETROL | G12: 34 | H12: 145 | I12: 31 | J12: 3 | K12: 5000 | L12: ABA | M12: HUAWEI | N12: DENNIS ONEN | O12: 9062959265 | Q12: MITS.L200
K13: 15000

Sheet 18-01-2019
H6: HUAWEI FUEL RETIREMENT FOR 18-01-2019 BY IKECHUKWU ROBERT E.
B8: Date | C8: Vehicle Number | D8: Filling Station | E8: Mileage | F8: Type | G8: Quantity | H8: Amount per Litre | I8: TRACKING REPORT LITRE | J8: Variance | K8: RATE | L8: PURCHASE POINT | M8: CONTRACT | N8: NAME | O8: PHONE NO | P8: COMMENT | Q8: VEHICLE MAKE
B9: 18/1/2019 | C9: AAA 634 XM | D9: MOBIL | E9: 128987 | F9: PETROL | G9: 34 | H9: 145 | I9: 28 | J9: 6 | K9: 5000 | L9: PHC | M9: HUAWEI | N9: CHIGOZIE AHANONU | O9: 8033255990 | Q9: TOYOTA HILUX
K10: 5000

Sheet 21-01-2019
H7: HUAWEI FUEL RETIREMENT FOR 21-01-2019 BY IKECHUKWU ROBERT E.
B9: Date | C9: Vehicle Number | D9: Filling Station | E9: Mileage | F9: Type | G9: Quantity | H9: Amount per Litre | I9: TRACKING REPORT LITRE | J9: Variance | K9: RATE | L9: PURCHASE POINT | M9: CONTRACT | N9: NAME | O9: PHONE NO | P9: COMMENT | Q9: VEHICLE MAKE
B10: 19/1/2019 | C10: KRD 89 XM | D10: AA RANO PET | E10: 85477 | F10: AA RANO PET | G10: 34 | H10: 145 | I10: 17 | J10: 17 | K10: 5000 | L10: OWERRI | M10: HUAWEI | N10: SUNDAY OGUNAIKE | O10: 8035263691 | P10: Kindly deduct N2,465.00 From the driver. | Q10: TOYOTA HILUX
B11: 21/1/2019 | C11: AAA 634 XM | D11: SOSO | E11: 129105 | F11: PETROL | G11: 34 | H11: 145 | I11: 23 | J11: 11 | K11: 5000 | L11: PHC | M11: HUAWEI | N11: CHIGOZIE AHANONU | O11: 8033255989 | P11: Kindly deduct N1,595.00 From the driver. | Q11: TOYOTA HILUX
K13: 10000

Sheet 23-01-2019
H6: HUAWEI FUEL RETIREMENT FOR 23-01-2019 BY IKECHUKWU ROBERT E.
B8: Date | C8: Vehicle Number | D8: Filling Station | E8: Mileage | F8: Type | G8: Quantity | H8: Amount per Litre | I8: TRACKING REPORT LITRE | J8: Variance | K8: RATE | L8: PURCHASE POINT | M8: CONTRACT | N8: NAME | O8: PHONE NO | P8: COMMENT | Q8: VEHICLE MAKE
B9: 23/1/2019 | C9: AAA 634 XM | D9: SOBAZ | E9: 129261 | F9: PETROL | G9: 28 | H9: 145 | I9: 16 | J9: 12 | K9: 4000 | L9: PHC | M9: HUAWEI | N9: CHIGOZIE AHANONU | O9: 8033255989 | P9: Kindly deduct N1,740.00 From the driver. | Q9: TOYOTA HILUX
K11: 4000

Sheet 25-01-2019
H5: HUAWEI FUEL RETIREMENT FOR 25-01-2019 BY IKECHUKWU ROBERT E.
B7: Date | C7: Vehicle Number | D7: Filling Station | E7: Mileage | F7: Type | G7: Quantity | H7: Amount per Litre | I7: TRACKING REPORT LITRE | J7: Variance | K7: RATE | L7: PURCHASE POINT | M7: CONTRACT | N7: NAME | O7: PHONE NO | P7: COMMENT | Q7: VEHICLE MAKE
B8: 24/1/2019 | C8: AAA 634 XM | D8: SOBAZ | E8: 129302 | F8: PETROL | G8: 34 | H8: 145 | I8: 24 | J8: 10 | K8: 5000 | L8: PHC | M8: HUAWEI | N8: CHIGOZIE AHANONU | O8: 8033255989 | Q8: TOYOTA HILUX
B9: 25/1/2019 | C9: AAA 634 XM | D9: SOSO | E9: 129477 | F9: PETROL | G9: 34 | H9: 145 | I9: 21 | J9: 13 | K9: 5000 | L9: PHC | M9: HUAWEI | N9: CHIGOZIE AHANONU | O9: 8033255990 | P9: Kindly deduct N1,885.00 From the driver. | Q9: TOYOTA HILUX
K10: 10000

Sheet 28-01-2019
H6: HUAWEI FUEL RETIREMENT FOR 28-01-2019 BY IKECHUKWU ROBERT E.
B8: Date | C8: Vehicle Number | D8: Filling Station | E8: Mileage | F8: Type | G8: Quantity | H8: Amount per Litre | I8: TRACKING REPORT LITRE | J8: Variance | K8: RATE | L8: PURCHASE POINT | M8: CONTRACT | N8: NAME | O8: PHONE NO | P8: COMMENT | Q8: VEHICLE MAKE
B9: 28/1/2019 | C9: AAA 634 XM | D9: PROPEL | E9: 129637 | F9: PETROL | G9: 28 | H9: 145 | I9: 24 | J9: 4 | K9: 4000 | L9: PHC | M9: HUAWEI | N9: CHIGOZIE AHANONU | O9: 8033255990 | Q9: TOYOTA HILUX
K10: 4000

Sheet 29-01-2019
H6: HUAWEI FUEL RETIREMENT FOR 29-01-2019 BY IKECHUKWU ROBERT E.
B8: Date | C8: Vehicle Number | D8: Filling Station | E8: Mileage | F8: Type | G8: Quantity | H8: Amount per Litre | I8: TRACKING REPORT LITRE | J8: Variance | K8: RATE | L8: PURCHASE POINT | M8: CONTRACT | N8: NAME | O8: PHONE NO | P8: COMMENT | Q8: VEHICLE MAKE
B9: 29/1/2019 | C9: AAA 634 XM | D9: PROPEL | E9: 129763 | F9: PETROL | G9: 34 | H9: 145 | I9: 23 | J9: 11 | K9: 5000 | L9: PHC | M9: HUAWEI | N9: CHIGOZIE AHANONU | O9: 8033255990 | Q9: TOYOTA HILUX
B10: 29/1/2019 | C10: AAA 257 XQ | D10: NUA FILLING STATION | E10: 200198 | F10: PETROL | G10: 28 | H10: 145 | I10: NOT CAPTURED | J10: 0 | K10: 4000 | L10: ABA | M10: HUAWEI | N10: JULIAN ADADU | O10: 9062224682 | Q10: MITS.L200
K11: 9000

Sheet 1-02-2019
H5: HUAWEI FUEL RETIREMENT FOR 1-02-2019 BY IKECHUKWU ROBERT E.
B7: Date | C7: Vehicle Number | D7: Filling Station | E7: Mileage | F7: Type | G7: Quantity | H7: Amount per Litre | I7: TRACKING REPORT LITRE | J7: Variance | K7: RATE | L7: PURCHASE POINT | M7: CONTRACT | N7: NAME | O7: PHONE NO | P7: COMMENT | Q7: VEHICLE MAKE
B8: 31/1/2019 | C8: AAA 634 XM | D8: SOSO | E8: 129910 | F8: PETROL | G8: 28 | H8: 145 | I8: 21 | J8: 7 | K8: 4000 | L8: PHC | M8: HUAWEI | N8: CHIGOZIE AHANONU | O8: 8033255990 | Q8: TOYOTA HILUX
B9: 2020-01-02 | C9: AAA 634 XM | D9: TEMPO | E9: 130065 | F9: PETROL | G9: 34 | H9: 145 | I9: 18 | J9: 16 | K9: 5000 | L9: PHC | M9: HUAWEI | N9: CHIGOZIE AHANONU | O9: 8033255991 | P9: Kindly deduct N2,320.00 From the driver. | Q9: TOYOTA HILUX
K10: 9000

Sheet 05-02-2019
H6: HUAWEI FUEL RETIREMENT FOR 5-02-2019 BY IKECHUKWU ROBERT E.
B8: Date | C8: Vehicle Number | D8: Filling Station | E8: Mileage | F8: Type | G8: Quantity | H8: Amount per Litre | I8: TRACKING REPORT LITRE | J8: Variance | K8: RATE | L8: PURCHASE POINT | M8: CONTRACT | N8: NAME | O8: PHONE NO | P8: COMMENT | Q8: VEHICLE MAKE
B9: 2019-03-02 | C9: LSR 993 XL | D9: NIPPCO | E9: 143837 | F9: PETROL | G9: 28 | H9: 145 | I9: 30 | J9: 2 | K9: 4000 | L9: BENIN | M9: HUAWEI | N9: ADOYE DENIS | O9: 7034261584 | Q9: TOYOTA HILUX
B10: 2019-04-02 | C10: AAA 634 XM | D10: SOSO | E10: 130219 | F10: PETROL | G10: 28 | H10: 145 | I10: 20.5 | J10: 7.5 | K10: 4000 | L10: PHC | M10: HUAWEI | N10: CHIGOZIE AHANONU | O10: 8033255990 | P10: Kindly deduct N1,087 from driver | Q10: TOYOTA HILUX
B11: 2019-05-02 | C11: AAA 634 XM | D11: PROPEL | E11: 130365 | F11: PETROL | G11: 28 | H11: 145 | I11: 20.5 | J11: 7.5 | K11: 4000 | L11: PHC | M11: HUAWEI | N11: CHIGOZIE AHANONU | O11: 8033255991 | P11: Kindly deduct N1,087 from driver | Q11: TOYOTA HILUX
K12: 12000

Sheet 06-02-2019
H7: HUAWEI FUEL RETIREMENT FOR 6-02-2019 BY IKECHUKWU ROBERT E.
B9: Date | C9: Vehicle Number | D9: Filling Station | E9: Mileage | F9: Type | G9: Quantity | H9: Amount per Litre | I9: TRACKING REPORT LITRE | J9: Variance | K9: RATE | L9: PURCHASE POINT | M9: CONTRACT | N9: NAME | O9: PHONE NO | P9: COMMENT | Q9: VEHICLE MAKE
B10: 2019-05-02 | C10: AAA 258 XQ | D10: NUA FILLING STATION | E10: 196397 | F10: PETROL | G10: 28 | H10: 145 | I10: 14.5 | J10: 13 | K10: 4000 | L10: ABA | M10: HUAWEI | N10: DENNIS ONEN | O10: 9062959262 | P10: Kindly deduct N1,885. from driver | Q10: MITS.L200
B11: 2019-06-02 | C11: AAA 634 XM | D11: SOSO | E11: 130520 | F11: PETROL | G11: 28 | H11: 145 | I11: 20 | J11: 8 | K11: 4000 | L11: PHC | M11: HUAWEI | N11: CHIGOZIE AHANONU | O11: 8033255990 | Q11: TOYOTA HILUX
B12: 2019-06-02 | C12: AAA 257 XQ | D12: TONIMAS | E12: 200947 | F12: PETROL | G12: 28 | H12: 145 | I12: 18.5 | J12: 9.5 | K12: 4000 | L12: ABA | M12: HUAWEI | N12: JULIAN ADADU | O12: 9062224682 | P12: Kindly deduct N1,305. from driver | Q12: TOYOTA HILUX
K13: 12000

Sheet 07-02-2019
H6: HUAWEI FUEL RETIREMENT FOR 8-02-2019 BY IKECHUKWU ROBERT E.
B8: Date | C8: Vehicle Number | D8: Filling Station | E8: Mileage | F8: Type | G8: Quantity | H8: Amount per Litre | I8: TRACKING REPORT LITRE | J8: Variance | K8: RATE | L8: PURCHASE POINT | M8: CONTRACT | N8: NAME | O8: PHONE NO | P8: COMMENT | Q8: VEHICLE MAKE
B9: 2019-06-02 | C9: LSR 993 XL | D9: NIPPCO | E9: 144055 | F9: PETROL | G9: 21 | H9: 145 | I9: 19 | J9: 2 | K9: 3000 | L9: BENIN | M9: HUAWEI | N9: ADOYE DENIS | O9: 7034261584 | Q9: TOYOTA HILUX
B10: 2019-07-02 | C10: AAA 634 XM | D10: MOBIL | E10: 130665 | F10: PETROL | G10: 14 | H10: 145 | I10: 10 | J10: 4 | K10: 2000 | L10: PHC | M10: HUAWEI | N10: CHIGOZIE AHANONU | O10: 8033255990 | Q10: TOYOTA HILUX
B11: 2019-07-02 | C11: AAA 634 XM | D11: PROPEL | E11: 130365 | F11: PETROL | G11: 14 | H11: 145 | I11: 12 | J11: 2 | K11: 2000 | L11: PHC | M11: HUAWEI | N11: CHIGOZIE AHANONU | O11: 8033255991 | Q11: TOYOTA HILUX
B12: 2019-08-02 | C12: XC 288 YRE | D12: TONIMAS | E12: 228035 | F12: PETROL | G12: 28 | H12: 145 | I12: 19 | J12: 9 | K12: 4000 | L12: ABA | M12: HUAWEI | N12: JULIAN ADADU | O12: 9062224682 | P12: Kindly deduct N1,305. from the driver | Q12: MITS.L200
K13: 11000

Sheet 11-02-2019
H7: HUAWEI FUEL RETIREMENT FOR 11-02-2019 BY IKECHUKWU ROBERT E.
B9: Date | C9: Vehicle Number | D9: Filling Station | E9: Mileage | F9: Type | G9: Quantity | H9: Amount per Litre | I9: TRACKING REPORT LITRE | J9: Variance | K9: RATE | L9: PURCHASE POINT | M9: CONTRACT | N9: NAME | O9: PHONE NO | P9: COMMENT | Q9: VEHICLE MAKE
B10: 2019-09-02 | C10: AAA 634 XM | D10: PROPEL | E10: 130820 | F10: PETROL | G10: 7 | H10: 145 | I10: 8.5 | J10: 0.5 | K10: 1000 | L10: PHC | M10: HUAWEI | N10: CHIGOZIE AHANONU | O10: 8033255991 | Q10: TOYOTA HILUX
B11: 2019-09-02 | C11: AAA 634 XM | D11: PROPEL | E11: 130977 | F11: PETROL | G11: 14 | H11: 145 | I11: 10 | J11: 1 | K11: 2000 | L11: PHC | M11: HUAWEI | N11: CHIGOZIE AHANONU | O11: 8033255992 | Q11: TOYOTA HILUX
B12: 2019-11-02 | C12: KMC 44 XA | D12: NGOZI PET | E12: 244914 | F12: PETROL | G12: 28 | H12: 145 | I12: 26 | J12: 2 | K12: 4000 | L12: ABA | M12: HUAWEI | N12: SANNI WILLIAMS | O12: 8025997693 | Q12: TOYOTA HILUX
B13: 2019-11-02 | C13: AAA 634 XM | D13: PROPEL | E13: 131028 | F13: PETROL | G13: 21 | H13: 145 | I13: NOT CAPTURED | J13: 0 | K13: 4000 | L13: PHC | M13: HUAWEI | N13: CHIGOZIE AHANONU | O13: 8033255992 | P13: Kindly deduct N3,000.FROM DRIVER | Q13: TOYOTA HILUX
K14: 11000

Sheet 13-02-2019
H6: HUAWEI FUEL RETIREMENT FOR 13-02-2019 BY IKECHUKWU ROBERT E.
B8: Date | C8: Vehicle Number | D8: Filling Station | E8: Mileage | F8: Type | G8: Quantity | H8: Amount per Litre | I8: TRACKING REPORT LITRE | J8: Variance | K8: RATE | L8: PURCHASE POINT | M8: CONTRACT | N8: NAME | O8: PHONE NO | P8: COMMENT | Q8: VEHICLE MAKE
B9: 13/2/2019 | C9: KMC 44 XA | D9: NGOZI PET | E9: 245138 | F9: PETROL | G9: 41 | H9: 145 | I9: 26 | J9: 15 | K9: 6000 | L9: ABA | M9: HUAWEI | N9: SANNI WILLIAMS | O9: 8025997693 | P9: Kindly deduct N2,175.FROM DRIVER | Q9: TOYOTA HILUX
B10: 13/2/2019 | C10: AAA 634 XM | D10: PROPEL | E10: 131170 | F10: PETROL | G10: 28 | H10: 145 | I10: 15 | J10: 13 | K10: 4000 | L10: PHC | M10: HUAWEI | N10: CHIGOZIE AHANONU | O10: 8033255992 | P10: Kindly deduct N1,885.FROM DRIVER | Q10: TOYOTA HILUX
K11: 10000

Sheet 14-02-2019
H5: HUAWEI FUEL RETIREMENT FOR 14-02-2019 BY IKECHUKWU ROBERT E.
B7: Date | C7: Vehicle Number | D7: Filling Station | E7: Mileage | F7: Type | G7: Quantity | H7: Amount per Litre | I7: TRACKING REPORT LITRE | J7: Variance | K7: RATE | L7: PURCHASE POINT | M7: CONTRACT | N7: NAME | O7: PHONE NO | P7: COMMENT | Q7: VEHICLE MAKE
B8: 13/2/2019 | C8: KMC 44 XA | D8: NGOZI PET | E8: 245138 | F8: PETROL | G8: 38 | H8: 145 | I8: 26 | J8: 12 | K8: 5000 | L8: UMUAHIA | M8: HUAWEI | N8: SANNI WILLIAMS | O8: 8025997693 | P8: Kindly deduct N1,740..FROM DRIVER | Q8: TOYOTA HILUX
B9: 14/2/2019 | C9: KRD 89 XM | D9: NDI CHUCKS | E9: 88101 | F9: PETROL | G9: 21 | H9: 145 | I9: 20 | J9: 1 | K9: 3000 | L9: PHC | M9: HUAWEI | N9: SUNDAY OGUNAIKE | O9: 8035263691 | Q9: TOYOTA HILUX
K10: 8000

Sheet 15-02-2019
H6: HUAWEI FUEL RETIREMENT FOR 15-02-2019 BY IKECHUKWU ROBERT E.
B8: Date | C8: Vehicle Number | D8: Filling Station | E8: Mileage | F8: Type | G8: Quantity | H8: Amount per Litre | I8: TRACKING REPORT LITRE | J8: Variance | K8: RATE | L8: PURCHASE POINT | M8: CONTRACT | N8: NAME | O8: PHONE NO | P8: COMMENT | Q8: VEHICLE MAKE
B9: 15/2/2019 | C9: LND 565 XM | D9: TONIMAS | E9: 183507 | F9: PETROL | G9: 41 | H9: 145 | I9: 27.5 | J9: 14 | K9: 6000 | L9: ABA | M9: HUAWEI | N9: JULIAN ADADU | O9: 9062224682 | P9: Kindly deduct N2,012.50. from the driver | Q9: MITS.L200
B10: 15/2/2019 | C10: AAA 258 XQ | D10: NUA FILLING STATION | E10: 196500 | F10: PETROL | G10: 48 | H10: 145 | I10: 44 | J10: 4 | K10: 7000 | L10: ABA | M10: HUAWEI | N10: DENNIS ONEN | O10: 9062959262 | Q10: MITS.L200
K11: 13000

Sheet 01-03-2019
I6: HUAWEI FUEL RETIREMENT FOR 01-03-2019 BY IKECHUKWU ROBERT E.
C8: Date | D8: Vehicle Number | E8: Filling Station | F8: Mileage | G8: Type | H8: Quantity | I8: Amount per Litre | J8: TRACKING REPORT LITRE | K8: Variance | L8: RATE | M8: PURCHASE POINT | N8: CONTRACT | O8: NAME | P8: PHONE NO | Q8: COMMENT | R8: VEHICLE MAKE
C9: 22/2/2019 | D9: AAA 257 XQ | E9: TONIMAS | F9: 202097 | G9: PETROL | H9: 21 | I9: 145 | J9: 13 | K9: 8 | L9: 3000 | M9: ABA | N9: HUAWEI | O9: DENNIS OKEREKE ONEN | P9: 9062959262 | R9: MITS.L200
C10: 2019-01-03 | D10: AAA 257 XQ | E10: MOBIL | F10: 202195 | G10: PETROL | H10: 40 | I10: 145 | J10: 37 | K10: 4 | L10: 6000 | M10: PHC | N10: HUAWEI | O10: ROLAND DONUBARI OPT | P10: 9062224683 | R10: MITS.L200
L12: 9000

Sheet 06-03-2019
I6: HUAWEI FUEL RETIREMENT FOR 06-03-2019 BY IKECHUKWU ROBERT E.
C8: Date | D8: Vehicle Number | E8: Filling Station | F8: Mileage | G8: Type | H8: Quantity | I8: Amount per Litre | J8: TRACKING REPORT LITRE | K8: Variance | L8: RATE | M8: PURCHASE POINT | N8: CONTRACT | O8: NAME | P8: PHONE NO | Q8: COMMENT | R8: VEHICLE MAKE
C9: 2019-05-03 | D9: APP 67 XM | E9: SOSO | F9: 115479 | G9: PETROL | H9: 49 | I9: 145 | J9: 38 | K9: 11 | L9: 7000 | M9: PHC | N9: HUAWEI | O9: ROLAND DONUBARI OPT | P9: 9062224683 | R9: TOYOTA HILUX
C10: 2019-06-03 | D10: KMC 44 XA | E10: MOBIL | F10: 202195 | G10: PETROL | H10: 35 | I10: 145 | J10: 30 | K10: 5 | L10: 5000 | M10: UMUAHIA | N10: HUAWEI | O10: SANNI WILLIAMS | P10: 8166130748 | R10: TOYOTA HILUX
L12: 12000

Sheet 07-03-2019
H7: HUAWEI FUEL RETIREMENT FOR 08-03-2019 BY IKECHUKWU ROBERT E.
B9: Date | C9: Vehicle Number | D9: Filling Station | E9: Mileage | F9: Type | G9: Quantity | H9: Amount per Litre | I9: TRACKING REPORT LITRE | J9: Variance | K9: RATE | L9: PURCHASE POINT | M9: CONTRACT | N9: NAME | O9: PHONE NO | P9: COMMENT | Q9: VEHICLE MAKE
B10: 2019-07-03 | C10: APP 67 XM | D10: SOSO | E10: 115853 | F10: PETROL | G10: 35 | H10: 145 | I10: 27 | J10: 8 | K10: 5000 | L10: PHC | M10: HUAWEI | N10: ROLAND DONUBARI OPT | O10: 9062224683 | Q10: TOYOTA HILUX
B11: 2019-07-03 | C11: KMC 44 XA | D11: MOBIL | E11: 247914 | F11: PETROL | G11: 35 | H11: 145 | I11: 30 | J11: 5 | K11: 5000 | L11: UMUAHIA | M11: HUAWEI | N11: SANNI WILLIAMS | O11: 8166130748 | Q11: TOYOTA HILUX
K13: 10000

Sheet 19-03-2019
H6: HUAWEI FUEL RETIREMENT FOR 19-03-2019 BY IKECHUKWU ROBERT E.
B8: Date | C8: Vehicle Number | D8: Filling Station | E8: Mileage | F8: Type | G8: Quantity | H8: Amount per Litre | I8: TRACKING REPORT LITRE | J8: Variance | K8: RATE | L8: PURCHASE POINT | M8: CONTRACT | N8: NAME | O8: PHONE NO | P8: COMMENT | Q8: VEHICLE MAKE
B9: 16/3/2019 | C9: LSR 993 XL | D9: NIPPCO | E9: 149181 | F9: PETROL | G9: 41 | H9: 145 | I9: 37 | J9: 4 | K9: 6000 | L9: BENIN | M9: HUAWEI | N9: ADOYE DENIS | O9: 7034261584 | Q9: TOYOTA HILUX
B10: 18/3/2019 | C10: LSR 993 XL | D10: NIPPCO | E10: 149503 | F10: PETROL | G10: 41 | H10: 145 | I10: 44 | J10: 3 | K10: 6000 | L10: BENIN | M10: HUAWEI | N10: ADOYE DENIS | O10: 7034261585 | Q10: TOYOTA HILUX
B11: 18/3/2019 | C11: AAA 637 XM | D11: OANDO | E11: 86402 | F11: PETROL | G11: 34 | H11: 145 | I11: 17 | J11: 17 | K11: 5000 | L11: ENUGU | M11: HUAWEI | N11: JOHN OKONKWO | O11: 7067947392 | P11: KINDLY DEDUCT N2,465.00 | Q11: TOYOTA HILUX
B12: 19/3/2019 | C12: KMC 44 XA | D12: NGOZI PET | E12: 249222 | F12: PETROL | G12: 34 | H12: 145 | I12: 25 | J12: 9 | K12: 5000 | L12: UMUAHIA | M12: HUAWEI | N12: SANNI WILLIAMS | O12: 8025997693 | Q12: TOYOTA HILUX
B13: 19/3/2019 | C13: KRD 89 XM | D13: NDI CHUCKS | E13: 91255 | F13: PETROL | G13: 28 | H13: 145 | I13: 28 | J13: 0 | K13: 4000 | L13: PHC | M13: HUAWEI | N13: SUNDAY OGUNAIKE | O13: 8035263691 | Q13: TOYOTA HILUX
J14: TOTAL | K14: 26000

Sheet 20-03-2019
I6: HUAWEI FUEL RETIREMENT FOR 20-03-2019 BY IKECHUKWU ROBERT E.
C8: Date | D8: Vehicle Number | E8: Filling Station | F8: Mileage | G8: Type | H8: Quantity | I8: Amount per Litre | J8: TRACKING REPORT LITRE | K8: Variance | L8: RATE | M8: PURCHASE POINT | N8: CONTRACT | O8: NAME | P8: PHONE NO | Q8: COMMENT | R8: VEHICLE MAKE
C9: 18/3/2019 | D9: LND 565 XM | E9: PROPEL | F9: 185197 | G9: PETROL | H9: 28 | I9: 145 | J9: NOT CAPTURED | K9: 0 | L9: 4000 | M9: PHC | N9: HUAWEI | O9: CHIGOZIE AHANONU | P9: 8033255992 | Q9: NOT CAPTURED ON ZONMAX | R9: MITS.L200
C10: 19/3/2019 | D10: LND 565 XM | E10: SOSO | F10: 185343 | G10: PETROL | H10: 28 | I10: 145 | J10: NOT CAPTURED | K10: 0 | L10: 4000 | M10: PHC | N10: HUAWEI | O10: CHIGOZIE AHANONU | P10: 8033255992 | Q10: NOT CAPTURED ON ZONMAX | R10: MITS.L200
C11: 18/3/2019 | D11: AAA 637 XM | E11: OANDO | F11: 86402 | G11: PETROL | H11: 41 | I11: 145 | J11: 22 | K11: 19 | L11: 6000 | M11: ENUGU | N11: HUAWEI | O11: JOHN OKONKWOR | P11: 7067947392 | R11: TOYOTA HILUX
K12: TOTAL | L12: 14000

Sheet 21-03-2019
I4: HUAWEI FUEL RETIREMENT FOR 21-03-2019 BY IKECHUKWU ROBERT E.
C6: Date | D6: Vehicle Number | E6: Filling Station | F6: Mileage | G6: Type | H6: Quantity | I6: Amount per Litre | J6: TRACKING REPORT LITRE | K6: Variance | L6: RATE | M6: PURCHASE POINT | N6: CONTRACT | O6: NAME | P6: PHONE NO | Q6: COMMENT | R6: VEHICLE MAKE
C7: 20/3/2019 | D7: LSR 993 XL | E7: NIPPCO | F7: 149824 | G7: PETROL | H7: 28 | I7: 145 | J7: 26 | K7: 2 | L7: 4000 | M7: BENIN | N7: HUAWEI | O7: ADOYE DENIS | P7: 7034261584 | R7: TOYOTA HILUX
L9: 4000

Sheet 27-03-2019
H6: HUAWEI FUEL RETIREMENT FOR 27-03-2019 BY IKECHUKWU ROBERT E.
B8: Date | C8: Vehicle Number | D8: Filling Station | E8: Mileage | F8: Type | G8: Quantity | H8: Amount per Litre | I8: TRACKING REPORT LITRE | J8: Variance | K8: RATE | L8: PURCHASE POINT | M8: CONTRACT | N8: NAME | O8: PHONE NO | P8: COMMENT | Q8: VEHICLE MAKE
B9: 26/3/2019 | C9: AAA 634 XM | D9: PROPEL | E9: 133231 | F9: PETROL | G9: 34 | H9: 145 | I9: NOT CAPTURED | J9: 0 | K9: 5000 | L9: PHC | M9: HUAWEI | N9: CHIGOZIE AHANONU | O9: 8033255992 | P9: NOT CAPTURED ON ZONMAX | Q9: MITS.L200
B10: 26/3/2019 | C10: AAA 637 XM | D10: OANDO | E10: 88468 | F10: PETROL | G10: 41 | H10: 145 | I10: 11 | J10: 30 | K10: 6000 | L10: ENUGU | M10: HUAWEI | N10: JOHN OKONKWOR | O10: 7067947392 | P10: KINDLY DEDUCT N4,350.00 | Q10: TOYOTA HILUX
B11: 27/3/2020 | C11: AAA 637 XM | D11: OANDO | E11: 88601 | F11: PETROL | G11: 41 | H11: 145 | I11: 39 | J11: 2 | K11: 6000 | L11: ENUGU | M11: HUAWEI | N11: JOHN OKONKWOR | O11: 7067947393 | Q11: TOYOTA HILUX
B12: 27/3/2019 | C12: KMC 44 XA | D12: NGOZI PET | E12: 250481 | F12: PETROL | G12: 34 | H12: 145 | I12: 26 | J12: 8 | K12: 5000 | L12: UMUAHIA | M12: HUAWEI | N12: SANNI WILLIAMS | O12: 8166130748 | Q12: TOYOTA HILUX
B13: 27/3/2019 | C13: LSR 993 XL | D13: NIPPCO | E13: 151376 | F13: PETROL | G13: 34 | H13: 145 | I13: 35 | J13: 1 | K13: 5000 | L13: BENIN | M13: HUAWEI | N13: ADOYE DENIS | O13: 7034261584 | Q13: TOYOTA HILUX
J14: TOTAL | K14: 27000

Sheet 31-03-2019
H6: HUAWEI FUEL RETIREMENT FOR 31-03-2019 BY IKECHUKWU ROBERT E.
B8: Date | C8: Vehicle Number | D8: Filling Station | E8: Mileage | F8: Type | G8: Quantity | H8: Amount per Litre | I8: TRACKING REPORT LITRE | J8: Variance | K8: RATE | L8: PURCHASE POINT | M8: CONTRACT | N8: NAME | O8: PHONE NO | P8: COMMENT | Q8: VEHICLE MAKE
B9: 29/3/2019 | C9: MUS 844 XK | D9: PROPEL | E9: 87818 | F9: PETROL | G9: 34 | H9: 145 | I9: NOT CAPTURED | J9: 0 | K9: 5000 | L9: PHC | M9: HUAWEI | N9: ONYEDIKACHI JOHN T. | O9: 7031747861 | P9: KINDLY DEDUCT N5,000.00 | Q9: TOYOTA HILUX | R9: HUAWEI RELIEVE VEHICLE
B10: 31/3/2019 | C10: MUS 844 XK | D10: SOSO | E10: 87932 | F10: PETROL | G10: 34 | H10: 145 | I10: 33 | J10: 1 | K10: 5000 | L10: PHC | M10: HUAWEI | N10: ONYEDIKACHI JOHN T. | O10: 7031747861 | Q10: TOYOTA HILUX | R10: HUAWEI RELIEVE VEHICLE
J12: TOTAL | K12: 10000

Sheet 03-04-2019
H6: HUAWEI FUEL RETIREMENT FOR 3-04-2019 BY IKECHUKWU ROBERT E.
B8: Date | C8: Vehicle Number | D8: Filling Station | E8: Mileage | F8: Type | G8: Quantity | H8: Amount per Litre | I8: TRACKING REPORT LITRE | J8: Variance | K8: RATE | L8: PURCHASE POINT | M8: CONTRACT | N8: NAME | O8: PHONE NO | P8: COMMENT | Q8: VEHICLE MAKE
B9: 2019-02-04 | C9: MUS 844 XK | D9: PROPEL | E9: 88086 | F9: PETROL | G9: 34 | H9: 145 | I9: 34 | J9: 0 | K9: 5000 | L9: PHC | M9: HUAWEI | N9: ONYEDIKACHI JOHN T. | O9: 7031747861 | Q9: TOYOTA HILUX | R9: HUAWEI RELIEVE VEHICLE
B10: 2019-03-04 | C10: AAA 637 XM | D10: OANDO | E10: 89884 | F10: PETROL | G10: 28 | H10: 145 | I10: 10 | J10: 18 | K10: 4000 | L10: ENUGU | M10: HUAWEI | N10: JOHN OKONKWOR | O10: 7067947392 | P10: KINDLY DEDUCT N2,610.00 from the driver | Q10: TOYOTA HILUX
J12: TOTAL | K12: 9000

Sheet 04-04-2019
I5: HUAWEI FUEL RETIREMENT FOR 04-04-2019 BY IKECHUKWU ROBERT E.
C7: Date | D7: Vehicle Number | E7: Filling Station | F7: Mileage | G7: Type | H7: Quantity | I7: Amount per Litre | J7: TRACKING REPORT LITRE | K7: Variance | L7: RATE | M7: PURCHASE POINT | N7: CONTRACT | O7: NAME | P7: PHONE NO | Q7: COMMENT | R7: VEHICLE MAKE
C8: 2019-03-04 | D8: KRD 89 XM | E8: NDI CHUCKS | F8: 92998 | G8: PETROL | H8: 34 | I8: 145 | J8: 36.5 | K8: 2.5 | L8: 5000 | M8: PHC | N8: HUAWEI | O8: SUNDAY OGUNAIKE | P8: 8035263691 | R8: TOYOTA HILUX
K9: TOTAL | L9: 5000

Sheet 08-04-2019
I6: HUAWEI FUEL RETIREMENT FOR 08-04-2019 BY IKECHUKWU ROBERT E.
C8: Date | D8: Vehicle Number | E8: Filling Station | F8: Mileage | G8: Type | H8: Quantity | I8: Amount per Litre | J8: TRACKING REPORT LITRE | K8: Variance | L8: RATE | M8: PURCHASE POINT | N8: CONTRACT | O8: NAME | P8: PHONE NO | Q8: COMMENT | R8: VEHICLE MAKE
C9: 2019-06-04 | D9: AAA 634 XM | E9: SOSO | F9: 134257 | G9: PETROL | H9: 28 | I9: 145 | J9: 15 | K9: 13 | L9: 4000 | M9: PHC | N9: HUAWEI | O9: CHIGOZIE AHANONU | P9: 8033255992 | Q9: KINDLY DEDUCT N1,885.00 from the driver | R9: TOYOTA HILUX
C10: 2019-06-04 | D10: AAA 637 XM | E10: NNPC | F10: 91101 | G10: PETROL | H10: 62 | I10: 145 | J10: 54 | K10: 8 | L10: 9000 | M10: ABUJA | N10: HUAWEI | O10: JOHN OKONKWOR | P10: 7067947392 | R10: TOYOTA HILUX
C11: 2019-07-04 | D11: AAA 637 XM | E11: NDY PET | F11: 91413 | G11: PETROL | H11: 21 | I11: 145 | J11: 7 | K11: 14 | L11: 3000 | M11: ENUGU | N11: HUAWEI | O11: JOHN OKONKWOR | P11: 7067947392 | Q11: KINDLY DEDUCT N2,030.00 from the driver | R11: TOYOTA HILUX
C12: 2019-07-04 | D12: AAA 634 XM | E12: NNPC | F12: 134372 | G12: PETROL | H12: 42 | I12: 145 | J12: 30 | K12: 12 | L12: 6000 | M12: AHOADA | N12: HUAWEI | O12: CHIGOZIE AHANONU | P12: 8033255992 | Q12: KINDLY DEDUCT N1,740.00 from the driver | R12: TOYOTA HILUX
C13: 2019-08-04 | D13: AAA 637 XM | E13: NNPC | F13: 91648 | G13: PETROL | H13: 49 | I13: 145 | J13: 45 | K13: 4 | L13: 7000 | M13: ENUGU | N13: HUAWEI | O13: JOHN OKONKWOR | P13: 7067947392 | R13: TOYOTA HILUX
C14: 2019-08-04 | D14: KMC 44 XA | E14: NGOZI PET | F14: 251769 | G14: PETROL | H14: 35 | I14: 145 | J14: 26 | K14: 9 | L14: 5000 | M14: UMUAHIA | N14: HUAWEI | O14: SANNI WILLIAMS | P14: 8166130748 | R14: TOYOTA HILUX
C15: 2019-08-04 | D15: AAA 634 XM | E15: NNPC | F15: 134600 | G15: PETROL | H15: 28 | I15: 145 | J15: 20 | K15: 8 | L15: 4000 | M15: AHOADA | N15: HUAWEI | O15: CHIGOZIE AHANONU | P15: 8033255992 | R15: TOYOTA HILUX
K16: TOTAL | L16: 38000

Sheet 09-04-2019
I6: HUAWEI FUEL RETIREMENT FOR 09-04-2019 BY IKECHUKWU ROBERT E.
C8: Date | D8: Vehicle Number | E8: Filling Station | F8: Mileage | G8: Type | H8: Quantity | I8: Amount per Litre | J8: TRACKING REPORT LITRE | K8: Variance | L8: RATE | M8: PURCHASE POINT | N8: CONTRACT | O8: NAME | P8: PHONE NO | Q8: COMMENT | R8: VEHICLE MAKE
C9: 2019-09-04 | D9: AAA 634 XM | E9: SOSO | F9: 134733 | G9: PETROL | H9: 41 | I9: 145 | J9: 30.5 | K9: 10.5 | L9: 6000 | M9: PHC | N9: HUAWEI | O9: CHIGOZIE AHANONU | P9: 8033255992 | Q9: KINDLY DEDUCT N1,500.00 from the driver | R9: TOYOTA HILUX
C10: 2019-09-04 | D10: KMC 44 XA | E10: NGOZI PET | F10: 251968 | G10: PETROL | H10: 34 | I10: 145 | J10: 25 | K10: 9 | L10: 5000 | M10: UMUAHIA | N10: HUAWEI | O10: SANNI WILLIAMS | P10: 8166130748 | R10: TOYOTA HILUX
K11: TOTAL | L11: 11000

Sheet 10-04-2019
J7: HUAWEI FUEL RETIREMENT FOR 10-04-2019 BY IKECHUKWU ROBERT E.
D9: Date | E9: Vehicle Number | F9: Filling Station | G9: Mileage | H9: Type | I9: Quantity | J9: Amount per Litre | K9: TRACKING REPORT LITRE | L9: Variance | M9: RATE | N9: PURCHASE POINT | O9: CONTRACT | P9: NAME | Q9: PHONE NO | R9: COMMENT | S9: VEHICLE MAKE
D10: 2019-10-04 | E10: KMC 44 XA | F10: HUMMER PET | G10: 252176 | H10: PETROL | I10: 34 | J10: 145 | K10: 27.5 | L10: 6.5 | M10: 5000 | N10: UMUAHIA | O10: HUAWEI | P10: SANNI WILLIAMS | Q10: 8166130748 | S10: TOYOTA HILUX
L11: TOTAL | M11: 5000

Sheet 16-04-2019
J7: HUAWEI FUEL RETIREMENT FOR 16-04-2019 BY IKECHUKWU ROBERT E.
D9: Date | E9: Vehicle Number | F9: Filling Station | G9: Mileage | H9: Type | I9: Quantity | J9: Amount per Litre | K9: TRACKING REPORT LITRE | L9: Variance | M9: RATE | N9: PURCHASE POINT | O9: CONTRACT | P9: NAME | Q9: PHONE NO | R9: COMMENT | S9: VEHICLE MAKE
D10: 16/4/2019 | E10: KMC 44 XA | F10: NGOZI PET | G10: 253421 | H10: PETROL | I10: 34 | J10: 145 | K10: 24 | L10: 10 | M10: 5000 | N10: UMUAHIA | O10: HUAWEI | P10: SANNI WILLIAMS | Q10: 8166130748 | S10: TOYOTA HILUX
L11: TOTAL | M11: 5000

Sheet 17-04-2019
J8: HUAWEI FUEL RETIREMENT FOR 17-04-2019 BY IKECHUKWU ROBERT E.
D10: Date | E10: Vehicle Number | F10: Filling Station | G10: Mileage | H10: Type | I10: Quantity | J10: Amount per Litre | K10: TRACKING REPORT LITRE | L10: Variance | M10: RATE | N10: PURCHASE POINT | O10: CONTRACT | P10: NAME | Q10: PHONE NO | R10: COMMENT | S10: VEHICLE MAKE
D11: 17/4/2019 | E11: KMC 44 XA | F11: NGOZI PET | G11: 253622 | H11: PETROL | I11: 34 | J11: 145 | K11: 26 | L11: 8 | M11: 5000 | N11: UMUAHIA | O11: HUAWEI | P11: SANNI WILLIAMS | Q11: 8166130748 | S11: TOYOTA HILUX
L12: TOTAL | M12: 5000

Sheet 23-04-2019
I5: HUAWEI FUEL RETIREMENT FOR 23-04-2019 BY IKECHUKWU ROBERT E.
C7: Date | D7: Vehicle Number | E7: Filling Station | F7: Mileage | G7: Type | H7: Quantity | I7: Amount per Litre | J7: TRACKING REPORT LITRE | K7: Variance | L7: RATE | M7: PURCHASE POINT | N7: CONTRACT | O7: NAME | P7: PHONE NO | Q7: COMMENT | R7: VEHICLE MAKE
C8: 23/4/2019 | D8: KMC 44 XA | E8: NGOZI PET | F8: 254390 | G8: PETROL | H8: 41 | I8: 145 | J8: 19 | K8: 22 | L8: 6000 | M8: UMUAHIA | N8: HUAWEI | O8: SANNI WILLIAMS | P8: 8166130748 | Q8: Kindly deduct N3,190.00 from the driver. | R8: TOYOTA HILUX
C9: 23/4/2019 | D9: LSR 993 XLL | E9: NDI CHUCKS | F9: 154730 | G9: PETROL | H9: 34 | I9: 145 | J9: 23 | K9: 11 | L9: 5000 | M9: OWERRI | N9: HUAWEI | O9: SUNDAY OGUNAIKE | P9: 8035263691 | R9: TOYOTA HILUX
K10: TOTAL | L10: 11000

Sheet 24-04-2019
H5: HUAWEI FUEL RETIREMENT FOR 24-04-2019 BY IKECHUKWU ROBERT E.
B7: Date | C7: Vehicle Number | D7: Filling Station | E7: Mileage | F7: Type | G7: Quantity | H7: Amount per Litre | I7: TRACKING REPORT LITRE | J7: Variance | K7: RATE | L7: PURCHASE POINT | M7: CONTRACT | N7: NAME | O7: PHONE NO | P7: COMMENT | Q7: VEHICLE MAKE
B8: 24/4/2019 | C8: LSR 993 XLL | D8: A. A. RANO | E8: 154909 | F8: PETROL | G8: 34 | H8: 145 | I8: 23 | J8: 11 | K8: 5000 | L8: OWERRI | M8: HUAWEI | N8: SUNDAY OGUNAIKE | O8: 8035263691 | P8: Kindly deduct N3,190.00 from the driver. | Q8: TOYOTA HILUX
B9: 24/4/2019 | C9: AAA 645 XM | D9: ETERNA | E9: 149378 | F9: PETROL | G9: 28 | H9: 145 | I9: 29 | J9: 1 | K9: 4000 | L9: PHC | M9: HUAWEI | N9: ONYEDIKACHI THADDAEUS | O9: 7031747861 | Q9: TOYOTA HILUX
J10: TOTAL | K10: 9000

Sheet 26-04-2019
H3: HUAWEI FUEL RETIREMENT FOR 26-04-2019 BY IKECHUKWU ROBERT E.
B5: Date | C5: Vehicle Number | D5: Filling Station | E5: Mileage | F5: Type | G5: Quantity | H5: Amount per Litre | I5: TRACKING REPORT LITRE | J5: Variance | K5: RATE | L5: PURCHASE POINT | M5: CONTRACT | N5: NAME | O5: PHONE NO | P5: COMMENT | Q5: VEHICLE MAKE
B6: 26/4/2019 | C6: LSR 993 XLL | D6: CHITEX B. | E6: 155023 | F6: PETROL | G6: 41 | H6: 145 | I6: 24.5 | J6: 16.5 | K6: 6000 | L6: OWERRI | M6: HUAWEI | N6: SUNDAY OGUNAIKE | O6: 8035263691 | P6: Kindly deduct N2,392.00 from the driver. | Q6: TOYOTA HILUX
J7: TOTAL | K7: 6000

Sheet 29-04-2019
I6: HUAWEI FUEL RETIREMENT FOR 29-04-2019 BY IKECHUKWU ROBERT E.
C8: Date | D8: Vehicle Number | E8: Filling Station | F8: Mileage | G8: Type | H8: Quantity | I8: Amount per Litre | J8: TRACKING REPORT LITRE | K8: Variance | L8: RATE | M8: PURCHASE POINT | N8: CONTRACT | O8: NAME | P8: PHONE NO | Q8: COMMENT | R8: VEHICLE MAKE
C9: 28/4/2019 | D9: XC 288 YRE | E9: NGOZI PET | F9: 230828 | G9: PETROL | H9: 34 | I9: 145 | J9: 17 | K9: 17 | L9: 5000 | M9: UMUAHIA | N9: HUAWEI | O9: SANNI WILLIAMS | P9: 8166130748 | Q9: Kindly deduct N2,465.00 from the driver. | R9: MITS.L200
C10: 29/4/2020 | D10: XC 288 YRE | E10: HUMMER PET | F10: 231031 | G10: PETROL | H10: 34 | I10: 145 | J10: 13 | K10: 21 | L10: 5000 | M10: UMUAHIA | N10: HUAWEI | O10: SANNI WILLIAMS | P10: 8166130749 | Q10: Kindly deduct N3,045.00 from the driver. | R10: MITS.L200
K11: TOTAL | L11: 10000

Sheet 03-05-2019
I5: HUAWEI FUEL RETIREMENT FOR 03-05-2019 BY IKECHUKWU ROBERT E.
C7: Date | D7: Vehicle Number | E7: Filling Station | F7: Mileage | G7: Type | H7: Quantity | I7: Amount per Litre | J7: TRACKING REPORT LITRE | K7: Variance | L7: RATE | M7: PURCHASE POINT | N7: CONTRACT | O7: NAME | P7: PHONE NO | Q7: COMMENT | R7: VEHICLE MAKE
C8: 2019-02-05 | D8: KRD 337 XB | E8: ETERNA | F8: 63256 | G8: PETROL | H8: 28 | I8: 145 | J8: NOT CAPTURED | K8: 0 | L8: 4000 | M8: PHC | N8: HUAWEI | O8: EMMANUEL DIDI | P8: 8134352565 | Q8: CURRENTLY OFF-LINE | R8: TOYOTAHILUX
C9: 2019-02-05 | D9: AAB 142 YJ | E9: ETERNA | F9: 34339 | G9: PETROL | H9: 28 | I9: 145 | J9: NOT CAPTURED | K9: 0 | L9: 4000 | M9: PHC | N9: HUAWEI | O9: GODSTIME CHIMA W. | P9: 8104276284 | Q9: CURRENTLY OFF-LINE | R9: TOYOTA HILUX
C10: 2019-02-05 | D10: SMK 834 FR | E10: ETERNA | F10: 23558 | G10: PETROL | H10: 34 | I10: 145 | J10: 40 | K10: 6 | L10: 5000 | M10: PHC | N10: HUAWEI | O10: OKEREKE CHUKWUEMEKA C. | P10: 8058390628 | R10: TOYOTA HILUX
C11: 2019-03-05 | D11: KSF 739 XY | E11: SOSO | F11: 79415 | G11: PETROL | H11: 41 | I11: 145 | J11: 33 | K11: 8 | L11: 6000 | M11: PHC | N11: HUAWEI | O11: JAMES ALECHENU | R11: MITS.L200
K12: TOTAL | L12: 19000

Sheet 04-05-2019
I5: HUAWEI FUEL RETIREMENT FOR 04-05-2019 BY IKECHUKWU ROBERT E.
C7: Date | D7: Vehicle Number | E7: Filling Station | F7: Mileage | G7: Type | H7: Quantity | I7: Amount per Litre | J7: TRACKING REPORT LITRE | K7: Variance | L7: RATE | M7: PURCHASE POINT | N7: CONTRACT | O7: NAME | P7: PHONE NO | Q7: COMMENT | R7: VEHICLE MAKE
C8: 2019-03-05 | D8: KRD 337 XB | E8: ETERNA | F8: 86347 | G8: PETROL | H8: 34 | I8: 145 | J8: NOT CAPTURED | K8: 0 | L8: 5000 | M8: PHC | N8: HUAWEI | O8: EMMANUEL DIDI | P8: 8134352565 | Q8: CITRACKS PHC ARE STILL TRYING TO RECTIFY THE ISSUE | R8: TOYOTAHILUX
C9: 2019-03-05 | D9: KSF 739 XY | E9: SOSO | F9: 79689 | G9: PETROL | H9: 34 | I9: 145 | J9: 28 | K9: 6 | L9: 5000 | M9: PHC | N9: HUAWEI | O9: JAMES ALECHENU | R9: MITS.L200
K10: TOTAL | L10: 10000

Sheet 07-05-2019
H5: HUAWEI FUEL RETIREMENT FOR 07-05-2019 BY IKECHUKWU ROBERT E.
B7: Date | C7: Vehicle Number | D7: Filling Station | E7: Mileage | F7: Type | G7: Quantity | H7: Amount per Litre | I7: TRACKING REPORT LITRE | J7: Variance | K7: RATE | L7: PURCHASE POINT | M7: CONTRACT | N7: NAME | O7: PHONE NO | P7: COMMENT | Q7: VEHICLE MAKE
B8: 2019-03-05 | C8: EPE 474 XB | D8: ETERNA | E8: 63289 | F8: PETROL | G8: 41 | H8: 145 | I8: NOT CAPTURED | J8: 0 | K8: 6000 | L8: PHC | M8: HUAWEI | N8: EMMANUEL DIDI | O8: 8134352565 | P8: CITRACKS PHC ARE STILL TRYING TO RECTIFY THE ISSUE | Q8: TOYOTAHILUX
B9: 2019-04-05 | C9: KSF 739 XY | D9: SOSO | E9: 79879 | F9: PETROL | G9: 14 | H9: 145 | I9: 11 | J9: 3 | K9: 2000 | L9: PHC | M9: HUAWEI | N9: JAMES ALECHENU | Q9: MITS.L200
B10: 2019-06-05 | C10: KRD 337 XB | D10: ETERNA | E10: 86347 | F10: PETROL | G10: 34 | H10: 145 | I10: NOT CAPTURED | J10: 0 | K10: 5000 | L10: PHC | M10: HUAWEI | N10: EMMANUEL DIDI | O10: 8134352565 | P10: YET TO BE TRANSFERRED TO MY ZON PLATFORM | Q10: TOYOTAHILUX
B11: 2019-06-05 | C11: KSF 739 XY | D11: ETERNA | E11: 78006 | F11: PETROL | G11: 14 | H11: 145 | I11: 13 | J11: 1 | K11: 2000 | L11: PHC | M11: HUAWEI | N11: JAMES ALECHENU | Q11: MITS.L200
B12: 2019-06-05 | C12: SMK 834 FR | D12: TONY OIL | E12: 23611 | F12: PETROL | G12: 34 | H12: 145 | I12: 35 | J12: 1 | K12: 5000 | L12: OWERRI | M12: HUAWEI | N12: OKEREKE CHUKWUEMEKA C. | O12: 8058390628 | Q12: TOYOTA HILUX
B13: 2019-07-05 | C13: KSF 739 XY | D13: ETERNA | E13: 80249 | F13: PETROL | G13: 28 | H13: 145 | I13: 21 | J13: 7 | K13: 4000 | L13: PHC | M13: HUAWEI | N13: JAMES ALECHENU | Q13: MITS.L200
B14: 2019-06-05 | C14: LSR 998 XLL | D14: NDI CHUCKS | E14: 180620 | F14: PETROL | G14: 7 | H14: 145 | I14: 6 | J14: 1 | K14: 1000 | L14: OWERRI | M14: HUAWEI | N14: SUNDAY OGUNAIKE | O14: 8035263691 | Q14: TOYOTA HILUX
B15: 2019-07-05 | C15: LSR 998 XLL | D15: NDI CHUCKS | E15: 180633 | F15: PETROL | G15: 21 | H15: 145 | I15: 23 | J15: 20 | K15: 3000 | L15: OWERRI | M15: HUAWEI | N15: SUNDAY OGUNAIKE | O15: 8035263692 | Q15: TOYOTA HILUX
J16: TOTAL | K16: 28000

Sheet 10-05-2019
H6: HUAWEI FUEL RETIREMENT FOR 10-05-2019 BY IKECHUKWU ROBERT E.
B8: Date | C8: Vehicle Number | D8: Filling Station | E8: Mileage | F8: Type | G8: Quantity | H8: Amount per Litre | I8: TRACKING REPORT LITRE | J8: Variance | K8: RATE | L8: PURCHASE POINT | M8: CONTRACT | N8: NAME | O8: PHONE NO | P8: COMMENT | Q8: VEHICLE MAKE
B9: 2019-08-05 | C9: KRD 337 XB | D9: ETERNA | E9: 86581 | F9: PETROL | G9: 28 | H9: 145 | I9: NOT CAPTURED | J9: 0 | K9: 4000 | L9: PHC | M9: HUAWEI | N9: DIDI SOLOMON | O9: 8134352565 | P9: YET TO BE TRANSFERRED TO MY ZON PLATFORM | Q9: TOYOTAHILUX
B10: 2019-08-05 | C10: KSF 739 XY | D10: SOSO | E10: 80311 | F10: PETROL | G10: 14 | H10: 145 | I10: 12 | J10: 2 | K10: 2000 | L10: PHC | M10: HUAWEI | N10: JAMES ALECHENU | O10: 8077006442 | Q10: MITS.L200
B11: 2019-08-05 | C11: KSF 739 XY | D11: ETERNA | E11: 80467 | F11: PETROL | G11: 14 | H11: 145 | I11: 15 | J11: 1 | K11: 2000 | L11: PHC | M11: HUAWEI | N11: JAMES ALECHENU | O11: 8077006442 | Q11: MITS.L200
B12: 2019-07-05 | C12: LSR 998 XLL | D12: NDI CHUCKS | E12: 182741 | F12: PETROL | G12: 14 | H12: 145 | I12: 7 | J12: 7 | K12: 2000 | L12: OWERRI | M12: HUAWEI | N12: SUNDAY OGUNAIKE | O12: 8035263692 | Q12: TOYOTA HILUX
B13: 2019-08-05 | C13: LSR 998 XLL | D13: NDI CHUCKS | E13: 182903 | F13: PETROL | G13: 21 | H13: 145 | I13: 20 | J13: 20 | K13: 3000 | L13: OWERRI | M13: HUAWEI | N13: SUNDAY OGUNAIKE | O13: 8035263692 | Q13: TOYOTA HILUX
B14: 2019-08-05 | C14: XC 288 YRE | D14: HUMMER | E14: 231841 | F14: PETROL | G14: 34 | H14: 145 | I14: 26 | J14: 12 | K14: 5000 | L14: UMUAHIA | M14: HUAWEI | N14: SANNI WILLIAMS | O14: 8166130749 | P14: Kindly deduct N1.740.00 from the driver. | Q14: MITS.L200
B15: 2019-09-05 | C15: KRD 337 XB | D15: FO | E15: 86763 | F15: PETROL | G15: 34 | H15: 145 | I15: NOT CAPTURED | J15: 0 | K15: 5000 | L15: PHC | M15: HUAWEI | N15: DIDI SOLOMON | O15: 8134352565 | P15: YET TO BE TRANSFERRED TO MY ZON PLATFORM | Q15: TOYOTAHILUX
B16: 2019-09-05 | C16: KSF 739 XY | D16: SOSO | E16: 80572 | F16: PETROL | G16: 48 | H16: 145 | I16: 36 | J16: 12 | K16: 7000 | L16: PHC | M16: HUAWEI | N16: JAMES ALECHENU | O16: 8077006442 | P16: Kindly deduct N1.740.00 from the driver. | Q16: MITS.L200
B17: 2019-10-05 | C17: KRD 337 XB | D17: MOBIL | E17: 86844 | F17: PETROL | G17: 34 | H17: 145 | I17: NOT CAPTURED | J17: 0 | K17: 5000 | L17: PHC | M17: HUAWEI | N17: DIDI SOLOMON | O17: 8134352565 | P17: YET TO BE TRANSFERRED TO MY ZON PLATFORM | Q17: TOYOTAHILUX
J18: TOTAL | K18: 35000

Sheet 13-05-2019
H7: HUAWEI FUEL RETIREMENT FOR 13-05-2019 BY IKECHUKWU ROBERT E.
B9: Date | C9: Vehicle Number | D9: Filling Station | E9: Mileage | F9: Type | G9: Quantity | H9: Amount per Litre | I9: TRACKING REPORT LITRE | J9: Variance | K9: RATE | L9: PURCHASE POINT | M9: CONTRACT | N9: NAME | O9: PHONE NO | P9: COMMENT | Q9: VEHICLE MAKE
B10: 2019-09-05 | C10: LSR 998 XLL | D10: NDI CHUCKS | E10: 183110 | F10: PETROL | G10: 34 | H10: 145 | I10: 14 | J10: 24 | K10: 5000 | L10: OWERRI | M10: HUAWEI | N10: SUNDAY OGUNAIKE | O10: 8035263692 | P10: Kindly deduct N2,900.00 from the driver. | Q10: TOYOTA HILUX
B11: 2019-11-05 | C11: KSF 739 XY | D11: SOSO | E11: 80747 | F11: PETROL | G11: 34 | H11: 145 | I11: 25 | J11: 9 | K11: 5000 | L11: OWERRI | M11: HUAWEI | N11: JAMES ALECHENU | O11: 8077006442 | P11: Kindly deduct N1,305.00 from the driver. | Q11: MITS.L200
B12: 2019-11-05 | C12: KRD 337 XB | D12: FO | E12: 86918 | F12: PETROL | G12: 34 | H12: 145 | I12: NOT CAPTURED | J12: 0 | K12: 5000 | L12: PHC | M12: HUAWEI | N12: DIDI SOLOMON | O12: 8134352565 | P12: YET TO BE TRANSFERRED TO MY ZON PLATFORM | Q12: TOYOTAHILUX
B13: 13/5/2019 | C13: KSF 739 XY | D13: M R S | E13: 81071 | F13: PETROL | G13: 28 | H13: 145 | I13: 19 | J13: 9 | K13: 4000 | L13: PHC | M13: HUAWEI | N13: JAMES ALECHENU | O13: 8077006442 | P13: Kindly deduct N1,305.00 from the driver. | Q13: MITS.L200
B14: 13/5/2019 | C14: KRD 337 XB | D14: ETERNA | E14: 87064 | F14: PETROL | G14: 34 | H14: 145 | I14: NOT CAPTURED | J14: 0 | K14: 4000 | L14: PHC | M14: HUAWEI | N14: DIDI SOLOMON | O14: 8134352565 | P14: YET TO BE TRANSFERRED TO MY ZON PLATFORM | Q14: TOYOTAHILUX
J16: TOTAL | K16: 23000

Sheet 14-05-2019
I6: HUAWEI FUEL RETIREMENT FOR 14-05-2019 BY IKECHUKWU ROBERT E.
C8: Date | D8: Vehicle Number | E8: Filling Station | F8: Mileage | G8: Type | H8: Quantity | I8: Amount per Litre | J8: TRACKING REPORT LITRE | K8: Variance | L8: RATE | M8: PURCHASE POINT | N8: CONTRACT | O8: NAME | P8: PHONE NO | Q8: COMMENT | R8: VEHICLE MAKE
C9: 14/5/2019 | D9: KSF 739 XY | E9: MOBIL | F9: 81337 | G9: PETROL | H9: 34 | I9: 145 | J9: 28 | K9: 6 | L9: 5000 | M9: PHC | N9: HUAWEI | O9: JAMES ALECHENU | P9: 8077006442 | R9: MITS.L200
C10: 14/5/2019 | D10: KRD 337 XB | E10: ETERNA | F10: 87130 | G10: PETROL | H10: 28 | I10: 145 | J10: NOT CAPTURED | K10: 0 | L10: 4000 | M10: PHC | N10: HUAWEI | O10: DIDI SOLOMON | P10: 8134352565 | Q10: YET TO BE TRANSFERRED TO MY ZON PLATFORM | R10: TOYOTAHILUX
K12: TOTAL | L12: 9000

Sheet 15-05-2019
H5: HUAWEI FUEL RETIREMENT FOR 15-05-2019 BY IKECHUKWU ROBERT E.
B7: Date | C7: Vehicle Number | D7: Filling Station | E7: Mileage | F7: Type | G7: Quantity | H7: Amount per Litre | I7: TRACKING REPORT LITRE | J7: Variance | K7: RATE | L7: PURCHASE POINT | M7: CONTRACT | N7: NAME | O7: PHONE NO | P7: COMMENT | Q7: VEHICLE MAKE
B8: 15/5/2019 | C8: KSF 739 XY | D8: MOBIL | E8: 81515 | F8: PETROL | G8: 14 | H8: 145 | I8: 13 | J8: 1 | K8: 2000 | L8: PHC | M8: HUAWEI | N8: JAMES ALECHENU | O8: 8077006442 | Q8: MITS.L200
B9: 15/5/2020 | C9: KSF 739 XY | D9: MOBIL | E9: 81646 | F9: PETROL | G9: 28 | H9: 145 | I9: 19 | J9: 9 | K9: 4000 | L9: PHC | M9: HUAWEI | N9: JAMES ALECHENU | O9: 8077006443 | Q9: MITS.L201
B10: 15/5/2019 | C10: KRD 337 XB | D10: ETERNA | E10: 87279 | F10: PETROL | G10: 28 | H10: 145 | I10: NOT CAPTURED | J10: 0 | K10: 4000 | L10: PHC | M10: HUAWEI | N10: DIDI SOLOMON | O10: 8134352565 | P10: YET TO BE TRANSFERRED TO MY ZON PLATFORM | Q10: TOYOTAHILUX
J12: TOTAL | K12: 10000

Sheet 16-05-2019
H6: HUAWEI FUEL RETIREMENT FOR 16-05-2019 BY IKECHUKWU ROBERT E.
B8: Date | C8: Vehicle Number | D8: Filling Station | E8: Mileage | F8: Type | G8: Quantity | H8: Amount per Litre | I8: TRACKING REPORT LITRE | J8: Variance | K8: RATE | L8: PURCHASE POINT | M8: CONTRACT | N8: NAME | O8: PHONE NO | P8: COMMENT | Q8: VEHICLE MAKE
B9: 15/5/2019 | C9: LSR 998 XL | D9: ND PET | E9: 183792 | F9: PETROL | G9: 14 | H9: 145 | I9: NOT CAPTURED | J9: 0 | K9: 3000 | L9: OWERRI | M9: HUAWEI | N9: SUNDAY OGUNAIKE | O9: 8035263692 | Q9: MITS.L201
B10: 16/5/2019 | C10: KSF 739 XY | D10: MOBIL | E10: 81515 | F10: PETROL | G10: 41 | H10: 145 | I10: 30 | J10: 11 | K10: 6000 | L10: PHC | M10: HUAWEI | N10: JAMES ALECHENU | O10: 8077006442 | P10: Kindly deduct N1.595.00 from the driver. | Q10: MITS.L200
B11: 16/5/2019 | C11: KRD 337 XB | D11: ETERNA | E11: 87279 | F11: PETROL | G11: 34 | H11: 145 | I11: NOT CAPTURED | J11: 0 | K11: 5000 | L11: PHC | M11: HUAWEI | N11: DIDI SOLOMON | O11: 8134352565 | P11: YET TO BE TRANSFERRED TO MY ZON PLATFORM | Q11: TOYOTAHILUX
J13: TOTAL | K13: 14000

Sheet 17-05-2019
I6: HUAWEI FUEL RETIREMENT FOR 17-05-2019 BY IKECHUKWU ROBERT E.
C8: Date | D8: Vehicle Number | E8: Filling Station | F8: Mileage | G8: Type | H8: Quantity | I8: Amount per Litre | J8: TRACKING REPORT LITRE | K8: Variance | L8: RATE | M8: PURCHASE POINT | N8: CONTRACT | O8: NAME | P8: PHONE NO | Q8: COMMENT | R8: VEHICLE MAKE
C9: 15/5/2019 | D9: EPE 474 XB | E9: ONYI ENT | F9: 62911 | G9: PETROL | H9: 21 | I9: 145 | J9: NOT CAPTURED | K9: 0 | L9: 3000 | M9: OWERRI | N9: HUAWEI | O9: OKOAFOR CHINONSO | P9: 8035263692 | Q9: NOT CAPTURED (CITRACKS STILL WORKING ON IT) | R9: TOYOTA HILUX
C10: 17/5/2019 | D10: KSF 739 XY | E10: MOBIL | F10: 82080 | G10: PETROL | H10: 41 | I10: 145 | J10: 29 | K10: 12 | L10: 6000 | M10: PHC | N10: HUAWEI | O10: JAMES ALECHENU | P10: 8077006442 | Q10: Kindly deduct N1.740.00 from the driver. | R10: MITS.L200
C11: 17/5/2019 | D11: KRD 337 XB | E11: ETERNA | F11: 87304 | G11: PETROL | H11: 28 | I11: 145 | J11: NOT CAPTURED | K11: 0 | L11: 4000 | M11: PHC | N11: HUAWEI | O11: DIDI SOLOMON | P11: 8134352565 | Q11: CITRACKS STILL WORKING ON DEVICE | R11: TOYOTAHILUX
C12: 17/5/2019 | D12: AAB 142 YJ | E12: ONYI ENT | F12: 62911 | G12: PETROL | H12: 41 | I12: 145 | J12: NOT CAPTURED | K12: 0 | L12: 5000 | M12: PHC | N12: HUAWEI | O12: OKOAFOR CHINONSO | P12: 8035263692 | Q12: STILL BEING RECTIFIED BY CITRACKS PHC TEAM | R12: TOYOTA HILUX
C13: 17/5/2019 | D13: EPE 474 XB | E13: ETERNA | F13: 63130 | G13: PETROL | H13: 34 | I13: 145 | J13: NOT CAPTURED | K13: 0 | L13: 5000 | M13: OWERRI | N13: HUAWEI | O13: SUNDAY OGUNAIKE | P13: 8035263692 | Q13: NOT CAPTURED (CITRACKS STILL WORKING ON IT) | R13: TOYOTA HILUX
K14: TOTAL | L14: 23000

Sheet 18-05-2019
I5: HUAWEI FUEL RETIREMENT FOR 18-05-2019 BY IKECHUKWU ROBERT E.
C7: Date | D7: Vehicle Number | E7: Filling Station | F7: Mileage | G7: Type | H7: Quantity | I7: Amount per Litre | J7: TRACKING REPORT LITRE | K7: Variance | L7: RATE | M7: PURCHASE POINT | N7: CONTRACT | O7: NAME | P7: PHONE NO | Q7: COMMENT | R7: VEHICLE MAKE
C8: 18/5/2019 | D8: KSF 739 XY | E8: MOBIL | F8: 82347 | G8: PETROL | H8: 28 | I8: 145 | J8: 19 | K8: 9 | L8: 4000 | M8: PHC | N8: HUAWEI | O8: JAMES ALECHENU | P8: 8077006442 | R8: MITS.L200
C9: 18/5/2019 | D9: KRD 337 XB | E9: ETERNA | F9: 87398 | G9: PETROL | H9: 28 | I9: 145 | J9: NOT CAPTURED | K9: 0 | L9: 4000 | M9: PHC | N9: HUAWEI | O9: DIDI SOLOMON | P9: 8134352565 | Q9: CITRACKS STILL WORKING ON DEVICE | R9: TOYOTAHILUX
C10: 18/5/2019 | D10: EPE 474 XB | E10: ETERNA | F10: 63298 | G10: PETROL | H10: 28 | I10: 145 | J10: NOT CAPTURED | K10: 0 | L10: 4000 | M10: OWERRI | N10: HUAWEI | O10: SUNDAY OGUNAIKE | P10: 8035263692 | Q10: NOT CAPTURED (CITRACKS STILL WORKING ON IT) | R10: TOYOTA HILUX
K11: TOTAL | L11: 12000

Sheet 20-05-2019
H6: HUAWEI FUEL RETIREMENT FOR 20-05-2019 BY IKECHUKWU ROBERT E.
B8: Date | C8: Vehicle Number | D8: Filling Station | E8: Mileage | F8: Type | G8: Quantity | H8: Amount per Litre | I8: TRACKING REPORT LITRE | J8: Variance | K8: RATE | L8: PURCHASE POINT | M8: CONTRACT | N8: NAME | O8: PHONE NO | P8: COMMENT | Q8: VEHICLE MAKE
B9: 19/5/2019 | C9: KSF 739 XY | D9: MOBIL | E9: 82488 | F9: PETROL | G9: 21 | H9: 145 | I9: 19 | J9: 2 | K9: 3000 | L9: AHOADA | M9: HUAWEI | N9: JAMES ALECHENU | O9: 8077006442 | Q9: MITS.L200
B10: 19/5/2019 | C10: KSF 739 XY | D10: MOBIL | E10: 82579 | F10: PETROL | G10: 14 | H10: 145 | I10: 9 | J10: 5 | K10: 2000 | L10: UGHELLI | M10: HUAWEI | N10: JAMES ALECHENU | O10: 8077006442 | Q10: MITS.L200
B11: 20/5/2019 | C11: KSF 739 XY | D11: MOBIL | E11: 82859 | F11: PETROL | G11: 34 | H11: 145 | I11: 31 | J11: 3 | K11: 5000 | L11: PHC | M11: HUAWEI | N11: JAMES ALECHENU | O11: 8077006442 | Q11: MITS.L200
B12: 20/5/2019 | C12: KRD 337 XB | D12: ETERNA | E12: 87409 | F12: PETROL | G12: 28 | H12: 145 | I12: NOT CAPTURED | J12: 0 | K12: 4000 | L12: PHC | M12: HUAWEI | N12: DIDI SOLOMON | O12: 8134352565 | P12: CITRACKS STILL WORKING ON DEVICE | Q12: TOYOTAHILUX
B13: 20/5/2019 | C13: EPE 474 XB | D13: NDU CHUCKS | E13: 63472 | F13: PETROL | G13: 28 | H13: 145 | I13: NOT CAPTURED | J13: 0 | K13: 4000 | L13: OWERRI | M13: HUAWEI | N13: SUNDAY OGUNAIKE | O13: 8035263692 | P13: NOT CAPTURED (CITRACKS STILL WORKING ON IT) | Q13: TOYOTA HILUX
B14: 20/5/2019 | C14: AAB 142 YJ | D14: ONYI ENT | E14: 34846 | F14: PETROL | G14: 28 | H14: 145 | I14: NOT CAPTURED | J14: 0 | K14: 4000 | L14: OWERRI | M14: HUAWEI | N14: OKOAFOR CHINONSO | O14: 8035263692 | P14: STILL BEING RECTIFIED BY CITRACKS PHC TEAM | Q14: TOYOTA HILUX
J15: TOTAL | K15: 22000

Sheet 21-05-2019
I6: HUAWEI FUEL RETIREMENT FOR 21-05-2019 BY IKECHUKWU ROBERT E.
C8: Date | D8: Vehicle Number | E8: Filling Station | F8: Mileage | G8: Type | H8: Quantity | I8: Amount per Litre | J8: TRACKING REPORT LITRE | K8: Variance | L8: RATE | M8: PURCHASE POINT | N8: CONTRACT | O8: NAME | P8: PHONE NO | Q8: COMMENT | R8: VEHICLE MAKE
C9: 21/5/2019 | D9: KRD 337 XB | E9: FO | F9: 87486 | G9: PETROL | H9: 28 | I9: 145 | J9: NOT CAPTURED | K9: 0 | L9: 5000 | M9: PHC | N9: HUAWEI | O9: DIDI SOLOMON | P9: 8134352565 | Q9: CITRACKS STILL WORKING ON DEVICE | R9: TOYOTAHILUX
C10: 21/5/2019 | D10: EPE 474 XB | E10: NDU PET | F10: 63652 | G10: PETROL | H10: 28 | I10: 145 | J10: NOT CAPTURED | K10: 0 | L10: 5000 | M10: OWERRI | N10: HUAWEI | O10: SUNDAY OGUNAIKE | P10: 8035263692 | Q10: NOT CAPTURED (CITRACKS STILL WORKING ON IT) | R10: TOYOTA HILUX
C11: 21/5/2019 | D11: AAB 142 YJ | E11: EMPEROR | F11: 34896 | G11: PETROL | H11: 28 | I11: 145 | J11: NOT CAPTURED | K11: 0 | L11: 4000 | M11: OWERRI | N11: HUAWEI | O11: OKOAFOR CHINONSO | P11: 8035263692 | Q11: STILL BEING RECTIFIED BY CITRACKS PHC TEAM | R11: TOYOTA HILUX
K12: TOTAL | L12: 14000

Sheet 22-05-2019
H6: HUAWEI FUEL RETIREMENT FOR 22-05-2019 BY IKECHUKWU ROBERT E.
B8: Date | C8: Vehicle Number | D8: Filling Station | E8: Mileage | F8: Type | G8: Quantity | H8: Amount per Litre | I8: TRACKING REPORT LITRE | J8: Variance | K8: RATE | L8: PURCHASE POINT | M8: CONTRACT | N8: NAME | O8: PHONE NO | P8: COMMENT | Q8: VEHICLE MAKE
B9: 22/5/2019 | C9: EPE 474 XB | D9: NDU PET | E9: 63792 | F9: PETROL | G9: 28 | H9: 145 | I9: NOT CAPTURED | J9: 0 | K9: 5000 | L9: OWERRI | M9: HUAWEI | N9: SUNDAY OGUNAIKE | O9: 8035263692 | P9: NOT CAPTURED (CITRACKS STILL WORKING ON IT) | Q9: TOYOTA HILUX
B10: 22/5/2019 | C10: AAB 142 YJ | D10: EMPEROR | E10: 34922 | F10: PETROL | G10: 28 | H10: 145 | I10: NOT CAPTURED | J10: 0 | K10: 4000 | L10: ONITSHA | M10: HUAWEI | N10: OKOAFOR CHINONSO | O10: 8035263692 | P10: STILL BEING RECTIFIED BY CITRACKS PHC TEAM | Q10: TOYOTA HILUX
B11: 22/5/2019 | C11: KRD 337 XB | D11: OANDO | E11: 87529 | F11: PETROL | G11: 28 | H11: 145 | I11: NOT CAPTURED | J11: 0 | K11: 4000 | L11: PHC | M11: HUAWEI | N11: DIDI SOLOMON | O11: 8134352565 | P11: CITRACKS STILL WORKING ON DEVICE | Q11: TOYOTAHILUX
J12: TOTAL | K12: 13000

Sheet 24-05-2019
H6: HUAWEI FUEL RETIREMENT FOR 24-05-2019 BY IKECHUKWU ROBERT E.
B8: Date | C8: Vehicle Number | D8: Filling Station | E8: Mileage | F8: Type | G8: Quantity | H8: Amount per Litre | I8: TRACKING REPORT LITRE | J8: Variance | K8: RATE | L8: PURCHASE POINT | M8: CONTRACT | N8: NAME | O8: PHONE NO | P8: COMMENT | Q8: VEHICLE MAKE
B9: 23/5/2019 | C9: AGL 924 FH | D9: FO | E9: 33316 | F9: PETROL | G9: 34 | H9: 145 | I9: 40 | J9: 6 | K9: 5000 | L9: PHC | M9: HUAWEI | N9: CHRISTIAN AYAEHIE | O9: 8132839806 | Q9: TOYOTA HILUX
J10: TOTAL | K10: 5000

Sheet 30-05-2019
H6: HUAWEI FUEL RETIREMENT FOR 30-05-2019 BY IKECHUKWU ROBERT E.
B8: Date | C8: Vehicle Number | D8: Filling Station | E8: Mileage | F8: Type | G8: Quantity | H8: Amount per Litre | I8: TRACKING REPORT LITRE | J8: Variance | K8: RATE | L8: PURCHASE POINT | M8: CONTRACT | N8: NAME | O8: PHONE NO | P8: COMMENT | Q8: VEHICLE MAKE
B9: 27/5/2019 | C9: AGL 924 FH | D9: MRS | E9: 33656 | F9: PETROL | G9: 28 | H9: 145 | I9: NOT CAPTURED | J9: 0 | K9: 4000 | L9: PHC | M9: HUAWEI | N9: CHRISTIAN AYAEHIE | O9: 8132839806 | Q9: TOYOTA HILUX
B10: 30/5/2020 | C10: AGL 924 FH | D10: MOBIL | E10: 33317 | F10: PETROL | G10: 28 | H10: 145 | I10: NOT CAPTURED | J10: 0 | K10: 4000 | L10: PHC | M10: HUAWEI | N10: CHRISTIAN AYAEHIE | O10: 8132839807 | Q10: TOYOTA HILUX
J11: TOTAL | K11: 8000

Sheet 02-06-2019
H5: HUAWEI FUEL RETIREMENT FOR 02-06-2019 BY IKECHUKWU ROBERT E.
B7: Date | C7: Vehicle Number | D7: Filling Station | E7: Mileage | F7: Type | G7: Quantity | H7: Amount per Litre | I7: TRACKING REPORT LITRE | J7: Variance | K7: RATE | L7: PURCHASE POINT | M7: CONTRACT | N7: NAME | O7: PHONE NO | P7: COMMENT | Q7: VEHICLE MAKE
B8: 31/5/2019 | C8: AGL 924 FH | D8: MRS | E8: 33830 | F8: PETROL | G8: 34 | H8: 145 | I8: 13 | J8: 21 | K8: 5000 | L8: PHC | M8: HUAWEI | N8: CHRISTIAN AYAEHIE | O8: 8132839806 | P8: Kindly deduct N3,045.00 from the driver. | Q8: TOYOTA HILUX
B9: 2019-01-06 | C9: AGL 924 FH | D9: MOBIL | E9: 33885 | F9: PETROL | G9: 41 | H9: 145 | I9: 36 | J9: 5 | K9: 6000 | L9: PHC | M9: HUAWEI | N9: CHRISTIAN AYAEHIE | O9: 8132839807 | Q9: TOYOTA HILUX
B10: 2019-01-06 | C10: AGL 924 FH | D10: MOBIL | E10: 34219 | F10: PETROL | G10: 28 | H10: 145 | I10: 22 | J10: 6 | K10: 4000 | L10: PHC | M10: HUAWEI | N10: CHRISTIAN AYAEHIE | O10: 8132839808 | Q10: TOYOTA HILUX
J11: TOTAL | K11: 15000

Sheet 4-06-2019
H4: HUAWEI FUEL RETIREMENT FOR 04-06-2019 BY IKECHUKWU ROBERT E.
B6: Date | C6: Vehicle Number | D6: Filling Station | E6: Mileage | F6: Type | G6: Quantity | H6: Amount per Litre | I6: TRACKING REPORT LITRE | J6: Variance | K6: RATE | L6: PURCHASE POINT | M6: CONTRACT | N6: NAME | O6: PHONE NO | P6: COMMENT | Q6: VEHICLE MAKE
B7: 2019-03-06 | C7: AGL 924 FH | D7: MOBIL | E7: 34341 | F7: PETROL | G7: 41 | H7: 145 | I7: 43.5 | J7: 2.5 | K7: 4000 | L7: PHC | M7: HUAWEI | N7: GODSTIME CHIOMA W. | O7: 8104276284 | Q7: TOYOTA HILUX
B8: 2019-04-06 | C8: EPE 474 XB | D8: NDU ENT | E8: 65223 | F8: PETROL | G8: 28 | H8: 145 | I8: NOT CAPTURED | J8: 0 | K8: 4000 | L8: OWERRI | M8: HUAWEI | N8: SUNDAY OGUNAIKE | O8: 8035263692 | Q8: TOYOTA HILUX
J9: TOTAL | K9: 10000

Sheet 06-06-2019
H6: HUAWEI FUEL RETIREMENT FOR 06-06-2019 BY IKECHUKWU ROBERT E.
B8: Date | C8: Vehicle Number | D8: Filling Station | E8: Mileage | F8: Type | G8: Quantity | H8: Amount per Litre | I8: TRACKING REPORT LITRE | J8: Variance | K8: RATE | L8: PURCHASE POINT | M8: CONTRACT | N8: NAME | O8: PHONE NO | P8: COMMENT | Q8: VEHICLE MAKE
B9: 2019-05-06 | C9: EPE 474 XB | D9: NDU ENT | E9: 65340 | F9: PETROL | G9: 41 | H9: 145 | I9: NOT CAPTURED | J9: 0 | K9: 6000 | L9: OWERRI | M9: HUAWEI | N9: SUNDAY OGUNAIKE | O9: 8035263692 | P9: NOT CAPTURED (CITRACKS STILL WORKING ON IT) | Q9: TOYOTA HILUX
B10: 2019-05-06 | C10: KRD 337 XB | D10: MRS | E10: 88422 | F10: PETROL | G10: 28 | H10: 145 | I10: NOT CAPTURED | J10: 0 | K10: 4000 | L10: PHC | M10: HUAWEI | N10: DIDI SOLOMON | O10: 8134352565 | P10: NOT CAPTURED (CITRACKS STILL WORKING ON IT) | Q10: TOYOTA HILUX
B11: 2019-06-06 | C11: EPE 474 XB | D11: ERU PET | E11: 65528 | F11: PETROL | G11: 28 | H11: 145 | I11: NOT CAPTURED | J11: 0 | K11: 4000 | L11: OWERRI | M11: HUAWEI | N11: SUNDAY OGUNAIKE | O11: 8035263692 | P11: NOT CAPTURED (CITRACKS STILL WORKING ON IT) | Q11: TOYOTA HILUX
J12: TOTAL | K12: 14000

Sheet 10-06-2019
I7: HUAWEI FUEL RETIREMENT FOR 10-06-2019 BY IKECHUKWU ROBERT E.
C9: Date | D9: Vehicle Number | E9: Filling Station | F9: Mileage | G9: Type | H9: Quantity | I9: Amount per Litre | J9: TRACKING REPORT LITRE | K9: Variance | L9: RATE | M9: PURCHASE POINT | N9: CONTRACT | O9: NAME | P9: PHONE NO | Q9: COMMENT | R9: VEHICLE MAKE
C10: 2019-10-06 | D10: AGL 924 FH | E10: MOBIL | F10: 34389 | G10: PETROL | H10: 34 | I10: 145 | J10: 35 | K10: 1 | L10: 5000 | M10: PHC | N10: HUAWEI | O10: CHRISTIAN AYAEHIE | P10: 8132839808 | Q10: MONEY PAID INTO FME'S ACCOUNT (DRIVER FORGOT HIS ATM CARD AT HOME) | R10: TOYOTA HILUX
C11: 2019-10-06 | D11: AGL 924 FH | E11: OANDO | F11: 34472 | G11: PETROL | H11: 7 | I11: 145 | J11: 14 | K11: 7 | L11: 1 000 | M11: EMUOHA | N11: HUAWEI | O11: CHRISTIAN AYAEHIE | P11: 8132839809 | Q11: MONEY PAID INTO FME'S ACCOUNT (DRIVER FORGOT HIS ATM CARD AT HOME) | R11: TOYOTA HILUX
K12: TOTAL | L12: 6000

Sheet 13-06-2019
H5: HUAWEI FUEL RETIREMENT FOR 13-06-2019 BY IKECHUKWU ROBERT E.
B7: Date | C7: Vehicle Number | D7: Filling Station | E7: Mileage | F7: Type | G7: Quantity | H7: Amount per Litre | I7: TRACKING REPORT LITRE | J7: Variance | K7: RATE | L7: PURCHASE POINT | M7: CONTRACT | N7: NAME | O7: PHONE NO | P7: COMMENT | Q7: VEHICLE MAKE
B8: 2019-11-06 | C8: KRD 539 XF | D8: ND PET | E8: 303948 | F8: PETROL | G8: 14 | H8: 145 | I8: NOT CAPTURED | J8: 0 | K8: 2000 | L8: ABA | M8: HUAWEI | N8: THADDEUS NWATA | O8: 8156880789 | Q8: MITS.L200
B9: 2019-12-06 | C9: AGL 924 FH | D9: MOBIL | E9: 34721 | F9: PETROL | G9: 34 | H9: 145 | I9: 46.5 | J9: 12.5 | K9: 5000 | L9: PHC | M9: HUAWEI | N9: CHRISTIAN AYAEHIE | O9: 8132839808 | P9: MONEY PAID INTO FME'S ACCOUNT (DRIVER FORGOT HIS ATM CARD AT HOME) | Q9: TOYOTA HILUX
B10: 2019-12-06 | C10: MUS 844 XK | D10: ORIZONE PET | E10: 91316 | F10: PETROL | G10: 28 | H10: 145 | I10: 21 | J10: 7 | K10: 4000 | L10: OWERRI | M10: HUAWEI | N10: OKOAFOR CHINONSO | O10: 8064869708 | Q10: MITS.L201
J11: TOTAL | K11: 11000

Sheet 15-06-2019
H6: HUAWEI FUEL RETIREMENT FOR 15-06-2019 BY IKECHUKWU ROBERT E.
B8: Date | C8: Vehicle Number | D8: Filling Station | E8: Mileage | F8: Type | G8: Quantity | H8: Amount per Litre | I8: TRACKING REPORT LITRE | J8: Variance | K8: RATE | L8: PURCHASE POINT | M8: CONTRACT | N8: NAME | O8: PHONE NO | P8: COMMENT | Q8: VEHICLE MAKE
B9: 14/6/2019 | C9: AGL 924 FH | D9: MOBIL | E9: 34856 | F9: PETROL | G9: 41 | H9: 145 | I9: 35 | J9: 6 | K9: 6000 | L9: PHC | M9: HUAWEI | N9: GODSTIME CHIOMA | O9: 8104276284 | P9: MONEY PAID INTO FME'S ACCOUNT (DRIVER FORGOT HIS ATM CARD AT HOME) | Q9: TOYOTA HILUX
B10: 14/6/2019 | C10: AGL 924 FH | D10: OANDO | E10: 35101 | F10: PETROL | G10: 14 | H10: 145 | I10: 11.5 | J10: 2.5 | K10: 2000 | L10: ASABA | M10: HUAWEI | N10: GODSTIME CHIOMA | O10: 8104276284 | P10: MONEY PAID INTO FME'S ACCOUNT (DRIVER FORGOT HIS ATM CARD AT HOME) | Q10: TOYOTA HILUX
B11: 14/6/2019 | C11: AGL 924 FH | D11: NNPC | E11: 35116 | F11: PETROL | G11: 14 | H11: 145 | I11: 18 | J11: 4 | K11: 2000 | L11: ONITSHA | M11: HUAWEI | N11: GODSTIME CHIOMA | O11: 8104276285 | P11: MONEY PAID INTO FME'S ACCOUNT (DRIVER FORGOT HIS ATM CARD AT HOME) | Q11: TOYOTA HILUX
B12: 15/6/2020 | C12: AGL 924 FH | D12: MOBIL | E12: 35254 | F12: PETROL | G12: 41 | H12: 145 | I12: 42 | J12: 1 | K12: 6000 | L12: PHC | M12: HUAWEI | N12: GODSTIME CHIOMA | O12: 8104276286 | P12: MONEY PAID INTO FME'S ACCOUNT (DRIVER FORGOT HIS ATM CARD AT HOME) | Q12: TOYOTA HILUX
B13: 15/6/2019 | C13: AAA 634 XM | D13: SOSO | E13: 139637 | F13: PETROL | G13: 41 | H13: 145 | I13: 30 | J13: 11 | K13: 6000 | L13: PHC | M13: HUAWEI | N13: JAMES ALECHENU | O13: 8077006442 | P13: Kindly deduct N1,595.00 from the driver. | Q13: TOYOTA HILUX
J14: TOTAL | K14: 22000

Sheet 18-06-2019
H6: HUAWEI FUEL RETIREMENT FOR 18-06-2019 BY IKECHUKWU ROBERT E.
B8: Date | C8: Vehicle Number | D8: Filling Station | E8: Mileage | F8: Type | G8: Quantity | H8: Amount per Litre | I8: TRACKING REPORT LITRE | J8: Variance | K8: RATE | L8: PURCHASE POINT | M8: CONTRACT | N8: NAME | O8: PHONE NO | P8: COMMENT | Q8: VEHICLE MAKE
B9: 18/6/2019 | C9: AGL 924 FH | D9: MOBIL | E9: 35479 | F9: PETROL | G9: 34 | H9: 145 | I9: 24 | J9: 10 | K9: 5000 | L9: PHC | M9: HUAWEI | N9: GODSTIME CHIOMA | O9: 8104276284 | P9: MONEY PAID INTO FME'S ACCOUNT (DRIVER ATM IS HAVING ISSUES) | Q9: TOYOTA HILUX
B10: 18/6/2019 | C10: KRD 337 XB | D10: OANDO | E10: 89509 | F10: PETROL | G10: 35 | H10: 145 | I10: NOT CAPTURED | J10: 0 | K10: 5000 | L10: PHC | M10: HUAWEI | N10: DIDI SOLOMON | O10: 8134352565 | P10: CITRACKS STILL WORKING ON DEVICE | Q10: TOYOTAHILUX
J11: TOTAL | K11: 10000

Sheet 20-06-2019
H6: HUAWEI FUEL RETIREMENT FOR 20-06-2019 BY IKECHUKWU ROBERT E.
B8: Date | C8: Vehicle Number | D8: Filling Station | E8: Mileage | F8: Type | G8: Quantity | H8: Amount per Litre | I8: TRACKING REPORT LITRE | J8: Variance | K8: RATE | L8: PURCHASE POINT | M8: CONTRACT | N8: NAME | O8: PHONE NO | P8: COMMENT | Q8: VEHICLE MAKE
B9: 20/6/2019 | C9: AGL 924 FH | D9: MOBIL | E9: 35644 | F9: PETROL | G9: 48 | H9: 145 | I9: 44.5 | J9: 3.5 | K9: 7000 | L9: PHC | M9: HUAWEI | N9: GODSTIME CHIOMA | O9: 8104276284 | P9: MONEY PAID INTO FME'S ACCOUNT (DRIVER ATM IS HAVING ISSUES) | Q9: TOYOTA HILUX
J10: TOTAL | K10: 7000

Sheet 21-06-2019
H6: HUAWEI FUEL RETIREMENT FOR 21-06-2019 BY IKECHUKWU ROBERT E.
B8: Date | C8: Vehicle Number | D8: Filling Station | E8: Mileage | F8: Type | G8: Quantity | H8: Amount per Litre | I8: TRACKING REPORT LITRE | J8: Variance | K8: RATE | L8: PURCHASE POINT | M8: CONTRACT | N8: NAME | O8: PHONE NO | P8: COMMENT | Q8: VEHICLE MAKE
B9: 20/6/2019 | C9: AGL 924 FH | D9: MOBIL | E9: 35865 | F9: PETROL | G9: 14 | H9: 145 | I9: 13 | J9: 1 | K9: 2000 | L9: PHC | M9: HUAWEI | N9: GODSTIME CHIOMA | O9: 8104276284 | P9: MONEY PAID INTO FME'S ACCOUNT (DRIVER ATM IS HAVING ISSUES) | Q9: TOYOTA HILUX
B10: 21/6/2020 | C10: AGL 924 FH | D10: MOBIL | E10: 36029 | F10: PETROL | G10: 34 | H10: 145 | I10: 24 | J10: 10 | K10: 5000 | L10: PHC | M10: HUAWEI | N10: GODSTIME CHIOMA | O10: 8104276285 | P10: Kindly deduct N1450.00 From Driver's account | Q10: TOYOTA HILUX
J11: TOTAL | K11: 7000

Sheet 24-06-2019
H5: HUAWEI FUEL RETIREMENT FOR 24-06-2019 BY IKECHUKWU ROBERT E.
B7: Date | C7: Vehicle Number | D7: Filling Station | E7: Mileage | F7: Type | G7: Quantity | H7: Amount per Litre | I7: TRACKING REPORT LITRE | J7: Variance | K7: RATE | L7: PURCHASE POINT | M7: CONTRACT | N7: NAME | O7: PHONE NO | P7: COMMENT | Q7: VEHICLE MAKE
B8: 23/6/2019 | C8: AGL 924 FH | D8: MOBIL | E8: 36153 | F8: PETROL | G8: 55 | H8: 145 | I8: 53 | J8: 2 | K8: 8000 | L8: PHC | M8: HUAWEI | N8: GODSTIME CHIOMA | O8: 8104276284 | P8: MONEY PAID INTO FME'S ACCOUNT (DRIVER ATM IS HAVING ISSUES) | Q8: TOYOTA HILUX
B9: 23/6/2019 | C9: EPE 474 XB | D9: NDU ENT | E9: 67466 | F9: PETROL | G9: 34 | H9: 145 | I9: NOT CAPTURED | J9: 0 | K9: 5000 | L9: OWERRI | M9: HUAWEI | N9: SUNDAY OGUNAIKE | O9: 8035263692 | P9: NOT CAPTURED (CITRACKS STILL WORKING ON IT) | Q9: TOYOTA HILUX
B10: 24/6/2020 | C10: AGL 924 FH | D10: MOBIL | E10: 36510 | F10: PETROL | G10: 34 | H10: 145 | I10: 37 | J10: 3 | K10: 5000 | L10: PHC | M10: HUAWEI | N10: GODSTIME CHIOMA | O10: 8104276285 | P10: Kindly deduct N1450.00 From Driver's account | Q10: TOYOTA HILUX
J11: TOTAL | K11: 18000

Sheet 26-06-2019
H5: HUAWEI FUEL RETIREMENT FOR 26-06-2019 BY IKECHUKWU ROBERT E.
B7: Date | C7: Vehicle Number | D7: Filling Station | E7: Mileage | F7: Type | G7: Quantity | H7: Amount per Litre | I7: TRACKING REPORT LITRE | J7: Variance | K7: RATE | L7: PURCHASE POINT | M7: CONTRACT | N7: NAME | O7: PHONE NO | P7: COMMENT | Q7: VEHICLE MAKE
B8: 25/6/2019 | C8: KRD 337 XB | D8: OANDO | E8: 89945 | F8: PETROL | G8: 28 | H8: 145 | I8: NOT CAPTURED | J8: 0 | K8: 4000 | L8: PHC | M8: HUAWEI | N8: DIDI SOLOMON | O8: 8134352565 | P8: CITRACKS STILL WORKING ON DEVICE | Q8: TOYOTAHILUX
B9: 26/6/2019 | C9: AGL 924 FH | D9: MOBIL | E9: 36648 | F9: PETROL | G9: 41 | H9: 145 | I9: 33 | J9: 8 | K9: 6000 | L9: PHC | M9: HUAWEI | N9: GODSTIME CHIOMA | O9: 8104276284 | P9: MONEY PAID INTO FME'S ACCOUNT (DRIVER ATM IS HAVING ISSUES) | Q9: TOYOTA HILUX
B10: 26/6/2019 | C10: MUS 844 XK | D10: MOBIL | E10: 92167 | F10: PETROL | G10: 41 | H10: 145 | I10: 21 | J10: 20 | K10: 6000 | L10: OWERRI | M10: HUAWEI | N10: OKOAFOR CHINONSO | O10: 8064869708 | P10: Kindly deduct N2,900.00 From Driver's account | Q10: TOYOTA HILUX
B11: 26/6/2019 | C11: KRD 337 XB | D11: OANDO | E11: 90050 | F11: PETROL | G11: 28 | H11: 145 | I11: NOT CAPTURED | J11: 0 | K11: 4000 | L11: PHC | M11: HUAWEI | N11: DIDI SOLOMON | O11: 8134352565 | P11: CITRACKS STILL WORKING ON DEVICE | Q11: TOYOTAHILUX
J12: TOTAL | K12: 20000

Sheet 27-06-2019
I6: HUAWEI FUEL RETIREMENT FOR 27-06-2019 BY IKECHUKWU ROBERT E.
C8: Date | D8: Vehicle Number | E8: Filling Station | F8: Mileage | G8: Type | H8: Quantity | I8: Amount per Litre | J8: TRACKING REPORT LITRE | K8: Variance | L8: RATE | M8: PURCHASE POINT | N8: CONTRACT | O8: NAME | P8: PHONE NO | Q8: COMMENT | R8: VEHICLE MAKE
C9: 27/6/2019 | D9: KRD 337 XB | E9: FORTE OIL | F9: 90285 | G9: PETROL | H9: 28 | I9: 145 | J9: NOT CAPTURED | K9: 0 | L9: 4000 | M9: PHC | N9: HUAWEI | O9: DIDI SOLOMON | P9: 8134352565 | Q9: CITRACKS STILL WORKING ON DEVICE | R9: TOYOTAHILUX
C10: 27/6/2019 | D10: EPE 474 XB | E10: TD PET | F10: 68004 | G10: PETROL | H10: 28 | I10: 145 | J10: NOT CAPTURED | K10: 0 | L10: 4000 | M10: OWERRI | N10: HUAWEI | O10: SUNDAY OGUNAIKE | P10: 8035263692 | Q10: NOT CAPTURED (CITRACKS STILL WORKING ON IT) | R10: TOYOTA HILUX
K11: TOTAL | L11: 8000

Sheet 29-06-2019
I6: HUAWEI FUEL RETIREMENT FOR 29-06-2019 BY IKECHUKWU ROBERT E.
C8: Date | D8: Vehicle Number | E8: Filling Station | F8: Mileage | G8: Type | H8: Quantity | I8: Amount per Litre | J8: TRACKING REPORT LITRE | K8: Variance | L8: RATE | M8: PURCHASE POINT | N8: CONTRACT | O8: NAME | P8: PHONE NO | Q8: COMMENT | R8: VEHICLE MAKE
C9: 28/6/2019 | D9: KSF 739 XY | E9: FORTE OIL | F9: 84416 | G9: PETROL | H9: 51 | I9: 145 | J9: 44 | K9: 7 | L9: 7500 | M9: PHC | N9: HUAWEI | O9: JAMES ALECHENU | P9: 8077006442 | R9: MITS.L200
C10: 28/6/2019 | D10: AGL 924 FH | E10: MOBIL | F10: 36814 | G10: PETROL | H10: 35 | I10: 145 | J10: 32.5 | K10: 2.5 | L10: 5000 | M10: PHC | N10: HUAWEI | O10: GODSTIME CHIOMA | P10: 8104276284 | Q10: MONEY PAID INTO FME'S ACCOUNT (DRIVER ATM IS HAVING ISSUES) | R10: TOYOTA HILUX
C11: 28/6/2019 | D11: AGL 924 FH | E11: MOBIL | F11: 36849 | G11: PETROL | H11: 7 | I11: 145 | J11: 8 | K11: 1 | L11: 1000 | M11: PHC | N11: HUAWEI | O11: GODSTIME CHIOMA | P11: 8104276285 | Q11: MONEY PAID INTO FME'S ACCOUNT (DRIVER ATM IS HAVING ISSUES) | R11: TOYOTA HILUX
K12: TOTAL | L12: 13500

Sheet 01-07-2019
I6: HUAWEI FUEL RETIREMENT FOR 01-07-2019 BY IKECHUKWU ROBERT E.
C8: Date | D8: Vehicle Number | E8: Filling Station | F8: Mileage | G8: Type | H8: Quantity | I8: Amount per Litre | J8: TRACKING REPORT LITRE | K8: Variance | L8: RATE | M8: PURCHASE POINT | N8: CONTRACT | O8: NAME | P8: PHONE NO | Q8: COMMENT | R8: VEHICLE MAKE
C9: 30/6/2019 | D9: KRD 337 XB | E9: FORTE OIL | F9: 84416 | G9: PETROL | H9: 35 | I9: 145 | J9: 34 | K9: 0 | L9: 5000 | M9: PHC | N9: HUAWEI | O9: JAMES ALECHENU | P9: 8077006442 | R9: MITS.L200
C10: 2019-01-07 | D10: AGL 924 FH | E10: MOBIL | F10: 37085 | G10: PETROL | H10: 41 | I10: 145 | J10: 40 | K10: 1 | L10: 6000 | M10: PHC | N10: HUAWEI | O10: IMINABOR HORSFALL | P10: 8064114647 | R10: TOYOTA HILUX
K11: TOTAL | L11: 11000

Sheet 5-07-2019
I5: HUAWEI FUEL RETIREMENT FOR 05-07-2019 BY IKECHUKWU ROBERT E.
C7: Date | D7: Vehicle Number | E7: Filling Station | F7: Mileage | G7: Type | H7: Quantity | I7: Amount per Litre | J7: TRACKING REPORT LITRE | K7: Variance | L7: RATE | M7: PURCHASE POINT | N7: CONTRACT | O7: NAME | P7: PHONE NO | Q7: COMMENT | R7: VEHICLE MAKE
C8: 2019-04-07 | D8: KRD 337 XB | E8: FORTE OIL | F8: 91170 | G8: PETROL | H8: 35 | I8: 145 | K8: NOT CAPTURED | L8: 5000 | M8: PHC | N8: HUAWEI | O8: DIDI SOLOMON | P8: 8134352565 | Q8: CITRACKS STILL WORKING ON DEVICE | R8: TOYOTAHILUX
C9: 2019-05-07 | D9: AGL 924 FH | E9: SO | F9: 37242 | G9: PETROL | H9: 41 | I9: 145 | J9: 43 | K9: 2 | L9: 6000 | M9: PHC | N9: HUAWEI | O9: IMINABOR HORSFALL | P9: 8064114647 | R9: TOYOTA HILUX
K10: TOTAL | L10: 11000

Sheet 08-07-2019
H5: HUAWEI FUEL RETIREMENT FOR 08-07-2019 BY IKECHUKWU ROBERT E.
B7: Date | C7: Vehicle Number | D7: Filling Station | E7: Mileage | F7: Type | G7: Quantity | H7: Amount per Litre | I7: TRACKING REPORT LITRE | J7: Variance | K7: RATE | L7: PURCHASE POINT | M7: CONTRACT | N7: NAME | O7: PHONE NO | P7: COMMENT | Q7: VEHICLE MAKE
B8: 2019-05-07 | C8: AGL 924 FH | D8: SO | E8: 37385 | F8: PETROL | G8: 21 | H8: 145 | I8: 19 | J8: 3 | K8: 3000 | L8: PHC | M8: HUAWEI | N8: IMINABOR HORSFALL | O8: 8064114647 | Q8: TOYOTA HILUX
B9: 2019-06-07 | C9: AGL 924 FH | D9: MOBIL | E9: 37454 | F9: PETROL | G9: 14 | H9: 145 | I9: 16 | J9: 2 | K9: 2000 | L9: PHC | M9: HUAWEI | N9: IMINABOR HORSFALL | O9: 8064114647 | Q9: TOYOTA HILUX
B10: 2019-07-07 | C10: AGL 924 FH | D10: MOBIL | E10: 37565 | F10: PETROL | G10: 24 | H10: 145 | I10: 17 | J10: 7 | K10: 3500 | L10: PHC | M10: HUAWEI | N10: IMINABOR HORSFALL | O10: 8064114648 | Q10: TOYOTA HILUX
J11: TOTAL | K11: 8500

Sheet 11-07-2019
H7: HUAWEI FUEL RETIREMENT FOR 11-07-2019 BY IKECHUKWU ROBERT E.
B9: Date | C9: Vehicle Number | D9: Filling Station | E9: Mileage | F9: Type | G9: Quantity | H9: Amount per Litre | I9: TRACKING REPORT LITRE | J9: Variance | K9: RATE | L9: PURCHASE POINT | M9: CONTRACT | N9: NAME | O9: PHONE NO | P9: COMMENT | Q9: VEHICLE MAKE
B10: 2019-08-07 | C10: AGL 924 FH | D10: FORTE | E10: 37454 | F10: PETROL | G10: 35 | H10: 145 | I10: 11 | J10: 24 | K10: 5000 | L10: PHC | M10: HUAWEI | N10: IMINABOR HORSFALL | O10: 8064114647 | P10: Kindly deduct N3,480.00 | Q10: TOYOTA HILUX
B11: 2019-11-07 | C11: AGL 924 FH | D11: TOTAL | E11: 37565 | F11: PETROL | G11: 41 | H11: 145 | I11: 20 | J11: 20 | K11: 6000 | L11: PHC | M11: HUAWEI | N11: IMINABOR HORSFALL | O11: 8064114648 | P11: Kindly deduct N2,900.00 | Q11: TOYOTA HILUX
J12: TOTAL | K12: 11000

Sheet 14-07-2019
H5: HUAWEI FUEL RETIREMENT FOR 14-07-2019 BY IKECHUKWU ROBERT E.
B7: Date | C7: Vehicle Number | D7: Filling Station | E7: Mileage | F7: Type | G7: Quantity | H7: Amount per Litre | I7: TRACKING REPORT LITRE | J7: Variance | K7: RATE | L7: PURCHASE POINT | M7: CONTRACT | N7: NAME | O7: PHONE NO | P7: COMMENT | Q7: VEHICLE MAKE
B8: 2019-12-07 | C8: AGL 924 FH | D8: FORTE | E8: 38146 | F8: PETROL | G8: 41 | H8: 145 | I8: 36 | J8: 5 | K8: 6000 | L8: PHC | M8: HUAWEI | N8: IMINABOR HORSFALL | O8: 8064114647 | Q8: TOYOTA HILUX
B9: 13/7/2019 | C9: KRD 337 XB | D9: MOBIL | E9: 91825 | F9: PETROL | G9: 28 | H9: 145 | I9: 0 | J9: NOT CAPTURED | K9: 4000 | L9: PHC | M9: HUAWEI | N9: DIDI SOLOMON | O9: 8134352565 | P9: CITRACKS STILL WORKING ON DEVICE | Q9: TOYOTAHILUX
J10: TOTAL | K10: 10000

Sheet 17-07-2019
H5: HUAWEI FUEL RETIREMENT FOR 17-07-2019 BY IKECHUKWU ROBERT E.
B7: Date | C7: Vehicle Number | D7: Filling Station | E7: Mileage | F7: Type | G7: Quantity | H7: Amount per Litre | I7: TRACKING REPORT LITRE | J7: Variance | K7: RATE | L7: PURCHASE POINT | M7: CONTRACT | N7: NAME | O7: PHONE NO | P7: COMMENT | Q7: VEHICLE MAKE
B8: 15/7/2019 | C8: KRD 337 XB | D8: FORTE | E8: 91936 | F8: PETROL | G8: 35 | H8: 145 | I8: 0 | J8: NOT CAPTURED | K8: 5000 | L8: PHC | M8: HUAWEI | N8: DIDI SOLOMON | O8: 8134352565 | P8: CITRACKS STILL WORKING ON DEVICE | Q8: TOYOTAHILUX
B9: 15/7/2019 | C9: AAA 632 XM | D9: PROPEL | E9: 136028 | F9: PETROL | G9: 35 | H9: 145 | I9: 30 | J9: 5 | K9: 5000 | L9: PHC | M9: HUAWEI | N9: DENNIS ADOYE | O9: 9062959263 | Q9: TOYOTAHILUX
B10: 16/7/2019 | C10: AGL 924 FH | D10: PROPEL | E10: 38361 | F10: PETROL | G10: 35 | H10: 145 | I10: 26 | J10: 9 | K10: 5000 | L10: PHC | M10: HUAWEI | N10: IMINABOR HORSFALL | O10: 8064114648 | Q10: TOYOTA HILUX
B11: 16/7/2019 | C11: KRD 337 XB | D11: ETERNA | E11: 92086 | F11: PETROL | G11: 35 | H11: 145 | I11: 0 | J11: NOT CAPTURED | K11: 5000 | L11: PHC | M11: HUAWEI | N11: DIDI SOLOMON | O11: 8134352565 | P11: CITRACKS STILL WORKING ON DEVICE | Q11: TOYOTAHILUX
B12: 16/7/2019 | C12: AAA 632 XM | D12: PROPEL | E12: 136257 | F12: PETROL | G12: 35 | H12: 145 | I12: 33 | J12: 2 | K12: 5000 | L12: PHC | M12: HUAWEI | N12: DENNIS ADOYE | O12: 9062959263 | Q12: TOYOTAHILUX
B13: 17/7/2019 | C13: KRD 337 XB | D13: ETERNA | E13: 92121 | F13: PETROL | G13: 35 | H13: 145 | I13: 0 | J13: NOT CAPTURED | K13: 5000 | L13: PHC | M13: HUAWEI | N13: DIDI SOLOMON | O13: 8134352565 | P13: CITRACKS STILL WORKING ON DEVICE | Q13: TOYOTAHILUX
J14: TOTAL | K14: 30000

Sheet 23-07-2019
H5: HUAWEI FUEL RETIREMENT FOR 24-07-2019 BY IKECHUKWU ROBERT E.
B7: Date | C7: Vehicle Number | D7: Filling Station | E7: Mileage | F7: Type | G7: Quantity | H7: Amount per Litre | I7: TRACKING REPORT LITRE | J7: Variance | K7: RATE | L7: PURCHASE POINT | M7: CONTRACT | N7: NAME | O7: PHONE NO | P7: COMMENT | Q7: VEHICLE MAKE
B8: 18/7/2019 | C8: AAA 632 XM | D8: NNPC | E8: 136508 | F8: PETROL | G8: 35 | H8: 145 | I8: 33.5 | J8: 1.5 | K8: 5000 | L8: PHC | M8: HUAWEI | N8: DENNIS ADOYE | O8: 9062959263 | Q8: TOYOTAHILUX
B9: 20/7/2019 | C9: AAA 632 XM | D9: ZACOSEM | E9: 136724 | F9: PETROL | G9: 35 | H9: 145 | I9: 31 | J9: 4 | K9: 5000 | L9: PHC | M9: HUAWEI | N9: DENNIS ADOYE | O9: 9062959263 | Q9: TOYOTAHILUX
B10: 21/7/2019 | C10: KRD 337 XB | D10: PROPEL | E10: 92086 | F10: PETROL | G10: 35 | H10: 145 | I10: 0 | J10: NOT CAPTURED | K10: 3000 | L10: PHC | M10: HUAWEI | N10: DIDI SOLOMON | O10: 8134352565 | P10: CITRACKS STILL WORKING ON DEVICE | Q10: TOYOTAHILUX
B11: 22/7/2019 | C11: AAA 632 XM | D11: PROPEL | E11: 136975 | F11: PETROL | G11: 35 | H11: 145 | I11: 12 | J11: 23 | K11: 5000 | L11: PHC | M11: HUAWEI | N11: DENNIS ADOYE | O11: 9062959263 | P11: KINDLY DEDUCT N3,335 FROM DRIVER | Q11: TOYOTAHILUX
B12: 22/7/2019 | C12: KSF 739 XY | D12: FORTE OIL | E12: 86495 | F12: PETROL | G12: 35 | H12: 145 | I12: 40 | J12: 5 | K12: 5000 | L12: PHC | M12: HUAWEI | N12: JAMES ALECHENU | O12: 8077006442 | Q12: MITS.L200
B13: 23/7/2019 | C13: LSR 998 XL | D13: MRS | E13: 188049 | F13: PETROL | G13: 41 | H13: 145 | I13: 37 | J13: 4 | K13: 6000 | L13: PHC | M13: HUAWEI | N13: JAMES ALECHENU | O13: 8077006442 | Q13: MITS.L200
B14: 23/7/2020 | C14: LSR 998 XL | D14: TOTAL | E14: 188131 | F14: PETROL | G14: 7 | H14: 145 | I14: 0 | J14: NOT CAPTURED | K14: 1000 | L14: AHOADA | M14: HUAWEI | N14: JAMES ALECHENU | O14: 8077006443 | Q14: MITS.L200
B15: 23/7/2019 | C15: EPE 474 XB | D15: NDU ENT | E15: 70732 | F15: PETROL | G15: 28 | H15: 145 | I15: NOT CAPTURED | J15: 0 | K15: 5000 | L15: OWERRI | M15: HUAWEI | N15: SUNDAY OGUNAIKE | O15: 8035263692 | P15: NOT CAPTURED (CITRACKS STILL WORKING ON IT) | Q15: TOYOTA HILUX
J16: TOTAL | K16: 35000

Sheet 24-07-2019
I4: HUAWEI FUEL RETIREMENT FOR 24-07-2019 BY IKECHUKWU ROBERT E.
C6: Date | D6: Vehicle Number | E6: Filling Station | F6: Mileage | G6: Type | H6: Quantity | I6: Amount per Litre | J6: TRACKING REPORT LITRE | K6: Variance | L6: RATE | M6: PURCHASE POINT | N6: CONTRACT | O6: NAME | P6: PHONE NO | Q6: COMMENT | R6: VEHICLE MAKE
C7: 21/7/2019 | D7: EPE 474 XB | E7: NDU ENT | F7: 70621 | G7: PETROL | H7: 28 | I7: 145 | J7: NOT CAPTURED | K7: 0 | L7: 3000 | M7: OWERRI | N7: HUAWEI | O7: SUNDAY OGUNAIKE | P7: 8035263692 | Q7: NOT CAPTURED (CITRACKS STILL WORKING ON IT) | R7: TOYOTA HILUX
C8: 22/7/2019 | D8: EPE 474 XB | E8: EMORDI PET | F8: 70732 | G8: PETROL | H8: 28 | I8: 145 | J8: NOT CAPTURED | K8: 0 | L8: 4000 | M8: OWERRI | N8: HUAWEI | O8: SUNDAY OGUNAIKE | P8: 8035263692 | Q8: NOT CAPTURED (CITRACKS STILL WORKING ON IT) | R8: TOYOTA HILUX
C9: 23/7/2019 | D9: AAA 632 XM | E9: PROPEL | F9: 137121 | G9: PETROL | H9: 48 | I9: 145 | J9: 41 | K9: 7 | L9: 7000 | M9: PHC | N9: HUAWEI | O9: DENNIS ADOYE | P9: 9062959263 | R9: TOYOTAHILUX
C10: 24/7/2019 | D10: LSR 998 XL | E10: TOTAL | F10: 188131 | G10: PETROL | H10: 48 | I10: 145 | J10: 42 | K10: 6 | L10: 7000 | M10: PHC | N10: HUAWEI | O10: JAMES ALECHENU | P10: 8077006443 | R10: MITS.L200
C11: 24/7/2019 | D11: EPE 474 XB | E11: NDU ENT | F11: 70996 | G11: PETROL | H11: 35 | I11: 145 | J11: NOT CAPTURED | K11: 0 | L11: 5000 | M11: OWERRI | N11: HUAWEI | O11: SUNDAY OGUNAIKE | P11: 8035263692 | Q11: NOT CAPTURED (CITRACKS STILL WORKING ON IT) | R11: TOYOTA HILUX
K12: TOTAL | L12: 26000

Sheet 25-07-2019
I5: HUAWEI FUEL RETIREMENT FOR 24-07-2019 BY IKECHUKWU ROBERT E.
C7: Date | D7: Vehicle Number | E7: Filling Station | F7: Mileage | G7: Type | H7: Quantity | I7: Amount per Litre | J7: TRACKING REPORT LITRE | K7: Variance | L7: RATE | M7: PURCHASE POINT | N7: CONTRACT | O7: NAME | P7: PHONE NO | Q7: COMMENT | R7: VEHICLE MAKE
C8: 24/7/2019 | D8: AAA 632 XM | E8: HYDROPET | F8: 137547 | G8: PETROL | H8: 48 | I8: 145 | J8: 39 | K8: 9 | L8: 7000 | M8: PHC | N8: HUAWEI | O8: DENNIS ADOYE | P8: 9062959263 | R8: TOYOTAHILUX
C9: 25/7/2019 | D9: EPE 474 XB | E9: EMORDI PET | F9: 71165 | G9: PETROL | H9: 28 | I9: 145 | J9: NOT CAPTURED | K9: 0 | L9: 4000 | M9: OWERRI | N9: HUAWEI | O9: SUNDAY OGUNAIKE | P9: 8035263692 | Q9: NOT CAPTURED (CITRACKS STILL WORKING ON IT) | R9: TOYOTA HILUX
C10: 25/7/2019 | D10: AAA 632 XM | E10: PROPEL | F10: 137775 | G10: PETROL | H10: 48 | I10: 145 | J10: 39 | K10: 7 | L10: 6000 | M10: PHC | N10: HUAWEI | O10: DENNIS ADOYE | P10: 9062959263 | R10: TOYOTAHILUX
C11: 25/7/2019 | D11: LSR 998 XL | E11: TOTAL | F11: 188673 | G11: PETROL | H11: 41 | I11: 145 | J11: 38 | K11: 3 | L11: 6000 | M11: PHC | N11: HUAWEI | O11: JAMES ALECHENU | P11: 8077006443 | R11: MITS.L200
K12: TOTAL | L12: 23000

Sheet 26-07-2019
I6: HUAWEI FUEL RETIREMENT FOR 26-07-2019 BY IKECHUKWU ROBERT E.
C8: Date | D8: Vehicle Number | E8: Filling Station | F8: Mileage | G8: Type | H8: Quantity | I8: Amount per Litre | J8: TRACKING REPORT LITRE | K8: Variance | L8: RATE | M8: PURCHASE POINT | N8: CONTRACT | O8: NAME | P8: PHONE NO | Q8: COMMENT | R8: VEHICLE MAKE
C9: 26/7/2019 | D9: AAA 632 XM | E9: HYDROPET | F9: 138151 | G9: PETROL | H9: 62 | I9: 145 | J9: 40 | K9: 9 | L9: 9000 | M9: PHC | N9: HUAWEI | O9: DENNIS ADOYE | P9: 9062959263 | Q9: KINDLY DEDUCT N1,740.00 From driver | R9: TOYOTAHILUX
C10: 26/7/2019 | D10: LSR 998 XL | E10: PROPEL | F10: 188831 | G10: PETROL | H10: 41 | I10: 145 | J10: 33 | K10: 3 | L10: 6000 | M10: PHC | N10: HUAWEI | O10: JAMES ALECHENU | P10: 8077006443 | R10: MITS.L200
K14: TOTAL | L14: 15000

Sheet 29-07-2019
H5: HUAWEI FUEL RETIREMENT FOR 29-07-2019 BY IKECHUKWU ROBERT E.
B7: Date | C7: Vehicle Number | D7: Filling Station | E7: Mileage | F7: Type | G7: Quantity | H7: Amount per Litre | I7: TRACKING REPORT LITRE | J7: Variance | K7: RATE | L7: PURCHASE POINT | M7: CONTRACT | N7: NAME | O7: PHONE NO | P7: COMMENT | Q7: VEHICLE MAKE
B8: 26/7/2019 | C8: AAA 632 XM | D8: HYDROPET | E8: 138433 | F8: PETROL | G8: 28 | H8: 145 | I8: 25.5 | J8: 2.5 | K8: 4000 | L8: PHC | M8: HUAWEI | N8: DENNIS ADOYE | O8: 9062959263 | P8: ADDITIONAL FUELING | Q8: TOYOTAHILUX
B9: 27/7/2019 | C9: AAA 632 XM | D9: PROPEL | E9: 137775 | F9: PETROL | G9: 48 | H9: 145 | I9: 39 | J9: 7 | K9: 6000 | L9: PHC | M9: HUAWEI | N9: DENNIS ADOYE | O9: 9062959263 | Q9: TOYOTAHILUX
B10: 27/7/2019 | C10: LSR 998 XL | D10: TOTAL | E10: 139106 | F10: PETROL | G10: 41 | H10: 145 | I10: 32.5 | J10: 7.5 | K10: 6000 | L10: PHC | M10: HUAWEI | N10: JAMES ALECHENU | O10: 8077006443 | Q10: TOYOTA HILUX
B11: 29/7/2019 | C11: KRD 337 XB | D11: MOBIL | E11: 91825 | F11: PETROL | G11: 35 | H11: 145 | I11: 0 | J11: NOT CAPTURED | K11: 5000 | L11: PHC | M11: HUAWEI | N11: DIDI SOLOMON | O11: 8134352565 | P11: CITRACKS STILL WORKING ON DEVICE | Q11: TOYOTAHILUX
J12: TOTAL | K12: 21000

Sheet 30-7-2019
H6: HUAWEI FUEL RETIREMENT FOR 30-07-2019 BY IKECHUKWU ROBERT E.
B8: Date | C8: Vehicle Number | D8: Filling Station | E8: Mileage | F8: Type | G8: Quantity | H8: Amount per Litre | I8: TRACKING REPORT LITRE | J8: Variance | K8: RATE | L8: PURCHASE POINT | M8: CONTRACT | N8: NAME | O8: PHONE NO | P8: COMMENT | Q8: VEHICLE MAKE
B9: 29/7/2019 | C9: LSR 998 XL | D9: ETERNA | E9: 198379 | F9: PETROL | G9: 35 | H9: 145 | I9: 24 | J9: 11 | K9: 5000 | L9: PHC | M9: HUAWEI | N9: JAMES ALECHENU | O9: 8077006443 | P9: KINDLY DEDUCT N1,595.00 From driver | Q9: TOYOTA HILUX
B10: 29/7/2019 | C10: LSD 460 XM | D10: UDO PET | E10: 112689 | F10: PETROL | G10: 14 | H10: 145 | I10: 15 | J10: 1 | K10: 2000 | L10: NSUKA | M10: HUAWEI | N10: OKECHUKWU OKEREKE | O10: 8131526455 | Q10: TOYOTA HILUX
B11: 29/7/2020 | C11: LSD 460 XM | D11: UDO PET | E11: 112770 | F11: PETROL | G11: 35 | H11: 145 | I11: 28 | J11: 7 | K11: 5000 | L11: NSUKA | M11: HUAWEI | N11: OKECHUKWU OKEREKE | O11: 8131526456 | Q11: TOYOTA HILUX
B12: 30/7/2019 | C12: KRD 337 XB | D12: MOBIL | E12: 92999 | F12: PETROL | G12: 35 | H12: 145 | I12: 0 | J12: NOT CAPTURED | K12: 5000 | L12: PHC | M12: HUAWEI | N12: DIDI SOLOMON | O12: 8134352565 | P12: CITRACKS STILL WORKING ON DEVICE | Q12: TOYOTAHILUX
B13: 30/7/2019 | C13: AAA 632 XM | D13: ETERNA | E13: 138904 | F13: PETROL | G13: 35 | H13: 145 | I13: 32 | J13: 3 | K13: 5000 | L13: PHC | M13: HUAWEI | N13: DENNIS ADOYE | O13: 9062959263 | Q13: TOYOTAHILUX
B14: 30/7/2019 | C14: LSR 998 XL | D14: ETERNA | E14: 189662 | F14: PETROL | G14: 41 | H14: 145 | I14: 36 | J14: 5 | K14: 6000 | L14: PHC | M14: HUAWEI | N14: JAMES ALECHENU | O14: 8077006443 | Q14: TOYOTA HILUX
B15: 30/7/2019 | C15: LSD 460 XM | D15: UDO PET | E15: 113065 | F15: PETROL | G15: 60 | H15: 145 | I15: 49 | J15: 11 | K15: 8000 | L15: OTUKPO | M15: HUAWEI | N15: OKECHUKWU OKEREKE | O15: 8131526455 | Q15: TOYOTA HILUX
J16: TOTAL | K16: 36000

Sheet 03-08-2019
H5: HUAWEI FUEL RETIREMENT FOR 02-08-2019 BY IKECHUKWU ROBERT E.
B7: Date | C7: Vehicle Number | D7: Filling Station | E7: Mileage | F7: Type | G7: Quantity | H7: Amount per Litre | I7: TRACKING REPORT LITRE | J7: Variance | K7: RATE | L7: PURCHASE POINT | M7: CONTRACT | N7: NAME | O7: PHONE NO | P7: COMMENT | Q7: VEHICLE MAKE
B8: 31/7/2019 | C8: KRD 337 XB | D8: FORTE OIL | E8: 93187 | F8: PETROL | G8: 35 | H8: 145 | I8: 0 | J8: NOT CAPTURED | K8: 5000 | L8: PHC | M8: HUAWEI | N8: DIDI SOLOMON | O8: 8134352565 | P8: CITRACKS STILL WORKING ON DEVICE | Q8: TOYOTAHILUX
B9: 31/7/2019 | C9: AAA 632 XM | D9: NNPC | E9: 139218 | F9: PETROL | G9: 35 | H9: 145 | I9: 32 | J9: 3 | K9: 5000 | L9: PHC | M9: HUAWEI | N9: DENNIS ADOYE | O9: 9062959263 | Q9: TOYOTAHILUX
B10: 31/7/2019 | C10: LSR 998 XL | D10: TOTAL | E10: 189933 | F10: PETROL | G10: 35 | H10: 145 | I10: 30 | J10: 5 | K10: 5000 | L10: PHC | M10: HUAWEI | N10: JAMES ALECHENU | O10: 8077006443 | Q10: TOYOTA HILUX
B11: 2019-01-08 | C11: AAA 632 XM | D11: NNPC | E11: 139388 | F11: PETROL | G11: 35 | H11: 145 | I11: 29 | J11: 6 | K11: 5000 | L11: PHC | M11: HUAWEI | N11: DENNIS ADOYE | O11: 9062959263 | Q11: TOYOTAHILUX
B12: 2019-01-08 | C12: LSR 998 XL | D12: TOTAL | E12: 190003 | F12: PETROL | G12: 28 | H12: 145 | I12: 20 | J12: 8 | K12: 4000 | L12: PHC | M12: HUAWEI | N12: JAMES ALECHENU | O12: 8077006443 | Q12: TOYOTA HILUX
B13: 2019-02-08 | C13: AAA 632 XM | D13: NNPC | E13: 139647 | F13: PETROL | G13: 41 | H13: 145 | I13: 41 | J13: 0 | K13: 6000 | L13: PHC | M13: HUAWEI | N13: DENNIS ADOYE | O13: 9062959263 | Q13: TOYOTAHILUX
J14: TOTAL | K14: =SUM(K8:K13) -> 30000

Sheet 04-08-2019
H6: HUAWEI FUEL RETIREMENT FOR 04-08-2019 BY IKECHUKWU ROBERT E.
B8: Date | C8: Vehicle Number | D8: Filling Station | E8: Mileage | F8: Type | G8: Quantity | H8: Amount per Litre | I8: TRACKING REPORT LITRE | J8: Variance | K8: RATE | L8: PURCHASE POINT | M8: CONTRACT | N8: NAME | O8: PHONE NO | P8: COMMENT | Q8: VEHICLE MAKE
B9: 2019-04-08 | C9: LSR 998 XL | D9: TOTAL | E9: 190290 | F9: PETROL | G9: 35 | H9: 145 | I9: 31 | J9: 4 | K9: 5000 | L9: PHC | M9: HUAWEI | N9: JAMES ALECHENU | O9: 8077006443 | Q9: TOYOTA HILUX
B10: 2019-04-08 | C10: AAA 632 XM | D10: NNPC | E10: 139978 | F10: PETROL | G10: 35 | H10: 145 | I10: 29 | J10: 6 | K10: 5000 | L10: PHC | M10: HUAWEI | N10: DENNIS ADOYE | O10: 9062959263 | Q10: TOYOTAHILUX
J11: TOTAL | K11: =SUM(K9:K10) -> 10000

Sheet 07-08-2019
H5: HUAWEI FUEL RETIREMENT FOR 07-08-2019 BY IKECHUKWU ROBERT E.
B7: Date | C7: Vehicle Number | D7: Filling Station | E7: Mileage | F7: Type | G7: Quantity | H7: Amount per Litre | I7: TRACKING REPORT LITRE | J7: Variance | K7: RATE | L7: PURCHASE POINT | M7: CONTRACT | N7: NAME | O7: PHONE NO | P7: COMMENT | Q7: VEHICLE MAKE
B8: 2019-06-08 | C8: KRD 337 XB | D8: FORTE OIL | E8: 93481 | F8: PETROL | G8: 35 | H8: 145 | I8: 0 | J8: NOT CAPTURED | K8: 5000 | L8: PHC | M8: HUAWEI | N8: DIDI SOLOMON | O8: 8134352565 | P8: CITRACKS STILL WORKING ON DEVICE | Q8: TOYOTAHILUX
B9: 2019-06-08 | C9: AAA 632 XM | D9: ETERNA | E9: 140157 | F9: PETROL | G9: 35 | H9: 145 | I9: 32 | J9: 3 | K9: 6000 | L9: PHC | M9: HUAWEI | N9: DENNIS ADOYE | O9: 9062959263 | Q9: TOYOTAHILUX
B10: 2019-06-08 | C10: LSD 460 XM | D10: OANDO | E10: 114566 | F10: PETROL | G10: 41 | H10: 145 | I10: 46 | J10: 5 | K10: 6000 | L10: PHC | M10: HUAWEI | N10: JAMES ALECHENU | O10: 8077006443 | Q10: TOYOTA HILUX
B11: 2019-06-08 | C11: LSD 460 XM | D11: MOBIL | E11: 114605 | F11: PETROL | G11: 14 | H11: 145 | I11: 13 | J11: 1 | K11: 2000 | L11: PHC | M11: HUAWEI | N11: JAMES ALECHENU | O11: 8077006444 | Q11: TOYOTA HILUX
B12: 2019-06-08 | C12: EPE 474 XB | D12: TOBI PET | E12: 72598 | F12: PETROL | G12: 35 | H12: 145 | I12: 0 | J12: NOT CAPTURED | K12: 5000 | L12: PHC | M12: HUAWEI | N12: DENNIS ADOYE | O12: 9062959263 | P12: CITRACKS STILL WORKING ON DEVICE | Q12: TOYOTAHILUX
B13: 2019-07-08 | C13: LSR 998 XL | D13: TOTAL | E13: 190551 | F13: PETROL | G13: 35 | H13: 145 | I13: 30 | J13: 5 | K13: 5000 | L13: PHC | M13: HUAWEI | N13: JAMES ALECHENU | O13: 8077006443 | Q13: TOYOTA HILUX
J14: TOTAL | K14: =SUM(K8:K13) -> 29000

Sheet 08-08-2019
I5: HUAWEI FUEL RETIREMENT FOR 08-08-2019 BY IKECHUKWU ROBERT E.
C7: Date | D7: Vehicle Number | E7: Filling Station | F7: Mileage | G7: Type | H7: Quantity | I7: Amount per Litre | J7: TRACKING REPORT LITRE | K7: Variance | L7: RATE | M7: PURCHASE POINT | N7: CONTRACT | O7: NAME | P7: PHONE NO | Q7: COMMENT | R7: VEHICLE MAKE
C8: 2019-07-08 | D8: LSD 460 XM | E8: OANDO | F8: 114834 | G8: PETROL | H8: 41 | I8: 145 | J8: 45 | K8: 4 | L8: 6000 | M8: KANSHIO | N8: HUAWEI | O8: KINGSLEY OKEREKE | P8: 8063799963 | R8: TOYOTA HILUX
C9: 2019-07-08 | D9: KRD 337 XB | E9: FORTE OIL | F9: 93589 | G9: PETROL | H9: 35 | I9: 145 | J9: 0 | K9: NOT CAPTURED | L9: 5000 | M9: PHC | N9: HUAWEI | O9: DIDI SOLOMON | P9: 8134352565 | Q9: CITRACKS STILL WORKING ON DEVICE | R9: TOYOTAHILUX
C10: 2019-07-08 | D10: EPE 474 XB | E10: OANDO PET | F10: 72848 | G10: PETROL | H10: 35 | I10: 145 | J10: 0 | K10: NOT CAPTURED | L10: 4000 | M10: OWERRI | N10: HUAWEI | O10: SUNDAY OGUNAIKE | P10: 8035263692 | Q10: CITRACKS STILL WORKING ON DEVICE | R10: TOYOTAHILUX
C11: 2019-08-08 | D11: AAA 632 XM | E11: ETERNA | F11: 143867 | G11: PETROL | H11: 35 | I11: 145 | J11: 32 | K11: 3 | L11: 6000 | M11: PHC | N11: HUAWEI | O11: DENNIS ADOYE | P11: 9062959263 | R11: TOYOTAHILUX
C12: 2019-08-08 | D12: LSR 998 XL | E12: TOTAL | F12: 190777 | G12: PETROL | H12: 38 | I12: 145 | J12: 34 | K12: 4 | L12: 5500 | M12: PHC | N12: HUAWEI | O12: JAMES ALECHENU | P12: 8077006443 | R12: TOYOTA HILUX
K13: TOTAL | L13: =SUM(L8:L12) -> 26500

Sheet 15-08-2019
H5: HUAWEI FUEL RETIREMENT FOR 15-08-2019 BY IKECHUKWU ROBERT E.
B7: Date | C7: Vehicle Number | D7: Filling Station | E7: Mileage | F7: Type | G7: Quantity | H7: Amount per Litre | I7: TRACKING REPORT LITRE | J7: Variance | K7: RATE | L7: PURCHASE POINT | M7: CONTRACT | N7: NAME | O7: PHONE NO | P7: COMMENT | Q7: VEHICLE MAKE
B8: 2019-09-08 | C8: LSR 998 XL | D8: TOTAL | E8: 191085 | F8: PETROL | G8: 35 | H8: 145 | I8: 30 | J8: 5 | K8: 5000 | L8: PHC | M8: HUAWEI | N8: JAMES ALECHENU | O8: 8077006443 | Q8: TOYOTA HILUX
B9: 2019-12-08 | C9: AAA 632 XM | D9: ETERNA | E9: 140641 | F9: PETROL | G9: 41 | H9: 145 | I9: 44.5 | J9: 3.5 | K9: 6000 | L9: PHC | M9: HUAWEI | N9: DENNIS ADOYE | O9: 9062959263 | Q9: TOYOTAHILUX
B10: 14/8/2019 | C10: AAA 632 XM | D10: NNPC | E10: 140790 | F10: PETROL | G10: 28 | H10: 145 | I10: 30 | J10: 2 | K10: 4000 | L10: PHC | M10: HUAWEI | N10: DENNIS ADOYE | O10: 9062959263 | Q10: TOYOTAHILUX
B11: 14/8/2019 | C11: LSR 998 XL | D11: TOTAL | E11: 191304 | F11: PETROL | G11: 35 | H11: 145 | I11: 33 | J11: 2 | K11: 5000 | L11: PHC | M11: HUAWEI | N11: JAMES ALECHENU | O11: 8077006443 | Q11: TOYOTA HILUX
B12: 14/8/2019 | C12: KRD 337 XB | D12: PROPEL | E12: 94199 | F12: PETROL | G12: 35 | H12: 145 | I12: 0 | J12: NOT CAPTURED | K12: 5000 | L12: PHC | M12: HUAWEI | N12: DIDI SOLOMON | O12: 8134352565 | P12: CITRACKS STILL WORKING ON DEVICE | Q12: TOYOTAHILUX
B13: 14/8/2019 | C13: KSF 739 XY | D13: MOBIL | E13: 81515 | F13: PETROL | G13: 11 | H13: 145 | I13: 0 | J13: NOT CAPTURED | K13: 1500 | L13: PHC | M13: HUAWEI | N13: DAVIES OKEMEME | O13: 8162112315 | Q13: MITS.L200
B14: 15/8/2019 | C14: LSR 998 XL | D14: TOTAL | E14: 191575 | F14: PETROL | G14: 35 | H14: 145 | I14: 31 | J14: 4 | K14: 5000 | L14: PHC | M14: HUAWEI | N14: JAMES ALECHENU | O14: 8077006443 | Q14: TOYOTA HILUX
J15: TOTAL | K15: =SUM(K8:K14) -> 31500

Sheet 16-08-2019
I6: HUAWEI FUEL RETIREMENT FOR 16-08-2019 BY IKECHUKWU ROBERT E.
C8: Date | D8: Vehicle Number | E8: Filling Station | F8: Mileage | G8: Type | H8: Quantity | I8: Amount per Litre | J8: TRACKING REPORT LITRE | K8: Variance | L8: RATE | M8: PURCHASE POINT | N8: CONTRACT | O8: NAME | P8: PHONE NO | Q8: COMMENT | R8: VEHICLE MAKE
C9: 16/8/2019 | D9: LSR 998 XL | E9: FORTE OIL | F9: 191085 | G9: PETROL | H9: 41 | I9: 145 | J9: 32 | K9: 9 | L9: 6000 | M9: PHC | N9: HUAWEI | O9: JAMES ALECHENU | P9: 8077006443 | R9: TOYOTA HILUX
C10: 16/8/2019 | D10: AAA 632 XM | E10: ETERNA | F10: 140641 | G10: PETROL | H10: 41 | I10: 145 | J10: 38 | K10: 3 | L10: 6000 | M10: PHC | N10: HUAWEI | O10: DENNIS ADOYE | P10: 9062959263 | R10: TOYOTAHILUX
K11: TOTAL | L11: =SUM(L9:L10) -> 12000

Sheet 19-08-2019
H5: HUAWEI FUEL RETIREMENT FOR 19-08-2019 BY IKECHUKWU ROBERT E.
B7: Date | C7: Vehicle Number | D7: Filling Station | E7: Mileage | F7: Type | G7: Quantity | H7: Amount per Litre | I7: TRACKING REPORT LITRE | J7: Variance | K7: RATE | L7: PURCHASE POINT | M7: CONTRACT | N7: NAME | O7: PHONE NO | P7: COMMENT | Q7: VEHICLE MAKE
B8: 16/8/2019 | C8: KRD 337 XB | D8: PROPEL | E8: 94265 | F8: PETROL | G8: 14 | H8: 145 | I8: NOT CAPTURED | J8: 0 | K8: 2000 | L8: PHC | M8: HUAWEI | N8: DIDI SOLOMON | O8: 8134352565 | P8: CITRACKS STILL WORKING ON DEVICE | Q8: TOYOTAHILUX
B9: 17/8/2019 | C9: LSR 998 XL | D9: FORTE OIL | E9: 191610 | F9: PETROL | G9: 35 | H9: 145 | I9: 31 | J9: 4 | K9: 5000 | L9: PHC | M9: HUAWEI | N9: JAMES ALECHENU | O9: 8077006443 | Q9: TOYOTA HILUX
B10: 17/8/2019 | C10: AAA 632 XM | D10: ETERNA | E10: 141186 | F10: PETROL | G10: 35 | H10: 145 | I10: 37 | J10: 2 | K10: 5000 | L10: PHC | M10: HUAWEI | N10: DENNIS ADOYE | O10: 9062959263 | Q10: TOYOTAHILUX
B11: 17/8/2019 | C11: EPE 474 XB | D11: ND CHUCKS | E11: 73801 | F11: PETROL | G11: 35 | H11: 145 | I11: NOT CAPTURED | J11: 0 | K11: 5000 | L11: OWERRI | M11: HUAWEI | N11: SUNDAY OGUNAIKE | O11: 8035263692 | P11: CITRACKS STILL WORKING ON DEVICE | Q11: TOYOTAHILUX
J12: TOTAL | K12: 17000

Sheet 21-08-2019
I5: HUAWEI FUEL RETIREMENT FOR 21-08-2019 BY IKECHUKWU ROBERT E.
C7: Date | D7: Vehicle Number | E7: Filling Station | F7: Mileage | G7: Type | H7: Quantity | I7: Amount per Litre | J7: TRACKING REPORT LITRE | K7: Variance | L7: RATE | M7: PURCHASE POINT | N7: CONTRACT | O7: NAME | P7: PHONE NO | Q7: COMMENT | R7: VEHICLE MAKE
C8: 20/8/2019 | D8: KRD 337 XB | E8: PROPEL | F8: 94579 | G8: PETROL | H8: 28 | I8: 145 | J8: NOT CAPTURED | K8: 0 | L8: 4000 | M8: PHC | N8: HUAWEI | O8: DIDI SOLOMON | P8: 8134352565 | Q8: CITRACKS STILL WORKING ON DEVICE | R8: TOYOTAHILUX
C9: 20/8/2019 | D9: LSD 460 XM | E9: OANDO | F9: 117163 | G9: PETROL | H9: 55 | I9: 145 | J9: 46 | K9: 9 | L9: 8000 | M9: ONITSHA | N9: HUAWEI | O9: KINGSLEY OKEREKE | P9: 8063799963 | R9: TOYOTA HILUX
C10: 20/8/2020 | D10: LSD 460 XM | E10: OANDO | F10: 117164 | G10: PETROL | H10: 14 | I10: 145 | J10: 16 | K10: 2 | L10: 2000 | M10: UYO | N10: HUAWEI | O10: KINGSLEY OKEREKE | P10: 8063799964 | R10: TOYOTA HILUX
C11: 21/8/2019 | D11: LSD 460 XM | E11: OANDO | F11: 117546 | G11: PETROL | H11: 21 | I11: 145 | J11: 19 | K11: 3 | L11: 3000 | M11: PHC | N11: HUAWEI | O11: KINGSLEY OKEREKE | P11: 8063799963 | R11: TOYOTA HILUX
C12: 21/8/2019 | D12: AAA 632 XM | E12: NNPC | F12: 141812 | G12: PETROL | H12: 41 | I12: 145 | J12: 35 | K12: 0 | L12: 6000 | M12: AHOADA | N12: HUAWEI | O12: DENNIS ADOYE | P12: 9062959263 | R12: TOYOTAHILUX
C13: 21/8/2019 | D13: KRD 337 XB | E13: PROPEL | F13: 94665 | G13: PETROL | H13: 35 | I13: 145 | J13: NOT CAPTURED | K13: 0 | L13: 5000 | M13: PHC | N13: HUAWEI | O13: DIDI SOLOMON | P13: 8134352565 | Q13: CITRACKS STILL WORKING ON DEVICE | R13: TOYOTAHILUX
K14: TOTAL | L14: =SUM(L8:L13) -> 28000

Sheet 22-08-2019
I6: HUAWEI FUEL RETIREMENT FOR 22-08-2019 BY IKECHUKWU ROBERT E.
C8: Date | D8: Vehicle Number | E8: Filling Station | F8: Mileage | G8: Type | H8: Quantity | I8: Amount per Litre | J8: TRACKING REPORT LITRE | K8: Variance | L8: RATE | M8: PURCHASE POINT | N8: CONTRACT | O8: NAME | P8: PHONE NO | Q8: COMMENT | R8: VEHICLE MAKE
C9: 21/8/2019 | D9: EPE 474 XB | E9: ND CHUCKS | F9: 74291 | G9: PETROL | H9: 14 | I9: 145 | J9: NOT CAPTURED | K9: 0 | L9: 2000 | M9: OWERRI | N9: HUAWEI | O9: SUNDAY OGUNAIKE | P9: 8035263692 | Q9: CITRACKS STILL WORKING ON DEVICE | R9: TOYOTAHILUX
C10: 21/8/2019 | D10: LSR 998 XL | E10: FORTE OIL | F10: 192380 | G10: PETROL | H10: 28 | I10: 145 | J10: 26 | K10: 2 | L10: 4000 | M10: PHC | N10: HUAWEI | O10: JAMES ALECHENU | P10: 8077006443 | R10: TOYOTA HILUX
C11: 22/8/2020 | D11: LSD 460 XM | E11: OANDO | F11: 117834 | G11: PETROL | H11: 55 | I11: 145 | J11: 55 | K11: 0 | L11: 8000 | M11: PHC | N11: HUAWEI | O11: KINGSLEY OKEREKE | P11: 8063799964 | R11: TOYOTA HILUX
C12: 22/8/2019 | D12: KRD 337 XB | E12: PROPEL | F12: 94665 | G12: PETROL | H12: 35 | I12: 145 | J12: NOT CAPTURED | K12: 0 | L12: 4000 | M12: PHC | N12: HUAWEI | O12: DIDI SOLOMON | P12: 8134352565 | Q12: CITRACKS STILL WORKING ON DEVICE | R12: TOYOTAHILUX
C13: 22/8/2019 | D13: EPE 474 XB | E13: ND CHUCKS | F13: 74361 | G13: PETROL | H13: 35 | I13: 145 | J13: NOT CAPTURED | K13: 0 | L13: 5000 | M13: OWERRI | N13: HUAWEI | O13: SUNDAY OGUNAIKE | P13: 8035263692 | Q13: CITRACKS STILL WORKING ON DEVICE | R13: TOYOTAHILUX
K14: TOTAL | L14: =SUM(L9:L13) -> 23000

Sheet 23-08-2019
I6: HUAWEI FUEL RETIREMENT FOR 23-08-2019 BY IKECHUKWU ROBERT E.
C8: Date | D8: Vehicle Number | E8: Filling Station | F8: Mileage | G8: Type | H8: Quantity | I8: Amount per Litre | J8: TRACKING REPORT LITRE | K8: Variance | L8: RATE | M8: PURCHASE POINT | N8: CONTRACT | O8: NAME | P8: PHONE NO | Q8: COMMENT | R8: VEHICLE MAKE
C9: 22/8/2019 | D9: LSR 998 XL | E9: FORTE OIL | F9: 192411 | G9: PETROL | H9: 7 | I9: 145 | J9: 7 | K9: 0 | L9: 1000 | M9: PHC | N9: HUAWEI | O9: JAMES ALECHENU | P9: 8077006443 | R9: TOYOTA HILUX
C10: 22/8/2019 | D10: LSR 998 XL | E10: FORTE OIL | F10: 192631 | G10: PETROL | H10: 28 | I10: 145 | J10: 28.5 | K10: 0.5 | L10: 4000 | M10: PHC | N10: HUAWEI | O10: JAMES ALECHENU | P10: 8077006443 | R10: TOYOTA HILUX
C11: 23/8/2019 | D11: AAA 632 XM | E11: PROPEL | F11: 142191 | G11: PETROL | H11: 41 | I11: 145 | J11: 39 | K11: 0 | L11: 6000 | M11: PHC | N11: HUAWEI | O11: DENNIS ADOYE | P11: 9062959263 | R11: TOYOTAHILUX
C12: 23/8/2019 | D12: LSR 998 XL | E12: FORTE OIL | F12: 192881 | G12: PETROL | H12: 35 | I12: 145 | J12: 30 | K12: 5 | L12: 5000 | M12: PHC | N12: HUAWEI | O12: JAMES ALECHENU | P12: 8077006443 | R12: TOYOTA HILUX
K13: TOTAL | L13: =SUM(L9:L12) -> 16000

Sheet 27-08-2019
I6: HUAWEI FUEL RETIREMENT FOR 27-08-2019 BY IKECHUKWU ROBERT E.
C8: Date | D8: Vehicle Number | E8: Filling Station | F8: Mileage | G8: Type | H8: Quantity | I8: Amount per Litre | J8: TRACKING REPORT LITRE | K8: Variance | L8: RATE | M8: PURCHASE POINT | N8: CONTRACT | O8: NAME | P8: PHONE NO | Q8: COMMENT | R8: VEHICLE MAKE
C9: 24/8/2019 | D9: AAA 632 XM | E9: NNPC | F9: 142418 | G9: PETROL | H9: 35 | I9: 145 | J9: 33 | K9: 2 | L9: 5000 | M9: PHC | N9: HUAWEI | O9: DENNIS ADOYE | P9: 9062959263 | R9: TOYOTAHILUX
C10: 24/8/2019 | D10: LSR 998 XL | E10: FORTE OIL | F10: 191036 | G10: PETROL | H10: 35 | I10: 145 | J10: 32 | K10: 3 | L10: 5000 | M10: PHC | N10: HUAWEI | O10: JAMES ALECHENU | P10: 8077006443 | R10: TOYOTA HILUX
C11: 27/8/2019 | D11: AAA 632 XM | E11: PADOS | F11: 142758 | G11: PETROL | H11: 35 | I11: 145 | J11: 35 | K11: 0 | L11: 5000 | M11: YENEGOA | N11: HUAWEI | O11: DENNIS ADOYE | P11: 9062959263 | R11: TOYOTAHILUX
C12: 27/8/2019 | D12: KRD 337 XB | E12: PROPEL | F12: 96270 | G12: PETROL | H12: 35 | I12: 145 | J12: NOT CAPTURED | K12: 0 | L12: 5000 | M12: PHC | N12: HUAWEI | O12: DIDI SOLOMON | P12: 8134352565 | Q12: CITRACKS STILL WORKING ON DEVICE | R12: TOYOTAHILUX
C13: 27/8/2019 | D13: LSR 998 XL | E13: FORTE OIL | F13: 193133 | G13: PETROL | H13: 35 | I13: 145 | J13: 32 | K13: 3 | L13: 5000 | M13: PHC | N13: HUAWEI | O13: JAMES ALECHENU | P13: 8077006443 | R13: TOYOTA HILUX
K14: TOTAL | L14: =SUM(L9:L13) -> 25000

Sheet 30-8-2019
H5: HUAWEI FUEL RETIREMENT FOR 30-08-2019 BY IKECHUKWU ROBERT E.
B7: Date | C7: Vehicle Number | D7: Filling Station | E7: Mileage | F7: Type | G7: Quantity | H7: Amount per Litre | I7: TRACKING REPORT LITRE | J7: Variance | K7: RATE | L7: PURCHASE POINT | M7: CONTRACT | N7: NAME | O7: PHONE NO | P7: COMMENT | Q7: VEHICLE MAKE
B8: 28/8/2019 | C8: AAA 632 XM | D8: NNPC | E8: 142987 | F8: PETROL | G8: 35 | H8: 145 | I8: 33 | J8: 2 | K8: 5000 | L8: PHC | M8: HUAWEI | N8: DENNIS ADOYE | O8: 9062959263 | Q8: TOYOTAHILUX
B9: 29/8/2019 | C9: AAA 632 XM | D9: ETERNA | E9: 143625 | F9: PETROL | G9: 35 | H9: 145 | I9: 36 | J9: 1 | K9: 5000 | L9: PHC | M9: HUAWEI | N9: DENNIS ADOYE | O9: 9062959263 | Q9: TOYOTAHILUX
J10: TOTAL | K10: =SUM(K8:K9) -> 10000

Sheet 03-09-2019
H6: HUAWEI FUEL RETIREMENT FOR 3-09-2019 BY IKECHUKWU ROBERT E.
B8: Date | C8: Vehicle Number | D8: Filling Station | E8: Mileage | F8: Type | G8: Quantity | H8: Amount per Litre | I8: TRACKING REPORT LITRE | J8: Variance | K8: RATE | L8: PURCHASE POINT | M8: CONTRACT | N8: NAME | O8: PHONE NO | P8: COMMENT | Q8: VEHICLE MAKE
B9: 31/8/2019 | C9: LSR 997 XL | D9: FORTE OIL | E9: 72403 | F9: PETROL | G9: 41 | H9: 145 | I9: NOT CAPTURED | J9: 0 | K9: 6000 | L9: PHC | M9: HUAWEI | N9: JAMES ALECHENU | O9: 8077006443 | P9: NOT CAPTURED | Q9: TOYOTA HILUX
B10: 2019-01-09 | C10: LSD 460 XM | D10: OANDO | E10: 119884 | F10: PETROL | G10: 14 | H10: 145 | I10: 27 | J10: 13 | K10: 2000 | L10: PHC | M10: HUAWEI | N10: KINGSLEY OKEREKE | O10: 8063799963 | Q10: TOYOTA HILUX
B11: 2019-01-09 | C11: LSD 460 XM | D11: OANDO | E11: 120240 | F11: PETROL | G11: 35 | H11: 145 | I11: 39 | J11: 4 | K11: 5000 | L11: ASABA | M11: HUAWEI | N11: KINGSLEY OKEREKE | O11: 8063799964 | Q11: TOYOTA HILUX
B12: 2019-01-09 | C12: LSD 460 XM | D12: OANDO | E12: 120601 | F12: PETROL | G12: 28 | H12: 145 | I12: 22 | J12: 6 | K12: 4000 | L12: BENIN | M12: HUAWEI | N12: KINGSLEY OKEREKE | O12: 8063799963 | Q12: TOYOTA HILUX
B13: 2020-01-09 | C13: LSD 460 XM | D13: OANDO | E13: 120713 | F13: PETROL | G13: 21 | H13: 145 | I13: 19 | J13: 3 | K13: 3000 | L13: OWERRI | M13: HUAWEI | N13: KINGSLEY OKEREKE | O13: 8063799963 | Q13: TOYOTA HILUX
B14: 2019-02-09 | C14: AAA 632 XM | D14: NNPC | E14: 143536 | F14: PETROL | G14: 41 | H14: 145 | I14: 34.5 | J14: 5.5 | K14: 6000 | L14: PHC | M14: HUAWEI | N14: DENNIS ADOYE | O14: 9062959263 | Q14: TOYOTAHILUX
B15: 2019-03-09 | C15: LSR 997 XL | D15: FORTE OIL | E15: 72744 | F15: PETROL | G15: 35 | H15: 145 | I15: NOT CAPTURED | J15: 0 | K15: 5000 | L15: PHC | M15: HUAWEI | N15: JAMES ALECHENU | O15: 8077006443 | P15: NOT CAPTURED | Q15: TOYOTA HILUX
J16: TOTAL | K16: =SUM(K9:K15) -> 31000
... 1 more rows

Sheet 05-09-2019
H5: HUAWEI FUEL RETIREMENT FOR 05-09-2019 BY IKECHUKWU ROBERT E.
B7: Date | C7: Vehicle Number | D7: Filling Station | E7: Mileage | F7: Type | G7: Quantity | H7: Amount per Litre | I7: TRACKING REPORT LITRE | J7: Variance | K7: RATE | L7: PURCHASE POINT | M7: CONTRACT | N7: NAME | O7: PHONE NO | P7: COMMENT | Q7: VEHICLE MAKE
B8: 2020-02-09 | C8: LSD 460 XM | D8: ZUBY PET | E8: 120993 | F8: PETROL | G8: 41 | H8: 145 | I8: 50 | J8: 9 | K8: 6000 | L8: PHC | M8: HUAWEI | N8: KINGSLEY OKEREKE | O8: 8063799963 | Q8: TOYOTA HILUX
B9: 2019-03-09 | C9: EPE 474 XB | D9: PROPEL | E9: 75868 | F9: PETROL | G9: 35 | H9: 145 | I9: NOT CAPTURED | J9: 0 | K9: 5000 | L9: OWERRI | M9: HUAWEI | N9: SUNDAY OGUNAIKE | O9: 8035263692 | P9: CITRACKS STILL WORKING ON DEVICE | Q9: TOYOTAHILUX
B10: 2019-03-09 | C10: KRD 337 XB | D10: ETERNA | E10: 95727 | F10: PETROL | G10: 35 | H10: 145 | I10: NOT CAPTURED | J10: 0 | K10: 4000 | L10: PHC | M10: HUAWEI | N10: DIDI SOLOMON | O10: 8134352565 | P10: CITRACKS STILL WORKING ON DEVICE | Q10: TOYOTAHILUX
B11: 2019-03-09 | C11: LSD 460 XM | D11: MOBIL | E11: 121136 | F11: PETROL | G11: 28 | H11: 145 | I11: 22 | J11: 6 | K11: 4000 | L11: PHC | M11: HUAWEI | N11: KINGSLEY OKEREKE | O11: 8063799963 | Q11: TOYOTA HILUX
B12: 2019-04-09 | C12: KRD 337 XB | D12: SOBAZ | E12: 95843 | F12: PETROL | G12: 35 | H12: 145 | I12: NOT CAPTURED | J12: 0 | K12: 4000 | L12: PHC | M12: HUAWEI | N12: DIDI SOLOMON | O12: 8134352565 | P12: CITRACKS STILL WORKING ON DEVICE | Q12: TOYOTAHILUX
B13: 2019-04-09 | C13: LSR 997 XL | D13: FORTE OIL | E13: 73227 | F13: PETROL | G13: 35 | H13: 145 | I13: NOT CAPTURED | J13: 0 | K13: 6000 | L13: PHC | M13: HUAWEI | N13: JAMES ALECHENU | O13: 8077006443 | P13: NOT CAPTURED | Q13: TOYOTA HILUX
B14: 2019-04-09 | C14: AAA 632 XM | D14: NNPC | E14: 143768 | F14: PETROL | G14: 41 | H14: 145 | I14: 34.5 | J14: 5.5 | K14: 6000 | L14: PHC | M14: HUAWEI | N14: DENNIS ADOYE | O14: 9062959263 | Q14: TOYOTAHILUX
B15: 2019-05-09 | C15: LSR 997 XL | D15: NNPC | E15: 73505 | F15: PETROL | G15: 35 | H15: 145 | I15: NOT CAPTURED | J15: 0 | K15: 5000 | L15: UYO | M15: HUAWEI | N15: JAMES ALECHENU | O15: 8077006444 | P15: NOT CAPTURED | Q15: TOYOTA HILUX
J16: TOTAL | K16: =SUM(K8:K15) -> 40000

Sheet Sheet7
B20: 2019-03-09 | C20: EPE 474 XB | D20: PROPEL | E20: 75868 | F20: PETROL | G20: 35 | H20: 145 | I20: NOT CAPTURED | J20: 0 | K20: 5000 | L20: OWERRI | M20: HUAWEI | N20: SUNDAY OGUNAIKE | O20: 8035263692 | P20: CITRACKS STILL WORKING ON DEVICE | Q20: TOYOTAHILUX

Sheet 07-09-2019
I4: HUAWEI FUEL RETIREMENT FOR 07-09-2019 BY IKECHUKWU ROBERT E.
C6: Date | D6: Vehicle Number | E6: Filling Station | F6: Mileage | G6: Type | H6: Quantity | I6: Amount per Litre | J6: TRACKING REPORT LITRE | K6: Variance | L6: RATE | M6: PURCHASE POINT | N6: CONTRACT | O6: NAME | P6: PHONE NO | Q6: COMMENT | R6: VEHICLE MAKE
C7: 2019-05-09 | D7: GGE 499 FA | E7: FORTE OIL | F7: 34236 | G7: PETROL | H7: 28 | I7: 145 | J7: NOT CAPTURED | K7: 0 | L7: 4000 | M7: PHC | N7: NOVALTIS | O7: Enadeba Aisagbon samuel | P7: 9062959263 | Q7: NOT CAPTURED | R7: HYUNDAI ELANTRA
C8: 2019-06-09 | D8: LSR 997 XL | E8: FORTE OIL | F8: 73721 | G8: PETROL | H8: 41 | I8: 145 | J8: NOT CAPTURED | K8: 0 | L8: 6000 | M8: PHC | N8: HUAWEI | O8: JAMES ALECHENU | P8: 8077006443 | Q8: NOT CAPTURED | R8: TOYOTA HILUX
C9: 2019-07-09 | D9: AAA 632 XM | E9: NNPC | F9: 144128 | G9: PETROL | H9: 41 | I9: 145 | J9: 36 | K9: 5 | L9: 6000 | M9: PHC | N9: HUAWEI | O9: DENNIS ADOYE | P9: 9062959263 | R9: TOYOTAHILUX
K10: TOTAL | L10: =SUM(L7:L9) -> 16000

Sheet 10-09-2019
H5: HUAWEI FUEL RETIREMENT FOR 10-09-2019 BY IKECHUKWU ROBERT E.
B7: Date | C7: Vehicle Number | D7: Filling Station | E7: Mileage | F7: Type | G7: Quantity | H7: Amount per Litre | I7: TRACKING REPORT LITRE | J7: Variance | K7: RATE | L7: PURCHASE POINT | M7: CONTRACT | N7: NAME | O7: PHONE NO | P7: COMMENT | Q7: VEHICLE MAKE
B8: 2019-07-09 | C8: LSR 997 XL | D8: FORTE OIL | E8: 74045 | F8: PETROL | G8: 35 | H8: 145 | I8: NOT CAPTURED | J8: 0 | K8: 5000 | L8: PHC | M8: HUAWEI | N8: JAMES ALECHENU | O8: 8077006443 | P8: NOT CAPTURED | Q8: TOYOTA HILUX
B9: 2019-09-09 | C9: AAA 632 XM | D9: NNPC | E9: 144445 | F9: PETROL | G9: 35 | H9: 145 | I9: 34 | J9: 1 | K9: 5000 | L9: PHC | M9: HUAWEI | N9: DENNIS ADOYE | O9: 9062959263 | Q9: TOYOTAHILUX
B10: 2019-10-09 | C10: AAA 632 XM | D10: PROPEL | E10: 144631 | F10: PETROL | G10: 35 | H10: 145 | I10: 30 | J10: 5 | K10: 5000 | L10: PHC | M10: HUAWEI | N10: DENNIS ADOYE | O10: 9062959263 | Q10: TOYOTAHILUX
J11: TOTAL | K11: =SUM(K8:K10) -> 15000

Sheet 12-09-2019
H4: HUAWEI FUEL RETIREMENT FOR 12-09-2019 BY IKECHUKWU ROBERT E.
B6: Date | C6: Vehicle Number | D6: Filling Station | E6: Mileage | F6: Type | G6: Quantity | H6: Amount per Litre | I6: TRACKING REPORT LITRE | J6: Variance | K6: RATE | L6: PURCHASE POINT | M6: CONTRACT | N6: NAME | O6: PHONE NO | P6: COMMENT | Q6: VEHICLE MAKE
B7: 2019-11-09 | C7: KRD 337 XB | D7: SOBAZ | E7: 96455 | F7: PETROL | G7: 35 | H7: 145 | I7: NOT CAPTURED | J7: 0 | K7: 5000 | L7: PHC | M7: HUAWEI | N7: DIDI SOLOMON | O7: 8134352565 | P7: CITRACKS STILL WORKING ON DEVICE | Q7: TOYOTAHILUX
B8: 2019-11-09 | C8: AAA 632 XM | D8: HYDROPET | E8: 144872 | F8: PETROL | G8: 35 | H8: 145 | I8: 35 | J8: 0 | K8: 5000 | L8: PHC | M8: HUAWEI | N8: DENNIS ADOYE | O8: 9062959263 | Q8: TOYOTAHILUX
B9: 2019-12-09 | C9: AAA 645 XM | D9: FORTE OIL | E9: 162588 | F9: PETROL | G9: 35 | H9: 145 | I9: NOT CAPTURED | J9: 0 | K9: 5000 | L9: PHC | M9: HUAWEI | N9: JAMES ALECHENU | O9: 8077006443 | P9: NOT CAPTURED | Q9: TOYOTA HILUX
B10: 2019-12-09 | C10: AAA 632 XM | D10: PROPEL | E10: 145126 | F10: PETROL | G10: 35 | H10: 145 | I10: 34 | J10: 1 | K10: 5000 | L10: PHC | M10: HUAWEI | N10: DENNIS ADOYE | O10: 9062959263 | Q10: TOYOTAHILUX
J11: TOTAL | K11: =SUM(K7:K10) -> 20000

Sheet 13-09-2019
H5: HUAWEI FUEL RETIREMENT FOR 13-09-2019 BY IKECHUKWU ROBERT E.
B7: Date | C7: Vehicle Number | D7: Filling Station | E7: Mileage | F7: Type | G7: Quantity | H7: Amount per Litre | I7: TRACKING REPORT LITRE | J7: Variance | K7: RATE | L7: PURCHASE POINT | M7: CONTRACT | N7: NAME | O7: PHONE NO | P7: COMMENT | Q7: VEHICLE MAKE
B8: 13/9/2019 | C8: AAA 632 XM | D8: PROPEL | E8: 145321 | F8: PETROL | G8: 35 | H8: 145 | I8: 34.5 | J8: 0.5 | K8: 5000 | L8: PHC | M8: HUAWEI | N8: DENNIS ADOYE | O8: 9062959263 | Q8: TOYOTAHILUX
J9: TOTAL | K9: =SUM(K8:K8) -> 5000

Sheet 16-09-2019
H3: HUAWEI FUEL RETIREMENT FOR 16-09-2019 BY IKECHUKWU ROBERT E.
B5: Date | C5: Vehicle Number | D5: Filling Station | E5: Mileage | F5: Type | G5: Quantity | H5: Amount per Litre | I5: TRACKING REPORT LITRE | J5: Variance | K5: RATE | L5: PURCHASE POINT | M5: CONTRACT | N5: NAME | O5: PHONE NO | P5: COMMENT | Q5: VEHICLE MAKE
B6: 14/9/2020 | C6: LSD 460 XM | D6: PROPEL | E6: 122524 | F6: PETROL | G6: 28 | H6: 145 | I6: NOT CAPTURED | J6: 0 | K6: 4000 | L6: PHC | M6: HUAWEI | N6: KINGSLEY OKEREKE | O6: 8063799963 | Q6: TOYOTA HILUX
B7: 15/9/2020 | C7: LSD 460 XM | D7: EXCELSIS PET | E7: 122734 | F7: PETROL | G7: 28 | H7: 145 | I7: NOT CAPTURED | J7: 0 | K7: 4000 | L7: PHC | M7: HUAWEI | N7: KINGSLEY OKEREKE | O7: 8063799963 | Q7: TOYOTA HILUX
B8: 16/9/2019 | C8: KRD 337 XB | D8: MOBIL | E8: 96804 | F8: PETROL | G8: 21 | H8: 145 | I8: NOT CAPTURED | J8: 0 | K8: 3000 | L8: PHC | M8: HUAWEI | N8: DIDI SOLOMON | O8: 8134352565 | P8: CITRACKS STILL WORKING ON DEVICE | Q8: TOYOTAHILUX
J9: TOTAL | K9: =SUM(K6:K8) -> 11000

Sheet 17-09-2019

Sheet 18-09-2019
H4: HUAWEI FUEL RETIREMENT FOR 18-09-2019 BY IKECHUKWU ROBERT E.
B6: Date | C6: Vehicle Number | D6: Filling Station | E6: Mileage | F6: Type | G6: Quantity | H6: Amount per Litre | I6: TRACKING REPORT LITRE | J6: Variance | K6: RATE | L6: PURCHASE POINT | M6: CONTRACT | N6: NAME | O6: PHONE NO | P6: COMMENT | Q6: VEHICLE MAKE
B7: 18/9/2019 | C7: AAA 632 XM | D7: FORTE | E7: 145803 | F7: PETROL | G7: 41 | H7: 145 | I7: NOT CAPTURED | J7: 2 | K7: 6000 | L7: PHC | M7: HUAWEI | N7: DENNIS ADOYE | O7: 9062959263 | Q7: TOYOTAHILUX
B8: 18/9/2019 | C8: LSD 460 XM | D8: ETERNA | E8: 123101 | F8: PETROL | G8: 41 | H8: 145 | I8: 40 | J8: 5 | K8: 6000 | L8: PHC | M8: HUAWEI | N8: KINGSLEY OKEREKE | O8: 8063799963 | Q8: TOYOTA HILUX
B9: 18/9/2019 | C9: KRD 337 XB | D9: PROPEL | E9: 97011 | F9: PETROL | G9: 28 | H9: 145 | I9: NOT CAPTURED | J9: 0 | K9: 4000 | L9: PHC | M9: HUAWEI | N9: DIDI SOLOMON | O9: 8134352565 | P9: CITRACKS STILL WORKING ON DEVICE | Q9: TOYOTAHILUX
B10: 18/9/2019 | C10: EPE 474 XB | D10: ND PET | E10: 77510 | F10: PETROL | G10: 35 | H10: 145 | I10: NOT CAPTURED | J10: 0 | K10: 5000 | L10: OWERRI | M10: HUAWEI | N10: SUNDAY OGUNAIKE | O10: 8035263692 | Q10: TOYOTAHILUX
J11: TOTAL | K11: =SUM(K7:K10) -> 21000

Sheet 19-09-2019
H4: HUAWEI FUEL RETIREMENT FOR 19-09-2019 BY IKECHUKWU ROBERT E.
B6: Date | C6: Vehicle Number | D6: Filling Station | E6: Mileage | F6: Type | G6: Quantity | H6: Amount per Litre | I6: TRACKING REPORT LITRE | J6: Variance | K6: RATE | L6: PURCHASE POINT | M6: CONTRACT | N6: NAME | O6: PHONE NO | P6: COMMENT | Q6: VEHICLE MAKE
B7: 19/9/2019 | C7: LSD 460 XM | D7: ETERNA | E7: 123350 | F7: PETROL | G7: 41 | H7: 145 | I7: 37 | J7: 4 | K7: 6000 | L7: ASABA | M7: HUAWEI | N7: KINGSLEY OKEREKE | O7: 8063799963 | Q7: TOYOTA HILUX
B8: 19/9/2019 | C8: KRD 337 XB | D8: PROPEL | E8: 97213 | F8: PETROL | G8: 28 | H8: 145 | I8: NOT CAPTURED | J8: 0 | K8: 5000 | L8: PHC | M8: HUAWEI | N8: DIDI SOLOMON | O8: 8134352565 | P8: CITRACKS STILL WORKING ON DEVICE | Q8: TOYOTAHILUX
J9: TOTAL | K9: =SUM(K7:K8) -> 11000

Sheet 21-09-2019
H5: HUAWEI FUEL RETIREMENT FOR 21-09-2019 BY IKECHUKWU ROBERT E.
B7: Date | C7: Vehicle Number | D7: Filling Station | E7: Mileage | F7: Type | G7: Quantity | H7: Amount per Litre | I7: TRACKING REPORT LITRE | J7: Variance | K7: RATE | L7: PURCHASE POINT | M7: CONTRACT | N7: NAME | O7: PHONE NO | P7: COMMENT | Q7: VEHICLE MAKE
B8: 21/9/2019 | C8: AAA 632 XM | D8: ETERNA | E8: 146124 | F8: PETROL | G8: 41 | H8: 145 | I8: 39 | J8: 2 | K8: 6000 | L8: PHC | M8: HUAWEI | N8: DENNIS ADOYE | O8: 9062959263 | Q8: TOYOTA HILUX
B9: 21/9/2019 | C9: AAB 142 YJ | D9: SOSO | E9: 38179 | F9: PETROL | G9: 41 | H9: 145 | I9: NOT CAPTURED | J9: 0 | K9: 6000 | L9: PHC | M9: HUAWEI | N9: JAMES ALECHENU | O9: 8077006443 | P9: NOT CAPTURED | Q9: TOYOTAHILUX
J10: TOTAL | K10: =SUM(K8:K9) -> 12000

Sheet 24-09-2019
H6: HUAWEI FUEL RETIREMENT FOR 24-09-2019 BY IKECHUKWU ROBERT E.
B8: Date | C8: Vehicle Number | D8: Filling Station | E8: Mileage | F8: Type | G8: Quantity | H8: Amount per Litre | I8: TRACKING REPORT LITRE | J8: Variance | K8: RATE | L8: PURCHASE POINT | M8: CONTRACT | N8: NAME | O8: PHONE NO | P8: COMMENT | Q8: VEHICLE MAKE
B9: 23/9/2019 | C9: AAA 632 XM | D9: ETERNA | E9: 146281 | F9: PETROL | G9: 41 | H9: 145 | I9: 34 | J9: 7 | K9: 6000 | L9: PHC | M9: HUAWEI | N9: DENNIS ADOYE | O9: 9062959263 | Q9: TOYOTA HILUX
B10: 23/9/2019 | C10: LSR 998 XL | D10: ETERNA | E10: 194123 | F10: PETROL | G10: 28 | H10: 145 | I10: 28 | J10: 0 | K10: 4000 | L10: PHC | M10: HUAWEI | N10: DENNIS ADOYE | O10: 9062959263 | Q10: TOYOTA HILUX
B11: 24/9/2019 | C11: LSD 460 XM | D11: ETERNA | E11: 123350 | F11: PETROL | G11: 41 | H11: 145 | I11: 36 | J11: 5 | K11: 6000 | L11: PHC | M11: HUAWEI | N11: KINGSLEY OKEREKE | O11: 8063799963 | Q11: TOYOTA HILUX
J12: TOTAL | K12: =SUM(K9:K11) -> 16000

Sheet 25-09-2019
H6: HUAWEI FUEL RETIREMENT FOR 25-09-2019 BY IKECHUKWU ROBERT E.
B8: Date | C8: Vehicle Number | D8: Filling Station | E8: Mileage | F8: Type | G8: Quantity | H8: Amount per Litre | I8: TRACKING REPORT LITRE | J8: Variance | K8: RATE | L8: PURCHASE POINT | M8: CONTRACT | N8: NAME | O8: PHONE NO | P8: COMMENT | Q8: VEHICLE MAKE
B9: 25/9/2019 | C9: AAA 632 XM | D9: ETERNA | E9: 146432 | F9: PETROL | G9: 35 | H9: 145 | I9: 24 | J9: 11 | K9: 5000 | L9: PHC | M9: HUAWEI | N9: DENNIS ADOYE | O9: 9062959263 | Q9: TOYOTA HILUX
J10: TOTAL | K10: =SUM(K9:K9) -> 5000

Sheet 27-09-2019
H6: HUAWEI FUEL RETIREMENT FOR 27-09-2019 BY IKECHUKWU ROBERT E.
B8: Date | C8: Vehicle Number | D8: Filling Station | E8: Mileage | F8: Type | G8: Quantity | H8: Amount per Litre | I8: TRACKING REPORT LITRE | J8: Variance | K8: RATE | L8: PURCHASE POINT | M8: CONTRACT | N8: NAME | O8: PHONE NO | P8: COMMENT | Q8: VEHICLE MAKE
B9: 26/9/2019 | C9: AAA 632 XM | D9: ETERNA | E9: 146623 | F9: PETROL | G9: 28 | H9: 145 | I9: 29.5 | J9: 1.5 | K9: 4000 | L9: PHC | M9: HUAWEI | N9: DENNIS ADOYE | O9: 9062959263 | Q9: TOYOTA HILUX
B10: 27/9/2019 | C10: AAA 632 XM | D10: ETERNA | E10: 146814 | F10: PETROL | G10: 14 | H10: 145 | I10: 15.5 | J10: 1.5 | K10: 2000 | L10: UYO | M10: HUAWEI | N10: DENNIS ADOYE | O10: 9062959263 | Q10: TOYOTA HILUX
J11: TOTAL | K11: =SUM(K9:K10) -> 6000

Sheet 03-10-2019
H7: HUAWEI FUEL RETIREMENT FOR 03-10-2019 BY IKECHUKWU ROBERT E.
B9: Date | C9: Vehicle Number | D9: Filling Station | E9: Mileage | F9: Type | G9: Quantity | H9: Amount per Litre | I9: TRACKING REPORT LITRE | J9: Variance | K9: RATE | L9: PURCHASE POINT | M9: CONTRACT | N9: NAME | O9: PHONE NO | P9: COMMENT | Q9: VEHICLE MAKE
B10: 28/9/2019 | C10: AAA 632 XM | D10: ETERNA | E10: 147288 | F10: PETROL | G10: 41 | H10: 145 | I10: 39 | J10: 2 | K10: 6000 | L10: PHC | M10: HUAWEI | N10: DENNIS ADOYE | O10: 9062959263 | Q10: TOYOTA HILUX
B11: 2019-02-10 | C11: LSD 460 XM | D11: ETERNA | E11: 126115 | F11: PETROL | G11: 41 | H11: 145 | I11: 34 | J11: 7 | K11: 6000 | L11: PHC | M11: HUAWEI | N11: KINGSLEY OKEREKE | O11: 8063799963 | Q11: TOYOTA HILUX
B12: 2019-03-10 | C12: KRD 337 XB | D12: PROPEL | E12: 98741 | F12: PETROL | G12: 35 | H12: 145 | I12: NOT CAPTURED | J12: 0 | K12: 5000 | L12: PHC | M12: HUAWEI | N12: DIDI SOLOMON | O12: 8134352565 | Q12: TOYOTAHILUX
J13: TOTAL | K13: =SUM(K10:K12) -> 17000

Sheet 04-10-2019
H4: HUAWEI FUEL RETIREMENT FOR 04-10-2019 BY IKECHUKWU ROBERT E.
B6: Date | C6: Vehicle Number | D6: Filling Station | E6: Mileage | F6: Type | G6: Quantity | H6: Amount per Litre | I6: TRACKING REPORT LITRE | J6: Variance | K6: RATE | L6: PURCHASE POINT | M6: CONTRACT | N6: NAME | O6: PHONE NO | P6: COMMENT | Q6: VEHICLE MAKE
B7: 2019-03-10 | C7: LSD 460 XM | D7: ETERNA | E7: 126479 | F7: PETROL | G7: 35 | H7: 145 | I7: 34 | J7: 0 | K7: 5000 | L7: PHC | M7: HUAWEI | N7: KINGSLEY OKEREKE | O7: 8063799963 | Q7: TOYOTA HILUX
B8: 2019-04-10 | C8: KRD 337 XB | D8: PROPEL | E8: 98890 | F8: PETROL | G8: 35 | H8: 145 | I8: NOT CAPTURED | J8: 0 | K8: 5000 | L8: PHC | M8: HUAWEI | N8: DIDI SOLOMON | O8: 8134352565 | Q8: TOYOTAHILUX
B9: 2019-04-10 | C9: AAA 632 XM | D9: ETERNA | E9: 147550 | F9: PETROL | G9: 41 | H9: 145 | I9: 40 | J9: 1 | K9: 6000 | L9: PHC | M9: HUAWEI | N9: DENNIS ADOYE | O9: 9062959263 | Q9: TOYOTA HILUX
J10: TOTAL | K10: 16000

Sheet 07-10-2019
H6: HUAWEI FUEL RETIREMENT FOR 07-10-2019 BY IKECHUKWU ROBERT E.
B8: Date | C8: Vehicle Number | D8: Filling Station | E8: Mileage | F8: Type | G8: Quantity | H8: Amount per Litre | I8: TRACKING REPORT LITRE | J8: Variance | K8: RATE | L8: PURCHASE POINT | M8: CONTRACT | N8: NAME | O8: PHONE NO | P8: COMMENT | Q8: VEHICLE MAKE
B9: 2019-05-10 | C9: AAA 632 XM | D9: FORTE OIL | E9: 147791 | F9: PETROL | G9: 48 | H9: 145 | I9: 34 | J9: 14 | K9: 7000 | L9: PHC | M9: HUAWEI | N9: DENNIS ADOYE | O9: 9062959263 | P9: Kindly deduct N2,000.00 from the driver. | Q9: TOYOTA HILUX
B10: 2019-05-10 | C10: LSR 998 XL | D10: ETERNA | E10: 194490 | F10: PETROL | G10: 14 | H10: 145 | I10: 20 | J10: 6 | K10: 2000 | L10: PHC | M10: HUAWEI | N10: DENNIS ADOYE | O10: 9062959264 | Q10: TOYOTA HILUX
B11: 2019-06-10 | C11: AAA 632 XM | D11: ETERNA | E11: 148074 | F11: PETROL | G11: 41 | H11: 145 | I11: 37 | J11: 4 | K11: 6000 | L11: PHC | M11: HUAWEI | N11: DENNIS ADOYE | O11: 9062959263 | Q11: TOYOTA HILUX
J12: TOTAL | K12: =SUM(K9:K11) -> 15000

Sheet 08-10-2019
H5: HUAWEI FUEL RETIREMENT FOR 08-10-2019 BY IKECHUKWU ROBERT E.
B7: Date | C7: Vehicle Number | D7: Filling Station | E7: Mileage | F7: Type | G7: Quantity | H7: Amount per Litre | I7: TRACKING REPORT LITRE | J7: Variance | K7: RATE | L7: PURCHASE POINT | M7: CONTRACT | N7: NAME | O7: PHONE NO | P7: COMMENT | Q7: VEHICLE MAKE
B8: 2019-08-10 | C8: AAA 632 XM | D8: ETERNA | E8: 148273 | F8: PETROL | G8: 41 | H8: 145 | I8: 32 | J8: 8 | K8: 6000 | L8: PHC | M8: HUAWEI | N8: DENNIS ADOYE | O8: 9062959263 | Q8: TOYOTA HILUX
B9: 2019-08-10 | C9: LSD 460 XM | D9: NUA | E9: 127416 | F9: PETROL | G9: 35 | H9: 145 | I9: 31 | J9: 4 | K9: 5000 | L9: ABA | M9: HUAWEI | N9: KINGSLEY OKEREKE | O9: 8063799963 | Q9: TOYOTA HILUX
J10: TOTAL | K10: =SUM(K8:K9) -> 11000

Sheet 10-10-2019
H6: HUAWEI FUEL RETIREMENT FOR 10-10-2019 BY IKECHUKWU ROBERT E.
B8: Date | C8: Vehicle Number | D8: Filling Station | E8: Mileage | F8: Type | G8: Quantity | H8: Amount per Litre | I8: TRACKING REPORT LITRE | J8: Variance | K8: RATE | L8: PURCHASE POINT | M8: CONTRACT | N8: NAME | O8: PHONE NO | P8: COMMENT | Q8: VEHICLE MAKE
B9: 2019-09-10 | C9: AAA 632 XM | D9: ETERNA | E9: 148273 | F9: PETROL | G9: 31 | H9: 145 | I9: 31 | J9: 0 | K9: 4500 | L9: UYO | M9: HUAWEI | N9: DENNIS ADOYE | O9: 9062959263 | Q9: TOYOTA HILUX
B10: 2019-09-10 | C10: LSD 460 XM | D10: CHELSEA | E10: 127720 | F10: PETROL | G10: 28 | H10: 145 | I10: 24.5 | J10: 3.5 | K10: 4000 | L10: PHC | M10: HUAWEI | N10: KINGSLEY OKEREKE | O10: 8063799963 | Q10: TOYOTA HILUX
B11: 2019-10-10 | C11: AAA 632 XM | D11: ETERNA | E11: 148273 | F11: PETROL | G11: 35 | H11: 145 | I11: 33 | J11: 2 | K11: 5000 | L11: PHC | M11: HUAWEI | N11: DENNIS ADOYE | O11: 9062959263 | Q11: TOYOTA HILUX
B12: 2019-10-10 | C12: KRD 337 XB | D12: MOBIL | E12: 99310 | F12: PETROL | G12: 28 | H12: 145 | I12: NOT CAPTURED | J12: 0 | K12: 4000 | L12: PHC | M12: HUAWEI | N12: DIDI SOLOMON | O12: 8134352565 | P12: HAVE INSTRUCTED THE DRIVER TO COME TO THE OFFICE FOR CITRACKS RECTIFICATION | Q12: TOYOTAHILUX
B13: 2019-10-10 | C13: LSD 460 XM | D13: SOBAZ | E13: 127941 | F13: PETROL | G13: 41 | H13: 145 | I13: 36 | J13: 5 | K13: 6000 | L13: PHC | M13: HUAWEI | N13: KINGSLEY OKEREKE | O13: 8063799963 | Q13: TOYOTA HILUX
J14: TOTAL | K14: =SUM(K9:K13) -> 23500

Sheet 12-10-2019
H5: HUAWEI FUEL RETIREMENT FOR 12-10-2019 BY IKECHUKWU ROBERT E.
B7: Date | C7: Vehicle Number | D7: Filling Station | E7: Mileage | F7: Type | G7: Quantity | H7: Amount per Litre | I7: TRACKING REPORT LITRE | J7: Variance | K7: RATE | L7: PURCHASE POINT | M7: CONTRACT | N7: NAME | O7: PHONE NO | P7: COMMENT | Q7: VEHICLE MAKE
B8: 2019-11-10 | C8: AAA 632 XM | D8: PROPEL | E8: 148461 | F8: PETROL | G8: 28 | H8: 145 | I8: 27 | J8: 1 | K8: 4000 | L8: PHC | M8: HUAWEI | N8: DENNIS ADOYE | O8: 9062959263 | Q8: TOYOTA HILUX
B9: 2019-11-10 | C9: LSR 998 XL | D9: ETERNA | E9: 194611 | F9: PETROL | G9: 14 | H9: 145 | I9: 16 | J9: 2 | K9: 2000 | L9: PHC | M9: HUAWEI | N9: DENNIS ADOYE | O9: 9062959263 | Q9: TOYOTA HILUX
J10: TOTAL | K10: =SUM(K8:K9) -> 6000

Sheet 15-10-2019
H5: HUAWEI FUEL RETIREMENT FOR 15-10-2019 BY IKECHUKWU ROBERT E.
B7: Date | C7: Vehicle Number | D7: Filling Station | E7: Mileage | F7: Type | G7: Quantity | H7: Amount per Litre | I7: TRACKING REPORT LITRE | J7: Variance | K7: RATE | L7: PURCHASE POINT | M7: CONTRACT | N7: NAME | O7: PHONE NO | P7: COMMENT | Q7: VEHICLE MAKE
B8: 13/10/2019 | C8: AAA 632 XM | D8: PROPEL | E8: 148893 | F8: PETROL | G8: 35 | H8: 145 | I8: 20 | J8: 15 | K8: 5000 | L8: PHC | M8: HUAWEI | N8: DENNIS ADOYE | O8: 9062959263 | P8: Kindly deduct N2,175.00 from the driver. | Q8: TOYOTA HILUX
B9: 15/10/2020 | C9: AAA 632 XM | D9: CHELSEA | E9: 149276 | F9: PETROL | G9: 55 | H9: 145 | I9: 45 | J9: 15 | K9: 8000 | L9: PHC | M9: HUAWEI | N9: DENNIS ADOYE | O9: 9062959264 | P9: Kindly deduct N2,175.00 from the driver. | Q9: TOYOTA HILUX
J10: TOTAL | K10: =SUM(K8:K9) -> 13000

Sheet 16-10-2019
H6: HUAWEI FUEL RETIREMENT FOR 16-10-2019 BY IKECHUKWU ROBERT E.
B8: Date | C8: Vehicle Number | D8: Filling Station | E8: Mileage | F8: Type | G8: Quantity | H8: Amount per Litre | I8: TRACKING REPORT LITRE | J8: Variance | K8: RATE | L8: PURCHASE POINT | M8: CONTRACT | N8: NAME | O8: PHONE NO | P8: COMMENT | Q8: VEHICLE MAKE
B9: 15/10/2019 | C9: AAB 142 YJ | D9: UDOH A. PET | E9: 40526 | F9: PETROL | G9: 28 | H9: 145 | I9: NOT CAPTURED | J9: 0 | K9: 4000 | L9: UGEP | M9: HUAWEI | N9: JAMES OKWORI | O9: 9062533949 | P9: TRACKER DEVICE FAULTY | Q9: TOYOTA HILUX
B10: 16/10/2019 | C10: AAA 632 XM | D10: CHELSEA | E10: 149550 | F10: PETROL | G10: 28 | H10: 145 | I10: 18 | J10: 10 | K10: 4000 | L10: PHC | M10: HUAWEI | N10: DENNIS ADOYE | O10: 9062959263 | P10: Kindly deduct N1,450.00 from the driver. | Q10: TOYOTA HILUX
B11: 16/10/2019 | C11: AAB 142 YJ | D11: HD PET | E11: 40627 | F11: PETROL | G11: 41 | H11: 145 | I11: NOT CAPTURED | J11: 0 | K11: 6000 | L11: IKOM | M11: HUAWEI | N11: JAMES OKWORI | O11: 9062533949 | P11: TRACKER DEVICE FAULTY | Q11: TOYOTA HILUX
J12: TOTAL | K12: =SUM(K9:K11) -> 14000

Sheet 17-10-2019
H6: HUAWEI FUEL RETIREMENT FOR 17-10-2019 BY IKECHUKWU ROBERT E.
B8: Date | C8: Vehicle Number | D8: Filling Station | E8: Mileage | F8: Type | G8: Quantity | H8: Amount per Litre | I8: TRACKING REPORT LITRE | J8: Variance | K8: RATE | L8: PURCHASE POINT | M8: CONTRACT | N8: NAME | O8: PHONE NO | P8: COMMENT | Q8: VEHICLE MAKE
B9: 16/10/2019 | C9: LSD 460 XM | D9: SITEL PET | E9: 129143 | F9: PETROL | G9: 41 | H9: 145 | I9: NOT CAPTURED | J9: 0 | K9: 6000 | L9: ENUGU | M9: HUAWEI | N9: KINGSLEY OKEREKE | O9: 8063799963 | P9: Kindly deductn6,000.00 from driver | Q9: TOYOTA HILUX
B10: 17/10/2019 | C10: KRD 337 XB | D10: MOBIL | E10: 100500 | F10: PETROL | G10: 35 | H10: 145 | I10: NOT CAPTURED | J10: 0 | K10: 5000 | L10: PHC | M10: HUAWEI | N10: DIDI SOLOMON | O10: 8134352565 | P10: HAVE INSTRUCTED THE DRIVER TO COME TO THE OFFICE FOR CITRACKS RECTIFICATION | Q10: TOYOTAHILUX
B11: 17/10/2019 | C11: AAB 142 YJ | D11: HD PET | E11: 40912 | F11: PETROL | G11: 41 | H11: 145 | I11: NOT CAPTURED | J11: 0 | K11: 5000 | L11: IKOM | M11: HUAWEI | N11: JAMES OKWORI | O11: 9062533949 | P11: TRACKER DEVICE FAULTY HAVE ADVISED CITRACKS | Q11: TOYOTA HILUX
B12: 17/10/2019 | C12: LSD 460 XM | D12: SITEL PET | E12: 129357 | F12: PETROL | G12: 35 | H12: 145 | I12: 35 | J12: 0 | K12: 5000 | L12: ENUGU | M12: HUAWEI | N12: KINGSLEY OKEREKE | O12: 8063799963 | Q12: TOYOTA HILUX
J13: TOTAL | K13: 21000

Sheet 23-10-2019
H5: HUAWEI FUEL RETIREMENT FOR 23-10-2019 BY IKECHUKWU ROBERT E.
B7: Date | C7: Vehicle Number | D7: Filling Station | E7: Mileage | F7: Type | G7: Quantity | H7: Amount per Litre | I7: TRACKING REPORT LITRE | J7: Variance | K7: RATE | L7: PURCHASE POINT | M7: CONTRACT | N7: NAME | O7: PHONE NO | P7: COMMENT | Q7: VEHICLE MAKE
B8: 22/10/2019 | C8: LSD 460 XM | D8: UNIQUE PET | E8: 130353 | F8: PETROL | G8: 35 | H8: 145 | I8: 31 | J8: 4 | K8: 5000 | L8: ENUGU | M8: HUAWEI | N8: KINGSLEY OKEREKE | O8: 8063799963 | Q8: TOYOTA HILUX
B9: 23/10/2019 | C9: KRD 337 XB | D9: MOBIL | E9: 100669 | F9: PETROL | G9: 35 | H9: 145 | I9: NOT CAPTURED | J9: 0 | K9: 5000 | L9: PHC | M9: HUAWEI | N9: DIDI SOLOMON | O9: 8134352565 | P9: CITRACKS HAVE RECTIFIED BUT THE GPS TIMING IS STILL UPDATING | Q9: TOYOTAHILUX
B10: 23/10/2019 | C10: LSD 460 XM | D10: NNPC | E10: 130579 | F10: PETROL | G10: 35 | H10: 145 | I10: 25.5 | J10: 9.5 | K10: 5000 | L10: ENUGU | M10: HUAWEI | N10: KINGSLEY OKEREKE | O10: 8063799963 | P10: Kindly deduct N1,377.5 from driver | Q10: TOYOTA HILUX
J11: TOTAL | K11: 15000

Sheet 24-10-2019
H5: HUAWEI FUEL RETIREMENT FOR 24-10-2019 BY IKECHUKWU ROBERT E.
B7: Date | C7: Vehicle Number | D7: Filling Station | E7: Mileage | F7: Type | G7: Quantity | H7: Amount per Litre | I7: TRACKING REPORT LITRE | J7: Variance | K7: RATE | L7: PURCHASE POINT | M7: CONTRACT | N7: NAME | O7: PHONE NO | P7: COMMENT | Q7: VEHICLE MAKE
B8: 23/10/2019 | C8: LSD 460 XM | D8: NIPPCO | E8: 130728 | F8: PETROL | G8: 21 | H8: 145 | I8: 14 | J8: 6 | K8: 3000 | L8: OWERRI | M8: HUAWEI | N8: KINGSLEY OKEREKE | O8: 8063799963 | Q8: TOYOTA HILUX
B9: 24/10/2019 | C9: LSD 460 XM | D9: CHELSEA | E9: 130728 | F9: PETROL | G9: 35 | H9: 145 | I9: 32 | J9: 3 | K9: 5000 | L9: PHC | M9: HUAWEI | N9: KINGSLEY OKEREKE | O9: 8063799963 | Q9: TOYOTA HILUX
B10: 24/10/2019 | C10: AAA 632 XM | D10: NNPC | E10: 149881 | F10: PETROL | G10: 35 | H10: 145 | I10: 33 | J10: 2 | K10: 5000 | L10: PHC | M10: HUAWEI | N10: DENNIS ADOYE | O10: 9062959263 | Q10: TOYOTA HILUX
J11: TOTAL | K11: =SUM(K8:K10) -> 13000

Sheet 28-10-2019
H6: HUAWEI FUEL RETIREMENT FOR 28-10-2019 BY IKECHUKWU ROBERT E.
B8: Date | C8: Vehicle Number | D8: Filling Station | E8: Mileage | F8: Type | G8: Quantity | H8: Amount per Litre | I8: TRACKING REPORT LITRE | J8: Variance | K8: RATE | L8: PURCHASE POINT | M8: CONTRACT | N8: NAME | O8: PHONE NO | P8: COMMENT | Q8: VEHICLE MAKE
B9: 26/10/2019 | C9: AAA 632 XM | D9: NNPC | E9: 150120 | F9: PETROL | G9: 41 | H9: 145 | I9: STILL PROCESSING | K9: 6000 | L9: PHC | M9: HUAWEI | N9: DENNIS ADOYE | O9: 9062959263 | P9: STILL PROCESSING | Q9: TOYOTA HILUX
B10: 28/10/2019 | C10: AAA 632 XM | D10: NNPC | E10: 150332 | F10: PETROL | G10: 35 | H10: 145 | I10: 32.5 | J10: 2.5 | K10: 5000 | L10: PHC | M10: HUAWEI | N10: DENNIS ADOYE | O10: 9062959263 | Q10: TOYOTA HILUX
J11: TOTAL | K11: =SUM(K9:K10) -> 11000

Sheet 30-10-2019
H6: HUAWEI FUEL RETIREMENT FOR 30-10-2019 BY IKECHUKWU ROBERT E.
B8: Date | C8: Vehicle Number | D8: Filling Station | E8: Mileage | F8: Type | G8: Quantity | H8: Amount per Litre | I8: TRACKING REPORT LITRE | J8: Variance | K8: RATE | L8: PURCHASE POINT | M8: CONTRACT | N8: NAME | O8: PHONE NO | P8: COMMENT | Q8: VEHICLE MAKE
B9: 30/10/2019 | C9: AAA 632 XM | D9: PROPEL | E9: 150625 | F9: PETROL | G9: 35 | H9: 145 | I9: 32 | J9: 3 | K9: 5000 | L9: PHC | M9: HUAWEI | N9: DENNIS ADOYE | O9: 9062959263 | Q9: TOYOTA HILUX
J10: TOTAL | K10: =SUM(K9:K9) -> 5000

Sheet 31-10-2019
H5: HUAWEI FUEL RETIREMENT FOR 31-10-2019 BY IKECHUKWU ROBERT E.
B7: Date | C7: Vehicle Number | D7: Filling Station | E7: Mileage | F7: Type | G7: Quantity | H7: Amount per Litre | I7: TRACKING REPORT LITRE | J7: Variance | K7: RATE | L7: PURCHASE POINT | M7: CONTRACT | N7: NAME | O7: PHONE NO | P7: COMMENT | Q7: VEHICLE MAKE
B8: 30/10/2019 | C8: AAA 632 XM | D8: NNPC | E8: 150966 | F8: PETROL | G8: 28 | H8: 145 | I8: 29 | J8: 1 | K8: 4000 | L8: BENIN | M8: HUAWEI | N8: DENNIS ADOYE | O8: 9062959263 | Q8: TOYOTA HILUX
B9: 31/10/2019 | C9: AAA 632 XM | D9: NNPC | E9: 151213 | F9: PETROL | G9: 35 | H9: 145 | I9: 35 | J9: 0 | K9: 5000 | L9: BENIN | M9: HUAWEI | N9: DENNIS ADOYE | O9: 9062959264 | Q9: TOYOTA HILUX
J10: TOTAL | K10: =SUM(K8:K9) -> 9000

Sheet 2-11-2019
H5: HUAWEI FUEL RETIREMENT FOR 2-11-2019 BY IKECHUKWU ROBERT E.
B7: Date | C7: Vehicle Number | D7: Filling Station | E7: Mileage | F7: Type | G7: Quantity | H7: Amount per Litre | I7: TRACKING REPORT LITRE | J7: Variance | K7: RATE | L7: PURCHASE POINT | M7: CONTRACT | N7: NAME | O7: PHONE NO | P7: COMMENT | Q7: VEHICLE MAKE
B8: 31/10/2019 | C8: AAA 632 XM | D8: NNPC | E8: 151439 | F8: PETROL | G8: 35 | H8: 145 | I8: 29 | J8: 6 | K8: 5000 | L8: BENIN | M8: HUAWEI | N8: DENNIS ADOYE | O8: 9062959264 | Q8: TOYOTA HILUX
J9: TOTAL | K9: =SUM(K8:K8) -> 5000

Sheet 05-11-2019
H5: HUAWEI FUEL RETIREMENT FOR 05-11-2019 BY IKECHUKWU ROBERT E.
B7: Date | C7: Vehicle Number | D7: Filling Station | E7: Mileage | F7: Type | G7: Quantity | H7: Amount per Litre | I7: TRACKING REPORT LITRE | J7: Variance | K7: RATE | L7: PURCHASE POINT | M7: CONTRACT | N7: NAME | O7: PHONE NO | P7: COMMENT | Q7: VEHICLE MAKE
B8: 2019-05-11 | C8: KRD 337 XB | D8: PROPEL | E8: 103599 | F8: PETROL | G8: 28 | H8: 145 | I8: NOT CAPTURED | J8: 0 | K8: 4000 | L8: PHC | M8: HUAWEI | N8: DIDI SOLOMON | O8: 8134352565 | Q8: TOYOTAHILUX
J9: TOTAL | K9: =SUM(K8:K8) -> 4000

Sheet 07-11-2019
H5: HUAWEI FUEL RETIREMENT FOR 07-11-2019 BY IKECHUKWU ROBERT E.
B7: Date | C7: Vehicle Number | D7: Filling Station | E7: Mileage | F7: Type | G7: Quantity | H7: Amount per Litre | I7: TRACKING REPORT LITRE | J7: Variance | K7: RATE | L7: PURCHASE POINT | M7: CONTRACT | N7: NAME | O7: PHONE NO | P7: COMMENT | Q7: VEHICLE MAKE
B8: 2019-06-11 | C8: LSR 997 XL | D8: JT PET | E8: 77101 | F8: PETROL | G8: 28 | H8: 145 | I8: 21 | J8: 7 | K8: 4000 | L8: PHC | M8: HUAWEI | N8: DENNIS ADOYE | O8: 9062959264 | Q8: TOYOTAHILUX
B9: 2019-06-11 | C9: AAA 632 XM | D9: PROPEL | E9: 151690 | F9: PETROL | G9: 41 | H9: 145 | I9: 36 | J9: 5 | K9: 5000 | L9: PHC | M9: HUAWEI | N9: KINGSLEY OKEREKE | O9: 8063799963 | Q9: TOYOTA HILUX
B10: 2019-07-11 | C10: AAA 632 XM | D10: OANDO | E10: 151999 | F10: PETROL | G10: 21 | H10: 145 | I10: 17 | J10: 4 | K10: 3000 | L10: PHC | M10: HUAWEI | N10: KINGSLEY OKEREKE | O10: 8063799964 | Q10: TOYOTA HILUX
B11: 2019-07-11 | C11: AAA 632 XM | D11: HUMMER | E11: 152192 | F11: PETROL | G11: 55 | H11: 145 | I11: 59 | J11: 4 | K11: 8000 | L11: UMUAHIA | M11: HUAWEI | N11: KINGSLEY OKEREKE | O11: 8063799965 | Q11: TOYOTA HILUX
J12: TOTAL | K12: =SUM(K8:K11) -> 20000

Sheet 08-11-2019
H6: HUAWEI FUEL RETIREMENT FOR 08-11-2019 BY IKECHUKWU ROBERT E.
B8: Date | C8: Vehicle Number | D8: Filling Station | E8: Mileage | F8: Type | G8: Quantity | H8: Amount per Litre | I8: TRACKING REPORT LITRE | J8: Variance | K8: RATE | L8: PURCHASE POINT | M8: CONTRACT | N8: NAME | O8: PHONE NO | P8: COMMENT | Q8: VEHICLE MAKE
B9: 2019-08-11 | C9: AAA 632 XM | D9: PROPEL | E9: 152623 | F9: PETROL | G9: 41 | H9: 145 | I9: 36 | J9: 5 | K9: 6000 | L9: PHC | M9: HUAWEI | N9: DENNIS ADOYE | O9: 9062959264 | Q9: TOYOTA HILUX
J10: TOTAL | K10: =SUM(K9:K9) -> 6000

Sheet 11-11-2019
H5: HUAWEI FUEL RETIREMENT FOR 11-11-2019 BY IKECHUKWU ROBERT E.
B7: Date | C7: Vehicle Number | D7: Filling Station | E7: Mileage | F7: Type | G7: Quantity | H7: Amount per Litre | I7: TRACKING REPORT LITRE | J7: Variance | K7: RATE | L7: PURCHASE POINT | M7: CONTRACT | N7: NAME | O7: PHONE NO | P7: COMMENT | Q7: VEHICLE MAKE
B8: 2019-11-11 | C8: AAA 632 XM | D8: PROPEL | E8: 152883 | F8: PETROL | G8: 28 | H8: 145 | I8: 29 | J8: 0 | K8: 4000 | L8: PHC | M8: HUAWEI | N8: DENNIS ADOYE | O8: 9062959264 | Q8: TOYOTA HILUX
J9: TOTAL | K9: =SUM(K8:K8) -> 4000

Sheet 13-11-2019
H7: HUAWEI FUEL RETIREMENT FOR 13-11-2019 BY IKECHUKWU ROBERT E.
B9: Date | C9: Vehicle Number | D9: Filling Station | E9: Mileage | F9: Type | G9: Quantity | H9: Amount per Litre | I9: TRACKING REPORT LITRE | J9: Variance | K9: RATE | L9: PURCHASE POINT | M9: CONTRACT | N9: NAME | O9: PHONE NO | P9: COMMENT | Q9: VEHICLE MAKE
B10: 13/11/2019 | C10: AAA 632 XM | D10: PROPEL | E10: 152938 | F10: PETROL | G10: 35 | H10: 145 | I10: 35 | J10: 0 | K10: 5000 | L10: PHC | M10: HUAWEI | N10: DENNIS ADOYE | O10: 9062959264 | Q10: TOYOTA HILUX
B11: 13/11/2019 | C11: AAA 632 XM | D11: PROPEL | E11: 153320 | F11: PETROL | G11: 21 | H11: 145 | I11: 22 | J11: 1 | K11: 3000 | L11: BENIN | M11: HUAWEI | N11: DENNIS ADOYE | O11: 9062959265 | Q11: TOYOTA HILUX
B12: 13/11/2019 | C12: KRD 337 XB | D12: MOBIL | E12: 104691 | F12: PETROL | G12: 28 | H12: 145 | I12: 18.5 | J12: 9.5 | K12: 4000 | L12: PHC | M12: HUAWEI | N12: DIDI SOLOMON | O12: 8134352565 | P12: KINDLY DEDUCT N1,377.50 FROM DRIVER | Q12: TOYOTAHILUX
J13: TOTAL | K13: =SUM(K10:K12) -> 12000

Sheet 15-11-2019
H6: HUAWEI FUEL RETIREMENT FOR 15-11-2019 BY IKECHUKWU ROBERT E.
B8: Date | C8: Vehicle Number | D8: Filling Station | E8: Mileage | F8: Type | G8: Quantity | H8: Amount per Litre | I8: TRACKING REPORT LITRE | J8: Variance | K8: RATE | L8: PURCHASE POINT | M8: CONTRACT | N8: NAME | O8: PHONE NO | P8: COMMENT | Q8: VEHICLE MAKE
B9: 14/11/2019 | C9: AAA 632 XM | D9: NNPC | E9: 153410 | F9: PETROL | G9: 12 | H9: 145 | I9: NOT CAPTURED | J9: 0 | K9: 1800 | L9: BENIN | M9: HUAWEI | N9: DENNIS ADOYE | O9: 9062959264 | Q9: TOYOTA HILUX
B10: 15/11/2019 | C10: AAA 632 XM | D10: NNPC | E10: 153490 | F10: PETROL | G10: 55 | H10: 145 | I10: 50 | J10: 5 | K10: 8000 | L10: BENIN | M10: HUAWEI | N10: DENNIS ADOYE | O10: 9062959265 | Q10: TOYOTA HILUX
J11: TOTAL | K11: =SUM(K9:K10) -> 9800

Sheet 18-11-2019
H6: HUAWEI FUEL RETIREMENT FOR 18-11-2019 BY IKECHUKWU ROBERT E.
B8: Date | C8: Vehicle Number | D8: Filling Station | E8: Mileage | F8: Type | G8: Quantity | H8: Amount per Litre | I8: TRACKING REPORT LITRE | J8: Variance | K8: RATE | L8: PURCHASE POINT | M8: CONTRACT | N8: NAME | O8: PHONE NO | P8: COMMENT | Q8: VEHICLE MAKE
B9: 17/11/2019 | C9: AAA 632 XM | D9: PROPEL | E9: 153920 | F9: PETROL | G9: 55 | H9: 145 | I9: 50 | J9: 5 | K9: 8000 | L9: PHC | M9: HUAWEI | N9: DENNIS ADOYE | O9: 9062959264 | Q9: TOYOTA HILUX
B10: 18/11/2019 | C10: LSD 460 XM | D10: N.D.T PET | E10: 133860 | F10: PETROL | G10: 48 | H10: 145 | I10: 48 | J10: 0 | K10: 7000 | L10: ENUGU | M10: HUAWEI | N10: KINGSLEY OKEREKE | O10: 8063799963 | Q10: TOYOTA HILUX
J11: TOTAL | K11: =SUM(K9:K10) -> 15000

Sheet 19-11-2019
H5: HUAWEI FUEL RETIREMENT FOR 19-11-2019 BY IKECHUKWU ROBERT E.
B7: Date | C7: Vehicle Number | D7: Filling Station | E7: Mileage | F7: Type | G7: Quantity | H7: Amount per Litre | I7: TRACKING REPORT LITRE | J7: Variance | K7: RATE | L7: PURCHASE POINT | M7: CONTRACT | N7: NAME | O7: PHONE NO | P7: COMMENT | Q7: VEHICLE MAKE
B8: 19/11/2019 | C8: AAA 632 XM | D8: PROPEL | E8: 154269 | F8: PETROL | G8: 41 | H8: 145 | I8: 39 | J8: 3 | K8: 6000 | L8: BENIN | M8: HUAWEI | N8: DENNIS ADOYE | O8: 9062959264 | Q8: TOYOTA HILUX
B9: 19/11/2019 | C9: LSD 460 XM | D9: N.D.T PET | E9: 134305 | F9: PETROL | G9: 41 | H9: 145 | I9: 35 | J9: 6 | K9: 6000 | L9: MAKURDI | M9: HUAWEI | N9: KINGSLEY OKEREKE | O9: 8063799963 | Q9: TOYOTA HILUX
J10: TOTAL | K10: =SUM(K8:K9) -> 12000

Sheet 20-11-2019
H5: HUAWEI FUEL RETIREMENT FOR 20-11-2019 BY IKECHUKWU ROBERT E.
B7: Date | C7: Vehicle Number | D7: Filling Station | E7: Mileage | F7: Type | G7: Quantity | H7: Amount per Litre | I7: TRACKING REPORT LITRE | J7: Variance | K7: RATE | L7: PURCHASE POINT | M7: CONTRACT | N7: NAME | O7: PHONE NO | P7: COMMENT | Q7: VEHICLE MAKE
B8: 20/11/2019 | C8: AAA 632 XM | D8: ETERNA | E8: 154579 | F8: PETROL | G8: 35 | H8: 145 | I8: 33 | J8: 2 | K8: 5000 | L8: PHC | M8: HUAWEI | N8: DENNIS ADOYE | O8: 9062959264 | Q8: TOYOTA HILUX
J9: TOTAL | K9: =SUM(K8:K8) -> 5000

Sheet 22-11-2019
H5: HUAWEI FUEL RETIREMENT FOR 22-11-2019 BY IKECHUKWU ROBERT E.
B7: Date | C7: Vehicle Number | D7: Filling Station | E7: Mileage | F7: Type | G7: Quantity | H7: Amount per Litre | I7: TRACKING REPORT LITRE | J7: Variance | K7: RATE | L7: PURCHASE POINT | M7: CONTRACT | N7: NAME | O7: PHONE NO | P7: COMMENT | Q7: VEHICLE MAKE
B8: 21/11/2019 | C8: AAA 632 XM | D8: ETERNA | E8: 154836 | F8: PETROL | G8: 35 | H8: 145 | I8: 35 | J8: 0 | K8: 5000 | L8: PHC | M8: HUAWEI | N8: DENNIS ADOYE | O8: 9062959264 | Q8: TOYOTA HILUX
B9: 22/11/2019 | C9: AAA 632 XM | D9: PROPEL | E9: 154932 | F9: PETROL | G9: 41 | H9: 145 | I9: NOT CAPTURED | J9: 0 | K9: 6000 | L9: PHC | M9: HUAWEI | N9: DENNIS ADOYE | O9: 9062959265 | Q9: TOYOTA HILUX
J10: TOTAL | K10: =SUM(K8:K9) -> 11000

Sheet 25-11-2019
H6: HUAWEI FUEL RETIREMENT FOR 25-11-2019 BY IKECHUKWU ROBERT E.
B8: Date | C8: Vehicle Number | D8: Filling Station | E8: Mileage | F8: Type | G8: Quantity | H8: Amount per Litre | I8: TRACKING REPORT LITRE | J8: Variance | K8: RATE | L8: PURCHASE POINT | M8: CONTRACT | N8: NAME | O8: PHONE NO | P8: COMMENT | Q8: VEHICLE MAKE
B9: 23/11/2019 | C9: EPE 474 XB | D9: ND PET | E9: 82881 | F9: PETROL | G9: 41 | H9: 145 | I9: NOT CAPTURED | J9: 0 | K9: 6000 | L9: OWERRI | M9: HUAWEI | N9: SUNDAY OGUNNAIKE | O9: 8162109298 | Q9: TOYOTA HILUX
B10: 23/11/2019 | C10: AAA 637 XM | D10: SOBAZ | E10: 119898 | F10: PETROL | G10: 48 | H10: 145 | I10: 41 | J10: 7 | K10: 7000 | L10: PHC | M10: HUAWEI | N10: JAMES ALECHENU | O10: 9062533949 | Q10: TOYOTA HILUX
B11: 25/11/2019 | C11: AAA 632 XM | D11: PROPEL | E11: 155370 | F11: PETROL | G11: 35 | H11: 145 | I11: 34 | J11: 1 | K11: 5000 | L11: PHC | M11: HUAWEI | N11: DENNIS ADOYE | O11: 9062959265 | Q11: TOYOTA HILUX
J12: TOTAL | K12: =SUM(K9:K11) -> 18000

Sheet 26-11-2019
H6: HUAWEI FUEL RETIREMENT FOR 26-11-2019 BY IKECHUKWU ROBERT E.
B8: Date | C8: Vehicle Number | D8: Filling Station | E8: Mileage | F8: Type | G8: Quantity | H8: Amount per Litre | I8: TRACKING REPORT LITRE | J8: Variance | K8: RATE | L8: PURCHASE POINT | M8: CONTRACT | N8: NAME | O8: PHONE NO | P8: COMMENT | Q8: VEHICLE MAKE
B9: 22/11/2019 | C9: LSD 460 XM | D9: N.D.T PET | E9: 134424 | F9: PETROL | G9: 35 | H9: 145 | I9: 34 | J9: 1 | K9: 5000 | L9: MAKURDI | M9: HUAWEI | N9: KINGSLEY OKEREKE | O9: 8063799963 | Q9: TOYOTA HILUX
B10: 22/11/2019 | C10: LSD 460 XM | D10: N.D.T PET | E10: 134736 | F10: PETROL | G10: 35 | H10: 145 | I10: 35 | J10: 0 | K10: 5000 | L10: KATSINA ALA | M10: HUAWEI | N10: KINGSLEY OKEREKE | O10: 8063799963 | Q10: TOYOTA HILUX
B11: 26/11/2019 | C11: LSD 460 XM | D11: N.D.T PET | E11: 135114 | F11: PETROL | G11: 35 | H11: 145 | I11: NOT CAPTURED | J11: 0 | K11: 5000 | L11: PHC | M11: HUAWEI | N11: KINGSLEY OKEREKE | O11: 8063799963 | Q11: TOYOTA HILUX
J12: TOTAL | K12: =SUM(K9:K11) -> 15000

Sheet 27-11-2019
I6: HUAWEI FUEL RETIREMENT FOR 27-11-2019 BY IKECHUKWU ROBERT E.
C8: Date | D8: Vehicle Number | E8: Filling Station | F8: Mileage | G8: Type | H8: Quantity | I8: Amount per Litre | J8: TRACKING REPORT LITRE | K8: Variance | L8: RATE | M8: PURCHASE POINT | N8: CONTRACT | O8: NAME | P8: PHONE NO | Q8: COMMENT | R8: VEHICLE MAKE
C9: 26/11/2019 | D9: LSD 460 XM | E9: N.D.T PET | F9: 135343 | G9: PETROL | H9: 28 | I9: 145 | J9: 24 | K9: 4 | L9: 4000 | M9: ONITSHA | N9: HUAWEI | O9: KINGSLEY OKEREKE | P9: 8063799963 | R9: TOYOTA HILUX
C10: 27/11/2019 | D10: LSD 460 XM | E10: N.D.T PET | F10: 135480 | G10: PETROL | H10: 35 | I10: 145 | J10: 23 | K10: 12 | L10: 5000 | M10: ASABA | N10: HUAWEI | O10: KINGSLEY OKEREKE | P10: 8063799963 | Q10: Kindly deduct N1,740. From driver | R10: TOYOTA HILUX
C11: 27/11/2019 | D11: AAA 632 XM | E11: PROPEL | F11: 155627 | G11: PETROL | H11: 35 | I11: 145 | J11: 31 | K11: 1 | L11: 5000 | M11: PHC | N11: HUAWEI | O11: DENNIS ADOYE | P11: 9062959265 | R11: TOYOTA HILUX
C12: 27/11/2019 | D12: EPE 474 XB | E12: ND PET | F12: 82881 | G12: PETROL | H12: 28 | I12: 145 | J12: 22 | K12: 6 | L12: 4000 | M12: OWERRI | N12: HUAWEI | O12: SUNDAY OGUNNAIKE | P12: 8162109298 | R12: TOYOTA HILUX
C13: 27/11/2019 | D13: KRD 337 XB | E13: NNPC | F13: 106788 | G13: PETROL | H13: 28 | I13: 145 | J13: 13 | K13: 15 | L13: 4000 | M13: PHC | N13: HUAWEI | O13: DIDI SOLOMON | P13: 8134352565 | Q13: Kindly deduct N2,175. From driver | R13: TOYOTAHILUX
C14: 27/11/2019 | D14: AGL 924 FH | E14: ATBN PET | F14: 39939 | G14: PETROL | H14: 41 | I14: 145 | J14: NOT CAPTURED | K14: 0 | L14: 6000 | M14: PHC | N14: HUAWEI | O14: IMINABOR HORSEFALL | R14: TOYOTAHILUX
K15: TOTAL | L15: =SUM(L9:L14) -> 28000

Sheet 29-11-2019
H5: HUAWEI FUEL RETIREMENT FOR 29-11-2019 BY IKECHUKWU ROBERT E.
B7: Date | C7: Vehicle Number | D7: Filling Station | E7: Mileage | F7: Type | G7: Quantity | H7: Amount per Litre | I7: TRACKING REPORT LITRE | J7: Variance | K7: RATE | L7: PURCHASE POINT | M7: CONTRACT | N7: NAME | O7: PHONE NO | P7: COMMENT | Q7: VEHICLE MAKE
B8: 29/11/2019 | C8: AAB 142 YJ | D8: OANDO | E8: 43657 | F8: PETROL | G8: 35 | H8: 145 | I8: NOT CAPTURED | J8: 0 | K8: 5000 | L8: PHC | M8: HUAWEI | N8: JAMES OKWORI | O8: 8077006442 | Q8: TOYOTA HILUX
J9: TOTAL | K9: =SUM(K8:K8) -> 5000

Sheet 03-12-2019
I5: HUAWEI FUEL RETIREMENT FOR 03-12-2019 BY IKECHUKWU ROBERT E.
C7: Date | D7: Vehicle Number | E7: Filling Station | F7: Mileage | G7: Type | H7: Quantity | I7: Amount per Litre | J7: TRACKING REPORT LITRE | K7: Variance | L7: RATE | M7: PURCHASE POINT | N7: CONTRACT | O7: NAME | P7: PHONE NO | Q7: COMMENT | R7: VEHICLE MAKE
C8: 2019-03-12 | D8: AGL 924 FH | E8: ATBN PET | F8: 4011 | G8: PETROL | H8: 35 | I8: 145 | J8: NOT CAPTURED | K8: 0 | L8: 5000 | M8: PHC | N8: HUAWEI | O8: IMINABOR HORSEFALL | R8: TOYOTAHILUX
K9: TOTAL | L9: =SUM(L8:L8) -> 5000

Sheet 04-12-2019
I6: HUAWEI FUEL RETIREMENT FOR 04-12-2019 BY IKECHUKWU ROBERT E.
C8: Date | D8: Vehicle Number | E8: Filling Station | F8: Mileage | G8: Type | H8: Quantity | I8: Amount per Litre | J8: TRACKING REPORT LITRE | K8: Variance | L8: RATE | M8: PURCHASE POINT | N8: CONTRACT | O8: NAME | P8: PHONE NO | Q8: COMMENT | R8: VEHICLE MAKE
C9: 2019-04-12 | D9: LSD 460 XM | E9: N.D.T PET | F9: 136971 | G9: PETROL | H9: 35 | I9: 145 | J9: 17 | K9: 18 | L9: 5000 | M9: ONITSHA | N9: HUAWEI | O9: KINGSLEY OKEREKE | P9: 8063799963 | Q9: Kindly deduct N2,610.00 from driver | R9: TOYOTA HILUX
C10: 2019-04-12 | D10: AAA 632 XM | E10: PROPEL | F10: 155888 | G10: PETROL | H10: 35 | I10: 145 | J10: 37 | K10: 2 | L10: 5000 | M10: PHC | N10: HUAWEI | O10: DENNIS ADOYE | P10: 9062959265 | R10: TOYOTA HILUX
K11: TOTAL | L11: =SUM(L9:L10) -> 10000

Sheet 05-12-2019
I6: HUAWEI FUEL RETIREMENT FOR 05-12-2019 BY IKECHUKWU ROBERT E.
C8: Date | D8: Vehicle Number | E8: Filling Station | F8: Mileage | G8: Type | H8: Quantity | I8: Amount per Litre | J8: TRACKING REPORT LITRE | K8: Variance | L8: RATE | M8: PURCHASE POINT | N8: CONTRACT | O8: NAME | P8: PHONE NO | Q8: COMMENT | R8: VEHICLE MAKE
C9: 2019-04-12 | D9: AGL 924 FH | E9: PROPEL | F9: 41231 | G9: PETROL | H9: 14 | I9: 145 | J9: NOT CAPTURED | K9: 0 | L9: 2000 | M9: PHC | N9: HUAWEI | O9: IMINABOR HORSEFALL09062533928 | R9: TOYOTA HILUX
C10: 2019-05-12 | D10: LSD 460 XM | E10: SURE PET | F10: 137149 | G10: PETROL | H10: 35 | I10: 145 | J10: 31 | K10: 4 | L10: 5000 | M10: ASABA | N10: HUAWEI | O10: KINGSLEY OKEREKE | P10: 8063799963 | R10: TOYOTA HILUX
K11: TOTAL | L11: =SUM(L9:L10) -> 7000

Sheet 07-12-2019
H5: HUAWEI FUEL RETIREMENT FOR 07-12-2019 BY IKECHUKWU ROBERT E.
B7: Date | C7: Vehicle Number | D7: Filling Station | E7: Mileage | F7: Type | G7: Quantity | H7: Amount per Litre | I7: TRACKING REPORT LITRE | J7: Variance | K7: RATE | L7: PURCHASE POINT | M7: CONTRACT | N7: NAME | O7: PHONE NO | P7: COMMENT | Q7: VEHICLE MAKE
B8: 2019-06-12 | C8: LSD 460 XM | D8: SURE PET | E8: 137321 | F8: PETROL | G8: 35 | H8: 145 | I8: 31 | J8: 4 | K8: 5000 | L8: ONITSHA | M8: HUAWEI | N8: KINGSLEY OKEREKE | O8: 8063799963 | Q8: TOYOTA HILUX
B9: 2019-06-12 | C9: LSD 460 XM | D9: PROPEL | E9: 137510 | F9: PETROL | G9: 37 | H9: 145 | I9: 29 | J9: 8 | K9: 5500 | L9: PHC | M9: HUAWEI | N9: KINGSLEY OKEREKE | O9: 8063799963 | Q9: TOYOTA HILUX
J10: TOTAL | K10: =SUM(K8:K9) -> 10500

